Workbook

Sheet Input
A1: Decision Making Tool for Island Communities
A2: Coastal Renewable Generation and Storage Devices
A4: Input Cells
A6: Data
A8: Island | B8: Eigg
A9: Population | B9: 87
A10: Average Daily Demand | B10: 602 | C10: kWh
A11: Non-Renewable Generation Capacity
A12: Demand
A13: Average Summer | B13: 23 | C13: kW
A14: Average Winter | B14: 28.2 | C14: kW
A15: Generation
A16: Average Summer | B16: 31.8 | C16: kW
A17: Average Winter | B17: 42.2 | C17: kW
A19: Main Grid Connection | B19: No
A20: Generation Excess? | B20: =IF(OR(B17>B14,B16>B13),"Yes", "No") -> Yes
A21: =IF(B20="No","","Max Excess") -> Max Excess | B21: =IF(A21="Max Excess",MAX((B16-B13),(B17-B14)),"") -> 14 | C21: =IF(B21<>"","kW","") -> kW
A23: Required Storage
A24: Rated Capacity | B24: 70 | C24: kW
A25: Capacity | B25: 50000 | C25: kWh
A27: Current Renewable Generation
A29: Device | B29: Resource Type | C29: Rated Power
A30: 4 x WT 6000 | B30: Wind | C30: 24 | D30: kW
A31: 3 x Solar Arrays | B31: PV | C31: 53.4 | D31: kW
A32: Large Hydro Scheme | B32: Hydro | C32: 100 | D32: kW
A33: 2 x Small Hydro Scheme | B33: Hydro | C33: 19 | D33: kW
B34: [Select] | D34: kW
B35: [Select] | D35: kW
B36: [Select] | D36: kW
B37: [Select] | D37: kW
B38: [Select] | D38: kW
A40: Potential Generation and Storage
A42: Resource Type: | B42: Tidal Stream | E42: Resource Type: | F42: Tidal Barrage | I42: Resource Type: | J42: Wave
A43: No. of Sites | B43: 4 | E43: No. of Sites | F43: 3 | I43: No. of Sites | J43: 2
A45: Site Name | B45: Eigg - Castle Island | E45: Site Name | F45: Galmisdale Pier (Outer) | I45: Site Name | J45: Southwest Eigg (Transitional Water)
A46: Peak Flow (Springs) | B46: 1.2 | C46: =IF(A46<>"","m/s","") -> m/s | E46: Max Tidal Range | F46: 4.2 | G46: =IF(E46<>"","m","") -> m | I46: Position Relevant to Island | J46: SW
A47: Peak Flow (Neaps) | B47: 0.76 | C47: =IF(A47<>"","m/s","") -> m/s | E47: Mean Tidal Range | F47: 2.7 | G47: =IF(E47<>"","m","") -> m | I47: Relevant Ocean Wave Area | J47: North Sea (AREA 10)
A48: Lunar Cycle Period | B48: 28.74 | C48: =IF(A48<>"","days","") -> days | E48: Lunar Cycle Period | F48: 28.74 | G48: =IF(E48<>"","days","") -> days | I48: Average Wave Height | J48: 1.6
A49: Tidal Period | B49: 12.4 | C49: =IF(A49<>"","hours","") -> hours | E49: Proposed Lagoon Surface Area | F49: 26546.5 | G49: =IF(E49<>"","m^2","") -> m^2 | I49: Proximity to Grid Connection | J49: 1-2 km
A50: Proximity to Grid Connection | B50: < 1 km | E50: Proximity to Grid Connection | F50: < 1 km | I50: Average Water Depth | J50: 10 -15 m
A51: Average Water Depth | B51: 10 -15 m | E51: Average Water Depth | F51: < 5 m | I51: Seabed Topography | J51: Moderate (Sandy, Steep Gradient)
A52: Seabed Topography | B52: Moderate (Rocky, Gentle Gradient) | E52: Seabed Topography | F52: Moderate (Rocky, Gentle Gradient) | I52: Accessibility | J52: Partially Accessible (Temporary Works, Obstacles)
A53: Accessibility | B53: Fully Accessible (Exisiting Infrastructure for Transport) | E53: Accessibility | F53: Partially Accessible (Temporary Works, No Obstacles)
A55: Site Name | B55: East Castle Island | E55: Site Name | F55: Galmisdale Pier (Inner) | I55: Site Name | J55: Southwest Eigg (Deepwater)
A56: Peak Flow (Springs) | B56: 1 | C56: =IF(A56<>"","m/s","") -> m/s | E56: Max Tidal Range | F56: 4.2 | G56: =IF(E56<>"","m","") -> m | I56: Position Relevant to Island | J56: SW
A57: Peak Flow (Neaps) | B57: 0.76 | C57: =IF(A57<>"","m/s","") -> m/s | E57: Mean Tidal Range | F57: 2.7 | G57: =IF(E57<>"","m","") -> m | I57: Relevant Ocean Wave Area | J57: North Sea (AREA 10)
A58: Lunar Cycle Period | B58: 28.74 | C58: =IF(A58<>"","days","") -> days | E58: Lunar Cycle Period | F58: 28.74 | G58: =IF(E58<>"","days","") -> days | I58: Average Wave Height | J58: 1.6
A59: Tidal Period | B59: 12.4 | C59: =IF(A59<>"","hours","") -> hours | E59: Proposed Lagoon Surface Area | F59: 49500 | G59: =IF(E59<>"","m^2","") -> m^2 | I59: Proximity to Grid Connection | J59: 3-5 km
A60: Proximity to Grid Connection | B60: 1-2 km | E60: Proximity to Grid Connection | F60: < 1 km | I60: Average Water Depth | J60: > 20m
A61: Average Water Depth | B61: 5 - 10 m | E61: Average Water Depth | F61: < 5 m | I61: Seabed Topography | J61: Benign (Sandy, Flat/Gentle Gradient)
A62: Seabed Topography | B62: Harsh (Rocky, Moderate/Steep Gradient) | E62: Seabed Topography | F62: Benign (Sandy, Flat/Gentle Gradient) | I62: Accessibility | J62: Partially Accessible (Temporary Works, Obstacles)
A63: Accessibility | B63: Partially Accessible (Complex Temporary Works, Obstacles) | E63: Accessibility | F63: Partially Accessible (Temporary Works, No Obstacles)
A65: Site Name | B65: Southwest Eigg | E65: Site Name | F65: Bay of Laig | I65: Site Name | J65: =IF(I65<>"", "[Enter Name]","") -> [Enter Name]
A66: Peak Flow (Springs) | B66: 0.5 | C66: =IF(A66<>"","m/s","") -> m/s | E66: Max Tidal Range | F66: 4.6 | G66: =IF(E66<>"","m","") -> m | I66: Position Relevant to Island | J66: =IF(I66<>"", "[Select Value]","") -> [Select Value]
A67: Peak Flow (Neaps) | B67: 0.26 | C67: =IF(A67<>"","m/s","") -> m/s | E67: Mean Tidal Range | F67: 3 | G67: =IF(E67<>"","m","") -> m | I67: Relevant Ocean Wave Area | J67: North Sea (AREA 10)
A68: Lunar Cycle Period | B68: 28.74 | C68: =IF(A68<>"","days","") -> days | E68: Lunar Cycle Period | F68: 28.74 | G68: =IF(E68<>"","days","") -> days | I68: Average Wave Height | J68: [Enter Value]
A69: Tidal Period | B69: 12.4 | C69: =IF(A69<>"","hours","") -> hours | E69: Proposed Lagoon Surface Area | F69: 164933.6 | G69: =IF(E69<>"","m^2","") -> m^2 | I69: Proximity to Grid Connection | J69: =IF(I69<>"", "[Select Value]","") -> [Select Value]
A70: Proximity to Grid Connection | B70: 2-3 km | E70: Proximity to Grid Connection | F70: 2-3 km | I70: Average Water Depth | J70: =IF(I70<>"", "[Select Value]","") -> [Select Value]
A71: Average Water Depth | B71: 5 - 10 m | E71: Average Water Depth | F71: 5 - 10 m | I71: Seabed Topography | J71: =IF(I71<>"", "[Select Value]","") -> [Select Value]
A72: Seabed Topography | B72: Moderate (Rocky, Gentle Gradient) | E72: Seabed Topography | F72: Benign (Sandy, Flat/Gentle Gradient) | I72: Accessibility | J72: =IF(I72<>"", "[Select Value]","") -> [Select Value]
A73: Accessibility | B73: Partially Accessible (Complex Temporary Works, Obstacles) | E73: Accessibility | F73: Partially Accessible (Temporary Works, No Obstacles)
A75: Site Name | B75: Northeast Eigg | E75: Site Name | F75: =IF(E75<>"", "[Enter Name]","") -> [Enter Name] | I75: Site Name | J75: =IF(I75<>"", "[Enter Name]","") -> [Enter Name]
A76: Peak Flow (Springs) | B76: 0.75 | C76: =IF(A76<>"","m/s","") -> m/s | E76: Max Tidal Range | F76: =IF(E76<>"", "[Enter Value]","") -> [Enter Value] | G76: =IF(E76<>"","m","") -> m | I76: Position Relevant to Island | J76: =IF(I76<>"", "[Select Value]","") -> [Select Value]
A77: Peak Flow (Neaps) | B77: 0.51 | C77: =IF(A77<>"","m/s","") -> m/s | E77: Mean Tidal Range | F77: =IF(E77<>"", "[Enter Value]","") -> [Enter Value] | G77: =IF(E77<>"","m","") -> m | I77: Relevant Ocean Wave Area | J77: North Sea (AREA 10)
A78: Lunar Cycle Period | B78: 28.74 | C78: =IF(A78<>"","days","") -> days | E78: Lunar Cycle Period | F78: [Enter Value] | G78: =IF(E78<>"","days","") -> days | I78: Average Wave Height | J78: [Enter Value]
A79: Tidal Period | B79: 12.4 | C79: =IF(A79<>"","hours","") -> hours | E79: Proposed Lagoon Surface Area | F79: [Enter Value] | G79: =IF(E79<>"","m^2","") -> m^2 | I79: Proximity to Grid Connection | J79: =IF(I79<>"", "[Select Value]","") -> [Select Value]
A80: Proximity to Grid Connection | B80: 1-2 km | E80: Proximity to Grid Connection | F80: =IF(E80<>"", "[Select Value]","") -> [Select Value] | I80: Average Water Depth | J80: =IF(I80<>"", "[Select Value]","") -> [Select Value]
A81: Average Water Depth | B81: 10 -15 m | E81: Average Water Depth | F81: =IF(E81<>"", "[Select Value]","") -> [Select Value] | I81: Seabed Topography | J81: =IF(I81<>"", "[Select Value]","") -> [Select Value]
A82: Seabed Topography | B82: Harsh (Rocky, Moderate/Steep Gradient) | E82: Seabed Topography | F82: =IF(E82<>"", "[Select Value]","") -> [Select Value] | I82: Accessibility | J82: =IF(I82<>"", "[Select Value]","") -> [Select Value]
A83: Accessibility | B83: Inaccessible (No Infrastructure, Extremely Difficult) | E83: Accessibility | F83: =IF(E83<>"", "[Select Value]","") -> [Select Value]
A85: Site Name | B85: =IF(A85<>"", "[Enter Name]","") -> [Enter Name] | E85: Site Name | F85: =IF(E85<>"", "[Enter Name]","") -> [Enter Name] | I85: Site Name | J85: =IF(I85<>"", "[Enter Name]","") -> [Enter Name]
A86: Peak Flow (Springs) | B86: =IF(A86<>"", "[Enter Value]","") -> [Enter Value] | C86: =IF(A86<>"","m/s","") -> m/s | E86: Max Tidal Range | F86: =IF(E86<>"", "[Enter Value]","") -> [Enter Value] | G86: =IF(E86<>"","m","") -> m | I86: Position Relevant to Island | J86: =IF(I86<>"", "[Select Value]","") -> [Select Value]
A87: Peak Flow (Neaps) | B87: =IF(A87<>"", "[Enter Value]","") -> [Enter Value] | C87: =IF(A87<>"","m/s","") -> m/s | E87: Mean Tidal Range | F87: =IF(E87<>"", "[Enter Value]","") -> [Enter Value] | G87: =IF(E87<>"","m","") -> m | I87: Relevant Ocean Wave Area | J87: North Sea (AREA 10)
A88: Lunar Cycle Period | B88: [Enter Value] | C88: =IF(A88<>"","days","") -> days | E88: Lunar Cycle Period | F88: [Enter Value] | G88: =IF(E88<>"","days","") -> days | I88: Average Wave Height | J88: [Enter Value]
A89: Tidal Period | B89: [Enter Value] | C89: =IF(A89<>"","hours","") -> hours | E89: Proposed Lagoon Surface Area | F89: [Enter Value] | G89: =IF(E89<>"","m^2","") -> m^2 | I89: Proximity to Grid Connection | J89: =IF(I89<>"", "[Select Value]","") -> [Select Value]
A90: Proximity to Grid Connection | B90: =IF(A90<>"", "[Select Value]","") -> [Select Value] | E90: Proximity to Grid Connection | F90: =IF(E90<>"", "[Select Value]","") -> [Select Value] | I90: Average Water Depth | J90: =IF(I90<>"", "[Select Value]","") -> [Select Value]
A91: Average Water Depth | B91: =IF(A91<>"", "[Select Value]","") -> [Select Value] | E91: Average Water Depth | F91: =IF(E91<>"", "[Select Value]","") -> [Select Value] | I91: Seabed Topography | J91: =IF(I91<>"", "[Select Value]","") -> [Select Value]
A92: Seabed Topography | B92: =IF(A92<>"", "[Select Value]","") -> [Select Value] | E92: Seabed Topography | F92: =IF(E92<>"", "[Select Value]","") -> [Select Value] | I92: Accessibility | J92: =IF(I92<>"", "[Select Value]","") -> [Select Value]
A93: Accessibility | B93: =IF(A93<>"", "[Select Value]","") -> [Select Value] | E93: Accessibility | F93: =IF(E93<>"", "[Select Value]","") -> [Select Value]
B469: [Enter Value]

Sheet Resource and Financial Summary
A1: Summary of Assessed Resources
A3: Tidal Stream | F3: Tidal Barrage | K3: Wave | P3: Storage
A5: Site Name | B5: Energy per lunar cycle (kWh/m^2) | C5: Energy per year (kWh/m^2) | D5: Average Power (kW/m^2) | F5: Site Name | G5: Available Energy per lunar cycle (MWh) | H5: Annual Available Energy(MWh) | I5: Required Rated Power (kW) | K5: Site Name | L5: Position | M5: Average Power (kW/m) | N5: Annual Energy (kWh/m) | P5: Name | Q5: Rated Capacity (kW) | R5: Required Capacity (kWh) | S5: Cost (£/kW) | T5: Self Discharge Rate
A6: =IF(Input!B45="[Enter Name]","",Input!B45) -> Eigg - Castle Island | B6: =IF(A6<>"",'Tidal Stream 1'!$H$2780,"") -> 152.0323645 | C6: =IF(A6<>"",'Tidal Stream 1'!$H$2781,"") -> 1930.821609 | D6: =IF(A6<>"",'Tidal Stream 1'!$G$2782,"") -> 0.2203367601 | F6: =IF(Input!F45="[Enter Name]","",Input!F45) -> Galmisdale Pier (Outer) | G6: =IF(F6<>"",'Tidal Barrage 1'!$B$26,"") -> 4.66050726 | H6: =IF(F6<>"",'Tidal Barrage 1'!$B$27,"") -> 59.18876653 | I6: =IF(F6<>"",'Tidal Barrage 1'!$B$23,"") -> 6.756708508 | K6: =IF(Input!J45="[Enter Name]","",Input!J45) -> Southwest Eigg (Transitional Water) | L6: =IF(Input!J46="[Select Value]","",Input!J46) -> SW | M6: =IF(K6<>"",'Wave 1'!$B$12,"") -> 8.055096264 | N6: =IF(K6<>"",M6*365*24,"") -> 70562.64328 | P6: =VLOOKUP(LARGE('Decision Matrices'!$B$69:$B$80,1),'Decision Matrices'!$B$69:$C$80,2,FALSE) -> Pumped Hydro | Q6: =Input!B24 -> 70 | R6: =Input!B25 -> 50000 | S6: =0.78*(VLOOKUP(P6,'Storage Device Database'!$B$4:$K$15,10,FALSE)) -> 40000 | T6: =VLOOKUP(P6,'Storage Device Database'!$B$4:$M$15,12,FALSE) -> 0
A7: =IF(Input!B55="[Enter Name]","",Input!B55) -> East Castle Island | B7: =IF(A7<>"",'Tidal Stream 2'!$H$2780,"") -> 105.2437395 | C7: =IF(A7<>"",'Tidal Stream 2'!$H$2781,"") -> 1336.602816 | D7: =IF(A7<>"",'Tidal Stream 2'!$G$2782,"") -> 0.1525271587 | F7: =IF(Input!F55="[Enter Name]","",Input!F55) -> Galmisdale Pier (Inner) | G7: =IF(F7<>"",'Tidal Barrage 2'!$B$26,"") -> 8.690226937 | H7: =IF(F7<>"",'Tidal Barrage 2'!$B$27,"") -> 110.3664868 | I7: =IF(F7<>"",'Tidal Barrage 2'!$B$23,"") -> 12.59891402 | K7: =IF(Input!J55="[Enter Name]","",Input!J55) -> Southwest Eigg (Deepwater) | L7: =IF(Input!J56="[Select Value]","",Input!J56) -> SW | M7: =IF(K7<>"",'Wave 2'!$B$12,"") -> 4.314619612 | N7: =IF(K7<>"",M7*365*24,"") -> 37796.0678 | P7: =VLOOKUP(LARGE('Decision Matrices'!$B$69:$B$80,2),'Decision Matrices'!$B$69:$C$80,2,FALSE) -> Compressed Air | S7: =0.78*(VLOOKUP(P7,'Storage Device Database'!$B$4:$K$15,10,FALSE)) -> 506.649 | T7: =VLOOKUP(P7,'Storage Device Database'!$B$4:$M$15,12,FALSE) -> 0
A8: =IF(Input!B65="[Enter Name]","",Input!B65) -> Southwest Eigg | B8: =IF(A8<>"",'Tidal Stream 3'!$H$2780,"") -> 9.469957752 | C8: =IF(A8<>"",'Tidal Stream 3'!$H$2781,"") -> 120.2691225 | D8: =IF(A8<>"",'Tidal Stream 3'!$G$2782,"") -> 0.01372457645 | F8: =IF(Input!F65="[Enter Name]","",Input!F65) -> Bay of Laig | G8: =IF(F8<>"",'Tidal Barrage 3'!$B$26,"") -> 35.74785917 | H8: =IF(F8<>"",'Tidal Barrage 3'!$B$27,"") -> 454.0002992 | I8: =IF(F8<>"",'Tidal Barrage 3'!$B$23,"") -> 51.82651817 | K8: =IF(Input!J65="[Enter Name]","",Input!J65) ->  | L8: =IF(Input!J66="[Select Value]","",Input!J66) ->  | M8: =IF(K8<>"",'Wave 3'!$B$12,"") ->  | N8: =IF(K8<>"",M8*365*24,"") ->  | P8: =VLOOKUP(LARGE('Decision Matrices'!$B$69:$B$80,3),'Decision Matrices'!$B$69:$C$80,2,FALSE) -> Zinc Air | S8: =0.78*(VLOOKUP(P8,'Storage Device Database'!$B$4:$K$15,10,FALSE)) -> 1195.74 | T8: =VLOOKUP(P8,'Storage Device Database'!$B$4:$M$15,12,FALSE) -> 0.007
A9: =IF(Input!B75="[Enter Name]","",Input!B75) -> Northeast Eigg | B9: =IF(A9<>"",'Tidal Stream 4'!$H$2780,"") -> 39.60175089 | C9: =IF(A9<>"",'Tidal Stream 4'!$H$2781,"") -> 502.9449922 | D9: =IF(A9<>"",'Tidal Stream 4'!$G$2782,"") -> 0.05739384187 | F9: =IF(Input!F75="[Enter Name]","",Input!F66) ->  | G9: =IF(F9<>"",'Tidal Barrage 3'!$B$26,"") ->  | H9: =IF(F9<>"",'Tidal Barrage 3'!$B$27,"") ->  | I9: =IF(F9<>"",'Tidal Barrage 4'!$B$23,"") ->  | K9: =IF(Input!J75="[Enter Name]","",Input!J75) ->  | L9: =IF(Input!J76="[Select Value]","",Input!J76) ->  | M9: =IF(K9<>"",'Wave 4'!$B$12,"") ->  | N9: =IF(K9<>"",M9*365*24,"") -> 
A10: =IF(Input!B85="[Enter Name]","",Input!B85) ->  | B10: =IF(A10<>"",'Tidal Stream 5'!$H$2780,"") ->  | C10: =IF(A10<>"",'Tidal Stream 5'!$H$2781,"") ->  | D10: =IF(A10<>"",'Tidal Stream 5'!$G$2782,"") ->  | F10: =IF(Input!F85="[Enter Name]","",Input!F67) ->  | G10: =IF(F10<>"",'Tidal Barrage 3'!$B$26,"") ->  | H10: =IF(F10<>"",'Tidal Barrage 3'!$B$27,"") ->  | I10: =IF(F10<>"",'Tidal Barrage 5'!$B$23,"") ->  | K10: =IF(Input!J85="[Enter Name]","",Input!J85) ->  | L10: =IF(Input!J86="[Select Value]","",Input!J86) ->  | M10: =IF(K10<>"",'Wave 5'!$B$12,"") ->  | N10: =IF(K10<>"",M10*365*24,"") -> 
A12: Proposed Location and Devices | K12: Proposed Location and Devices
A14: Site Name | B14: Energy per year (kWh/m^2) | C14: Average Power (kW/m^2) | K14: Site Name | L14: Position | M14: Average Power (kW/m) | N14: Annual Energy (kWh/m)
A15: =VLOOKUP((MAX('Decision Matrices'!B5:B9)),'Decision Matrices'!B5:C9,2,FALSE) -> Eigg - Castle Island | B15: =VLOOKUP(A15,A6:D10,3,FALSE) -> 1930.821609 | C15: =VLOOKUP(A15,A6:D10,4,FALSE) -> 0.2203367601 | F15: Site Name | G15: =VLOOKUP((MAX('Decision Matrices'!B10:B14)),'Decision Matrices'!B10:C14,2,FALSE) -> Bay of Laig | H15: =VLOOKUP(LARGE(('Decision Matrices'!B10:B14),2),'Decision Matrices'!B10:C14,2,FALSE) -> Galmisdale Pier (Inner) | I15: =VLOOKUP(LARGE(('Decision Matrices'!B10:B14),3),'Decision Matrices'!B10:C14,2,FALSE) -> Galmisdale Pier (Outer) | K15: =K6 -> Southwest Eigg (Transitional Water) | L15: =VLOOKUP(K15,K6:L10,2,FALSE) -> SW | M15: =VLOOKUP(K15,K6:N10,2,FALSE) -> SW | N15: =VLOOKUP(K15,K6:N10,3,FALSE) -> 8.055096264
B17: Name | C17: Rated Power (kW) | D17: Capture Area | F17: Available Energy (MWh) | G17: =VLOOKUP(G15,$F$6:$H$10,3,FALSE) -> 454.0002992 | H17: =VLOOKUP(H15,$F$6:$H$10,3,FALSE) -> 110.3664868 | I17: 59.18876653 | L17: Name | M17: Rated Power (kW) | N17: Availability
A18: Potential Devices | B18: =VLOOKUP((MAX('Decision Matrices'!B25:B63)),'Decision Matrices'!B25:C63,2,FALSE) -> Oryon Watermill | C18: =VLOOKUP(B18,'Tidal Device Database'!$B$4:$D$42,3,FALSE) -> 50 | D18: =VLOOKUP(B18,'Tidal Device Database'!$B$4:$G$42,5,FALSE) -> 3 | F18: Rated Power (kW) | G18: =VLOOKUP(G15,$F$6:$I$10,4,FALSE) -> 51.82651817 | H18: =VLOOKUP(H15,$F$6:$I$10,4,FALSE) -> 12.59891402 | I18: 6.756708508 | K18: Potential Devices | L18: =VLOOKUP(LARGE('Decision Matrices'!$B$86:$B$89,1),'Decision Matrices'!$B$86:$C$89,2,FALSE) -> Yam Pro Energy | M18: =VLOOKUP(L18,'Wave Device Database'!$B$3:$G$8,6,FALSE) -> 100 | N18: =VLOOKUP(L18,'Wave Device Database'!$B$3:$D$8,3,FALSE) -> 0.186
B19: =VLOOKUP((LARGE('Decision Matrices'!B25:B63,2)),'Decision Matrices'!B25:C63,2,FALSE) -> ENC-025L | C19: =VLOOKUP(B19,'Tidal Device Database'!$B$4:$D$42,3,FALSE) -> 25 | D19: =VLOOKUP(B19,'Tidal Device Database'!$B$4:$G$42,5,FALSE) -> 2.4 | L19: =VLOOKUP(LARGE('Decision Matrices'!$B$86:$B$89,2),'Decision Matrices'!$B$86:$C$89,2,FALSE) -> Rotary Wave | M19: =VLOOKUP(L19,'Wave Device Database'!$B$3:$G$8,6,FALSE) -> 200 | N19: =VLOOKUP(L19,'Wave Device Database'!$B$3:$D$8,3,FALSE) -> 0.09566666667
B20: =VLOOKUP((LARGE('Decision Matrices'!B25:B63,3)),'Decision Matrices'!B25:C63,2,FALSE) -> EVG-005H | C20: =VLOOKUP(B20,'Tidal Device Database'!$B$4:$D$42,3,FALSE) -> 5 | D20: =VLOOKUP(B20,'Tidal Device Database'!$B$4:$G$42,5,FALSE) -> 0.75 | L20: =VLOOKUP(LARGE('Decision Matrices'!$B$86:$B$89,3),'Decision Matrices'!$B$86:$C$89,2,FALSE) -> Wave El Buoy | M20: =VLOOKUP(L20,'Wave Device Database'!$B$3:$G$8,6,FALSE) -> 150 | N20: =VLOOKUP(L20,'Wave Device Database'!$B$3:$D$8,3,FALSE) -> 0.2603333333
T22: .
A24: Financial Comparison | K24: Financial Comparison | P24: Financial Comparison
A26: Tidal Power Option | F26: Tidal Barrage Option | K26: Wave Options | P26: Storage Options
A28: Device | B28: =B18 -> Oryon Watermill | C28: =B19 -> ENC-025L | D28: =B20 -> EVG-005H | K28: Device | L28: =L18 -> Yam Pro Energy | M28: =L19 -> Rotary Wave | N28: =L20 -> Wave El Buoy | P28: Device | Q28: =P6 -> Pumped Hydro | R28: =P7 -> Compressed Air | S28: =P8 -> Zinc Air
A30: Capital Expenditure | F30: Capital Expenditure | K30: Capital Expenditure | P30: Capital Expenditure
A31: Average Cost per kW Installed | B31: =4400*0.85 -> 3740 | F31: Average Cost per kW Installed | G31: 20000 | K31: Average Cost per kW Installed | L31: =0.85*5790 -> 4921.5 | P31: Average Cost per kW Installed | Q31: =S6 -> 40000 | R31: =S7 -> 506.649 | S31: =S8 -> 1195.74
A32: Major Equipment Cost | B32: =0.46*B36 -> 86020 | C32: =0.46*C36 -> 43010 | D32: 8602 | F32: Capital Cost | G32: =(G31*G18)+500000 -> 1536530.363 | H32: =(G31*H18)+500000 -> 751978.2805 | I32: =(G31*I18)+500000 -> 635134.1702 | K32: Major Equipment Cost | L32: =0.46*L36 -> 226389 | M32: =0.46*M36 -> 452778 | N32: 339583.5 | P32: Total Capital Cost | Q32: =$Q$6*Q31 -> 2800000 | R32: =$Q$6*R31 -> 35465.43 | S32: 83701.8
A33: Civil and Structural Cost | B33: =0.31*B36 -> 57970 | C33: =0.31*C36 -> 28985 | D33: 5797 | F33: Total | G33: =G32 -> 1536530.363 | H33: =SUM(H32:H32) -> 751978.2805 | I33: =SUM(I32:I32) -> 635134.1702 | K33: Civil and Structural Cost | L33: =0.31*L36 -> 152566.5 | M33: =0.31*M36 -> 305133 | N33: 228849.75 | P33: Operating Expenditure
A34: Electrical and Installation | B34: =0.07*B36 -> 13090 | C34: =0.07*C36 -> 6545 | D34: 1309 | K34: Electrical and Installation | L34: =0.07*L36 -> 34450.5 | M34: =0.07*M36 -> 68901 | N34: 51675.75 | P34: Maintenance Cost (@5% Capital) | Q34: =0.05*Q32 -> 140000 | R34: =0.05*R32 -> 1773.2715 | S34: 4185.09
A35: Indirect Project Costs | B35: =0.16*B36 -> 29920 | C35: =0.16*C36 -> 14960 | D35: 2992 | F35: Maintenance Cost (@1% Capital) | G35: =0.01*G33 -> 15365.30363 | H35: =0.01*H33 -> 7519.782805 | I35: =0.01*I33 -> 6351.341702 | K35: Indirect Project Costs | L35: =0.16*L36 -> 78744 | M35: =0.16*M36 -> 157488 | N35: =0.16*N36 -> 118116 | P35: Lifespan | Q35: =VLOOKUP(Q28,'Storage Device Database'!$B$4:$H$15,7,FALSE) -> 49.2 | R35: =VLOOKUP(R28,'Storage Device Database'!$B$4:$H$15,7,FALSE) -> 30 | S35: =VLOOKUP(S28,'Storage Device Database'!$B$4:$H$15,7,FALSE) -> 8.08
A36: Total | B36: =C18*B31 -> 187000 | C36: =C19*B31 -> 93500 | D36: =C20*B31 -> 18700 | F36: Lifespan | G36: 25 | H36: 25 | I36: 25 | K36: Total | L36: =M18*L31 -> 492150 | M36: =M19*L31 -> 984300 | N36: =M20*L31 -> 738225 | P36: Efficiency | Q36: =(VLOOKUP(Q28,'Storage Device Database'!$B$4:$G$15,6,FALSE))/100 -> 0.7659 | R36: =(VLOOKUP(R28,'Storage Device Database'!$B$4:$G$15,6,FALSE))/100 -> 0.683 | S36: =(VLOOKUP(S28,'Storage Device Database'!$B$4:$G$15,6,FALSE))/100 -> 0.4425
A37: Operating Expenditure | F37: Annual Energy Production (kWh) | G37: =G17*1000 -> 454000.2992 | H37: =H17*1000 -> 110366.4868 | I37: =I17*1000 -> 59188.76653 | K37: Operating Expenditure | P37: Annual Capacity (kWh) | Q37: =R6 -> 50000 | R37: =R6 -> 50000 | S37: =R6 -> 50000
A38: Maintenance Cost (@7% Capital) | B38: =0.07*B32 -> 6021.4 | C38: =0.07*C32 -> 3010.7 | D38: =0.07*D32 -> 602.14 | K38: Maintenance Cost (@5% Capital) | L38: =0.05*L32 -> 11319.45 | M38: =0.05*M32 -> 22638.9 | N38: =0.05*N32 -> 16979.175
A39: Lifespan | B39: =VLOOKUP(B18,'Tidal Device Database'!$B$4:$H$43,7,FALSE) -> 25 | C39: =VLOOKUP(B19,'Tidal Device Database'!$B$4:$H$43,7,FALSE) -> 25 | D39: =VLOOKUP(B20,'Tidal Device Database'!$B$4:$H$43,7,FALSE) -> 25 | F39: Levelised Cost of Energy (£/kWh) | G39: =IF(ISERROR(G37),0,(G33+(G35*G36))/(G37*G36)) -> 0.1692212942 | H39: =IF(ISERROR(H37),0,(H33+(H35*H36))/(H37*H36)) -> 0.3406732886 | I39: 0.5365326965 | K39: Lifespan | L39: =VLOOKUP(L28,'Wave Device Database'!$B$3:$F$7,5,FALSE) -> 25 | M39: =VLOOKUP(M28,'Wave Device Database'!$B$3:$F$7,5,FALSE) -> 20 | N39: =VLOOKUP(N28,'Wave Device Database'!$B$3:$F$7,5,FALSE) -> 25 | P39: Levelised Cost of Energy (£/kWh) | Q39: =IF(ISERROR(Q37),0,(Q32+(Q35*Q34))/(Q35*Q37)) -> 3.938211382 | R39: =IF(ISERROR(R37),0,(R32+(R35*R34))/(R35*R37)) -> 0.05910905 | S39: =IF(ISERROR(S37),0,(S32+(S35*S34))/(S35*S37)) -> 0.2908844733
A40: Annual Energy Production (kWh) | B40: =0.3*$B$15*D18 -> 1737.739448 | C40: =0.3*$B$15*D19 -> 1390.191558 | D40: =0.3*$B$15*D20 -> 434.4348619 | K40: Annual Energy Production (kWh) | L40: =(M18*365*24)*N18 -> 162936 | M40: =(M19*365*24)*N19 -> 167608 | N40: =(M20*365*24)*N20 -> 342078
A42: Levelised Cost of Energy (£/kWh) | B42: =IF(ISERROR(B40),0,(B36+(B39*B38))/(B39*B40)) -> 7.769519198 | C42: =IF(ISERROR(C40),0,(C36+(C39*C38))/(C39*C40)) -> 4.855949499 | D42: 3.107807679 | K42: Levelised Cost of Energy (£/kWh) | L42: =IF(ISERROR(L40),0,(L36+(L39*L38))/(L39*L40)) -> 0.1902922006 | M42: =IF(ISERROR(M40),0,(M36+(M39*M38))/(M39*M40)) -> 0.4287020906 | N42: 0.1359578079
A46: Summary
A48: Levelised Cost of Energy | B48: Method/Location | C48: Type
A49: =B42 -> 7.769519198 | B49: =B28 -> Oryon Watermill | C49: Tidal Strean
A50: =C42 -> 4.855949499 | B50: =C28 -> ENC-025L
A51: =D42 -> 3.107807679 | B51: =D28 -> EVG-005H
A52: =G39 -> 0.1692212942 | B52: =G15 -> Bay of Laig | C52: Tidal Range
A53: =H39 -> 0.3406732886 | B53: =H15 -> Galmisdale Pier (Inner)
A54: =I39 -> 0.5365326965 | B54: =I15 -> Galmisdale Pier (Outer)
A55: =L42 -> 0.1902922006 | B55: =L28 -> Yam Pro Energy | C55: Wave
A56: =M42 -> 0.4287020906 | B56: =M28 -> Rotary Wave
A57: =N42 -> 0.1359578079 | B57: =N28 -> Wave El Buoy
A58: =Q39 -> 3.938211382 | B58: =Q28 -> Pumped Hydro | C58: Storage
A59: =R39 -> 0.05910905 | B59: =R28 -> Compressed Air
A60: =S39 -> 0.2908844733 | B60: =S28 -> Zinc Air
A62: Recommeded Options
A64: Generation Method | B64: Levelised Cost of Energy (£/kWh)
A65: =VLOOKUP(MIN(A49:A57),A49:B60,2,FALSE) -> Wave El Buoy | B65: =VLOOKUP(MIN(A49:A57),A49:B60,1,FALSE) -> 0.1359578079
A67: Storage Method | B67: Levelised Cost of Energy
A68: =VLOOKUP(MIN(A58:A60),A58:B60,2,FALSE) -> Compressed Air | B68: =VLOOKUP(MIN(A58:A60),A58:B60,1,FALSE) -> 0.05910905

Sheet Decision Matrices
A3: No. | B3: =M3 -> Score | D3: Criteria | E3: ='Location Database'!D2 -> Assessed Resource | F3: ='Location Database'!E2 -> Proximity to Load (Shore) | G3: ='Location Database'!F2 -> Wave Height | H3: ='Location Database'!G2 -> Average Water Depth | I3: ='Location Database'!H2 -> Peak Flow Rate | J3: ='Location Database'!I2 -> Tidal Range | K3: ='Location Database'!J2 -> Seabed Topography | L3: ='Location Database'!K2 -> Accessibility | M3: Score
C4: Location | D4: Type | E4: 4 | F4: 3 | G4: 4 | H4: 3 | I4: 4 | J4: 4 | K4: 2 | L4: 3
A5: ='Location Database'!A4 -> 1 | B5: =M5 -> 68 | C5: ='Location Database'!B4 -> Eigg - Castle Island | D5: ='Location Database'!C4 -> Tidal Stream | E5: =IF('Location Database'!D4="",0,(VLOOKUP('Location Database'!D4,'Location Database'!$F$30:$G$34,2,FALSE))) -> 2 | F5: =IF((AND('Location Database'!E4<>"",'Location Database'!E4<>"[Select Value]")),(VLOOKUP('Location Database'!E4,'Location Database'!$D$36:$E$40,2,FALSE)),0) -> 5 | G5: =IF((AND('Location Database'!F4<>"",'Location Database'!F4<>"[Select Value]")),(VLOOKUP('Location Database'!F4,'Location Database'!$D$42:$E$47,2,FALSE)),0) -> 0 | H5: =IF((AND('Location Database'!G4<>"",'Location Database'!G4<>"[Select Value]")),(VLOOKUP('Location Database'!G4,'Location Database'!$D$49:$E$53,2,FALSE)),0) -> 4 | I5: =IF((AND('Location Database'!H4<>"",'Location Database'!H4<>"[Select Value]")),(VLOOKUP('Location Database'!H4,'Location Database'!$D$55:$E$60,2,FALSE)),0) -> 3 | J5: =IF((AND('Location Database'!I4<>"",'Location Database'!I4<>"[Select Value]")),(VLOOKUP('Location Database'!I4,'Location Database'!$D$62:$E$67,2,FALSE)),0) -> 0 | K5: =IF((AND('Location Database'!J4<>"",'Location Database'!J4<>"[Select Value]")),(VLOOKUP('Location Database'!J4,'Location Database'!$A$30:$B$34,2,FALSE)),0) -> 3 | L5: =IF((AND('Location Database'!K4<>"",'Location Database'!K4<>"[Select Value]")),(VLOOKUP('Location Database'!K4,'Location Database'!$A$36:$B$40,2,FALSE)),0) -> 5 | M5: =SUMPRODUCT(E5:L5,$E$4:$L$4) -> 68
A6: ='Location Database'!A5 -> 2 | B6: =M6 -> 51 | C6: ='Location Database'!B5 -> East Castle Island | E6: =IF('Location Database'!D5="",0,(VLOOKUP('Location Database'!D5,'Location Database'!$F$30:$G$34,2,FALSE))) -> 2 | F6: =IF((AND('Location Database'!E5<>"",'Location Database'!E5<>"[Select Value]")),(VLOOKUP('Location Database'!E5,'Location Database'!$D$36:$E$40,2,FALSE)),0) -> 4 | G6: =IF((AND('Location Database'!F5<>"",'Location Database'!F5<>"[Select Value]")),(VLOOKUP('Location Database'!F5,'Location Database'!$D$42:$E$47,2,FALSE)),0) -> 0 | H6: =IF((AND('Location Database'!G5<>"",'Location Database'!G5<>"[Select Value]")),(VLOOKUP('Location Database'!G5,'Location Database'!$D$49:$E$53,2,FALSE)),0) -> 5 | I6: =IF((AND('Location Database'!H5<>"",'Location Database'!H5<>"[Select Value]")),(VLOOKUP('Location Database'!H5,'Location Database'!$D$55:$E$60,2,FALSE)),0) -> 2 | J6: =IF((AND('Location Database'!I5<>"",'Location Database'!I5<>"[Select Value]")),(VLOOKUP('Location Database'!I5,'Location Database'!$D$62:$E$67,2,FALSE)),0) -> 0 | K6: =IF((AND('Location Database'!J5<>"",'Location Database'!J5<>"[Select Value]")),(VLOOKUP('Location Database'!J5,'Location Database'!$A$30:$B$34,2,FALSE)),0) -> 1 | L6: =IF((AND('Location Database'!K5<>"",'Location Database'!K5<>"[Select Value]")),(VLOOKUP('Location Database'!K5,'Location Database'!$A$36:$B$40,2,FALSE)),0) -> 2 | M6: =SUMPRODUCT(E6:L6,$E$4:$L$4) -> 51
A7: ='Location Database'!A6 -> 3 | B7: 52 | C7: ='Location Database'!B6 -> Southwest Eigg | E7: =IF('Location Database'!D6="",0,(VLOOKUP('Location Database'!D6,'Location Database'!$F$30:$G$34,2,FALSE))) -> 2 | F7: =IF((AND('Location Database'!E6<>"",'Location Database'!E6<>"[Select Value]")),(VLOOKUP('Location Database'!E6,'Location Database'!$D$36:$E$40,2,FALSE)),0) -> 3 | G7: =IF((AND('Location Database'!F6<>"",'Location Database'!F6<>"[Select Value]")),(VLOOKUP('Location Database'!F6,'Location Database'!$D$42:$E$47,2,FALSE)),0) -> 0 | H7: =IF((AND('Location Database'!G6<>"",'Location Database'!G6<>"[Select Value]")),(VLOOKUP('Location Database'!G6,'Location Database'!$D$49:$E$53,2,FALSE)),0) -> 5 | I7: =IF((AND('Location Database'!H6<>"",'Location Database'!H6<>"[Select Value]")),(VLOOKUP('Location Database'!H6,'Location Database'!$D$55:$E$60,2,FALSE)),0) -> 2 | J7: =IF((AND('Location Database'!I6<>"",'Location Database'!I6<>"[Select Value]")),(VLOOKUP('Location Database'!I6,'Location Database'!$D$62:$E$67,2,FALSE)),0) -> 0 | K7: =IF((AND('Location Database'!J6<>"",'Location Database'!J6<>"[Select Value]")),(VLOOKUP('Location Database'!J6,'Location Database'!$A$30:$B$34,2,FALSE)),0) -> 3 | L7: =IF((AND('Location Database'!K6<>"",'Location Database'!K6<>"[Select Value]")),(VLOOKUP('Location Database'!K6,'Location Database'!$A$36:$B$40,2,FALSE)),0) -> 2 | M7: 52
A8: ='Location Database'!A7 -> 4 | B8: 45 | C8: ='Location Database'!B7 -> Northeast Eigg | E8: =IF('Location Database'!D7="",0,(VLOOKUP('Location Database'!D7,'Location Database'!$F$30:$G$34,2,FALSE))) -> 2 | F8: =IF((AND('Location Database'!E7<>"",'Location Database'!E7<>"[Select Value]")),(VLOOKUP('Location Database'!E7,'Location Database'!$D$36:$E$40,2,FALSE)),0) -> 4 | G8: =IF((AND('Location Database'!F7<>"",'Location Database'!F7<>"[Select Value]")),(VLOOKUP('Location Database'!F7,'Location Database'!$D$42:$E$47,2,FALSE)),0) -> 0 | H8: =IF((AND('Location Database'!G7<>"",'Location Database'!G7<>"[Select Value]")),(VLOOKUP('Location Database'!G7,'Location Database'!$D$49:$E$53,2,FALSE)),0) -> 4 | I8: =IF((AND('Location Database'!H7<>"",'Location Database'!H7<>"[Select Value]")),(VLOOKUP('Location Database'!H7,'Location Database'!$D$55:$E$60,2,FALSE)),0) -> 2 | J8: =IF((AND('Location Database'!I7<>"",'Location Database'!I7<>"[Select Value]")),(VLOOKUP('Location Database'!I7,'Location Database'!$D$62:$E$67,2,FALSE)),0) -> 0 | K8: =IF((AND('Location Database'!J7<>"",'Location Database'!J7<>"[Select Value]")),(VLOOKUP('Location Database'!J7,'Location Database'!$A$30:$B$34,2,FALSE)),0) -> 1 | L8: =IF((AND('Location Database'!K7<>"",'Location Database'!K7<>"[Select Value]")),(VLOOKUP('Location Database'!K7,'Location Database'!$A$36:$B$40,2,FALSE)),0) -> 1 | M8: 45
A9: ='Location Database'!A8 -> 5 | B9: 0 | C9: ='Location Database'!B8 -> [Enter Name] | E9: =IF('Location Database'!D8="",0,(VLOOKUP('Location Database'!D8,'Location Database'!$F$30:$G$34,2,FALSE))) -> 0 | F9: =IF((AND('Location Database'!E8<>"",'Location Database'!E8<>"[Select Value]")),(VLOOKUP('Location Database'!E8,'Location Database'!$D$36:$E$40,2,FALSE)),0) -> 0 | G9: =IF((AND('Location Database'!F8<>"",'Location Database'!F8<>"[Select Value]")),(VLOOKUP('Location Database'!F8,'Location Database'!$D$42:$E$47,2,FALSE)),0) -> 0 | H9: =IF((AND('Location Database'!G8<>"",'Location Database'!G8<>"[Select Value]")),(VLOOKUP('Location Database'!G8,'Location Database'!$D$49:$E$53,2,FALSE)),0) -> 0 | I9: =IF((AND('Location Database'!H8<>"",'Location Database'!H8<>"[Select Value]")),(VLOOKUP('Location Database'!H8,'Location Database'!$D$55:$E$60,2,FALSE)),0) -> 0 | J9: =IF((AND('Location Database'!I8<>"",'Location Database'!I8<>"[Select Value]")),(VLOOKUP('Location Database'!I8,'Location Database'!$D$62:$E$67,2,FALSE)),0) -> 0 | K9: =IF((AND('Location Database'!J8<>"",'Location Database'!J8<>"[Select Value]")),(VLOOKUP('Location Database'!J8,'Location Database'!$A$30:$B$34,2,FALSE)),0) -> 0 | L9: =IF((AND('Location Database'!K8<>"",'Location Database'!K8<>"[Select Value]")),(VLOOKUP('Location Database'!K8,'Location Database'!$A$36:$B$40,2,FALSE)),0) -> 0 | M9: 0
A10: ='Location Database'!A9 -> 6 | B10: 55 | C10: ='Location Database'!B9 -> Galmisdale Pier (Outer) | D10: ='Location Database'!C9 -> Tidal Barrage | E10: =IF('Location Database'!D9="",0,(VLOOKUP('Location Database'!D9,'Location Database'!$H$30:$I$34,2,FALSE))) -> 2 | F10: =IF((AND('Location Database'!E9<>"",'Location Database'!E9<>"[Select Value]")),(VLOOKUP('Location Database'!E9,'Location Database'!$D$36:$E$40,2,FALSE)),0) -> 5 | G10: =IF((AND('Location Database'!F9<>"",'Location Database'!F9<>"[Select Value]")),(VLOOKUP('Location Database'!F9,'Location Database'!$D$42:$E$47,2,FALSE)),0) -> 0 | H10: =IF((AND('Location Database'!G9<>"",'Location Database'!G9<>"[Select Value]")),(VLOOKUP('Location Database'!G9,'Location Database'!$D$49:$E$53,2,FALSE)),0) -> 2 | I10: =IF((AND('Location Database'!H9<>"",'Location Database'!H9<>"[Select Value]")),(VLOOKUP('Location Database'!H9,'Location Database'!$D$55:$E$60,2,FALSE)),0) -> 0 | J10: =IF((AND('Location Database'!I9<>"",'Location Database'!I9<>"[Select Value]")),(VLOOKUP('Location Database'!I9,'Location Database'!$D$62:$E$67,2,FALSE)),0) -> 2 | K10: =IF((AND('Location Database'!J9<>"",'Location Database'!J9<>"[Select Value]")),(VLOOKUP('Location Database'!J9,'Location Database'!$A$30:$B$34,2,FALSE)),0) -> 3 | L10: =IF((AND('Location Database'!K9<>"",'Location Database'!K9<>"[Select Value]")),(VLOOKUP('Location Database'!K9,'Location Database'!$A$36:$B$40,2,FALSE)),0) -> 4 | M10: 55
A11: ='Location Database'!A10 -> 7 | B11: 63 | C11: ='Location Database'!B10 -> Galmisdale Pier (Inner) | E11: =IF('Location Database'!D10="",0,(VLOOKUP('Location Database'!D10,'Location Database'!$H$30:$I$34,2,FALSE))) -> 3 | F11: =IF((AND('Location Database'!E10<>"",'Location Database'!E10<>"[Select Value]")),(VLOOKUP('Location Database'!E10,'Location Database'!$D$36:$E$40,2,FALSE)),0) -> 5 | G11: =IF((AND('Location Database'!F10<>"",'Location Database'!F10<>"[Select Value]")),(VLOOKUP('Location Database'!F10,'Location Database'!$D$42:$E$47,2,FALSE)),0) -> 0 | H11: =IF((AND('Location Database'!G10<>"",'Location Database'!G10<>"[Select Value]")),(VLOOKUP('Location Database'!G10,'Location Database'!$D$49:$E$53,2,FALSE)),0) -> 2 | I11: =IF((AND('Location Database'!H10<>"",'Location Database'!H10<>"[Select Value]")),(VLOOKUP('Location Database'!H10,'Location Database'!$D$55:$E$60,2,FALSE)),0) -> 0 | J11: =IF((AND('Location Database'!I10<>"",'Location Database'!I10<>"[Select Value]")),(VLOOKUP('Location Database'!I10,'Location Database'!$D$62:$E$67,2,FALSE)),0) -> 2 | K11: =IF((AND('Location Database'!J10<>"",'Location Database'!J10<>"[Select Value]")),(VLOOKUP('Location Database'!J10,'Location Database'!$A$30:$B$34,2,FALSE)),0) -> 5 | L11: =IF((AND('Location Database'!K10<>"",'Location Database'!K10<>"[Select Value]")),(VLOOKUP('Location Database'!K10,'Location Database'!$A$36:$B$40,2,FALSE)),0) -> 4 | M11: 63
A12: ='Location Database'!A11 -> 8 | B12: 74 | C12: ='Location Database'!B11 -> Bay of Laig | E12: =IF('Location Database'!D11="",0,(VLOOKUP('Location Database'!D11,'Location Database'!$H$30:$I$34,2,FALSE))) -> 5 | F12: =IF((AND('Location Database'!E11<>"",'Location Database'!E11<>"[Select Value]")),(VLOOKUP('Location Database'!E11,'Location Database'!$D$36:$E$40,2,FALSE)),0) -> 3 | G12: =IF((AND('Location Database'!F11<>"",'Location Database'!F11<>"[Select Value]")),(VLOOKUP('Location Database'!F11,'Location Database'!$D$42:$E$47,2,FALSE)),0) -> 0 | H12: =IF((AND('Location Database'!G11<>"",'Location Database'!G11<>"[Select Value]")),(VLOOKUP('Location Database'!G11,'Location Database'!$D$49:$E$53,2,FALSE)),0) -> 5 | I12: =IF((AND('Location Database'!H11<>"",'Location Database'!H11<>"[Select Value]")),(VLOOKUP('Location Database'!H11,'Location Database'!$D$55:$E$60,2,FALSE)),0) -> 0 | J12: =IF((AND('Location Database'!I11<>"",'Location Database'!I11<>"[Select Value]")),(VLOOKUP('Location Database'!I11,'Location Database'!$D$62:$E$67,2,FALSE)),0) -> 2 | K12: =IF((AND('Location Database'!J11<>"",'Location Database'!J11<>"[Select Value]")),(VLOOKUP('Location Database'!J11,'Location Database'!$A$30:$B$34,2,FALSE)),0) -> 5 | L12: =IF((AND('Location Database'!K11<>"",'Location Database'!K11<>"[Select Value]")),(VLOOKUP('Location Database'!K11,'Location Database'!$A$36:$B$40,2,FALSE)),0) -> 4 | M12: 74
A13: ='Location Database'!A12 -> 9 | B13: 0 | C13: ='Location Database'!B12 -> [Enter Name] | E13: =IF('Location Database'!D12="",0,(VLOOKUP('Location Database'!D12,'Location Database'!$H$30:$I$34,2,FALSE))) -> 0 | F13: =IF((AND('Location Database'!E12<>"",'Location Database'!E12<>"[Select Value]")),(VLOOKUP('Location Database'!E12,'Location Database'!$D$36:$E$40,2,FALSE)),0) -> 0 | G13: =IF((AND('Location Database'!F12<>"",'Location Database'!F12<>"[Select Value]")),(VLOOKUP('Location Database'!F12,'Location Database'!$D$42:$E$47,2,FALSE)),0) -> 0 | H13: =IF((AND('Location Database'!G12<>"",'Location Database'!G12<>"[Select Value]")),(VLOOKUP('Location Database'!G12,'Location Database'!$D$49:$E$53,2,FALSE)),0) -> 0 | I13: =IF((AND('Location Database'!H12<>"",'Location Database'!H12<>"[Select Value]")),(VLOOKUP('Location Database'!H12,'Location Database'!$D$55:$E$60,2,FALSE)),0) -> 0 | J13: =IF((AND('Location Database'!I12<>"",'Location Database'!I12<>"[Select Value]")),(VLOOKUP('Location Database'!I12,'Location Database'!$D$62:$E$67,2,FALSE)),0) -> 0 | K13: =IF((AND('Location Database'!J12<>"",'Location Database'!J12<>"[Select Value]")),(VLOOKUP('Location Database'!J12,'Location Database'!$A$30:$B$34,2,FALSE)),0) -> 0 | L13: =IF((AND('Location Database'!K12<>"",'Location Database'!K12<>"[Select Value]")),(VLOOKUP('Location Database'!K12,'Location Database'!$A$36:$B$40,2,FALSE)),0) -> 0 | M13: 0
A14: ='Location Database'!A13 -> 10 | B14: 0 | C14: ='Location Database'!B13 -> [Enter Name] | E14: =IF('Location Database'!D13="",0,(VLOOKUP('Location Database'!D13,'Location Database'!$H$30:$I$34,2,FALSE))) -> 0 | F14: =IF((AND('Location Database'!E13<>"",'Location Database'!E13<>"[Select Value]")),(VLOOKUP('Location Database'!E13,'Location Database'!$D$36:$E$40,2,FALSE)),0) -> 0 | G14: =IF((AND('Location Database'!F13<>"",'Location Database'!F13<>"[Select Value]")),(VLOOKUP('Location Database'!F13,'Location Database'!$D$42:$E$47,2,FALSE)),0) -> 0 | H14: =IF((AND('Location Database'!G13<>"",'Location Database'!G13<>"[Select Value]")),(VLOOKUP('Location Database'!G13,'Location Database'!$D$49:$E$53,2,FALSE)),0) -> 0 | I14: =IF((AND('Location Database'!H13<>"",'Location Database'!H13<>"[Select Value]")),(VLOOKUP('Location Database'!H13,'Location Database'!$D$55:$E$60,2,FALSE)),0) -> 0 | J14: =IF((AND('Location Database'!I13<>"",'Location Database'!I13<>"[Select Value]")),(VLOOKUP('Location Database'!I13,'Location Database'!$D$62:$E$67,2,FALSE)),0) -> 0 | K14: =IF((AND('Location Database'!J13<>"",'Location Database'!J13<>"[Select Value]")),(VLOOKUP('Location Database'!J13,'Location Database'!$A$30:$B$34,2,FALSE)),0) -> 0 | L14: =IF((AND('Location Database'!K13<>"",'Location Database'!K13<>"[Select Value]")),(VLOOKUP('Location Database'!K13,'Location Database'!$A$36:$B$40,2,FALSE)),0) -> 0 | M14: 0
A15: ='Location Database'!A14 -> 11 | B15: 53 | C15: =Input!J45 -> Southwest Eigg (Transitional Water) | D15: ='Location Database'!C14 -> Wave | E15: =IF('Location Database'!D14="",0,(VLOOKUP('Location Database'!D14,'Location Database'!$D$30:$E$34,2,FALSE))) -> 2 | F15: =IF((AND('Location Database'!E14<>"",'Location Database'!E14<>"[Select Value]")),(VLOOKUP('Location Database'!E14,'Location Database'!$D$36:$E$40,2,FALSE)),0) -> 4 | G15: =IF((AND('Location Database'!F14<>"",'Location Database'!F14<>"[Select Value]")),(VLOOKUP('Location Database'!F14,'Location Database'!$D$42:$E$47,2,FALSE)),0) -> 2 | H15: =IF((AND('Location Database'!G14<>"",'Location Database'!G14<>"[Select Value]")),(VLOOKUP('Location Database'!G14,'Location Database'!$D$49:$E$53,2,FALSE)),0) -> 4 | I15: =IF((AND('Location Database'!H14<>"",'Location Database'!H14<>"[Select Value]")),(VLOOKUP('Location Database'!H14,'Location Database'!$D$55:$E$60,2,FALSE)),0) -> 0 | J15: =IF((AND('Location Database'!I14<>"",'Location Database'!I14<>"[Select Value]")),(VLOOKUP('Location Database'!I14,'Location Database'!$D$62:$E$67,2,FALSE)),0) -> 0 | K15: =IF((AND('Location Database'!J14<>"",'Location Database'!J14<>"[Select Value]")),(VLOOKUP('Location Database'!J14,'Location Database'!$A$30:$B$34,2,FALSE)),0) -> 2 | L15: =IF((AND('Location Database'!K14<>"",'Location Database'!K14<>"[Select Value]")),(VLOOKUP('Location Database'!K14,'Location Database'!$A$36:$B$40,2,FALSE)),0) -> 3 | M15: 53
A16: ='Location Database'!A15 -> 12 | B16: 40 | C16: =Input!J55 -> Southwest Eigg (Deepwater) | E16: =IF('Location Database'!D15="",0,(VLOOKUP('Location Database'!D15,'Location Database'!$D$30:$E$34,2,FALSE))) -> 1 | F16: =IF((AND('Location Database'!E15<>"",'Location Database'!E15<>"[Select Value]")),(VLOOKUP('Location Database'!E15,'Location Database'!$D$36:$E$40,2,FALSE)),0) -> 2 | G16: =IF((AND('Location Database'!F15<>"",'Location Database'!F15<>"[Select Value]")),(VLOOKUP('Location Database'!F15,'Location Database'!$D$42:$E$47,2,FALSE)),0) -> 2 | H16: =IF((AND('Location Database'!G15<>"",'Location Database'!G15<>"[Select Value]")),(VLOOKUP('Location Database'!G15,'Location Database'!$D$49:$E$53,2,FALSE)),0) -> 1 | I16: =IF((AND('Location Database'!H15<>"",'Location Database'!H15<>"[Select Value]")),(VLOOKUP('Location Database'!H15,'Location Database'!$D$55:$E$60,2,FALSE)),0) -> 0 | J16: =IF((AND('Location Database'!I15<>"",'Location Database'!I15<>"[Select Value]")),(VLOOKUP('Location Database'!I15,'Location Database'!$D$62:$E$67,2,FALSE)),0) -> 0 | K16: =IF((AND('Location Database'!J15<>"",'Location Database'!J15<>"[Select Value]")),(VLOOKUP('Location Database'!J15,'Location Database'!$A$30:$B$34,2,FALSE)),0) -> 5 | L16: =IF((AND('Location Database'!K15<>"",'Location Database'!K15<>"[Select Value]")),(VLOOKUP('Location Database'!K15,'Location Database'!$A$36:$B$40,2,FALSE)),0) -> 3 | M16: =SUMPRODUCT(E16:L16,$E$4:$L$4) -> 40
A17: ='Location Database'!A16 -> 13 | B17: 0 | C17: =Input!J65 -> [Enter Name] | E17: =IF('Location Database'!D16="",0,(VLOOKUP('Location Database'!D16,'Location Database'!$D$30:$E$34,2,FALSE))) -> 0 | F17: =IF((AND('Location Database'!E16<>"",'Location Database'!E16<>"[Select Value]")),(VLOOKUP('Location Database'!E16,'Location Database'!$D$36:$E$40,2,FALSE)),0) -> 0 | G17: =IF((AND('Location Database'!F16<>"",'Location Database'!F16<>"[Select Value]")),(VLOOKUP('Location Database'!F16,'Location Database'!$D$42:$E$47,2,FALSE)),0) -> 0 | H17: =IF((AND('Location Database'!G16<>"",'Location Database'!G16<>"[Select Value]")),(VLOOKUP('Location Database'!G16,'Location Database'!$D$49:$E$53,2,FALSE)),0) -> 0 | I17: =IF((AND('Location Database'!H16<>"",'Location Database'!H16<>"[Select Value]")),(VLOOKUP('Location Database'!H16,'Location Database'!$D$55:$E$60,2,FALSE)),0) -> 0 | J17: =IF((AND('Location Database'!I16<>"",'Location Database'!I16<>"[Select Value]")),(VLOOKUP('Location Database'!I16,'Location Database'!$D$62:$E$67,2,FALSE)),0) -> 0 | K17: =IF((AND('Location Database'!J16<>"",'Location Database'!J16<>"[Select Value]")),(VLOOKUP('Location Database'!J16,'Location Database'!$A$30:$B$34,2,FALSE)),0) -> 0 | L17: =IF((AND('Location Database'!K16<>"",'Location Database'!K16<>"[Select Value]")),(VLOOKUP('Location Database'!K16,'Location Database'!$A$36:$B$40,2,FALSE)),0) -> 0 | M17: 0
A18: ='Location Database'!A17 -> 14 | B18: 0 | C18: =Input!J75 -> [Enter Name] | E18: =IF('Location Database'!D17="",0,(VLOOKUP('Location Database'!D17,'Location Database'!$D$30:$E$34,2,FALSE))) -> 0 | F18: =IF((AND('Location Database'!E17<>"",'Location Database'!E17<>"[Select Value]")),(VLOOKUP('Location Database'!E17,'Location Database'!$D$36:$E$40,2,FALSE)),0) -> 0 | G18: =IF((AND('Location Database'!F17<>"",'Location Database'!F17<>"[Select Value]")),(VLOOKUP('Location Database'!F17,'Location Database'!$D$42:$E$47,2,FALSE)),0) -> 0 | H18: =IF((AND('Location Database'!G17<>"",'Location Database'!G17<>"[Select Value]")),(VLOOKUP('Location Database'!G17,'Location Database'!$D$49:$E$53,2,FALSE)),0) -> 0 | I18: =IF((AND('Location Database'!H17<>"",'Location Database'!H17<>"[Select Value]")),(VLOOKUP('Location Database'!H17,'Location Database'!$D$55:$E$60,2,FALSE)),0) -> 0 | J18: =IF((AND('Location Database'!I17<>"",'Location Database'!I17<>"[Select Value]")),(VLOOKUP('Location Database'!I17,'Location Database'!$D$62:$E$67,2,FALSE)),0) -> 0 | K18: =IF((AND('Location Database'!J17<>"",'Location Database'!J17<>"[Select Value]")),(VLOOKUP('Location Database'!J17,'Location Database'!$A$30:$B$34,2,FALSE)),0) -> 0 | L18: =IF((AND('Location Database'!K17<>"",'Location Database'!K17<>"[Select Value]")),(VLOOKUP('Location Database'!K17,'Location Database'!$A$36:$B$40,2,FALSE)),0) -> 0 | M18: 0
A19: ='Location Database'!A18 -> 15 | B19: 0 | C19: =Input!J85 -> [Enter Name] | E19: =IF('Location Database'!D18="",0,(VLOOKUP('Location Database'!D18,'Location Database'!$D$30:$E$34,2,FALSE))) -> 0 | F19: =IF((AND('Location Database'!E18<>"",'Location Database'!E18<>"[Select Value]")),(VLOOKUP('Location Database'!E18,'Location Database'!$D$36:$E$40,2,FALSE)),0) -> 0 | G19: =IF((AND('Location Database'!F18<>"",'Location Database'!F18<>"[Select Value]")),(VLOOKUP('Location Database'!F18,'Location Database'!$D$42:$E$47,2,FALSE)),0) -> 0 | H19: =IF((AND('Location Database'!G18<>"",'Location Database'!G18<>"[Select Value]")),(VLOOKUP('Location Database'!G18,'Location Database'!$D$49:$E$53,2,FALSE)),0) -> 0 | I19: =IF((AND('Location Database'!H18<>"",'Location Database'!H18<>"[Select Value]")),(VLOOKUP('Location Database'!H18,'Location Database'!$D$55:$E$60,2,FALSE)),0) -> 0 | J19: =IF((AND('Location Database'!I18<>"",'Location Database'!I18<>"[Select Value]")),(VLOOKUP('Location Database'!I18,'Location Database'!$D$62:$E$67,2,FALSE)),0) -> 0 | K19: =IF((AND('Location Database'!J18<>"",'Location Database'!J18<>"[Select Value]")),(VLOOKUP('Location Database'!J18,'Location Database'!$A$30:$B$34,2,FALSE)),0) -> 0 | L19: =IF((AND('Location Database'!K18<>"",'Location Database'!K18<>"[Select Value]")),(VLOOKUP('Location Database'!K18,'Location Database'!$A$36:$B$40,2,FALSE)),0) -> 0 | M19: 0
A21: Tidal Device Decision Matrix
A23: No. | B23: =P23 -> Score | D23: Criteria | E23: ='Tidal Device Database'!I2 -> Rated capacity | F23: ='Tidal Device Database'!J2 -> Required Flow Velocity | G23: ='Tidal Device Database'!K2 -> Operating Water Depth | H23: ='Tidal Device Database'!L2 -> Installation Complexity | I23: ='Tidal Device Database'!M2 -> Lifespan | J23: ='Tidal Device Database'!N2 -> Primary Seabed Attachment | K23: ='Tidal Device Database'!O2 -> Planned Inspection/Maintenance Period | L23: ='Tidal Device Database'!P2 -> Maintenance Complexity | M23: ='Tidal Device Database'!Q2 -> Access Complexity | N23: ='Tidal Device Database'!R2 -> Shore Connection | O23: ='Tidal Device Database'!S2 -> Technology Readiness Level | P23: Score
C24: ='Tidal Device Database'!B2 -> Name | D24: ='Tidal Device Database'!C2 -> Type | E24: 3 | F24: 3 | G24: =IF(Input!B19="YES",2,5) -> 5 | H24: 1 | I24: 4 | J24: 4 | K24: 2 | L24: 3 | M24: 4 | N24: 2 | O24: 5
A25: ='Tidal Device Database'!A4 -> 1 | B25: =P25 -> 103 | C25: ='Tidal Device Database'!B4 -> ANDRITZ HYDRO Hammerfest HS1000 | D25: ='Tidal Device Database'!C4 -> Horizontal Axis | E25: =IF('Tidal Device Database'!I4="",0,(VLOOKUP('Tidal Device Database'!I4,'Tidal Device Database'!$A$131:$B$135,2,FALSE))) -> 2 | F25: =IF('Tidal Device Database'!J4="",0,(VLOOKUP('Tidal Device Database'!J4,'Tidal Device Database'!$A$137:$B$141,2,FALSE))) -> 4 | G25: =IF('Tidal Device Database'!K4="",0,(VLOOKUP('Tidal Device Database'!K4,'Tidal Device Database'!$A$143:$B$147,2,FALSE))) -> 1 | H25: =IF('Tidal Device Database'!L4="",0,(VLOOKUP('Tidal Device Database'!L4,'Tidal Device Database'!$A$69:$B$73,2,FALSE))) -> 2 | I25: =IF('Tidal Device Database'!M4="",0,(VLOOKUP('Tidal Device Database'!M4,'Tidal Device Database'!$A$75:$B$79,2,FALSE))) -> 4 | J25: =IF('Tidal Device Database'!N4="",0,(VLOOKUP('Tidal Device Database'!N4,'Tidal Device Database'!$A$81:$B$85,2,FALSE))) -> 3 | K25: =IF('Tidal Device Database'!O4="",0,(VLOOKUP('Tidal Device Database'!O4,'Tidal Device Database'!$A$87:$B$91,2,FALSE))) -> 5 | L25: =IF('Tidal Device Database'!P4="",0,(VLOOKUP('Tidal Device Database'!P4,'Tidal Device Database'!$A$93:$B$97,2,FALSE))) -> 2 | M25: =IF('Tidal Device Database'!Q4="",0,(VLOOKUP('Tidal Device Database'!Q4,'Tidal Device Database'!$A$99:$B$103,2,FALSE))) -> 3 | N25: =IF('Tidal Device Database'!R4="",0,(VLOOKUP('Tidal Device Database'!R4,'Tidal Device Database'!$A$115:$B$119,2,FALSE))) -> 1 | O25: =IF('Tidal Device Database'!S4="",0,(VLOOKUP('Tidal Device Database'!S4,'Tidal Device Database'!$A$105:$B$109,2,FALSE))) -> 4 | P25: =SUMPRODUCT(E25:O25,$E$24:$O$24) -> 103
A26: ='Tidal Device Database'!A5 -> 2 | B26: 111 | C26: ='Tidal Device Database'!B5 -> ANDRITZ HYDRO Hammerfest HS300 | D26: ='Tidal Device Database'!C5 -> Horizontal Axis | E26: =IF('Tidal Device Database'!I5="",0,(VLOOKUP('Tidal Device Database'!I5,'Tidal Device Database'!$A$131:$B$135,2,FALSE))) -> 3 | F26: =IF('Tidal Device Database'!J5="",0,(VLOOKUP('Tidal Device Database'!J5,'Tidal Device Database'!$A$137:$B$141,2,FALSE))) -> 4 | G26: =IF('Tidal Device Database'!K5="",0,(VLOOKUP('Tidal Device Database'!K5,'Tidal Device Database'!$A$143:$B$147,2,FALSE))) -> 1 | H26: =IF('Tidal Device Database'!L5="",0,(VLOOKUP('Tidal Device Database'!L5,'Tidal Device Database'!$A$69:$B$73,2,FALSE))) -> 2 | I26: =IF('Tidal Device Database'!M5="",0,(VLOOKUP('Tidal Device Database'!M5,'Tidal Device Database'!$A$75:$B$79,2,FALSE))) -> 4 | J26: =IF('Tidal Device Database'!N5="",0,(VLOOKUP('Tidal Device Database'!N5,'Tidal Device Database'!$A$81:$B$85,2,FALSE))) -> 3 | K26: =IF('Tidal Device Database'!O5="",0,(VLOOKUP('Tidal Device Database'!O5,'Tidal Device Database'!$A$87:$B$91,2,FALSE))) -> 5 | L26: =IF('Tidal Device Database'!P5="",0,(VLOOKUP('Tidal Device Database'!P5,'Tidal Device Database'!$A$93:$B$97,2,FALSE))) -> 2 | M26: =IF('Tidal Device Database'!Q5="",0,(VLOOKUP('Tidal Device Database'!Q5,'Tidal Device Database'!$A$99:$B$103,2,FALSE))) -> 3 | N26: =IF('Tidal Device Database'!R5="",0,(VLOOKUP('Tidal Device Database'!R5,'Tidal Device Database'!$A$115:$B$119,2,FALSE))) -> 1 | O26: =IF('Tidal Device Database'!S5="",0,(VLOOKUP('Tidal Device Database'!S5,'Tidal Device Database'!$A$105:$B$109,2,FALSE))) -> 5 | P26: 111
A27: ='Tidal Device Database'!A6 -> 3 | B27: 74 | C27: ='Tidal Device Database'!B6 -> EEL | D27: ='Tidal Device Database'!C6 -> Oscillating Hydrofoil | E27: =IF('Tidal Device Database'!I6="",0,(VLOOKUP('Tidal Device Database'!I6,'Tidal Device Database'!$A$131:$B$135,2,FALSE))) -> 0 | F27: =IF('Tidal Device Database'!J6="",0,(VLOOKUP('Tidal Device Database'!J6,'Tidal Device Database'!$A$137:$B$141,2,FALSE))) -> 5 | G27: =IF('Tidal Device Database'!K6="",0,(VLOOKUP('Tidal Device Database'!K6,'Tidal Device Database'!$A$143:$B$147,2,FALSE))) -> 0 | H27: =IF('Tidal Device Database'!L6="",0,(VLOOKUP('Tidal Device Database'!L6,'Tidal Device Database'!$A$69:$B$73,2,FALSE))) -> 0 | I27: =IF('Tidal Device Database'!M6="",0,(VLOOKUP('Tidal Device Database'!M6,'Tidal Device Database'!$A$75:$B$79,2,FALSE))) -> 4 | J27: =IF('Tidal Device Database'!N6="",0,(VLOOKUP('Tidal Device Database'!N6,'Tidal Device Database'!$A$81:$B$85,2,FALSE))) -> 3 | K27: =IF('Tidal Device Database'!O6="",0,(VLOOKUP('Tidal Device Database'!O6,'Tidal Device Database'!$A$87:$B$91,2,FALSE))) -> 0 | L27: =IF('Tidal Device Database'!P6="",0,(VLOOKUP('Tidal Device Database'!P6,'Tidal Device Database'!$A$93:$B$97,2,FALSE))) -> 1 | M27: =IF('Tidal Device Database'!Q6="",0,(VLOOKUP('Tidal Device Database'!Q6,'Tidal Device Database'!$A$99:$B$103,2,FALSE))) -> 2 | N27: =IF('Tidal Device Database'!R6="",0,(VLOOKUP('Tidal Device Database'!R6,'Tidal Device Database'!$A$115:$B$119,2,FALSE))) -> 0 | O27: =IF('Tidal Device Database'!S6="",0,(VLOOKUP('Tidal Device Database'!S6,'Tidal Device Database'!$A$105:$B$109,2,FALSE))) -> 4 | P27: 74
A28: ='Tidal Device Database'!A7 -> 4 | B28: 85 | C28: ='Tidal Device Database'!B7 -> Atlantis AR-1000 | D28: ='Tidal Device Database'!C7 -> Horizontal Axis | E28: =IF('Tidal Device Database'!I7="",0,(VLOOKUP('Tidal Device Database'!I7,'Tidal Device Database'!$A$131:$B$135,2,FALSE))) -> 1 | F28: =IF('Tidal Device Database'!J7="",0,(VLOOKUP('Tidal Device Database'!J7,'Tidal Device Database'!$A$137:$B$141,2,FALSE))) -> 3 | G28: =IF('Tidal Device Database'!K7="",0,(VLOOKUP('Tidal Device Database'!K7,'Tidal Device Database'!$A$143:$B$147,2,FALSE))) -> 1 | H28: =IF('Tidal Device Database'!L7="",0,(VLOOKUP('Tidal Device Database'!L7,'Tidal Device Database'!$A$69:$B$73,2,FALSE))) -> 2 | I28: =IF('Tidal Device Database'!M7="",0,(VLOOKUP('Tidal Device Database'!M7,'Tidal Device Database'!$A$75:$B$79,2,FALSE))) -> 4 | J28: =IF('Tidal Device Database'!N7="",0,(VLOOKUP('Tidal Device Database'!N7,'Tidal Device Database'!$A$81:$B$85,2,FALSE))) -> 4 | K28: =IF('Tidal Device Database'!O7="",0,(VLOOKUP('Tidal Device Database'!O7,'Tidal Device Database'!$A$87:$B$91,2,FALSE))) -> 0 | L28: =IF('Tidal Device Database'!P7="",0,(VLOOKUP('Tidal Device Database'!P7,'Tidal Device Database'!$A$93:$B$97,2,FALSE))) -> 0 | M28: =IF('Tidal Device Database'!Q7="",0,(VLOOKUP('Tidal Device Database'!Q7,'Tidal Device Database'!$A$99:$B$103,2,FALSE))) -> 3 | N28: =IF('Tidal Device Database'!R7="",0,(VLOOKUP('Tidal Device Database'!R7,'Tidal Device Database'!$A$115:$B$119,2,FALSE))) -> 1 | O28: =IF('Tidal Device Database'!S7="",0,(VLOOKUP('Tidal Device Database'!S7,'Tidal Device Database'!$A$105:$B$109,2,FALSE))) -> 4 | P28: 85
A29: ='Tidal Device Database'!A8 -> 5 | B29: 85 | C29: ='Tidal Device Database'!B8 -> Seagen S | D29: ='Tidal Device Database'!C8 -> Horizontal Axis | E29: =IF('Tidal Device Database'!I8="",0,(VLOOKUP('Tidal Device Database'!I8,'Tidal Device Database'!$A$131:$B$135,2,FALSE))) -> 1 | F29: =IF('Tidal Device Database'!J8="",0,(VLOOKUP('Tidal Device Database'!J8,'Tidal Device Database'!$A$137:$B$141,2,FALSE))) -> 3 | G29: =IF('Tidal Device Database'!K8="",0,(VLOOKUP('Tidal Device Database'!K8,'Tidal Device Database'!$A$143:$B$147,2,FALSE))) -> 2 | H29: =IF('Tidal Device Database'!L8="",0,(VLOOKUP('Tidal Device Database'!L8,'Tidal Device Database'!$A$69:$B$73,2,FALSE))) -> 1 | I29: =IF('Tidal Device Database'!M8="",0,(VLOOKUP('Tidal Device Database'!M8,'Tidal Device Database'!$A$75:$B$79,2,FALSE))) -> 4 | J29: =IF('Tidal Device Database'!N8="",0,(VLOOKUP('Tidal Device Database'!N8,'Tidal Device Database'!$A$81:$B$85,2,FALSE))) -> 2 | K29: =IF('Tidal Device Database'!O8="",0,(VLOOKUP('Tidal Device Database'!O8,'Tidal Device Database'!$A$87:$B$91,2,FALSE))) -> 0 | L29: =IF('Tidal Device Database'!P8="",0,(VLOOKUP('Tidal Device Database'!P8,'Tidal Device Database'!$A$93:$B$97,2,FALSE))) -> 0 | M29: =IF('Tidal Device Database'!Q8="",0,(VLOOKUP('Tidal Device Database'!Q8,'Tidal Device Database'!$A$99:$B$103,2,FALSE))) -> 3 | N29: =IF('Tidal Device Database'!R8="",0,(VLOOKUP('Tidal Device Database'!R8,'Tidal Device Database'!$A$115:$B$119,2,FALSE))) -> 3 | O29: =IF('Tidal Device Database'!S8="",0,(VLOOKUP('Tidal Device Database'!S8,'Tidal Device Database'!$A$105:$B$109,2,FALSE))) -> 4 | P29: 85
A30: ='Tidal Device Database'!A9 -> 7 | B30: 40 | C30: ='Tidal Device Database'!B9 -> BioStream | D30: ='Tidal Device Database'!C9 -> Oscillating Hydrofoil | E30: =IF('Tidal Device Database'!I9="",0,(VLOOKUP('Tidal Device Database'!I9,'Tidal Device Database'!$A$131:$B$135,2,FALSE))) -> 4 | F30: =IF('Tidal Device Database'!J9="",0,(VLOOKUP('Tidal Device Database'!J9,'Tidal Device Database'!$A$137:$B$141,2,FALSE))) -> 0 | G30: =IF('Tidal Device Database'!K9="",0,(VLOOKUP('Tidal Device Database'!K9,'Tidal Device Database'!$A$143:$B$147,2,FALSE))) -> 0 | H30: =IF('Tidal Device Database'!L9="",0,(VLOOKUP('Tidal Device Database'!L9,'Tidal Device Database'!$A$69:$B$73,2,FALSE))) -> 0 | I30: =IF('Tidal Device Database'!M9="",0,(VLOOKUP('Tidal Device Database'!M9,'Tidal Device Database'!$A$75:$B$79,2,FALSE))) -> 4 | J30: =IF('Tidal Device Database'!N9="",0,(VLOOKUP('Tidal Device Database'!N9,'Tidal Device Database'!$A$81:$B$85,2,FALSE))) -> 3 | K30: =IF('Tidal Device Database'!O9="",0,(VLOOKUP('Tidal Device Database'!O9,'Tidal Device Database'!$A$87:$B$91,2,FALSE))) -> 0 | L30: =IF('Tidal Device Database'!P9="",0,(VLOOKUP('Tidal Device Database'!P9,'Tidal Device Database'!$A$93:$B$97,2,FALSE))) -> 0 | M30: =IF('Tidal Device Database'!Q9="",0,(VLOOKUP('Tidal Device Database'!Q9,'Tidal Device Database'!$A$99:$B$103,2,FALSE))) -> 0 | N30: =IF('Tidal Device Database'!R9="",0,(VLOOKUP('Tidal Device Database'!R9,'Tidal Device Database'!$A$115:$B$119,2,FALSE))) -> 0 | O30: =IF('Tidal Device Database'!S9="",0,(VLOOKUP('Tidal Device Database'!S9,'Tidal Device Database'!$A$105:$B$109,2,FALSE))) -> 0 | P30: 40
A31: ='Tidal Device Database'!A10 -> 8 | B31: 66 | C31: ='Tidal Device Database'!B10 -> C2C Tidal turbine | D31: ='Tidal Device Database'!C10 -> Vertical Axis | E31: =IF('Tidal Device Database'!I10="",0,(VLOOKUP('Tidal Device Database'!I10,'Tidal Device Database'!$A$131:$B$135,2,FALSE))) -> 5 | F31: =IF('Tidal Device Database'!J10="",0,(VLOOKUP('Tidal Device Database'!J10,'Tidal Device Database'!$A$137:$B$141,2,FALSE))) -> 5 | G31: =IF('Tidal Device Database'!K10="",0,(VLOOKUP('Tidal Device Database'!K10,'Tidal Device Database'!$A$143:$B$147,2,FALSE))) -> 0 | H31: =IF('Tidal Device Database'!L10="",0,(VLOOKUP('Tidal Device Database'!L10,'Tidal Device Database'!$A$69:$B$73,2,FALSE))) -> 0 | I31: =IF('Tidal Device Database'!M10="",0,(VLOOKUP('Tidal Device Database'!M10,'Tidal Device Database'!$A$75:$B$79,2,FALSE))) -> 4 | J31: =IF('Tidal Device Database'!N10="",0,(VLOOKUP('Tidal Device Database'!N10,'Tidal Device Database'!$A$81:$B$85,2,FALSE))) -> 5 | K31: =IF('Tidal Device Database'!O10="",0,(VLOOKUP('Tidal Device Database'!O10,'Tidal Device Database'!$A$87:$B$91,2,FALSE))) -> 0 | L31: =IF('Tidal Device Database'!P10="",0,(VLOOKUP('Tidal Device Database'!P10,'Tidal Device Database'!$A$93:$B$97,2,FALSE))) -> 0 | M31: =IF('Tidal Device Database'!Q10="",0,(VLOOKUP('Tidal Device Database'!Q10,'Tidal Device Database'!$A$99:$B$103,2,FALSE))) -> 0 | N31: =IF('Tidal Device Database'!R10="",0,(VLOOKUP('Tidal Device Database'!R10,'Tidal Device Database'!$A$115:$B$119,2,FALSE))) -> 0 | O31: =IF('Tidal Device Database'!S10="",0,(VLOOKUP('Tidal Device Database'!S10,'Tidal Device Database'!$A$105:$B$109,2,FALSE))) -> 0 | P31: 66
A32: ='Tidal Device Database'!A11 -> 9 | B32: 147 | C32: ='Tidal Device Database'!B11 -> Oryon Watermill | D32: ='Tidal Device Database'!C11 -> Vertical Axis | E32: =IF('Tidal Device Database'!I11="",0,(VLOOKUP('Tidal Device Database'!I11,'Tidal Device Database'!$A$131:$B$135,2,FALSE))) -> 5 | F32: =IF('Tidal Device Database'!J11="",0,(VLOOKUP('Tidal Device Database'!J11,'Tidal Device Database'!$A$137:$B$141,2,FALSE))) -> 5 | G32: =IF('Tidal Device Database'!K11="",0,(VLOOKUP('Tidal Device Database'!K11,'Tidal Device Database'!$A$143:$B$147,2,FALSE))) -> 5 | H32: =IF('Tidal Device Database'!L11="",0,(VLOOKUP('Tidal Device Database'!L11,'Tidal Device Database'!$A$69:$B$73,2,FALSE))) -> 4 | I32: =IF('Tidal Device Database'!M11="",0,(VLOOKUP('Tidal Device Database'!M11,'Tidal Device Database'!$A$75:$B$79,2,FALSE))) -> 4 | J32: =IF('Tidal Device Database'!N11="",0,(VLOOKUP('Tidal Device Database'!N11,'Tidal Device Database'!$A$81:$B$85,2,FALSE))) -> 5 | K32: =IF('Tidal Device Database'!O11="",0,(VLOOKUP('Tidal Device Database'!O11,'Tidal Device Database'!$A$87:$B$91,2,FALSE))) -> 0 | L32: =IF('Tidal Device Database'!P11="",0,(VLOOKUP('Tidal Device Database'!P11,'Tidal Device Database'!$A$93:$B$97,2,FALSE))) -> 3 | M32: =IF('Tidal Device Database'!Q11="",0,(VLOOKUP('Tidal Device Database'!Q11,'Tidal Device Database'!$A$99:$B$103,2,FALSE))) -> 5 | N32: =IF('Tidal Device Database'!R11="",0,(VLOOKUP('Tidal Device Database'!R11,'Tidal Device Database'!$A$115:$B$119,2,FALSE))) -> 4 | O32: =IF('Tidal Device Database'!S11="",0,(VLOOKUP('Tidal Device Database'!S11,'Tidal Device Database'!$A$105:$B$109,2,FALSE))) -> 3 | P32: 147
A33: ='Tidal Device Database'!A12 -> 11 | B33: 35 | C33: ='Tidal Device Database'!B12 -> MAKO | D33: ='Tidal Device Database'!C12 -> Horizontal Axis | E33: =IF('Tidal Device Database'!I12="",0,(VLOOKUP('Tidal Device Database'!I12,'Tidal Device Database'!$A$131:$B$135,2,FALSE))) -> 0 | F33: =IF('Tidal Device Database'!J12="",0,(VLOOKUP('Tidal Device Database'!J12,'Tidal Device Database'!$A$137:$B$141,2,FALSE))) -> 5 | G33: =IF('Tidal Device Database'!K12="",0,(VLOOKUP('Tidal Device Database'!K12,'Tidal Device Database'!$A$143:$B$147,2,FALSE))) -> 0 | H33: =IF('Tidal Device Database'!L12="",0,(VLOOKUP('Tidal Device Database'!L12,'Tidal Device Database'!$A$69:$B$73,2,FALSE))) -> 0 | I33: =IF('Tidal Device Database'!M12="",0,(VLOOKUP('Tidal Device Database'!M12,'Tidal Device Database'!$A$75:$B$79,2,FALSE))) -> 0 | J33: =IF('Tidal Device Database'!N12="",0,(VLOOKUP('Tidal Device Database'!N12,'Tidal Device Database'!$A$81:$B$85,2,FALSE))) -> 5 | K33: =IF('Tidal Device Database'!O12="",0,(VLOOKUP('Tidal Device Database'!O12,'Tidal Device Database'!$A$87:$B$91,2,FALSE))) -> 0 | L33: =IF('Tidal Device Database'!P12="",0,(VLOOKUP('Tidal Device Database'!P12,'Tidal Device Database'!$A$93:$B$97,2,FALSE))) -> 0 | M33: =IF('Tidal Device Database'!Q12="",0,(VLOOKUP('Tidal Device Database'!Q12,'Tidal Device Database'!$A$99:$B$103,2,FALSE))) -> 0 | N33: =IF('Tidal Device Database'!R12="",0,(VLOOKUP('Tidal Device Database'!R12,'Tidal Device Database'!$A$115:$B$119,2,FALSE))) -> 0 | O33: =IF('Tidal Device Database'!S12="",0,(VLOOKUP('Tidal Device Database'!S12,'Tidal Device Database'!$A$105:$B$109,2,FALSE))) -> 0 | P33: 35
A34: ='Tidal Device Database'!A13 -> 12 | B34: 35 | C34: ='Tidal Device Database'!B13 -> Guinard MegaWattBlue | D34: ='Tidal Device Database'!C13 -> Horizontal Axis | E34: =IF('Tidal Device Database'!I13="",0,(VLOOKUP('Tidal Device Database'!I13,'Tidal Device Database'!$A$131:$B$135,2,FALSE))) -> 5 | F34: =IF('Tidal Device Database'!J13="",0,(VLOOKUP('Tidal Device Database'!J13,'Tidal Device Database'!$A$137:$B$141,2,FALSE))) -> 0 | G34: =IF('Tidal Device Database'!K13="",0,(VLOOKUP('Tidal Device Database'!K13,'Tidal Device Database'!$A$143:$B$147,2,FALSE))) -> 0 | H34: =IF('Tidal Device Database'!L13="",0,(VLOOKUP('Tidal Device Database'!L13,'Tidal Device Database'!$A$69:$B$73,2,FALSE))) -> 0 | I34: =IF('Tidal Device Database'!M13="",0,(VLOOKUP('Tidal Device Database'!M13,'Tidal Device Database'!$A$75:$B$79,2,FALSE))) -> 0 | J34: =IF('Tidal Device Database'!N13="",0,(VLOOKUP('Tidal Device Database'!N13,'Tidal Device Database'!$A$81:$B$85,2,FALSE))) -> 5 | K34: =IF('Tidal Device Database'!O13="",0,(VLOOKUP('Tidal Device Database'!O13,'Tidal Device Database'!$A$87:$B$91,2,FALSE))) -> 0 | L34: =IF('Tidal Device Database'!P13="",0,(VLOOKUP('Tidal Device Database'!P13,'Tidal Device Database'!$A$93:$B$97,2,FALSE))) -> 0 | M34: =IF('Tidal Device Database'!Q13="",0,(VLOOKUP('Tidal Device Database'!Q13,'Tidal Device Database'!$A$99:$B$103,2,FALSE))) -> 0 | N34: =IF('Tidal Device Database'!R13="",0,(VLOOKUP('Tidal Device Database'!R13,'Tidal Device Database'!$A$115:$B$119,2,FALSE))) -> 0 | O34: =IF('Tidal Device Database'!S13="",0,(VLOOKUP('Tidal Device Database'!S13,'Tidal Device Database'!$A$105:$B$109,2,FALSE))) -> 0 | P34: 35
A35: ='Tidal Device Database'!A14 -> 13 | B35: 50 | C35: ='Tidal Device Database'!B14 -> HydroGen | D35: ='Tidal Device Database'!C14 -> Vertical Axis | E35: =IF('Tidal Device Database'!I14="",0,(VLOOKUP('Tidal Device Database'!I14,'Tidal Device Database'!$A$131:$B$135,2,FALSE))) -> 5 | F35: =IF('Tidal Device Database'!J14="",0,(VLOOKUP('Tidal Device Database'!J14,'Tidal Device Database'!$A$137:$B$141,2,FALSE))) -> 5 | G35: =IF('Tidal Device Database'!K14="",0,(VLOOKUP('Tidal Device Database'!K14,'Tidal Device Database'!$A$143:$B$147,2,FALSE))) -> 0 | H35: =IF('Tidal Device Database'!L14="",0,(VLOOKUP('Tidal Device Database'!L14,'Tidal Device Database'!$A$69:$B$73,2,FALSE))) -> 0 | I35: =IF('Tidal Device Database'!M14="",0,(VLOOKUP('Tidal Device Database'!M14,'Tidal Device Database'!$A$75:$B$79,2,FALSE))) -> 0 | J35: =IF('Tidal Device Database'!N14="",0,(VLOOKUP('Tidal Device Database'!N14,'Tidal Device Database'!$A$81:$B$85,2,FALSE))) -> 5 | K35: =IF('Tidal Device Database'!O14="",0,(VLOOKUP('Tidal Device Database'!O14,'Tidal Device Database'!$A$87:$B$91,2,FALSE))) -> 0 | L35: =IF('Tidal Device Database'!P14="",0,(VLOOKUP('Tidal Device Database'!P14,'Tidal Device Database'!$A$93:$B$97,2,FALSE))) -> 0 | M35: =IF('Tidal Device Database'!Q14="",0,(VLOOKUP('Tidal Device Database'!Q14,'Tidal Device Database'!$A$99:$B$103,2,FALSE))) -> 0 | N35: =IF('Tidal Device Database'!R14="",0,(VLOOKUP('Tidal Device Database'!R14,'Tidal Device Database'!$A$115:$B$119,2,FALSE))) -> 0 | O35: =IF('Tidal Device Database'!S14="",0,(VLOOKUP('Tidal Device Database'!S14,'Tidal Device Database'!$A$105:$B$109,2,FALSE))) -> 0 | P35: 50
A36: ='Tidal Device Database'!A15 -> 14 | B36: 28 | C36: ='Tidal Device Database'!B15 -> HydroQuest | D36: ='Tidal Device Database'!C15 -> Vertical Axis | E36: =IF('Tidal Device Database'!I15="",0,(VLOOKUP('Tidal Device Database'!I15,'Tidal Device Database'!$A$131:$B$135,2,FALSE))) -> 0 | F36: =IF('Tidal Device Database'!J15="",0,(VLOOKUP('Tidal Device Database'!J15,'Tidal Device Database'!$A$137:$B$141,2,FALSE))) -> 0 | G36: =IF('Tidal Device Database'!K15="",0,(VLOOKUP('Tidal Device Database'!K15,'Tidal Device Database'!$A$143:$B$147,2,FALSE))) -> 0 | H36: =IF('Tidal Device Database'!L15="",0,(VLOOKUP('Tidal Device Database'!L15,'Tidal Device Database'!$A$69:$B$73,2,FALSE))) -> 0 | I36: =IF('Tidal Device Database'!M15="",0,(VLOOKUP('Tidal Device Database'!M15,'Tidal Device Database'!$A$75:$B$79,2,FALSE))) -> 4 | J36: =IF('Tidal Device Database'!N15="",0,(VLOOKUP('Tidal Device Database'!N15,'Tidal Device Database'!$A$81:$B$85,2,FALSE))) -> 3 | K36: =IF('Tidal Device Database'!O15="",0,(VLOOKUP('Tidal Device Database'!O15,'Tidal Device Database'!$A$87:$B$91,2,FALSE))) -> 0 | L36: =IF('Tidal Device Database'!P15="",0,(VLOOKUP('Tidal Device Database'!P15,'Tidal Device Database'!$A$93:$B$97,2,FALSE))) -> 0 | M36: =IF('Tidal Device Database'!Q15="",0,(VLOOKUP('Tidal Device Database'!Q15,'Tidal Device Database'!$A$99:$B$103,2,FALSE))) -> 0 | N36: =IF('Tidal Device Database'!R15="",0,(VLOOKUP('Tidal Device Database'!R15,'Tidal Device Database'!$A$115:$B$119,2,FALSE))) -> 0 | O36: =IF('Tidal Device Database'!S15="",0,(VLOOKUP('Tidal Device Database'!S15,'Tidal Device Database'!$A$105:$B$109,2,FALSE))) -> 0 | P36: 28
A37: ='Tidal Device Database'!A16 -> 15 | B37: 35 | C37: ='Tidal Device Database'!B16 -> Jupiter Hydro | D37: ='Tidal Device Database'!C16 -> Archimedes Screw | E37: =IF('Tidal Device Database'!I16="",0,(VLOOKUP('Tidal Device Database'!I16,'Tidal Device Database'!$A$131:$B$135,2,FALSE))) -> 0 | F37: =IF('Tidal Device Database'!J16="",0,(VLOOKUP('Tidal Device Database'!J16,'Tidal Device Database'!$A$137:$B$141,2,FALSE))) -> 5 | G37: =IF('Tidal Device Database'!K16="",0,(VLOOKUP('Tidal Device Database'!K16,'Tidal Device Database'!$A$143:$B$147,2,FALSE))) -> 0 | H37: =IF('Tidal Device Database'!L16="",0,(VLOOKUP('Tidal Device Database'!L16,'Tidal Device Database'!$A$69:$B$73,2,FALSE))) -> 0 | I37: =IF('Tidal Device Database'!M16="",0,(VLOOKUP('Tidal Device Database'!M16,'Tidal Device Database'!$A$75:$B$79,2,FALSE))) -> 0 | J37: =IF('Tidal Device Database'!N16="",0,(VLOOKUP('Tidal Device Database'!N16,'Tidal Device Database'!$A$81:$B$85,2,FALSE))) -> 5 | K37: =IF('Tidal Device Database'!O16="",0,(VLOOKUP('Tidal Device Database'!O16,'Tidal Device Database'!$A$87:$B$91,2,FALSE))) -> 0 | L37: =IF('Tidal Device Database'!P16="",0,(VLOOKUP('Tidal Device Database'!P16,'Tidal Device Database'!$A$93:$B$97,2,FALSE))) -> 0 | M37: =IF('Tidal Device Database'!Q16="",0,(VLOOKUP('Tidal Device Database'!Q16,'Tidal Device Database'!$A$99:$B$103,2,FALSE))) -> 0 | N37: =IF('Tidal Device Database'!R16="",0,(VLOOKUP('Tidal Device Database'!R16,'Tidal Device Database'!$A$115:$B$119,2,FALSE))) -> 0 | O37: =IF('Tidal Device Database'!S16="",0,(VLOOKUP('Tidal Device Database'!S16,'Tidal Device Database'!$A$105:$B$109,2,FALSE))) -> 0 | P37: 35
A38: ='Tidal Device Database'!A17 -> 16 | B38: 59 | C38: ='Tidal Device Database'!B17 -> Minesto | D38: ='Tidal Device Database'!C17 -> Tidal Kite | E38: =IF('Tidal Device Database'!I17="",0,(VLOOKUP('Tidal Device Database'!I17,'Tidal Device Database'!$A$131:$B$135,2,FALSE))) -> 3 | F38: =IF('Tidal Device Database'!J17="",0,(VLOOKUP('Tidal Device Database'!J17,'Tidal Device Database'!$A$137:$B$141,2,FALSE))) -> 4 | G38: =IF('Tidal Device Database'!K17="",0,(VLOOKUP('Tidal Device Database'!K17,'Tidal Device Database'!$A$143:$B$147,2,FALSE))) -> 1 | H38: =IF('Tidal Device Database'!L17="",0,(VLOOKUP('Tidal Device Database'!L17,'Tidal Device Database'!$A$69:$B$73,2,FALSE))) -> 3 | I38: =IF('Tidal Device Database'!M17="",0,(VLOOKUP('Tidal Device Database'!M17,'Tidal Device Database'!$A$75:$B$79,2,FALSE))) -> 0 | J38: =IF('Tidal Device Database'!N17="",0,(VLOOKUP('Tidal Device Database'!N17,'Tidal Device Database'!$A$81:$B$85,2,FALSE))) -> 5 | K38: =IF('Tidal Device Database'!O17="",0,(VLOOKUP('Tidal Device Database'!O17,'Tidal Device Database'!$A$87:$B$91,2,FALSE))) -> 0 | L38: =IF('Tidal Device Database'!P17="",0,(VLOOKUP('Tidal Device Database'!P17,'Tidal Device Database'!$A$93:$B$97,2,FALSE))) -> 0 | M38: =IF('Tidal Device Database'!Q17="",0,(VLOOKUP('Tidal Device Database'!Q17,'Tidal Device Database'!$A$99:$B$103,2,FALSE))) -> 2 | N38: =IF('Tidal Device Database'!R17="",0,(VLOOKUP('Tidal Device Database'!R17,'Tidal Device Database'!$A$115:$B$119,2,FALSE))) -> 1 | O38: =IF('Tidal Device Database'!S17="",0,(VLOOKUP('Tidal Device Database'!S17,'Tidal Device Database'!$A$105:$B$109,2,FALSE))) -> 0 | P38: 59
A39: ='Tidal Device Database'!A18 -> 17 | B39: 60 | C39: ='Tidal Device Database'!B18 -> CoRMat | D39: ='Tidal Device Database'!C18 -> Horizontal Contra-Rotating | E39: =IF('Tidal Device Database'!I18="",0,(VLOOKUP('Tidal Device Database'!I18,'Tidal Device Database'!$A$131:$B$135,2,FALSE))) -> 0 | F39: =IF('Tidal Device Database'!J18="",0,(VLOOKUP('Tidal Device Database'!J18,'Tidal Device Database'!$A$137:$B$141,2,FALSE))) -> 0 | G39: =IF('Tidal Device Database'!K18="",0,(VLOOKUP('Tidal Device Database'!K18,'Tidal Device Database'!$A$143:$B$147,2,FALSE))) -> 5 | H39: =IF('Tidal Device Database'!L18="",0,(VLOOKUP('Tidal Device Database'!L18,'Tidal Device Database'!$A$69:$B$73,2,FALSE))) -> 0 | I39: =IF('Tidal Device Database'!M18="",0,(VLOOKUP('Tidal Device Database'!M18,'Tidal Device Database'!$A$75:$B$79,2,FALSE))) -> 0 | J39: =IF('Tidal Device Database'!N18="",0,(VLOOKUP('Tidal Device Database'!N18,'Tidal Device Database'!$A$81:$B$85,2,FALSE))) -> 5 | K39: =IF('Tidal Device Database'!O18="",0,(VLOOKUP('Tidal Device Database'!O18,'Tidal Device Database'!$A$87:$B$91,2,FALSE))) -> 0 | L39: =IF('Tidal Device Database'!P18="",0,(VLOOKUP('Tidal Device Database'!P18,'Tidal Device Database'!$A$93:$B$97,2,FALSE))) -> 0 | M39: =IF('Tidal Device Database'!Q18="",0,(VLOOKUP('Tidal Device Database'!Q18,'Tidal Device Database'!$A$99:$B$103,2,FALSE))) -> 0 | N39: =IF('Tidal Device Database'!R18="",0,(VLOOKUP('Tidal Device Database'!R18,'Tidal Device Database'!$A$115:$B$119,2,FALSE))) -> 0 | O39: =IF('Tidal Device Database'!S18="",0,(VLOOKUP('Tidal Device Database'!S18,'Tidal Device Database'!$A$105:$B$109,2,FALSE))) -> 3 | P39: 60
A40: ='Tidal Device Database'!A19 -> 18 | B40: 68 | C40: ='Tidal Device Database'!B19 -> Nova M100 | D40: ='Tidal Device Database'!C19 -> Horizontal Axis | E40: =IF('Tidal Device Database'!I19="",0,(VLOOKUP('Tidal Device Database'!I19,'Tidal Device Database'!$A$131:$B$135,2,FALSE))) -> 5 | F40: =IF('Tidal Device Database'!J19="",0,(VLOOKUP('Tidal Device Database'!J19,'Tidal Device Database'!$A$137:$B$141,2,FALSE))) -> 0 | G40: =IF('Tidal Device Database'!K19="",0,(VLOOKUP('Tidal Device Database'!K19,'Tidal Device Database'!$A$143:$B$147,2,FALSE))) -> 0 | H40: =IF('Tidal Device Database'!L19="",0,(VLOOKUP('Tidal Device Database'!L19,'Tidal Device Database'!$A$69:$B$73,2,FALSE))) -> 4 | I40: =IF('Tidal Device Database'!M19="",0,(VLOOKUP('Tidal Device Database'!M19,'Tidal Device Database'!$A$75:$B$79,2,FALSE))) -> 0 | J40: =IF('Tidal Device Database'!N19="",0,(VLOOKUP('Tidal Device Database'!N19,'Tidal Device Database'!$A$81:$B$85,2,FALSE))) -> 3 | K40: =IF('Tidal Device Database'!O19="",0,(VLOOKUP('Tidal Device Database'!O19,'Tidal Device Database'!$A$87:$B$91,2,FALSE))) -> 0 | L40: =IF('Tidal Device Database'!P19="",0,(VLOOKUP('Tidal Device Database'!P19,'Tidal Device Database'!$A$93:$B$97,2,FALSE))) -> 0 | M40: =IF('Tidal Device Database'!Q19="",0,(VLOOKUP('Tidal Device Database'!Q19,'Tidal Device Database'!$A$99:$B$103,2,FALSE))) -> 3 | N40: =IF('Tidal Device Database'!R19="",0,(VLOOKUP('Tidal Device Database'!R19,'Tidal Device Database'!$A$115:$B$119,2,FALSE))) -> 0 | O40: =IF('Tidal Device Database'!S19="",0,(VLOOKUP('Tidal Device Database'!S19,'Tidal Device Database'!$A$105:$B$109,2,FALSE))) -> 5 | P40: 68
A41: ='Tidal Device Database'!A20 -> 19 | B41: 16 | C41: ='Tidal Device Database'!B20 -> TidGen | D41: ='Tidal Device Database'!C20 -> Darrieus | E41: =IF('Tidal Device Database'!I20="",0,(VLOOKUP('Tidal Device Database'!I20,'Tidal Device Database'!$A$131:$B$135,2,FALSE))) -> 0 | F41: =IF('Tidal Device Database'!J20="",0,(VLOOKUP('Tidal Device Database'!J20,'Tidal Device Database'!$A$137:$B$141,2,FALSE))) -> 0 | G41: =IF('Tidal Device Database'!K20="",0,(VLOOKUP('Tidal Device Database'!K20,'Tidal Device Database'!$A$143:$B$147,2,FALSE))) -> 0 | H41: =IF('Tidal Device Database'!L20="",0,(VLOOKUP('Tidal Device Database'!L20,'Tidal Device Database'!$A$69:$B$73,2,FALSE))) -> 0 | I41: =IF('Tidal Device Database'!M20="",0,(VLOOKUP('Tidal Device Database'!M20,'Tidal Device Database'!$A$75:$B$79,2,FALSE))) -> 0 | J41: =IF('Tidal Device Database'!N20="",0,(VLOOKUP('Tidal Device Database'!N20,'Tidal Device Database'!$A$81:$B$85,2,FALSE))) -> 4 | K41: =IF('Tidal Device Database'!O20="",0,(VLOOKUP('Tidal Device Database'!O20,'Tidal Device Database'!$A$87:$B$91,2,FALSE))) -> 0 | L41: =IF('Tidal Device Database'!P20="",0,(VLOOKUP('Tidal Device Database'!P20,'Tidal Device Database'!$A$93:$B$97,2,FALSE))) -> 0 | M41: =IF('Tidal Device Database'!Q20="",0,(VLOOKUP('Tidal Device Database'!Q20,'Tidal Device Database'!$A$99:$B$103,2,FALSE))) -> 0 | N41: =IF('Tidal Device Database'!R20="",0,(VLOOKUP('Tidal Device Database'!R20,'Tidal Device Database'!$A$115:$B$119,2,FALSE))) -> 0 | O41: =IF('Tidal Device Database'!S20="",0,(VLOOKUP('Tidal Device Database'!S20,'Tidal Device Database'!$A$105:$B$109,2,FALSE))) -> 0 | P41: 16
A42: ='Tidal Device Database'!A21 -> 20 | B42: 12 | C42: ='Tidal Device Database'!B21 -> Oceana | D42: ='Tidal Device Database'!C21 -> Horizontal Axis | E42: =IF('Tidal Device Database'!I21="",0,(VLOOKUP('Tidal Device Database'!I21,'Tidal Device Database'!$A$131:$B$135,2,FALSE))) -> 0 | F42: =IF('Tidal Device Database'!J21="",0,(VLOOKUP('Tidal Device Database'!J21,'Tidal Device Database'!$A$137:$B$141,2,FALSE))) -> 0 | G42: =IF('Tidal Device Database'!K21="",0,(VLOOKUP('Tidal Device Database'!K21,'Tidal Device Database'!$A$143:$B$147,2,FALSE))) -> 0 | H42: =IF('Tidal Device Database'!L21="",0,(VLOOKUP('Tidal Device Database'!L21,'Tidal Device Database'!$A$69:$B$73,2,FALSE))) -> 0 | I42: =IF('Tidal Device Database'!M21="",0,(VLOOKUP('Tidal Device Database'!M21,'Tidal Device Database'!$A$75:$B$79,2,FALSE))) -> 0 | J42: =IF('Tidal Device Database'!N21="",0,(VLOOKUP('Tidal Device Database'!N21,'Tidal Device Database'!$A$81:$B$85,2,FALSE))) -> 3 | K42: =IF('Tidal Device Database'!O21="",0,(VLOOKUP('Tidal Device Database'!O21,'Tidal Device Database'!$A$87:$B$91,2,FALSE))) -> 0 | L42: =IF('Tidal Device Database'!P21="",0,(VLOOKUP('Tidal Device Database'!P21,'Tidal Device Database'!$A$93:$B$97,2,FALSE))) -> 0 | M42: =IF('Tidal Device Database'!Q21="",0,(VLOOKUP('Tidal Device Database'!Q21,'Tidal Device Database'!$A$99:$B$103,2,FALSE))) -> 0 | N42: =IF('Tidal Device Database'!R21="",0,(VLOOKUP('Tidal Device Database'!R21,'Tidal Device Database'!$A$115:$B$119,2,FALSE))) -> 0 | O42: =IF('Tidal Device Database'!S21="",0,(VLOOKUP('Tidal Device Database'!S21,'Tidal Device Database'!$A$105:$B$109,2,FALSE))) -> 0 | P42: 12
A43: ='Tidal Device Database'!A22 -> 21 | B43: 50 | C43: ='Tidal Device Database'!B22 -> Stream Cube | D43: ='Tidal Device Database'!C22 -> Vertical Axis | E43: =IF('Tidal Device Database'!I22="",0,(VLOOKUP('Tidal Device Database'!I22,'Tidal Device Database'!$A$131:$B$135,2,FALSE))) -> 5 | F43: =IF('Tidal Device Database'!J22="",0,(VLOOKUP('Tidal Device Database'!J22,'Tidal Device Database'!$A$137:$B$141,2,FALSE))) -> 5 | G43: =IF('Tidal Device Database'!K22="",0,(VLOOKUP('Tidal Device Database'!K22,'Tidal Device Database'!$A$143:$B$147,2,FALSE))) -> 0 | H43: =IF('Tidal Device Database'!L22="",0,(VLOOKUP('Tidal Device Database'!L22,'Tidal Device Database'!$A$69:$B$73,2,FALSE))) -> 0 | I43: =IF('Tidal Device Database'!M22="",0,(VLOOKUP('Tidal Device Database'!M22,'Tidal Device Database'!$A$75:$B$79,2,FALSE))) -> 0 | J43: =IF('Tidal Device Database'!N22="",0,(VLOOKUP('Tidal Device Database'!N22,'Tidal Device Database'!$A$81:$B$85,2,FALSE))) -> 5 | K43: =IF('Tidal Device Database'!O22="",0,(VLOOKUP('Tidal Device Database'!O22,'Tidal Device Database'!$A$87:$B$91,2,FALSE))) -> 0 | L43: =IF('Tidal Device Database'!P22="",0,(VLOOKUP('Tidal Device Database'!P22,'Tidal Device Database'!$A$93:$B$97,2,FALSE))) -> 0 | M43: =IF('Tidal Device Database'!Q22="",0,(VLOOKUP('Tidal Device Database'!Q22,'Tidal Device Database'!$A$99:$B$103,2,FALSE))) -> 0 | N43: =IF('Tidal Device Database'!R22="",0,(VLOOKUP('Tidal Device Database'!R22,'Tidal Device Database'!$A$115:$B$119,2,FALSE))) -> 0 | O43: =IF('Tidal Device Database'!S22="",0,(VLOOKUP('Tidal Device Database'!S22,'Tidal Device Database'!$A$105:$B$109,2,FALSE))) -> 0 | P43: 50
A44: ='Tidal Device Database'!A23 -> 22 | B44: 114 | C44: ='Tidal Device Database'!B23 -> Capricorn 5 | D44: ='Tidal Device Database'!C23 -> Horizontal Contra-Rotating | E44: =IF('Tidal Device Database'!I23="",0,(VLOOKUP('Tidal Device Database'!I23,'Tidal Device Database'!$A$131:$B$135,2,FALSE))) -> 5 | F44: =IF('Tidal Device Database'!J23="",0,(VLOOKUP('Tidal Device Database'!J23,'Tidal Device Database'!$A$137:$B$141,2,FALSE))) -> 5 | G44: =IF('Tidal Device Database'!K23="",0,(VLOOKUP('Tidal Device Database'!K23,'Tidal Device Database'!$A$143:$B$147,2,FALSE))) -> 4 | H44: =IF('Tidal Device Database'!L23="",0,(VLOOKUP('Tidal Device Database'!L23,'Tidal Device Database'!$A$69:$B$73,2,FALSE))) -> 4 | I44: =IF('Tidal Device Database'!M23="",0,(VLOOKUP('Tidal Device Database'!M23,'Tidal Device Database'!$A$75:$B$79,2,FALSE))) -> 0 | J44: =IF('Tidal Device Database'!N23="",0,(VLOOKUP('Tidal Device Database'!N23,'Tidal Device Database'!$A$81:$B$85,2,FALSE))) -> 5 | K44: =IF('Tidal Device Database'!O23="",0,(VLOOKUP('Tidal Device Database'!O23,'Tidal Device Database'!$A$87:$B$91,2,FALSE))) -> 0 | L44: =IF('Tidal Device Database'!P23="",0,(VLOOKUP('Tidal Device Database'!P23,'Tidal Device Database'!$A$93:$B$97,2,FALSE))) -> 0 | M44: =IF('Tidal Device Database'!Q23="",0,(VLOOKUP('Tidal Device Database'!Q23,'Tidal Device Database'!$A$99:$B$103,2,FALSE))) -> 3 | N44: =IF('Tidal Device Database'!R23="",0,(VLOOKUP('Tidal Device Database'!R23,'Tidal Device Database'!$A$115:$B$119,2,FALSE))) -> 4 | O44: =IF('Tidal Device Database'!S23="",0,(VLOOKUP('Tidal Device Database'!S23,'Tidal Device Database'!$A$105:$B$109,2,FALSE))) -> 4 | P44: 114
A45: ='Tidal Device Database'!A24 -> 23 | B45: 65 | C45: ='Tidal Device Database'!B24 -> Capricorn 125 | D45: ='Tidal Device Database'!C24 -> Horizontal Contra-Rotating | E45: =IF('Tidal Device Database'!I24="",0,(VLOOKUP('Tidal Device Database'!I24,'Tidal Device Database'!$A$131:$B$135,2,FALSE))) -> 1 | F45: =IF('Tidal Device Database'!J24="",0,(VLOOKUP('Tidal Device Database'!J24,'Tidal Device Database'!$A$137:$B$141,2,FALSE))) -> 5 | G45: =IF('Tidal Device Database'!K24="",0,(VLOOKUP('Tidal Device Database'!K24,'Tidal Device Database'!$A$143:$B$147,2,FALSE))) -> 1 | H45: =IF('Tidal Device Database'!L24="",0,(VLOOKUP('Tidal Device Database'!L24,'Tidal Device Database'!$A$69:$B$73,2,FALSE))) -> 4 | I45: =IF('Tidal Device Database'!M24="",0,(VLOOKUP('Tidal Device Database'!M24,'Tidal Device Database'!$A$75:$B$79,2,FALSE))) -> 0 | J45: =IF('Tidal Device Database'!N24="",0,(VLOOKUP('Tidal Device Database'!N24,'Tidal Device Database'!$A$81:$B$85,2,FALSE))) -> 5 | K45: =IF('Tidal Device Database'!O24="",0,(VLOOKUP('Tidal Device Database'!O24,'Tidal Device Database'!$A$87:$B$91,2,FALSE))) -> 0 | L45: =IF('Tidal Device Database'!P24="",0,(VLOOKUP('Tidal Device Database'!P24,'Tidal Device Database'!$A$93:$B$97,2,FALSE))) -> 0 | M45: =IF('Tidal Device Database'!Q24="",0,(VLOOKUP('Tidal Device Database'!Q24,'Tidal Device Database'!$A$99:$B$103,2,FALSE))) -> 3 | N45: =IF('Tidal Device Database'!R24="",0,(VLOOKUP('Tidal Device Database'!R24,'Tidal Device Database'!$A$115:$B$119,2,FALSE))) -> 3 | O45: =IF('Tidal Device Database'!S24="",0,(VLOOKUP('Tidal Device Database'!S24,'Tidal Device Database'!$A$105:$B$109,2,FALSE))) -> 0 | P45: 65
A46: ='Tidal Device Database'!A25 -> 24 | B46: 34 | C46: ='Tidal Device Database'!B25 -> Sabella D10 | D46: ='Tidal Device Database'!C25 -> Horizontal Axis | E46: =IF('Tidal Device Database'!I25="",0,(VLOOKUP('Tidal Device Database'!I25,'Tidal Device Database'!$A$131:$B$135,2,FALSE))) -> 3 | F46: =IF('Tidal Device Database'!J25="",0,(VLOOKUP('Tidal Device Database'!J25,'Tidal Device Database'!$A$137:$B$141,2,FALSE))) -> 3 | G46: =IF('Tidal Device Database'!K25="",0,(VLOOKUP('Tidal Device Database'!K25,'Tidal Device Database'!$A$143:$B$147,2,FALSE))) -> 0 | H46: =IF('Tidal Device Database'!L25="",0,(VLOOKUP('Tidal Device Database'!L25,'Tidal Device Database'!$A$69:$B$73,2,FALSE))) -> 0 | I46: =IF('Tidal Device Database'!M25="",0,(VLOOKUP('Tidal Device Database'!M25,'Tidal Device Database'!$A$75:$B$79,2,FALSE))) -> 0 | J46: =IF('Tidal Device Database'!N25="",0,(VLOOKUP('Tidal Device Database'!N25,'Tidal Device Database'!$A$81:$B$85,2,FALSE))) -> 4 | K46: =IF('Tidal Device Database'!O25="",0,(VLOOKUP('Tidal Device Database'!O25,'Tidal Device Database'!$A$87:$B$91,2,FALSE))) -> 0 | L46: =IF('Tidal Device Database'!P25="",0,(VLOOKUP('Tidal Device Database'!P25,'Tidal Device Database'!$A$93:$B$97,2,FALSE))) -> 0 | M46: =IF('Tidal Device Database'!Q25="",0,(VLOOKUP('Tidal Device Database'!Q25,'Tidal Device Database'!$A$99:$B$103,2,FALSE))) -> 0 | N46: =IF('Tidal Device Database'!R25="",0,(VLOOKUP('Tidal Device Database'!R25,'Tidal Device Database'!$A$115:$B$119,2,FALSE))) -> 0 | O46: =IF('Tidal Device Database'!S25="",0,(VLOOKUP('Tidal Device Database'!S25,'Tidal Device Database'!$A$105:$B$109,2,FALSE))) -> 0 | P46: 34
A47: ='Tidal Device Database'!A26 -> 25 | B47: 34 | C47: ='Tidal Device Database'!B26 -> Sabella D12 | D47: ='Tidal Device Database'!C26 -> Horizontal Axis | E47: =IF('Tidal Device Database'!I26="",0,(VLOOKUP('Tidal Device Database'!I26,'Tidal Device Database'!$A$131:$B$135,2,FALSE))) -> 3 | F47: =IF('Tidal Device Database'!J26="",0,(VLOOKUP('Tidal Device Database'!J26,'Tidal Device Database'!$A$137:$B$141,2,FALSE))) -> 3 | G47: =IF('Tidal Device Database'!K26="",0,(VLOOKUP('Tidal Device Database'!K26,'Tidal Device Database'!$A$143:$B$147,2,FALSE))) -> 0 | H47: =IF('Tidal Device Database'!L26="",0,(VLOOKUP('Tidal Device Database'!L26,'Tidal Device Database'!$A$69:$B$73,2,FALSE))) -> 0 | I47: =IF('Tidal Device Database'!M26="",0,(VLOOKUP('Tidal Device Database'!M26,'Tidal Device Database'!$A$75:$B$79,2,FALSE))) -> 0 | J47: =IF('Tidal Device Database'!N26="",0,(VLOOKUP('Tidal Device Database'!N26,'Tidal Device Database'!$A$81:$B$85,2,FALSE))) -> 4 | K47: =IF('Tidal Device Database'!O26="",0,(VLOOKUP('Tidal Device Database'!O26,'Tidal Device Database'!$A$87:$B$91,2,FALSE))) -> 0 | L47: =IF('Tidal Device Database'!P26="",0,(VLOOKUP('Tidal Device Database'!P26,'Tidal Device Database'!$A$93:$B$97,2,FALSE))) -> 0 | M47: =IF('Tidal Device Database'!Q26="",0,(VLOOKUP('Tidal Device Database'!Q26,'Tidal Device Database'!$A$99:$B$103,2,FALSE))) -> 0 | N47: =IF('Tidal Device Database'!R26="",0,(VLOOKUP('Tidal Device Database'!R26,'Tidal Device Database'!$A$115:$B$119,2,FALSE))) -> 0 | O47: =IF('Tidal Device Database'!S26="",0,(VLOOKUP('Tidal Device Database'!S26,'Tidal Device Database'!$A$105:$B$109,2,FALSE))) -> 0 | P47: 34
A48: ='Tidal Device Database'!A27 -> 26 | B48: 31 | C48: ='Tidal Device Database'!B27 -> Sabella D15 | D48: ='Tidal Device Database'!C27 -> Horizontal Axis | E48: =IF('Tidal Device Database'!I27="",0,(VLOOKUP('Tidal Device Database'!I27,'Tidal Device Database'!$A$131:$B$135,2,FALSE))) -> 2 | F48: =IF('Tidal Device Database'!J27="",0,(VLOOKUP('Tidal Device Database'!J27,'Tidal Device Database'!$A$137:$B$141,2,FALSE))) -> 3 | G48: =IF('Tidal Device Database'!K27="",0,(VLOOKUP('Tidal Device Database'!K27,'Tidal Device Database'!$A$143:$B$147,2,FALSE))) -> 0 | H48: =IF('Tidal Device Database'!L27="",0,(VLOOKUP('Tidal Device Database'!L27,'Tidal Device Database'!$A$69:$B$73,2,FALSE))) -> 0 | I48: =IF('Tidal Device Database'!M27="",0,(VLOOKUP('Tidal Device Database'!M27,'Tidal Device Database'!$A$75:$B$79,2,FALSE))) -> 0 | J48: =IF('Tidal Device Database'!N27="",0,(VLOOKUP('Tidal Device Database'!N27,'Tidal Device Database'!$A$81:$B$85,2,FALSE))) -> 4 | K48: =IF('Tidal Device Database'!O27="",0,(VLOOKUP('Tidal Device Database'!O27,'Tidal Device Database'!$A$87:$B$91,2,FALSE))) -> 0 | L48: =IF('Tidal Device Database'!P27="",0,(VLOOKUP('Tidal Device Database'!P27,'Tidal Device Database'!$A$93:$B$97,2,FALSE))) -> 0 | M48: =IF('Tidal Device Database'!Q27="",0,(VLOOKUP('Tidal Device Database'!Q27,'Tidal Device Database'!$A$99:$B$103,2,FALSE))) -> 0 | N48: =IF('Tidal Device Database'!R27="",0,(VLOOKUP('Tidal Device Database'!R27,'Tidal Device Database'!$A$115:$B$119,2,FALSE))) -> 0 | O48: =IF('Tidal Device Database'!S27="",0,(VLOOKUP('Tidal Device Database'!S27,'Tidal Device Database'!$A$105:$B$109,2,FALSE))) -> 0 | P48: 31
A49: ='Tidal Device Database'!A28 -> 27 | B49: 116 | C49: ='Tidal Device Database'!B28 -> Shottel Instream Turbine I | D49: ='Tidal Device Database'!C28 -> Horizontal Axis | E49: =IF('Tidal Device Database'!I28="",0,(VLOOKUP('Tidal Device Database'!I28,'Tidal Device Database'!$A$131:$B$135,2,FALSE))) -> 5 | F49: =IF('Tidal Device Database'!J28="",0,(VLOOKUP('Tidal Device Database'!J28,'Tidal Device Database'!$A$137:$B$141,2,FALSE))) -> 5 | G49: =IF('Tidal Device Database'!K28="",0,(VLOOKUP('Tidal Device Database'!K28,'Tidal Device Database'!$A$143:$B$147,2,FALSE))) -> 0 | H49: =IF('Tidal Device Database'!L28="",0,(VLOOKUP('Tidal Device Database'!L28,'Tidal Device Database'!$A$69:$B$73,2,FALSE))) -> 0 | I49: =IF('Tidal Device Database'!M28="",0,(VLOOKUP('Tidal Device Database'!M28,'Tidal Device Database'!$A$75:$B$79,2,FALSE))) -> 4 | J49: =IF('Tidal Device Database'!N28="",0,(VLOOKUP('Tidal Device Database'!N28,'Tidal Device Database'!$A$81:$B$85,2,FALSE))) -> 5 | K49: =IF('Tidal Device Database'!O28="",0,(VLOOKUP('Tidal Device Database'!O28,'Tidal Device Database'!$A$87:$B$91,2,FALSE))) -> 0 | L49: =IF('Tidal Device Database'!P28="",0,(VLOOKUP('Tidal Device Database'!P28,'Tidal Device Database'!$A$93:$B$97,2,FALSE))) -> 0 | M49: =IF('Tidal Device Database'!Q28="",0,(VLOOKUP('Tidal Device Database'!Q28,'Tidal Device Database'!$A$99:$B$103,2,FALSE))) -> 5 | N49: =IF('Tidal Device Database'!R28="",0,(VLOOKUP('Tidal Device Database'!R28,'Tidal Device Database'!$A$115:$B$119,2,FALSE))) -> 5 | O49: =IF('Tidal Device Database'!S28="",0,(VLOOKUP('Tidal Device Database'!S28,'Tidal Device Database'!$A$105:$B$109,2,FALSE))) -> 4 | P49: 116
A50: ='Tidal Device Database'!A29 -> 28 | B50: 106 | C50: ='Tidal Device Database'!B29 -> Shottel Instream Turbine II | D50: ='Tidal Device Database'!C29 -> Horizontal Axis | E50: =IF('Tidal Device Database'!I29="",0,(VLOOKUP('Tidal Device Database'!I29,'Tidal Device Database'!$A$131:$B$135,2,FALSE))) -> 5 | F50: =IF('Tidal Device Database'!J29="",0,(VLOOKUP('Tidal Device Database'!J29,'Tidal Device Database'!$A$137:$B$141,2,FALSE))) -> 5 | G50: =IF('Tidal Device Database'!K29="",0,(VLOOKUP('Tidal Device Database'!K29,'Tidal Device Database'!$A$143:$B$147,2,FALSE))) -> 0 | H50: =IF('Tidal Device Database'!L29="",0,(VLOOKUP('Tidal Device Database'!L29,'Tidal Device Database'!$A$69:$B$73,2,FALSE))) -> 0 | I50: =IF('Tidal Device Database'!M29="",0,(VLOOKUP('Tidal Device Database'!M29,'Tidal Device Database'!$A$75:$B$79,2,FALSE))) -> 4 | J50: =IF('Tidal Device Database'!N29="",0,(VLOOKUP('Tidal Device Database'!N29,'Tidal Device Database'!$A$81:$B$85,2,FALSE))) -> 5 | K50: =IF('Tidal Device Database'!O29="",0,(VLOOKUP('Tidal Device Database'!O29,'Tidal Device Database'!$A$87:$B$91,2,FALSE))) -> 0 | L50: =IF('Tidal Device Database'!P29="",0,(VLOOKUP('Tidal Device Database'!P29,'Tidal Device Database'!$A$93:$B$97,2,FALSE))) -> 0 | M50: =IF('Tidal Device Database'!Q29="",0,(VLOOKUP('Tidal Device Database'!Q29,'Tidal Device Database'!$A$99:$B$103,2,FALSE))) -> 3 | N50: =IF('Tidal Device Database'!R29="",0,(VLOOKUP('Tidal Device Database'!R29,'Tidal Device Database'!$A$115:$B$119,2,FALSE))) -> 4 | O50: =IF('Tidal Device Database'!S29="",0,(VLOOKUP('Tidal Device Database'!S29,'Tidal Device Database'!$A$105:$B$109,2,FALSE))) -> 4 | P50: 106
A51: ='Tidal Device Database'!A30 -> 29 | B51: 104 | C51: ='Tidal Device Database'!B30 -> Shottel Instream Turbine III | D51: ='Tidal Device Database'!C30 -> Horizontal Axis | E51: =IF('Tidal Device Database'!I30="",0,(VLOOKUP('Tidal Device Database'!I30,'Tidal Device Database'!$A$131:$B$135,2,FALSE))) -> 5 | F51: =IF('Tidal Device Database'!J30="",0,(VLOOKUP('Tidal Device Database'!J30,'Tidal Device Database'!$A$137:$B$141,2,FALSE))) -> 5 | G51: =IF('Tidal Device Database'!K30="",0,(VLOOKUP('Tidal Device Database'!K30,'Tidal Device Database'!$A$143:$B$147,2,FALSE))) -> 0 | H51: =IF('Tidal Device Database'!L30="",0,(VLOOKUP('Tidal Device Database'!L30,'Tidal Device Database'!$A$69:$B$73,2,FALSE))) -> 0 | I51: =IF('Tidal Device Database'!M30="",0,(VLOOKUP('Tidal Device Database'!M30,'Tidal Device Database'!$A$75:$B$79,2,FALSE))) -> 4 | J51: =IF('Tidal Device Database'!N30="",0,(VLOOKUP('Tidal Device Database'!N30,'Tidal Device Database'!$A$81:$B$85,2,FALSE))) -> 5 | K51: =IF('Tidal Device Database'!O30="",0,(VLOOKUP('Tidal Device Database'!O30,'Tidal Device Database'!$A$87:$B$91,2,FALSE))) -> 0 | L51: =IF('Tidal Device Database'!P30="",0,(VLOOKUP('Tidal Device Database'!P30,'Tidal Device Database'!$A$93:$B$97,2,FALSE))) -> 0 | M51: =IF('Tidal Device Database'!Q30="",0,(VLOOKUP('Tidal Device Database'!Q30,'Tidal Device Database'!$A$99:$B$103,2,FALSE))) -> 3 | N51: =IF('Tidal Device Database'!R30="",0,(VLOOKUP('Tidal Device Database'!R30,'Tidal Device Database'!$A$115:$B$119,2,FALSE))) -> 3 | O51: =IF('Tidal Device Database'!S30="",0,(VLOOKUP('Tidal Device Database'!S30,'Tidal Device Database'!$A$105:$B$109,2,FALSE))) -> 4 | P51: 104
A52: ='Tidal Device Database'!A31 -> 30 | B52: 61 | C52: ='Tidal Device Database'!B31 -> SeaPower GEM | D52: ='Tidal Device Database'!C31 -> Horizontal Axis | E52: =IF('Tidal Device Database'!I31="",0,(VLOOKUP('Tidal Device Database'!I31,'Tidal Device Database'!$A$131:$B$135,2,FALSE))) -> 0 | F52: =IF('Tidal Device Database'!J31="",0,(VLOOKUP('Tidal Device Database'!J31,'Tidal Device Database'!$A$137:$B$141,2,FALSE))) -> 0 | G52: =IF('Tidal Device Database'!K31="",0,(VLOOKUP('Tidal Device Database'!K31,'Tidal Device Database'!$A$143:$B$147,2,FALSE))) -> 5 | H52: =IF('Tidal Device Database'!L31="",0,(VLOOKUP('Tidal Device Database'!L31,'Tidal Device Database'!$A$69:$B$73,2,FALSE))) -> 0 | I52: =IF('Tidal Device Database'!M31="",0,(VLOOKUP('Tidal Device Database'!M31,'Tidal Device Database'!$A$75:$B$79,2,FALSE))) -> 4 | J52: =IF('Tidal Device Database'!N31="",0,(VLOOKUP('Tidal Device Database'!N31,'Tidal Device Database'!$A$81:$B$85,2,FALSE))) -> 5 | K52: =IF('Tidal Device Database'!O31="",0,(VLOOKUP('Tidal Device Database'!O31,'Tidal Device Database'!$A$87:$B$91,2,FALSE))) -> 0 | L52: =IF('Tidal Device Database'!P31="",0,(VLOOKUP('Tidal Device Database'!P31,'Tidal Device Database'!$A$93:$B$97,2,FALSE))) -> 0 | M52: =IF('Tidal Device Database'!Q31="",0,(VLOOKUP('Tidal Device Database'!Q31,'Tidal Device Database'!$A$99:$B$103,2,FALSE))) -> 0 | N52: =IF('Tidal Device Database'!R31="",0,(VLOOKUP('Tidal Device Database'!R31,'Tidal Device Database'!$A$115:$B$119,2,FALSE))) -> 0 | O52: =IF('Tidal Device Database'!S31="",0,(VLOOKUP('Tidal Device Database'!S31,'Tidal Device Database'!$A$105:$B$109,2,FALSE))) -> 0 | P52: 61
A53: ='Tidal Device Database'!A32 -> 31 | B53: 68 | C53: ='Tidal Device Database'!B32 -> Tydal Energy Pty (1.5) | D53: ='Tidal Device Database'!C32 -> Venturi Rotor | E53: =IF('Tidal Device Database'!I32="",0,(VLOOKUP('Tidal Device Database'!I32,'Tidal Device Database'!$A$131:$B$135,2,FALSE))) -> 5 | F53: =IF('Tidal Device Database'!J32="",0,(VLOOKUP('Tidal Device Database'!J32,'Tidal Device Database'!$A$137:$B$141,2,FALSE))) -> 4 | G53: =IF('Tidal Device Database'!K32="",0,(VLOOKUP('Tidal Device Database'!K32,'Tidal Device Database'!$A$143:$B$147,2,FALSE))) -> 5 | H53: =IF('Tidal Device Database'!L32="",0,(VLOOKUP('Tidal Device Database'!L32,'Tidal Device Database'!$A$69:$B$73,2,FALSE))) -> 0 | I53: =IF('Tidal Device Database'!M32="",0,(VLOOKUP('Tidal Device Database'!M32,'Tidal Device Database'!$A$75:$B$79,2,FALSE))) -> 0 | J53: =IF('Tidal Device Database'!N32="",0,(VLOOKUP('Tidal Device Database'!N32,'Tidal Device Database'!$A$81:$B$85,2,FALSE))) -> 4 | K53: =IF('Tidal Device Database'!O32="",0,(VLOOKUP('Tidal Device Database'!O32,'Tidal Device Database'!$A$87:$B$91,2,FALSE))) -> 0 | L53: =IF('Tidal Device Database'!P32="",0,(VLOOKUP('Tidal Device Database'!P32,'Tidal Device Database'!$A$93:$B$97,2,FALSE))) -> 0 | M53: =IF('Tidal Device Database'!Q32="",0,(VLOOKUP('Tidal Device Database'!Q32,'Tidal Device Database'!$A$99:$B$103,2,FALSE))) -> 0 | N53: =IF('Tidal Device Database'!R32="",0,(VLOOKUP('Tidal Device Database'!R32,'Tidal Device Database'!$A$115:$B$119,2,FALSE))) -> 0 | O53: =IF('Tidal Device Database'!S32="",0,(VLOOKUP('Tidal Device Database'!S32,'Tidal Device Database'!$A$105:$B$109,2,FALSE))) -> 0 | P53: 68
A54: ='Tidal Device Database'!A33 -> 32 | B54: 68 | C54: ='Tidal Device Database'!B33 -> Tydal Energy Pty (2.4) | D54: ='Tidal Device Database'!C33 -> Venturi Rotor | E54: =IF('Tidal Device Database'!I33="",0,(VLOOKUP('Tidal Device Database'!I33,'Tidal Device Database'!$A$131:$B$135,2,FALSE))) -> 5 | F54: =IF('Tidal Device Database'!J33="",0,(VLOOKUP('Tidal Device Database'!J33,'Tidal Device Database'!$A$137:$B$141,2,FALSE))) -> 4 | G54: =IF('Tidal Device Database'!K33="",0,(VLOOKUP('Tidal Device Database'!K33,'Tidal Device Database'!$A$143:$B$147,2,FALSE))) -> 5 | H54: =IF('Tidal Device Database'!L33="",0,(VLOOKUP('Tidal Device Database'!L33,'Tidal Device Database'!$A$69:$B$73,2,FALSE))) -> 0 | I54: =IF('Tidal Device Database'!M33="",0,(VLOOKUP('Tidal Device Database'!M33,'Tidal Device Database'!$A$75:$B$79,2,FALSE))) -> 0 | J54: =IF('Tidal Device Database'!N33="",0,(VLOOKUP('Tidal Device Database'!N33,'Tidal Device Database'!$A$81:$B$85,2,FALSE))) -> 4 | K54: =IF('Tidal Device Database'!O33="",0,(VLOOKUP('Tidal Device Database'!O33,'Tidal Device Database'!$A$87:$B$91,2,FALSE))) -> 0 | L54: =IF('Tidal Device Database'!P33="",0,(VLOOKUP('Tidal Device Database'!P33,'Tidal Device Database'!$A$93:$B$97,2,FALSE))) -> 0 | M54: =IF('Tidal Device Database'!Q33="",0,(VLOOKUP('Tidal Device Database'!Q33,'Tidal Device Database'!$A$99:$B$103,2,FALSE))) -> 0 | N54: =IF('Tidal Device Database'!R33="",0,(VLOOKUP('Tidal Device Database'!R33,'Tidal Device Database'!$A$115:$B$119,2,FALSE))) -> 0 | O54: =IF('Tidal Device Database'!S33="",0,(VLOOKUP('Tidal Device Database'!S33,'Tidal Device Database'!$A$105:$B$109,2,FALSE))) -> 0 | P54: 68
A55: ='Tidal Device Database'!A34 -> 33 | B55: 68 | C55: ='Tidal Device Database'!B34 -> Tydal Energy Pty (5) | D55: ='Tidal Device Database'!C34 -> Venturi Rotor | E55: =IF('Tidal Device Database'!I34="",0,(VLOOKUP('Tidal Device Database'!I34,'Tidal Device Database'!$A$131:$B$135,2,FALSE))) -> 5 | F55: =IF('Tidal Device Database'!J34="",0,(VLOOKUP('Tidal Device Database'!J34,'Tidal Device Database'!$A$137:$B$141,2,FALSE))) -> 4 | G55: =IF('Tidal Device Database'!K34="",0,(VLOOKUP('Tidal Device Database'!K34,'Tidal Device Database'!$A$143:$B$147,2,FALSE))) -> 5 | H55: =IF('Tidal Device Database'!L34="",0,(VLOOKUP('Tidal Device Database'!L34,'Tidal Device Database'!$A$69:$B$73,2,FALSE))) -> 0 | I55: =IF('Tidal Device Database'!M34="",0,(VLOOKUP('Tidal Device Database'!M34,'Tidal Device Database'!$A$75:$B$79,2,FALSE))) -> 0 | J55: =IF('Tidal Device Database'!N34="",0,(VLOOKUP('Tidal Device Database'!N34,'Tidal Device Database'!$A$81:$B$85,2,FALSE))) -> 4 | K55: =IF('Tidal Device Database'!O34="",0,(VLOOKUP('Tidal Device Database'!O34,'Tidal Device Database'!$A$87:$B$91,2,FALSE))) -> 0 | L55: =IF('Tidal Device Database'!P34="",0,(VLOOKUP('Tidal Device Database'!P34,'Tidal Device Database'!$A$93:$B$97,2,FALSE))) -> 0 | M55: =IF('Tidal Device Database'!Q34="",0,(VLOOKUP('Tidal Device Database'!Q34,'Tidal Device Database'!$A$99:$B$103,2,FALSE))) -> 0 | N55: =IF('Tidal Device Database'!R34="",0,(VLOOKUP('Tidal Device Database'!R34,'Tidal Device Database'!$A$115:$B$119,2,FALSE))) -> 0 | O55: =IF('Tidal Device Database'!S34="",0,(VLOOKUP('Tidal Device Database'!S34,'Tidal Device Database'!$A$105:$B$109,2,FALSE))) -> 0 | P55: 68
A56: ='Tidal Device Database'!A35 -> 34 | B56: 125 | C56: ='Tidal Device Database'!B35 -> EVG-005H | D56: ='Tidal Device Database'!C35 -> Vertical Axis | E56: =IF('Tidal Device Database'!I35="",0,(VLOOKUP('Tidal Device Database'!I35,'Tidal Device Database'!$A$131:$B$135,2,FALSE))) -> 5 | F56: =IF('Tidal Device Database'!J35="",0,(VLOOKUP('Tidal Device Database'!J35,'Tidal Device Database'!$A$137:$B$141,2,FALSE))) -> 2 | G56: =IF('Tidal Device Database'!K35="",0,(VLOOKUP('Tidal Device Database'!K35,'Tidal Device Database'!$A$143:$B$147,2,FALSE))) -> 5 | H56: =IF('Tidal Device Database'!L35="",0,(VLOOKUP('Tidal Device Database'!L35,'Tidal Device Database'!$A$69:$B$73,2,FALSE))) -> 5 | I56: =IF('Tidal Device Database'!M35="",0,(VLOOKUP('Tidal Device Database'!M35,'Tidal Device Database'!$A$75:$B$79,2,FALSE))) -> 4 | J56: =IF('Tidal Device Database'!N35="",0,(VLOOKUP('Tidal Device Database'!N35,'Tidal Device Database'!$A$81:$B$85,2,FALSE))) -> 5 | K56: =IF('Tidal Device Database'!O35="",0,(VLOOKUP('Tidal Device Database'!O35,'Tidal Device Database'!$A$87:$B$91,2,FALSE))) -> 0 | L56: =IF('Tidal Device Database'!P35="",0,(VLOOKUP('Tidal Device Database'!P35,'Tidal Device Database'!$A$93:$B$97,2,FALSE))) -> 0 | M56: =IF('Tidal Device Database'!Q35="",0,(VLOOKUP('Tidal Device Database'!Q35,'Tidal Device Database'!$A$99:$B$103,2,FALSE))) -> 3 | N56: =IF('Tidal Device Database'!R35="",0,(VLOOKUP('Tidal Device Database'!R35,'Tidal Device Database'!$A$115:$B$119,2,FALSE))) -> 3 | O56: =IF('Tidal Device Database'!S35="",0,(VLOOKUP('Tidal Device Database'!S35,'Tidal Device Database'!$A$105:$B$109,2,FALSE))) -> 4 | P56: 125
A57: ='Tidal Device Database'!A36 -> 35 | B57: 125 | C57: ='Tidal Device Database'!B36 -> EVG-010H | D57: ='Tidal Device Database'!C36 -> Vertical Axis | E57: =IF('Tidal Device Database'!I36="",0,(VLOOKUP('Tidal Device Database'!I36,'Tidal Device Database'!$A$131:$B$135,2,FALSE))) -> 5 | F57: =IF('Tidal Device Database'!J36="",0,(VLOOKUP('Tidal Device Database'!J36,'Tidal Device Database'!$A$137:$B$141,2,FALSE))) -> 2 | G57: =IF('Tidal Device Database'!K36="",0,(VLOOKUP('Tidal Device Database'!K36,'Tidal Device Database'!$A$143:$B$147,2,FALSE))) -> 5 | H57: =IF('Tidal Device Database'!L36="",0,(VLOOKUP('Tidal Device Database'!L36,'Tidal Device Database'!$A$69:$B$73,2,FALSE))) -> 5 | I57: =IF('Tidal Device Database'!M36="",0,(VLOOKUP('Tidal Device Database'!M36,'Tidal Device Database'!$A$75:$B$79,2,FALSE))) -> 4 | J57: =IF('Tidal Device Database'!N36="",0,(VLOOKUP('Tidal Device Database'!N36,'Tidal Device Database'!$A$81:$B$85,2,FALSE))) -> 5 | K57: =IF('Tidal Device Database'!O36="",0,(VLOOKUP('Tidal Device Database'!O36,'Tidal Device Database'!$A$87:$B$91,2,FALSE))) -> 0 | L57: =IF('Tidal Device Database'!P36="",0,(VLOOKUP('Tidal Device Database'!P36,'Tidal Device Database'!$A$93:$B$97,2,FALSE))) -> 0 | M57: =IF('Tidal Device Database'!Q36="",0,(VLOOKUP('Tidal Device Database'!Q36,'Tidal Device Database'!$A$99:$B$103,2,FALSE))) -> 3 | N57: =IF('Tidal Device Database'!R36="",0,(VLOOKUP('Tidal Device Database'!R36,'Tidal Device Database'!$A$115:$B$119,2,FALSE))) -> 3 | O57: =IF('Tidal Device Database'!S36="",0,(VLOOKUP('Tidal Device Database'!S36,'Tidal Device Database'!$A$105:$B$109,2,FALSE))) -> 4 | P57: 125
A58: ='Tidal Device Database'!A37 -> 36 | B58: 125 | C58: ='Tidal Device Database'!B37 -> EVG-025H | D58: ='Tidal Device Database'!C37 -> Vertical Axis | E58: =IF('Tidal Device Database'!I37="",0,(VLOOKUP('Tidal Device Database'!I37,'Tidal Device Database'!$A$131:$B$135,2,FALSE))) -> 5 | F58: =IF('Tidal Device Database'!J37="",0,(VLOOKUP('Tidal Device Database'!J37,'Tidal Device Database'!$A$137:$B$141,2,FALSE))) -> 2 | G58: =IF('Tidal Device Database'!K37="",0,(VLOOKUP('Tidal Device Database'!K37,'Tidal Device Database'!$A$143:$B$147,2,FALSE))) -> 5 | H58: =IF('Tidal Device Database'!L37="",0,(VLOOKUP('Tidal Device Database'!L37,'Tidal Device Database'!$A$69:$B$73,2,FALSE))) -> 5 | I58: =IF('Tidal Device Database'!M37="",0,(VLOOKUP('Tidal Device Database'!M37,'Tidal Device Database'!$A$75:$B$79,2,FALSE))) -> 4 | J58: =IF('Tidal Device Database'!N37="",0,(VLOOKUP('Tidal Device Database'!N37,'Tidal Device Database'!$A$81:$B$85,2,FALSE))) -> 5 | K58: =IF('Tidal Device Database'!O37="",0,(VLOOKUP('Tidal Device Database'!O37,'Tidal Device Database'!$A$87:$B$91,2,FALSE))) -> 0 | L58: =IF('Tidal Device Database'!P37="",0,(VLOOKUP('Tidal Device Database'!P37,'Tidal Device Database'!$A$93:$B$97,2,FALSE))) -> 0 | M58: =IF('Tidal Device Database'!Q37="",0,(VLOOKUP('Tidal Device Database'!Q37,'Tidal Device Database'!$A$99:$B$103,2,FALSE))) -> 3 | N58: =IF('Tidal Device Database'!R37="",0,(VLOOKUP('Tidal Device Database'!R37,'Tidal Device Database'!$A$115:$B$119,2,FALSE))) -> 3 | O58: =IF('Tidal Device Database'!S37="",0,(VLOOKUP('Tidal Device Database'!S37,'Tidal Device Database'!$A$105:$B$109,2,FALSE))) -> 4 | P58: 125
A59: ='Tidal Device Database'!A38 -> 37 | B59: 125 | C59: ='Tidal Device Database'!B38 -> EVG-050H | D59: ='Tidal Device Database'!C38 -> Vertical Axis | E59: =IF('Tidal Device Database'!I38="",0,(VLOOKUP('Tidal Device Database'!I38,'Tidal Device Database'!$A$131:$B$135,2,FALSE))) -> 5 | F59: =IF('Tidal Device Database'!J38="",0,(VLOOKUP('Tidal Device Database'!J38,'Tidal Device Database'!$A$137:$B$141,2,FALSE))) -> 2 | G59: =IF('Tidal Device Database'!K38="",0,(VLOOKUP('Tidal Device Database'!K38,'Tidal Device Database'!$A$143:$B$147,2,FALSE))) -> 5 | H59: =IF('Tidal Device Database'!L38="",0,(VLOOKUP('Tidal Device Database'!L38,'Tidal Device Database'!$A$69:$B$73,2,FALSE))) -> 5 | I59: =IF('Tidal Device Database'!M38="",0,(VLOOKUP('Tidal Device Database'!M38,'Tidal Device Database'!$A$75:$B$79,2,FALSE))) -> 4 | J59: =IF('Tidal Device Database'!N38="",0,(VLOOKUP('Tidal Device Database'!N38,'Tidal Device Database'!$A$81:$B$85,2,FALSE))) -> 5 | K59: =IF('Tidal Device Database'!O38="",0,(VLOOKUP('Tidal Device Database'!O38,'Tidal Device Database'!$A$87:$B$91,2,FALSE))) -> 0 | L59: =IF('Tidal Device Database'!P38="",0,(VLOOKUP('Tidal Device Database'!P38,'Tidal Device Database'!$A$93:$B$97,2,FALSE))) -> 0 | M59: =IF('Tidal Device Database'!Q38="",0,(VLOOKUP('Tidal Device Database'!Q38,'Tidal Device Database'!$A$99:$B$103,2,FALSE))) -> 3 | N59: =IF('Tidal Device Database'!R38="",0,(VLOOKUP('Tidal Device Database'!R38,'Tidal Device Database'!$A$115:$B$119,2,FALSE))) -> 3 | O59: =IF('Tidal Device Database'!S38="",0,(VLOOKUP('Tidal Device Database'!S38,'Tidal Device Database'!$A$105:$B$109,2,FALSE))) -> 4 | P59: 125
A60: ='Tidal Device Database'!A39 -> 38 | B60: 128 | C60: ='Tidal Device Database'!B39 -> ENC-025L | D60: ='Tidal Device Database'!C39 -> Vertical Axis | E60: =IF('Tidal Device Database'!I39="",0,(VLOOKUP('Tidal Device Database'!I39,'Tidal Device Database'!$A$131:$B$135,2,FALSE))) -> 5 | F60: =IF('Tidal Device Database'!J39="",0,(VLOOKUP('Tidal Device Database'!J39,'Tidal Device Database'!$A$137:$B$141,2,FALSE))) -> 3 | G60: =IF('Tidal Device Database'!K39="",0,(VLOOKUP('Tidal Device Database'!K39,'Tidal Device Database'!$A$143:$B$147,2,FALSE))) -> 5 | H60: =IF('Tidal Device Database'!L39="",0,(VLOOKUP('Tidal Device Database'!L39,'Tidal Device Database'!$A$69:$B$73,2,FALSE))) -> 5 | I60: =IF('Tidal Device Database'!M39="",0,(VLOOKUP('Tidal Device Database'!M39,'Tidal Device Database'!$A$75:$B$79,2,FALSE))) -> 4 | J60: =IF('Tidal Device Database'!N39="",0,(VLOOKUP('Tidal Device Database'!N39,'Tidal Device Database'!$A$81:$B$85,2,FALSE))) -> 5 | K60: =IF('Tidal Device Database'!O39="",0,(VLOOKUP('Tidal Device Database'!O39,'Tidal Device Database'!$A$87:$B$91,2,FALSE))) -> 0 | L60: =IF('Tidal Device Database'!P39="",0,(VLOOKUP('Tidal Device Database'!P39,'Tidal Device Database'!$A$93:$B$97,2,FALSE))) -> 0 | M60: =IF('Tidal Device Database'!Q39="",0,(VLOOKUP('Tidal Device Database'!Q39,'Tidal Device Database'!$A$99:$B$103,2,FALSE))) -> 3 | N60: =IF('Tidal Device Database'!R39="",0,(VLOOKUP('Tidal Device Database'!R39,'Tidal Device Database'!$A$115:$B$119,2,FALSE))) -> 3 | O60: =IF('Tidal Device Database'!S39="",0,(VLOOKUP('Tidal Device Database'!S39,'Tidal Device Database'!$A$105:$B$109,2,FALSE))) -> 4 | P60: 128
A61: ='Tidal Device Database'!A40 -> 39 | B61: 125 | C61: ='Tidal Device Database'!B40 -> ENC-025H | D61: ='Tidal Device Database'!C40 -> Vertical Axis | E61: =IF('Tidal Device Database'!I40="",0,(VLOOKUP('Tidal Device Database'!I40,'Tidal Device Database'!$A$131:$B$135,2,FALSE))) -> 5 | F61: =IF('Tidal Device Database'!J40="",0,(VLOOKUP('Tidal Device Database'!J40,'Tidal Device Database'!$A$137:$B$141,2,FALSE))) -> 2 | G61: =IF('Tidal Device Database'!K40="",0,(VLOOKUP('Tidal Device Database'!K40,'Tidal Device Database'!$A$143:$B$147,2,FALSE))) -> 5 | H61: =IF('Tidal Device Database'!L40="",0,(VLOOKUP('Tidal Device Database'!L40,'Tidal Device Database'!$A$69:$B$73,2,FALSE))) -> 5 | I61: =IF('Tidal Device Database'!M40="",0,(VLOOKUP('Tidal Device Database'!M40,'Tidal Device Database'!$A$75:$B$79,2,FALSE))) -> 4 | J61: =IF('Tidal Device Database'!N40="",0,(VLOOKUP('Tidal Device Database'!N40,'Tidal Device Database'!$A$81:$B$85,2,FALSE))) -> 5 | K61: =IF('Tidal Device Database'!O40="",0,(VLOOKUP('Tidal Device Database'!O40,'Tidal Device Database'!$A$87:$B$91,2,FALSE))) -> 0 | L61: =IF('Tidal Device Database'!P40="",0,(VLOOKUP('Tidal Device Database'!P40,'Tidal Device Database'!$A$93:$B$97,2,FALSE))) -> 0 | M61: =IF('Tidal Device Database'!Q40="",0,(VLOOKUP('Tidal Device Database'!Q40,'Tidal Device Database'!$A$99:$B$103,2,FALSE))) -> 3 | N61: =IF('Tidal Device Database'!R40="",0,(VLOOKUP('Tidal Device Database'!R40,'Tidal Device Database'!$A$115:$B$119,2,FALSE))) -> 3 | O61: =IF('Tidal Device Database'!S40="",0,(VLOOKUP('Tidal Device Database'!S40,'Tidal Device Database'!$A$105:$B$109,2,FALSE))) -> 4 | P61: 125
A62: ='Tidal Device Database'!A41 -> 40 | B62: 117 | C62: ='Tidal Device Database'!B41 -> ENC-125H | D62: ='Tidal Device Database'!C41 -> Vertical Axis | E62: =IF('Tidal Device Database'!I41="",0,(VLOOKUP('Tidal Device Database'!I41,'Tidal Device Database'!$A$131:$B$135,2,FALSE))) -> 4 | F62: =IF('Tidal Device Database'!J41="",0,(VLOOKUP('Tidal Device Database'!J41,'Tidal Device Database'!$A$137:$B$141,2,FALSE))) -> 2 | G62: =IF('Tidal Device Database'!K41="",0,(VLOOKUP('Tidal Device Database'!K41,'Tidal Device Database'!$A$143:$B$147,2,FALSE))) -> 5 | H62: =IF('Tidal Device Database'!L41="",0,(VLOOKUP('Tidal Device Database'!L41,'Tidal Device Database'!$A$69:$B$73,2,FALSE))) -> 5 | I62: =IF('Tidal Device Database'!M41="",0,(VLOOKUP('Tidal Device Database'!M41,'Tidal Device Database'!$A$75:$B$79,2,FALSE))) -> 4 | J62: =IF('Tidal Device Database'!N41="",0,(VLOOKUP('Tidal Device Database'!N41,'Tidal Device Database'!$A$81:$B$85,2,FALSE))) -> 5 | K62: =IF('Tidal Device Database'!O41="",0,(VLOOKUP('Tidal Device Database'!O41,'Tidal Device Database'!$A$87:$B$91,2,FALSE))) -> 0 | L62: =IF('Tidal Device Database'!P41="",0,(VLOOKUP('Tidal Device Database'!P41,'Tidal Device Database'!$A$93:$B$97,2,FALSE))) -> 0 | M62: =IF('Tidal Device Database'!Q41="",0,(VLOOKUP('Tidal Device Database'!Q41,'Tidal Device Database'!$A$99:$B$103,2,FALSE))) -> 3 | N62: =IF('Tidal Device Database'!R41="",0,(VLOOKUP('Tidal Device Database'!R41,'Tidal Device Database'!$A$115:$B$119,2,FALSE))) -> 3 | O62: =IF('Tidal Device Database'!S41="",0,(VLOOKUP('Tidal Device Database'!S41,'Tidal Device Database'!$A$105:$B$109,2,FALSE))) -> 3 | P62: 117
A63: ='Tidal Device Database'!A42 -> 41 | B63: 110 | C63: ='Tidal Device Database'!B42 -> ENC-250H | D63: ='Tidal Device Database'!C42 -> Vertical Axis | E63: =IF('Tidal Device Database'!I42="",0,(VLOOKUP('Tidal Device Database'!I42,'Tidal Device Database'!$A$131:$B$135,2,FALSE))) -> 4 | F63: =IF('Tidal Device Database'!J42="",0,(VLOOKUP('Tidal Device Database'!J42,'Tidal Device Database'!$A$137:$B$141,2,FALSE))) -> 2 | G63: =IF('Tidal Device Database'!K42="",0,(VLOOKUP('Tidal Device Database'!K42,'Tidal Device Database'!$A$143:$B$147,2,FALSE))) -> 4 | H63: =IF('Tidal Device Database'!L42="",0,(VLOOKUP('Tidal Device Database'!L42,'Tidal Device Database'!$A$69:$B$73,2,FALSE))) -> 5 | I63: =IF('Tidal Device Database'!M42="",0,(VLOOKUP('Tidal Device Database'!M42,'Tidal Device Database'!$A$75:$B$79,2,FALSE))) -> 4 | J63: =IF('Tidal Device Database'!N42="",0,(VLOOKUP('Tidal Device Database'!N42,'Tidal Device Database'!$A$81:$B$85,2,FALSE))) -> 5 | K63: =IF('Tidal Device Database'!O42="",0,(VLOOKUP('Tidal Device Database'!O42,'Tidal Device Database'!$A$87:$B$91,2,FALSE))) -> 0 | L63: =IF('Tidal Device Database'!P42="",0,(VLOOKUP('Tidal Device Database'!P42,'Tidal Device Database'!$A$93:$B$97,2,FALSE))) -> 0 | M63: =IF('Tidal Device Database'!Q42="",0,(VLOOKUP('Tidal Device Database'!Q42,'Tidal Device Database'!$A$99:$B$103,2,FALSE))) -> 3 | N63: =IF('Tidal Device Database'!R42="",0,(VLOOKUP('Tidal Device Database'!R42,'Tidal Device Database'!$A$115:$B$119,2,FALSE))) -> 2 | O63: =IF('Tidal Device Database'!S42="",0,(VLOOKUP('Tidal Device Database'!S42,'Tidal Device Database'!$A$105:$B$109,2,FALSE))) -> 3 | P63: 110
A64: ='Tidal Device Database'!A43 -> 42 | B64: 110 | C64: ='Tidal Device Database'!B43 -> EC-OG | D64: ='Tidal Device Database'!C43 -> Vertical Axis | E64: =IF('Tidal Device Database'!I43="",0,(VLOOKUP('Tidal Device Database'!I43,'Tidal Device Database'!$A$131:$B$135,2,FALSE))) -> 0 | F64: =IF('Tidal Device Database'!J43="",0,(VLOOKUP('Tidal Device Database'!J43,'Tidal Device Database'!$A$137:$B$141,2,FALSE))) -> 5 | G64: =IF('Tidal Device Database'!K43="",0,(VLOOKUP('Tidal Device Database'!K43,'Tidal Device Database'!$A$143:$B$147,2,FALSE))) -> 2 | H64: =IF('Tidal Device Database'!L43="",0,(VLOOKUP('Tidal Device Database'!L43,'Tidal Device Database'!$A$69:$B$73,2,FALSE))) -> 4 | I64: =IF('Tidal Device Database'!M43="",0,(VLOOKUP('Tidal Device Database'!M43,'Tidal Device Database'!$A$75:$B$79,2,FALSE))) -> 4 | J64: =IF('Tidal Device Database'!N43="",0,(VLOOKUP('Tidal Device Database'!N43,'Tidal Device Database'!$A$81:$B$85,2,FALSE))) -> 4 | K64: =IF('Tidal Device Database'!O43="",0,(VLOOKUP('Tidal Device Database'!O43,'Tidal Device Database'!$A$87:$B$91,2,FALSE))) -> 5 | L64: =IF('Tidal Device Database'!P43="",0,(VLOOKUP('Tidal Device Database'!P43,'Tidal Device Database'!$A$93:$B$97,2,FALSE))) -> 2 | M64: =IF('Tidal Device Database'!Q43="",0,(VLOOKUP('Tidal Device Database'!Q43,'Tidal Device Database'!$A$99:$B$103,2,FALSE))) -> 3 | N64: =IF('Tidal Device Database'!R43="",0,(VLOOKUP('Tidal Device Database'!R43,'Tidal Device Database'!$A$115:$B$119,2,FALSE))) -> 3 | O64: =IF('Tidal Device Database'!S43="",0,(VLOOKUP('Tidal Device Database'!S43,'Tidal Device Database'!$A$105:$B$109,2,FALSE))) -> 3 | P64: 110
A67: No. | B67: Score | D67: Criteria | E67: Captial Energy Cost | F67: Capital Power Cost | G67: Lifetime Energy Cost | H67: Specific Energy | I67: Specific Power | J67: Energy Density | K67: Power Density | L67: Environmental Impact | M67: Cycle Life | N67: Lifetime | O67: Scalability | P67: Power Regulation | Q67: Technical Maturity | R67: Self Discharge Rate | S67: Efficiency | T67: Score
C68: Name | D68: Type | E68: 2 | F68: 2 | G68: 3 | H68: 1 | I68: 1 | J68: 3 | K68: 3 | L68: 3 | M68: 4 | N68: 4 | O68: 3 | P68: 5 | Q68: 4 | R68: 4 | S68: 3
A69: 1 | B69: =T69 -> 171 | C69: Pumped Hydro | D69: Mechanical Storage | E69: 5 | F69: 3 | G69: 5 | H69: 1 | I69: 1 | J69: 1 | K69: 1 | L69: 2 | M69: 5 | N69: 5 | O69: 3 | P69: 5 | Q69: 5 | R69: 5 | S69: 4 | T69: =SUMPRODUCT($E$68:$S$68,E69:S69) -> 171
A70: 2 | B70: 167 | C70: Compressed Air | D70: Mechanical Storage | E70: 5 | F70: 4 | G70: 5 | H70: 1 | I70: 1 | J70: 1 | K70: 1 | L70: 4 | M70: 5 | N70: 5 | O70: 4 | P70: 5 | Q70: 2 | R70: 5 | S70: 3 | T70: 167
A71: 3 | B71: 135 | C71: Lead Acid Battery | D71: Battery Storage | E71: 4 | F71: 5 | G71: 4 | H71: 1 | I71: 3 | J71: 2 | K71: 4 | L71: 1 | M71: 2 | N71: 3 | O71: 5 | P71: 1 | Q71: 5 | R71: 2 | S71: 4 | T71: 135
A72: 4 | B72: 131 | C72: Nickel Iron | D72: Battery Storage | E72: 3 | F72: 1 | G72: 4 | H72: 2 | I72: 2 | J72: 2 | K72: 2 | L72: 5 | M72: 3 | N72: 5 | O72: 5 | P72: 1 | Q72: 3 | R72: 1 | S72: 4 | T72: 131
A73: 5 | B73: 138 | C73: Nickel Zinc | D73: Battery Storage | E73: 4 | F73: 5 | G73: 4 | H73: 2 | I73: 4 | J73: 3 | K73: 5 | L73: 5 | M73: 1 | N73: 2 | O73: 5 | P73: 1 | Q73: 3 | R73: 1 | S73: 5 | T73: 138
A74: 6 | B74: 127 | C74: Nickel Cadmium | D74: Battery Storage | E74: 2 | F74: 4 | G74: 2 | H74: 2 | I74: 4 | J74: 2 | K74: 3 | L74: 1 | M74: 3 | N74: 4 | O74: 5 | P74: 1 | Q74: 5 | R74: 2 | S74: 3 | T74: 127
A75: 7 | B75: 141 | C75: Lithium Ion | D75: Battery Storage | E75: 2 | F75: 3 | G75: 2 | H75: 3 | I75: 5 | J75: 3 | K75: 5 | L75: 2 | M75: 2 | N75: 4 | O75: 5 | P75: 1 | Q75: 4 | R75: 3 | S75: 5 | T75: 141
A76: 8 | B76: 133 | C76: Zinc Manganese | D76: Battery Storage | E76: 4 | F76: 2 | G76: 2 | H76: 3 | I76: 1 | J76: 4 | K76: 2 | L76: 3 | M76: 1 | N76: 2 | O76: 5 | P76: 1 | Q76: 5 | R76: 5 | S76: 4 | T76: 133
A77: 9 | B77: 128 | C77: Zinc Silver | D77: Battery Storage | E77: 1 | F77: 1 | G77: 1 | H77: 3 | I77: 2 | J77: 4 | K77: 4 | L77: 5 | M77: 1 | N77: 2 | O77: 5 | P77: 1 | Q77: 5 | R77: 4 | S77: 3 | T77: 128
A78: 10 | B78: 147 | C78: Zinc Air | D78: Battery Storage | E78: 4 | F78: 3 | G78: 4 | H78: 4 | I78: 3 | J78: 5 | K78: 3 | L78: 5 | M78: 1 | N78: 3 | O78: 5 | P78: 1 | Q78: 4 | R78: 5 | S78: 1 | T78: 147
A79: 11 | B79: 137 | C79: Vanadium Redox | D79: Flow Battery | E79: 4 | F79: 3 | G79: 3 | H79: 1 | I79: 3 | J79: 1 | K79: 2 | L79: 4 | M79: 4 | N79: 4 | O79: 4 | P79: 1 | Q79: 2 | R79: 5 | S79: 4 | T79: 137
A80: 12 | B80: 112 | C80: Solid Oxide | D80: Fuel Cell | E80: 5 | F80: 2 | G80: 3 | H80: 5 | I80: 2 | J80: 3 | K80: 1 | L80: 4 | M80: 0 | N80: 1 | O80: 5 | P80: 1 | Q80: 2 | R80: 5 | S80: 2 | T80: 112
A84: No. | B84: Score | D84: Criteria | E84: ='Wave Device Database'!H2 -> Distance from Shore | F84: ='Wave Device Database'!I2 -> Visual Impact | G84: ='Wave Device Database'!J2 -> Access Complexity | H84: ='Wave Device Database'!K2 -> Capital Cost | I84: ='Wave Device Database'!L2 -> Technology Readiness Level | J84: ='Wave Device Database'!M2 -> Lifespan | K84: ='Wave Device Database'!N2 -> Efficiency | L84: ='Wave Device Database'!O2 -> Scale (kW) | M84: ='Wave Device Database'!P2 -> Shore Connection | N84: ='Wave Device Database'!Q2 -> Planned Inspection/Maintenance Period | O84: ='Wave Device Database'!R2 -> Primary Attachment | P84: ='Wave Device Database'!S2 -> Installation Complexity | Q84: ='Wave Device Database'!T2 -> Maintenanc Complexity | R84: Score
C85: Name | D85: Type | E85: 1 | F85: 2 | G85: 4 | H85: 3 | I85: 5 | J85: 3 | K85: 3 | L85: 3 | M85: 4 | N85: 3 | O85: 4 | P85: 3 | Q85: 3
A86: 1 | B86: =R86 -> 181 | C86: ='Wave Device Database'!B3 -> Yam Pro Energy | D86: ='Wave Device Database'!C3 -> Shore based | E86: =IF('Wave Device Database'!H3="",0,VLOOKUP('Wave Device Database'!H3,'Wave Device Database'!$B$24:$C$28,2,FALSE)) -> 5 | F86: =IF('Wave Device Database'!I3="",0,VLOOKUP('Wave Device Database'!I3,'Wave Device Database'!$B$30:$C$34,2,FALSE)) -> 2 | G86: =IF('Wave Device Database'!J3="",0,VLOOKUP('Wave Device Database'!J3,'Wave Device Database'!$B$36:$C$40,2,FALSE)) -> 5 | H86: =IF('Wave Device Database'!K3="",0,VLOOKUP('Wave Device Database'!K3,'Wave Device Database'!$B$42:$C$46,2,FALSE)) -> 5 | I86: =IF('Wave Device Database'!L3="",0,VLOOKUP('Wave Device Database'!L3,'Wave Device Database'!$B$48:$C$52,2,FALSE)) -> 5 | J86: =IF('Wave Device Database'!M3="",0,VLOOKUP('Wave Device Database'!M3,'Wave Device Database'!$B$54:$C$58,2,FALSE)) -> 5 | K86: =IF('Wave Device Database'!N3="",0,VLOOKUP('Wave Device Database'!N3,'Wave Device Database'!$B$60:$C$64,2,FALSE)) -> 5 | L86: =IF('Wave Device Database'!O3="",0,VLOOKUP('Wave Device Database'!O3,'Wave Device Database'!$B$66:$C$70,2,FALSE)) -> 5 | M86: =IF('Wave Device Database'!P3="",0,VLOOKUP('Wave Device Database'!P3,'Wave Device Database'!$B$72:$C$76,2,FALSE)) -> 5 | N86: =IF('Wave Device Database'!Q3="",0,VLOOKUP('Wave Device Database'!Q3,'Wave Device Database'!$B$78:$C$82,2,FALSE)) -> 1 | O86: =IF('Wave Device Database'!R3="",0,VLOOKUP('Wave Device Database'!R3,'Wave Device Database'!$B$84:$C$88,2,FALSE)) -> 5 | P86: =IF('Wave Device Database'!S3="",0,VLOOKUP('Wave Device Database'!S3,'Wave Device Database'!$B$90:$C$94,2,FALSE)) -> 5 | Q86: =IF('Wave Device Database'!T3="",0,VLOOKUP('Wave Device Database'!T3,'Wave Device Database'!$B$96:$C$100,2,FALSE)) -> 3 | R86: =SUMPRODUCT($E$85:$Q$85,E86:Q86) -> 181
A87: 2 | B87: =R87 -> 130 | C87: ='Wave Device Database'!B4 -> Wave El Buoy | D87: ='Wave Device Database'!C4 -> Point Absorber | E87: =IF('Wave Device Database'!H4="",0,VLOOKUP('Wave Device Database'!H4,'Wave Device Database'!$B$24:$C$28,2,FALSE)) -> 1 | F87: =IF('Wave Device Database'!I4="",0,VLOOKUP('Wave Device Database'!I4,'Wave Device Database'!$B$30:$C$34,2,FALSE)) -> 3 | G87: =IF('Wave Device Database'!J4="",0,VLOOKUP('Wave Device Database'!J4,'Wave Device Database'!$B$36:$C$40,2,FALSE)) -> 3 | H87: =IF('Wave Device Database'!K4="",0,VLOOKUP('Wave Device Database'!K4,'Wave Device Database'!$B$42:$C$46,2,FALSE)) -> 3 | I87: =IF('Wave Device Database'!L4="",0,VLOOKUP('Wave Device Database'!L4,'Wave Device Database'!$B$48:$C$52,2,FALSE)) -> 5 | J87: =IF('Wave Device Database'!M4="",0,VLOOKUP('Wave Device Database'!M4,'Wave Device Database'!$B$54:$C$58,2,FALSE)) -> 5 | K87: =IF('Wave Device Database'!N4="",0,VLOOKUP('Wave Device Database'!N4,'Wave Device Database'!$B$60:$C$64,2,FALSE)) -> 3 | L87: =IF('Wave Device Database'!O4="",0,VLOOKUP('Wave Device Database'!O4,'Wave Device Database'!$B$66:$C$70,2,FALSE)) -> 3 | M87: =IF('Wave Device Database'!P4="",0,VLOOKUP('Wave Device Database'!P4,'Wave Device Database'!$B$72:$C$76,2,FALSE)) -> 1 | N87: =IF('Wave Device Database'!Q4="",0,VLOOKUP('Wave Device Database'!Q4,'Wave Device Database'!$B$78:$C$82,2,FALSE)) -> 3 | O87: =IF('Wave Device Database'!R4="",0,VLOOKUP('Wave Device Database'!R4,'Wave Device Database'!$B$84:$C$88,2,FALSE)) -> 4 | P87: =IF('Wave Device Database'!S4="",0,VLOOKUP('Wave Device Database'!S4,'Wave Device Database'!$B$90:$C$94,2,FALSE)) -> 2 | Q87: =IF('Wave Device Database'!T4="",0,VLOOKUP('Wave Device Database'!T4,'Wave Device Database'!$B$96:$C$100,2,FALSE)) -> 3 | R87: =SUMPRODUCT($E$85:$Q$85,E87:Q87) -> 130
A88: 3 | B88: =R88 -> 140 | C88: ='Wave Device Database'!B5 -> Rotary Wave | D88: ='Wave Device Database'!C5 -> Attenuator | E88: =IF('Wave Device Database'!H5="",0,VLOOKUP('Wave Device Database'!H5,'Wave Device Database'!$B$24:$C$28,2,FALSE)) -> 2 | F88: =IF('Wave Device Database'!I5="",0,VLOOKUP('Wave Device Database'!I5,'Wave Device Database'!$B$30:$C$34,2,FALSE)) -> 3 | G88: =IF('Wave Device Database'!J5="",0,VLOOKUP('Wave Device Database'!J5,'Wave Device Database'!$B$36:$C$40,2,FALSE)) -> 3 | H88: =IF('Wave Device Database'!K5="",0,VLOOKUP('Wave Device Database'!K5,'Wave Device Database'!$B$42:$C$46,2,FALSE)) -> 2 | I88: =IF('Wave Device Database'!L5="",0,VLOOKUP('Wave Device Database'!L5,'Wave Device Database'!$B$48:$C$52,2,FALSE)) -> 4 | J88: =IF('Wave Device Database'!M5="",0,VLOOKUP('Wave Device Database'!M5,'Wave Device Database'!$B$54:$C$58,2,FALSE)) -> 5 | K88: =IF('Wave Device Database'!N5="",0,VLOOKUP('Wave Device Database'!N5,'Wave Device Database'!$B$60:$C$64,2,FALSE)) -> 5 | L88: =IF('Wave Device Database'!O5="",0,VLOOKUP('Wave Device Database'!O5,'Wave Device Database'!$B$66:$C$70,2,FALSE)) -> 4 | M88: =IF('Wave Device Database'!P5="",0,VLOOKUP('Wave Device Database'!P5,'Wave Device Database'!$B$72:$C$76,2,FALSE)) -> 3 | N88: =IF('Wave Device Database'!Q5="",0,VLOOKUP('Wave Device Database'!Q5,'Wave Device Database'!$B$78:$C$82,2,FALSE)) -> 1 | O88: =IF('Wave Device Database'!R5="",0,VLOOKUP('Wave Device Database'!R5,'Wave Device Database'!$B$84:$C$88,2,FALSE)) -> 4 | P88: =IF('Wave Device Database'!S5="",0,VLOOKUP('Wave Device Database'!S5,'Wave Device Database'!$B$90:$C$94,2,FALSE)) -> 4 | Q88: =IF('Wave Device Database'!T5="",0,VLOOKUP('Wave Device Database'!T5,'Wave Device Database'!$B$96:$C$100,2,FALSE)) -> 3 | R88: 140
A89: 4 | B89: =R89 -> 93 | C89: ='Wave Device Database'!B6 -> Electric Buoy | D89: ='Wave Device Database'!C6 -> Point Absorber | E89: =IF('Wave Device Database'!H6="",0,VLOOKUP('Wave Device Database'!H6,'Wave Device Database'!$B$24:$C$28,2,FALSE)) -> 1 | F89: =IF('Wave Device Database'!I6="",0,VLOOKUP('Wave Device Database'!I6,'Wave Device Database'!$B$30:$C$34,2,FALSE)) -> 2 | G89: =IF('Wave Device Database'!J6="",0,VLOOKUP('Wave Device Database'!J6,'Wave Device Database'!$B$36:$C$40,2,FALSE)) -> 3 | H89: =IF('Wave Device Database'!K6="",0,VLOOKUP('Wave Device Database'!K6,'Wave Device Database'!$B$42:$C$46,2,FALSE)) -> 4 | I89: =IF('Wave Device Database'!L6="",0,VLOOKUP('Wave Device Database'!L6,'Wave Device Database'!$B$48:$C$52,2,FALSE)) -> 1 | J89: =IF('Wave Device Database'!M6="",0,VLOOKUP('Wave Device Database'!M6,'Wave Device Database'!$B$54:$C$58,2,FALSE)) -> 5 | K89: =IF('Wave Device Database'!N6="",0,VLOOKUP('Wave Device Database'!N6,'Wave Device Database'!$B$60:$C$64,2,FALSE)) -> 3 | L89: =IF('Wave Device Database'!O6="",0,VLOOKUP('Wave Device Database'!O6,'Wave Device Database'!$B$66:$C$70,2,FALSE)) -> 1 | M89: =IF('Wave Device Database'!P6="",0,VLOOKUP('Wave Device Database'!P6,'Wave Device Database'!$B$72:$C$76,2,FALSE)) -> 1 | N89: =IF('Wave Device Database'!Q6="",0,VLOOKUP('Wave Device Database'!Q6,'Wave Device Database'!$B$78:$C$82,2,FALSE)) -> 1 | O89: =IF('Wave Device Database'!R6="",0,VLOOKUP('Wave Device Database'!R6,'Wave Device Database'!$B$84:$C$88,2,FALSE)) -> 4 | P89: =IF('Wave Device Database'!S6="",0,VLOOKUP('Wave Device Database'!S6,'Wave Device Database'!$B$90:$C$94,2,FALSE)) -> 2 | Q89: =IF('Wave Device Database'!T6="",0,VLOOKUP('Wave Device Database'!T6,'Wave Device Database'!$B$96:$C$100,2,FALSE)) -> 1 | R89: 93
A90: 5 | B90: =U90 -> 0 | C90: ='Wave Device Database'!B7 -> Wave Dragon | D90: ='Wave Device Database'!C7 -> Overtopping/Terminator Device | E90: =IF('Wave Device Database'!H7="",0,VLOOKUP('Wave Device Database'!H7,'Wave Device Database'!$B$24:$C$28,2,FALSE)) -> 3 | F90: =IF('Wave Device Database'!I7="",0,VLOOKUP('Wave Device Database'!I7,'Wave Device Database'!$B$30:$C$34,2,FALSE)) -> 3 | G90: =IF('Wave Device Database'!J7="",0,VLOOKUP('Wave Device Database'!J7,'Wave Device Database'!$B$36:$C$40,2,FALSE)) -> 3 | H90: =IF('Wave Device Database'!K7="",0,VLOOKUP('Wave Device Database'!K7,'Wave Device Database'!$B$42:$C$46,2,FALSE)) -> 0 | I90: =IF('Wave Device Database'!L7="",0,VLOOKUP('Wave Device Database'!L7,'Wave Device Database'!$B$48:$C$52,2,FALSE)) -> 5 | J90: =IF('Wave Device Database'!M7="",0,VLOOKUP('Wave Device Database'!M7,'Wave Device Database'!$B$54:$C$58,2,FALSE)) -> 4 | K90: =IF('Wave Device Database'!N7="",0,VLOOKUP('Wave Device Database'!N7,'Wave Device Database'!$B$60:$C$64,2,FALSE)) -> 5 | L90: =IF('Wave Device Database'!O7="",0,VLOOKUP('Wave Device Database'!O7,'Wave Device Database'!$B$66:$C$70,2,FALSE)) -> 2 | M90: =IF('Wave Device Database'!P7="",0,VLOOKUP('Wave Device Database'!P7,'Wave Device Database'!$B$72:$C$76,2,FALSE)) -> 2 | N90: =IF('Wave Device Database'!Q7="",0,VLOOKUP('Wave Device Database'!Q7,'Wave Device Database'!$B$78:$C$82,2,FALSE)) -> 0 | O90: =IF('Wave Device Database'!R7="",0,VLOOKUP('Wave Device Database'!R7,'Wave Device Database'!$B$84:$C$88,2,FALSE)) -> 4 | P90: =IF('Wave Device Database'!S7="",0,VLOOKUP('Wave Device Database'!S7,'Wave Device Database'!$B$90:$C$94,2,FALSE)) -> 4 | Q90: =IF('Wave Device Database'!T7="",0,VLOOKUP('Wave Device Database'!T7,'Wave Device Database'!$B$96:$C$100,2,FALSE)) -> 0 | R90: 115
A91: 6 | B91: 0 | C91: ='Wave Device Database'!B8 -> Limpet | D91: ='Wave Device Database'!C8 -> Oscillating Water Column | E91: =IF('Wave Device Database'!H8="",0,VLOOKUP('Wave Device Database'!H8,'Wave Device Database'!$B$24:$C$28,2,FALSE)) -> 5 | F91: =IF('Wave Device Database'!I8="",0,VLOOKUP('Wave Device Database'!I8,'Wave Device Database'!$B$30:$C$34,2,FALSE)) -> 1 | G91: =IF('Wave Device Database'!J8="",0,VLOOKUP('Wave Device Database'!J8,'Wave Device Database'!$B$36:$C$40,2,FALSE)) -> 5 | H91: =IF('Wave Device Database'!K8="",0,VLOOKUP('Wave Device Database'!K8,'Wave Device Database'!$B$42:$C$46,2,FALSE)) -> 0 | I91: =IF('Wave Device Database'!L8="",0,VLOOKUP('Wave Device Database'!L8,'Wave Device Database'!$B$48:$C$52,2,FALSE)) -> 5 | J91: =IF('Wave Device Database'!M8="",0,VLOOKUP('Wave Device Database'!M8,'Wave Device Database'!$B$54:$C$58,2,FALSE)) -> 0 | K91: =IF('Wave Device Database'!N8="",0,VLOOKUP('Wave Device Database'!N8,'Wave Device Database'!$B$60:$C$64,2,FALSE)) -> 1 | L91: =IF('Wave Device Database'!O8="",0,VLOOKUP('Wave Device Database'!O8,'Wave Device Database'!$B$66:$C$70,2,FALSE)) -> 4 | M91: =IF('Wave Device Database'!P8="",0,VLOOKUP('Wave Device Database'!P8,'Wave Device Database'!$B$72:$C$76,2,FALSE)) -> 5 | N91: =IF('Wave Device Database'!Q8="",0,VLOOKUP('Wave Device Database'!Q8,'Wave Device Database'!$B$78:$C$82,2,FALSE)) -> 0 | O91: =IF('Wave Device Database'!R8="",0,VLOOKUP('Wave Device Database'!R8,'Wave Device Database'!$B$84:$C$88,2,FALSE)) -> 5 | P91: =IF('Wave Device Database'!S8="",0,VLOOKUP('Wave Device Database'!S8,'Wave Device Database'!$B$90:$C$94,2,FALSE)) -> 5 | Q91: =IF('Wave Device Database'!T8="",0,VLOOKUP('Wave Device Database'!T8,'Wave Device Database'!$B$96:$C$100,2,FALSE)) -> 0 | R91: 122

Sheet Tidal Stream 1
A1: Tidal Stream Resource
A3: =Input!A45 -> Site Name | B3: =IF(Input!B45<>"",Input!B45,"-") -> Eigg - Castle Island | C3: =Input!C45 -> 0 | I3: Plots:
A4: =Input!A46 -> Peak Flow (Springs) | B4: =IF((AND(Input!B46<>"",Input!B46<>"[Enter Value]")),Input!B46,"0") -> 1.2 | C4: =Input!C46 -> m/s
A5: =Input!A47 -> Peak Flow (Neaps) | B5: =IF((AND(Input!B47<>"",Input!B47<>"[Enter Value]")),Input!B47,"0") -> 0.76 | C5: =Input!C47 -> m/s
A6: =Input!A48 -> Lunar Cycle Period | B6: =IF((AND(Input!B48<>"",Input!B48<>"[Enter Value]")),Input!B48,"0") -> 28.74 | C6: =Input!C48 -> days
A7: =Input!A49 -> Tidal Period | B7: =IF((AND(Input!B49<>"",Input!B49<>"[Enter Value]")),Input!B49,"0") -> 12.4 | C7: =Input!C49 -> hours
A8: =Input!A50 -> Proximity to Grid Connection | B8: =IF(Input!B50<>"",Input!B50,"-") -> < 1 km
A9: =Input!A51 -> Average Water Depth | B9: =IF(Input!B51<>"",Input!B51,"-") -> 10 -15 m
A10: =Input!A52 -> Seabed Topography | B10: =IF(Input!B52<>"",Input!B52,"-") -> Moderate (Rocky, Gentle Gradient)
A11: =Input!A53 -> Accessibility | B11: =IF(Input!B53<>"",Input!B53,"-") -> Fully Accessible (Exisiting Infrastructure for Transport)
A13: Time Step | B13: 0.25 | C13: hours
A14: Period | B14: =B6/2 -> 14.37 | C14: days
B15: =B14*24 -> 344.88 | C15: hours
A16: Number of Steps | B16: =B15/B13*2 -> 2759.04 | C16: -
A18: No. | B18: Time | E18: Amplitude | F18: Current | G18: Power | H18: Energy
B19: Hours | C19: Day | D19: Time | E19: m/s | F19: m/s | G19: kW/(m^2) | H19: kWh/(m^2)
A20: 0 | B20: =A20*$B$13 -> 0 | C20: =ROUNDDOWN(A20*$B$1/24,0) -> 0 | D20: =MOD(B20,24)/24 -> 0 | E20: =IF(A20<>"",($B$4+$B$5)/2+($B$5-$B$4)/2*COS(2*PI()/$B$15*B20),"") -> 0.76 | F20: =IF(A20<>"",E20*COS(2*PI()/$B$7*B20),"") -> 0.76 | G20: =ABS(0.5*1.025*1*(F20^3)) -> 0.2249752 | H20: =G20*$B$13 -> 0.0562438
A21: =IF(IF(A20<>"",A20+1<=$B$16,0),A20+1,"") -> 1 | B21: =IF(A21<>"",A21*$B$13,"") -> 0.25 | C21: =IF(A21<>"",ROUNDDOWN(A21*$B$13/24,0),"") -> 0 | D21: =IF(A21<>"",MOD(B21,24)/24,"") -> 0.01041666667 | E21: =IF(A21<>"",($B$4+$B$5)/2+($B$5-$B$4)/2*COS(2*PI()/$B$15*B21),"") -> 0.7600022819 | F21: =IF(A21<>"",E21*COS(2*PI()/$B$7*B21),"") -> 0.7539125182 | G21: =ABS(0.5*1.025*1*(F21^3)) -> 0.2196123369 | H21: =G21*$B$13 -> 0.05490308422
A22: =IF(IF(A21<>"",A21+1<=$B$16,0),A21+1,"") -> 2 | B22: =IF(A22<>"",A22*$B$13,"") -> 0.5 | C22: =IF(A22<>"",ROUNDDOWN(A22*$B$13/24,0),"") -> 0 | D22: =IF(A22<>"",MOD(B22,24)/24,"") -> 0.02083333333 | E22: =IF(A22<>"",($B$4+$B$5)/2+($B$5-$B$4)/2*COS(2*PI()/$B$15*B22),"") -> 0.7600091275 | F22: =IF(A22<>"",E22*COS(2*PI()/$B$7*B22),"") -> 0.7357474465 | G22: =ABS(0.5*1.025*1*(F22^3)) -> 0.2041174623 | H22: 0.05102936557
A23: 3 | B23: 0.75 | C23: 0 | D23: 0.03125 | E23: 0.7600205368 | F23: 0.7057953512 | G23: 0.1801898195 | H23: 0.04504745488
A24: 4 | B24: 1 | C24: 0 | D24: 0.04166666667 | E24: 0.7600365094 | F24: 0.6645353501 | G24: 0.1504001033 | H24: 0.03760002583
A25: 5 | B25: 1.25 | C25: 0 | D25: 0.05208333333 | E25: 0.760057045 | F25: 0.6126274601 | G25: 0.1178374262 | H25: 0.02945935656
A26: 6 | B26: 1.5 | C26: 0 | D26: 0.0625 | E26: 0.7600821433 | F26: 0.5509020551 | G26: 0.08568741617 | H26: 0.02142185404
A27: 7 | B27: 1.75 | C27: 0 | D27: 0.07291666667 | E27: 0.7601118036 | F27: 0.4803466026 | G27: 0.05680126919 | H27: 0.0142003173
A28: 8 | B28: 2 | C28: 0 | D28: 0.08333333333 | E28: 0.7601460254 | F28: 0.40208989 | G28: 0.03331680372 | H28: 0.00832920093
A29: 9 | B29: 2.25 | C29: 0 | D29: 0.09375 | E29: 0.7601848079 | F29: 0.3173839931 | G29: 0.0163850937 | H29: 0.004096273425
A30: 10 | B30: 2.5 | C30: 0 | D30: 0.1041666667 | E30: 0.7602281505 | F30: 0.2275842733 | G30: 0.006041163825 | H30: 0.001510290956
A31: 11 | B31: 2.75 | C31: 0 | D31: 0.1145833333 | E31: 0.760276052 | F31: 0.1341277234 | G31: 0.001236657766 | H31: 0.0003091644416
A32: 12 | B32: 3 | C32: 0 | D32: 0.125 | E32: 0.7603285117 | F32: 0.03851000716 | G32: 2.926945715e-05 | H32: 7.317364288e-06
A33: 13 | B33: 3.25 | C33: 0 | D33: 0.1354166667 | E33: 0.7603855283 | F33: -0.05773844117 | G33: 9.864817008e-05 | H33: 2.466204252e-05
A34: 14 | B34: 3.5 | C34: 0 | D34: 0.1458333333 | E34: 0.7604471007 | F34: -0.153076876 | G34: 0.001838326472 | H34: 0.000459581618
A35: 15 | B35: 3.75 | C35: 0 | D35: 0.15625 | E35: 0.7605132276 | F35: -0.2459788675 | G35: 0.007627588634 | H35: 0.001906897158
A36: 16 | B36: 4 | C36: 0 | D36: 0.1666666667 | E36: 0.7605839077 | F36: -0.3349567047 | G36: 0.01926016023 | H36: 0.004815040056
A37: 17 | B37: 4.25 | C37: 0 | D37: 0.1770833333 | E37: 0.7606591394 | F37: -0.4185851832 | G37: 0.03758767161 | H37: 0.009396917903
A38: 18 | B38: 4.5 | C38: 0 | D38: 0.1875 | E38: 0.7607389213 | F38: -0.4955243998 | G38: 0.06235754407 | H38: 0.01558938602
A39: 19 | B39: 4.75 | C39: 0 | D39: 0.1979166667 | E39: 0.7608232516 | F39: -0.5645411888 | G39: 0.09221058347 | H39: 0.02305264587
A40: 20 | B40: 5 | C40: 0 | D40: 0.2083333333 | E40: 0.7609121286 | F40: -0.6245288571 | G40: 0.1248393218 | H40: 0.03120983045
A41: 21 | B41: 5.25 | C41: 0 | D41: 0.21875 | E41: 0.7610055505 | F41: -0.6745249046 | G41: 0.1572851922 | H41: 0.03932129805
A42: 22 | B42: 5.5 | C42: 0 | D42: 0.2291666667 | E42: 0.7611035153 | F42: -0.7137264443 | G42: 0.1863327674 | H42: 0.04658319184
A43: 23 | B43: 5.75 | C43: 0 | D43: 0.2395833333 | E43: 0.7612060211 | F43: -0.7415030771 | G43: 0.2089453654 | H43: 0.05223634135
A44: 24 | B44: 6 | C44: 0 | D44: 0.25 | E44: 0.7613130656 | F44: -0.7574070144 | G44: 0.2226803208 | H44: 0.0556700802
A45: 25 | B45: 6.25 | C45: 0 | D45: 0.2604166667 | E45: 0.7614246466 | F45: -0.7611802867 | G45: 0.226024994 | H45: 0.0565062485
A46: 26 | B46: 6.5 | C46: 0 | D46: 0.2708333333 | E46: 0.7615407619 | F46: -0.7527589208 | G46: 0.2186057609 | H46: 0.05465144022
A47: 27 | B47: 6.75 | C47: 0 | D47: 0.28125 | E47: 0.761661409 | F47: -0.7322740213 | G47: 0.2012402049 | H47: 0.05031005122
A48: 28 | B48: 7 | C48: 0 | D48: 0.2916666667 | E48: 0.7617865855 | F48: -0.7000497335 | G48: 0.1758249706 | H48: 0.04395624266
A49: 29 | B49: 7.25 | C49: 0 | D49: 0.3020833333 | E49: 0.7619162886 | F49: -0.6565981245 | G49: 0.1450750682 | H49: 0.03626876704
A50: 30 | B50: 7.5 | C50: 0 | D50: 0.3125 | E50: 0.7620505159 | F50: -0.6026110583 | G50: 0.1121515191 | H50: 0.02803787978
A51: 31 | B51: 7.75 | C51: 0 | D51: 0.3229166667 | E51: 0.7621892643 | F51: -0.5389491973 | G51: 0.08023010455 | H51: 0.02005752614
A52: 32 | B52: 8 | C52: 0 | D52: 0.3333333333 | E52: 0.7623325311 | F52: -0.466628303 | G52: 0.05207234081 | H52: 0.0130180852
A53: 33 | B53: 8.25 | C53: 0 | D53: 0.34375 | E53: 0.7624803134 | F53: -0.3868030531 | G53: 0.02965948118 | H53: 0.007414870294
A54: 34 | B54: 8.5 | C54: 0 | D54: 0.3541666667 | E54: 0.762632608 | F54: -0.3007486342 | G54: 0.01394135099 | H54: 0.003485337747
A55: 35 | B55: 8.75 | C55: 0 | D55: 0.3645833333 | E55: 0.7627894117 | F55: -0.209840402 | G55: 0.00473544938 | H55: 0.001183862345
A56: 36 | B56: 9 | C56: 0 | D56: 0.375 | E56: 0.7629507214 | F56: -0.1155319321 | G56: 0.0007903145519 | H56: 0.000197578638
A57: 37 | B57: 9.25 | C57: 0 | D57: 0.3854166667 | E57: 0.7631165337 | F57: -0.01933181313 | G57: 3.702641251e-06 | H57: 9.256603127e-07
A58: 38 | B58: 9.5 | C58: 0 | D58: 0.3958333333 | E58: 0.763286845 | F58: 0.07722044931 | G58: 0.0002359885014 | H58: 5.899712536e-05
A59: 39 | B59: 9.75 | C59: 0 | D59: 0.40625 | E59: 0.763461652 | F59: 0.1725790334 | G59: 0.00263425593 | H59: 0.0006585639826
A60: 40 | B60: 10 | C60: 0 | D60: 0.4166666667 | E60: 0.763640951 | F60: 0.2652165136 | G60: 0.009560829092 | H60: 0.002390207273
A61: 41 | B61: 10.25 | C61: 0 | D61: 0.4270833333 | E61: 0.7638247383 | F61: 0.3536482905 | G61: 0.02266775756 | H61: 0.005666939389
A62: 42 | B62: 10.5 | C62: 0 | D62: 0.4375 | E62: 0.76401301 | F62: 0.4364563485 | G62: 0.04261046902 | H62: 0.01065261725
A63: 43 | B63: 10.75 | C63: 0 | D63: 0.4479166667 | E63: 0.7642057622 | F63: 0.5123119606 | G63: 0.06891239684 | H63: 0.01722809921
A64: 44 | B64: 11 | C64: 0 | D64: 0.4583333333 | E64: 0.764402991 | F64: 0.5799969784 | G64: 0.0999933372 | H64: 0.0249983343
A65: 45 | B65: 11.25 | C65: 0 | D65: 0.46875 | E65: 0.7646046922 | F65: 0.6384233656 | G65: 0.1333583427 | H65: 0.03333958569
A66: 46 | B66: 11.5 | C66: 0 | D66: 0.4791666667 | E66: 0.7648108617 | F66: 0.6866506635 | G66: 0.1659210174 | H66: 0.04148025434
A67: 47 | B67: 11.75 | C67: 0 | D67: 0.4895833333 | E67: 0.7650214952 | F67: 0.7239011072 | G67: 0.1944158159 | H67: 0.04860395398
A68: 48 | B68: 12 | C68: 0 | D68: 0.5 | E68: 0.7652365883 | F68: 0.7495721504 | G68: 0.2158411255 | H68: 0.05396028137
A69: 49 | B69: 12.25 | C69: 0 | D69: 0.5104166667 | E69: 0.7654561366 | F69: 0.7632461985 | G69: 0.22787035 | H69: 0.05696758749
A70: 50 | B70: 12.5 | C70: 0 | D70: 0.5208333333 | E70: 0.7656801354 | F70: 0.7646973905 | G70: 0.2291726012 | H70: 0.05729315031
A71: 51 | B71: 12.75 | C71: 0 | D71: 0.53125 | E71: 0.7659085803 | F71: 0.7538953224 | G71: 0.21959731 | H71: 0.05489932751
A72: 52 | B72: 13 | C72: 0 | D72: 0.5416666667 | E72: 0.7661414663 | F72: 0.731005649 | G72: 0.2001963103 | H72: 0.05004907757
A73: 53 | B73: 13.25 | C73: 0 | D73: 0.5520833333 | E73: 0.7663787888 | F73: 0.6963875531 | G73: 0.1730799935 | H73: 0.04326999836
A74: 54 | B74: 13.5 | C74: 0 | D74: 0.5625 | E74: 0.7666205427 | F74: 0.6505881212 | G74: 0.1411276981 | H74: 0.03528192454
A75: 55 | B75: 13.75 | C75: 0 | D75: 0.5729166667 | E75: 0.766866723 | F75: 0.594333713 | G75: 0.1075932354 | H75: 0.02689830885
A76: 56 | B76: 14 | C76: 0 | D76: 0.5833333333 | E76: 0.7671173247 | F76: 0.5285184598 | G76: 0.07566139631 | H76: 0.01891534908
A77: 57 | B77: 14.25 | C77: 0 | D77: 0.59375 | E77: 0.7673723426 | F77: 0.4541900759 | G77: 0.04801830122 | H77: 0.0120045753
A78: 58 | B78: 14.5 | C78: 0 | D78: 0.6041666667 | E78: 0.7676317713 | F78: 0.3725332051 | G78: 0.02649651989 | H78: 0.006624129971
A79: 59 | B79: 14.75 | C79: 0 | D79: 0.6145833333 | E79: 0.7678956055 | F79: 0.2848505684 | G79: 0.01184527481 | H79: 0.002961318702
A80: 60 | B80: 15 | C80: 0 | D80: 0.625 | E80: 0.7681638396 | F80: 0.1925422116 | G80: 0.003658236154 | H80: 0.0009145590385
A81: 61 | B81: 15.25 | C81: 0 | D81: 0.6354166667 | E81: 0.7684364682 | F81: 0.09708318368 | G81: 0.000468949308 | H81: 0.000117237327
A82: 62 | B82: 15.5 | C82: 0 | D82: 0.6458333333 | E82: 0.7687134856 | F82: -4.473076941e-16 | G82: 4.586833494e-47 | H82: 1.146708373e-47
A83: 63 | B83: 15.75 | C83: 0 | D83: 0.65625 | E83: 0.768994886 | F83: -0.09715373341 | G83: 0.0004699723984 | H83: 0.0001174930996
A84: 64 | B84: 16 | C84: 0 | D84: 0.6666666667 | E84: 0.7692806637 | F84: -0.1928221464 | G84: 0.003674215358 | H84: 0.0009185538396
A85: 65 | B85: 16.25 | C85: 0 | D85: 0.6770833333 | E85: 0.7695708125 | F85: -0.2854719858 | G85: 0.01192296744 | H85: =G85*$B$13 -> 0.002980741859
A86: =IF(IF(A85<>"",A85+1<=$B$16,0),A85+1,"") -> 66 | B86: =IF(A86<>"",A86*$B$13,"") -> 16.5 | C86: =IF(A86<>"",ROUNDDOWN(A86*$B$13/24,0),"") -> 0 | D86: =IF(A86<>"",MOD(B86,24)/24,"") -> 0.6875 | E86: =IF(A86<>"",($B$4+$B$5)/2+($B$5-$B$4)/2*COS(2*PI()/$B$15*B86),"") -> 0.7698653267 | F86: =IF(A86<>"",E86*COS(2*PI()/$B$7*B86),"") -> -0.3736171539 | G86: =ABS(0.5*1.025*1*(F86^3)) -> 0.02672848192 | H86: 0.006682120481
A87: 67 | B87: 16.75 | C87: 0 | D87: 0.6979166667 | E87: 0.7701642 | F87: -0.4558425122 | G87: 0.04854431149 | H87: 0.01213607787
A88: 68 | B88: 17 | C88: 0 | D88: 0.7083333333 | E88: 0.7704674262 | F88: -0.5308265689 | G88: 0.07665700118 | H88: 0.0191642503
A89: 69 | B89: 17.25 | C89: 0 | D89: 0.71875 | E89: 0.770774999 | F89: -0.597362688 | G89: 0.1092466548 | H89: 0.0273116637
A90: 70 | B90: 17.5 | C90: 0 | D90: 0.7291666667 | E90: 0.7710869121 | F90: -0.65437848 | G90: 0.1436087479 | H90: 0.03590218697
A91: 71 | B91: 17.75 | C91: 0 | D91: 0.7395833333 | E91: 0.7714031591 | F91: -0.7009530617 | G91: 0.1765064909 | H91: 0.04412662271
A92: 72 | B92: 18 | C92: 0 | D92: 0.75 | E92: 0.7717237332 | F92: -0.736331909 | G92: 0.2046042888 | H92: 0.0511510722
A93: 73 | B93: 18.25 | C93: 0 | D93: 0.7604166667 | E93: 0.772048628 | F93: -0.7599390636 | G93: 0.2249210892 | H93: 0.0562302723
A94: 74 | B94: 18.5 | C94: 0 | D94: 0.7708333333 | E94: 0.7723778366 | F94: -0.7713864952 | G94: 0.2352393462 | H94: 0.05880983654
A95: 75 | B95: 18.75 | C95: 0 | D95: 0.78125 | E95: 0.7727113522 | F95: -0.7704804676 | G95: 0.2344114223 | H95: 0.05860285559
A96: 76 | B96: 19 | C96: 0 | D96: 0.7916666667 | E96: 0.7730491679 | F96: -0.757224806 | G96: 0.2225196497 | H96: 0.05562991243
A97: 77 | B97: 19.25 | C97: 0 | D97: 0.8020833333 | E97: 0.7733912767 | F97: -0.7318210076 | G97: 0.2008669505 | H97: 0.05021673762
A98: 78 | B98: 19.5 | C98: 0 | D98: 0.8125 | E98: 0.7737376715 | F98: -0.6946651939 | G98: 0.1717989429 | H98: 0.04294973573
A99: 79 | B99: 19.75 | C99: 0 | D99: 0.8229166667 | E99: 0.7740883451 | F99: -0.6463419485 | G99: 0.138382413 | H99: 0.03459560325
A100: 80 | B100: 20 | C100: 0 | D100: 0.8333333333 | E100: 0.7744432903 | F100: -0.5876151371 | G100: 0.1039855023 | H100: 0.02599637557
A101: 81 | B101: 20.25 | C101: 0 | D101: 0.84375 | E101: 0.7748024996 | F101: -0.5194158528 | G101: 0.07181901934 | H101: 0.01795475484
A102: 82 | B102: 20.5 | C102: 0 | D102: 0.8541666667 | E102: 0.7751659656 | F102: -0.4428276776 | G102: 0.04450390723 | H102: 0.01112597681
A103: 83 | B103: 20.75 | C103: 0 | D103: 0.8645833333 | E103: 0.7755336808 | F103: -0.3590694916 | G103: 0.02372626573 | H103: 0.005931566433
A104: 84 | B104: 21 | C104: 0 | D104: 0.875 | E104: 0.7759056376 | F104: -0.2694761037 | G104: 0.0100289311 | H104: 0.002507232774
A105: 85 | B105: 21.25 | C105: 0 | D105: 0.8854166667 | E105: 0.7762818282 | F105: -0.1754770095 | G105: 0.002769201404 | H105: 0.0006923003511
A106: 86 | B106: 21.5 | C106: 0 | D106: 0.8958333333 | E106: 0.7766622448 | F106: -0.07857361606 | G106: 0.000248613147 | H106: 6.215328674e-05
A107: 87 | B107: 21.75 | C107: 0 | D107: 0.90625 | E107: 0.7770468796 | F107: 0.01968470661 | G107: 3.909135356e-06 | H107: 9.772838391e-07
A108: 88 | B108: 22 | C108: 0 | D108: 0.9166666667 | E108: 0.7774357245 | F108: 0.1177253639 | G108: 0.000836188123 | H108: 0.0002090470307
A109: 89 | B109: 22.25 | C109: 0 | D109: 0.9270833333 | E109: 0.7778287716 | F109: 0.2139776714 | G109: 0.005021104281 | H109: 0.00125527607
A110: 90 | B110: 22.5 | C110: 0 | D110: 0.9375 | E110: 0.7782260125 | F110: 0.3068979846 | G110: 0.01481412413 | H110: 0.003703531031
A111: 91 | B111: 22.75 | C111: 0 | D111: 0.9479166667 | E111: 0.7786274392 | F111: 0.394994422 | G111: 0.03158397287 | H111: 0.007895993217
A112: 92 | B112: 23 | C112: 0 | D112: 0.9583333333 | E112: 0.7790330433 | F112: 0.4768507864 | G112: 0.05557012571 | H112: 0.01389253143
A113: 93 | B113: 23.25 | C113: 0 | D113: 0.96875 | E113: 0.7794428163 | F113: 0.5511493009 | G113: 0.08580283794 | H113: 0.02145070948
A114: 94 | B114: 23.5 | C114: 0 | D114: 0.9791666667 | E114: 0.7798567497 | F114: 0.616691796 | G114: 0.1201983158 | H114: 0.03004957895
A115: 95 | B115: 23.75 | C115: 0 | D115: 0.9895833333 | E115: 0.7802748351 | F115: 0.6724190057 | G115: 0.1558166311 | H115: 0.03895415777
A116: 96 | B116: 24 | C116: 1 | D116: 0 | E116: 0.7806970636 | F116: 0.7174276651 | G116: 0.1892466624 | H116: 0.0473116656
A117: 97 | B117: 24.25 | C117: 1 | D117: 0.01041666667 | E117: 0.7811234266 | F117: 0.7509851305 | G117: 0.217064041 | H117: 0.05426601026
A118: 98 | B118: 24.5 | C118: 1 | D118: 0.02083333333 | E118: 0.7815539151 | F118: 0.7725412889 | G118: 0.2362974142 | H118: 0.05907435355
A119: 99 | B119: 24.75 | C119: 1 | D119: 0.03125 | E119: 0.7819885204 | F119: 0.7817375609 | G119: 0.2448368639 | H119: 0.06120921598
A120: 100 | B120: 25 | C120: 1 | D120: 0.04166666667 | E120: 0.7824272333 | F120: 0.7784128521 | G120: 0.241726277 | H120: 0.06043156925
A121: 101 | B121: 25.25 | C121: 1 | D121: 0.05208333333 | E121: 0.7828700447 | F121: 0.7626063523 | G121: 0.227297744 | H121: 0.056824436
A122: 102 | B122: 25.5 | C122: 1 | D122: 0.0625 | E122: 0.7833169455 | F122: 0.7345571358 | G122: 0.203128385 | H122: 0.05078209626
A123: 103 | B123: 25.75 | C123: 1 | D123: 0.07291666667 | E123: 0.7837679264 | F123: 0.6947005648 | G123: 0.1718251872 | H123: 0.04295629679
A124: 104 | B124: 26 | C124: 1 | D124: 0.08333333333 | E124: 0.784222978 | F124: 0.6436615501 | G124: 0.1366679154 | H124: 0.03416697884
A125: 105 | B125: 26.25 | C125: 1 | D125: 0.09375 | E125: 0.7846820909 | F125: 0.5822447717 | G125: 0.1011604289 | H125: 0.02529010723
A126: 106 | B126: 26.5 | C126: 1 | D126: 0.1041666667 | E126: 0.7851452556 | F126: 0.5114220144 | G126: 0.06855389348 | H126: 0.01713847337
A127: 107 | B127: 26.75 | C127: 1 | D127: 0.1145833333 | E127: 0.7856124624 | F127: 0.4323168151 | G127: 0.04140952543 | H127: 0.01035238136
A128: 108 | B128: 27 | C128: 1 | D128: 0.125 | E128: 0.7860837018 | F128: 0.3461866649 | G128: 0.02126301641 | H128: 0.005315754101
A129: 109 | B129: 27.25 | C129: 1 | D129: 0.1354166667 | E129: 0.7865589638 | F129: 0.254403048 | G129: 0.008438413457 | H129: 0.002109603364
A130: 110 | B130: 27.5 | C130: 1 | D130: 0.1458333333 | E130: 0.7870382387 | F130: 0.1584296327 | G130: 0.002037995007 | H130: 0.0005094987518
A131: 111 | B131: 27.75 | C131: 1 | D131: 0.15625 | E131: 0.7875215164 | F131: 0.05979896126 | G131: 0.0001095909748 | H131: 2.739774371e-05
A132: 112 | B132: 28 | C132: 1 | D132: 0.1666666667 | E132: 0.788008787 | F132: -0.0399119901 | G132: 3.258397166e-05 | H132: 8.145992916e-06
A133: 113 | B133: 28.25 | C133: 1 | D133: 0.1770833333 | E133: 0.7885000404 | F133: -0.1391069928 | G133: 0.001379560518 | H133: 0.0003448901294
A134: 114 | B134: 28.5 | C134: 1 | D134: 0.1875 | E134: 0.7889952664 | F134: -0.236196087 | G134: 0.006753236591 | H134: 0.001688309148
A135: 115 | B135: 28.75 | C135: 1 | D135: 0.1979166667 | E135: 0.7894944546 | F135: -0.3296210342 | G135: 0.01835433367 | H135: 0.004588583417
A136: 116 | B136: 29 | C136: 1 | D136: 0.2083333333 | E136: 0.7899975948 | F136: -0.4178802959 | G136: 0.03739810102 | H136: 0.009349525256
A137: 117 | B137: 29.25 | C137: 1 | D137: 0.21875 | E137: 0.7905046765 | F137: -0.4995531367 | G137: 0.06389089038 | H137: 0.0159727226
A138: 118 | B138: 29.5 | C138: 1 | D138: 0.2291666667 | E138: 0.7910156892 | F138: -0.5733224661 | G138: 0.09658078938 | H138: 0.02414519735
A139: 119 | B139: 29.75 | C139: 1 | D139: 0.2395833333 | E139: 0.7915306223 | F139: -0.637996053 | G139: 0.1330907417 | H139: 0.03327268544
A140: 120 | B140: 30 | C140: 1 | D140: 0.25 | E140: 0.7920494651 | F140: -0.6925257696 | G140: 0.1702165115 | H140: 0.04255412786
A141: 121 | B141: 30.25 | C141: 1 | D141: 0.2604166667 | E141: 0.7925722068 | F141: -0.7360245572 | G141: 0.2043481846 | H141: 0.05108704614
A142: 122 | B142: 30.5 | C142: 1 | D142: 0.2708333333 | E142: 0.7930988366 | F142: -0.7677808367 | G142: 0.2319560339 | H142: 0.05798900849
A143: 123 | B143: 30.75 | C143: 1 | D143: 0.28125 | E143: 0.7936293436 | F143: -0.7872701322 | G143: 0.2500720738 | H143: 0.06251801845
A144: 124 | B144: 31 | C144: 1 | D144: 0.2916666667 | E144: 0.7941637168 | F144: -0.7941637168 | G144: 0.2566988919 | H144: 0.06417472298
A145: 125 | B145: 31.25 | C145: 1 | D145: 0.3020833333 | E145: 0.794701945 | F145: -0.788334139 | G145: 0.2510873727 | H145: 0.06277184317
A146: 126 | B146: 31.5 | C146: 1 | D146: 0.3125 | E146: 0.7952440171 | F146: -0.7698575369 | G146: 0.2338433195 | H146: 0.05846082987
A147: 127 | B147: 31.75 | C147: 1 | D147: 0.3229166667 | E147: 0.795789922 | F147: -0.7390126981 | G147: 0.2068471645 | H147: 0.05171179112
A148: 128 | B148: 32 | C148: 1 | D148: 0.3333333333 | E148: 0.7963396481 | F148: -0.6962768766 | G148: 0.1729974841 | H148: 0.04324937102
A149: 129 | B149: 32.25 | C149: 1 | D149: 0.34375 | E149: 0.7968931842 | F149: -0.6423184295 | G149: 0.1358141496 | H149: =G149*$B$13 -> 0.03395353741
A150: =IF(IF(A149<>"",A149+1<=$B$16,0),A149+1,"") -> 130 | B150: =IF(A150<>"",A150*$B$13,"") -> 32.5 | C150: =IF(A150<>"",ROUNDDOWN(A150*$B$13/24,0),"") -> 1 | D150: =IF(A150<>"",MOD(B150,24)/24,"") -> 0.3541666667 | E150: =IF(A150<>"",($B$4+$B$5)/2+($B$5-$B$4)/2*COS(2*PI()/$B$15*B150),"") -> 0.7974505188 | F150: =IF(A150<>"",E150*COS(2*PI()/$B$7*B150),"") -> -0.5779863842 | G150: =ABS(0.5*1.025*1*(F150^3)) -> 0.09895703925 | H150: 0.02473925981
A151: 131 | B151: 32.75 | C151: 1 | D151: 0.3645833333 | E151: 0.7980116403 | F151: -0.5042971027 | G151: 0.06572843454 | H151: 0.01643210863
A152: 132 | B152: 33 | C152: 1 | D152: 0.375 | E152: 0.798576537 | F152: -0.4224182476 | G152: 0.03862974856 | H152: 0.009657437139
A153: 133 | B153: 33.25 | C153: 1 | D153: 0.3854166667 | E153: 0.7991451973 | F153: -0.333650306 | G153: 0.01903568249 | H153: 0.004758920622
A154: 134 | B154: 33.5 | C154: 1 | D154: 0.3958333333 | E154: 0.7997176093 | F154: -0.239405961 | G154: 0.007032322013 | H154: 0.001758080503
A155: 135 | B155: 33.75 | C155: 1 | D155: 0.40625 | E155: 0.8002937611 | F155: -0.1411876383 | G155: 0.001442393945 | H155: 0.0003605984862
A156: 136 | B156: 34 | C156: 1 | D156: 0.4166666667 | E156: 0.8008736409 | F156: -0.04056358426 | G156: 3.420604309e-05 | H156: 8.551510772e-06
A157: 137 | B157: 34.25 | C157: 1 | D157: 0.4270833333 | E157: 0.8014572366 | F157: 0.06085714389 | G157: 0.0001155123899 | H157: 2.887809747e-05
A158: 138 | B158: 34.5 | C158: 1 | D158: 0.4375 | E158: 0.8020445361 | F158: 0.1614503782 | G158: 0.002156805933 | H158: 0.0005392014831
A159: 139 | B159: 34.75 | C159: 1 | D159: 0.4479166667 | E159: 0.8026355271 | F159: 0.2596028193 | G159: 0.008966482054 | H159: 0.002241620513
A160: 140 | B160: 35 | C160: 1 | D160: 0.4583333333 | E160: 0.8032301975 | F160: 0.3537378813 | G160: 0.0226849894 | H160: 0.005671247351
A161: 141 | B161: 35.25 | C161: 1 | D161: 0.46875 | E161: 0.8038285349 | F161: 0.4423409871 | G161: 0.04435733215 | H161: 0.01108933304
A162: 142 | B162: 35.5 | C162: 1 | D162: 0.4791666667 | E162: 0.8044305269 | F162: 0.5239839095 | G162: 0.07373059222 | H162: 0.01843264805
A163: 143 | B163: 35.75 | C163: 1 | D163: 0.4895833333 | E163: 0.805036161 | F163: 0.5973477682 | G163: 0.1092384693 | H163: 0.02730961733
A164: 144 | B164: 36 | C164: 1 | D164: 0.5 | E164: 0.8056454246 | F164: 0.6612443111 | G164: 0.1481766308 | H164: 0.0370441577
A165: 145 | B165: 36.25 | C165: 1 | D165: 0.5104166667 | E165: 0.8062583051 | F165: 0.7146351377 | G165: 0.1870453724 | H165: 0.04676134309
A166: 146 | B166: 36.5 | C166: 1 | D166: 0.5208333333 | E166: 0.8068747898 | F166: 0.7566485545 | G166: 0.2220120208 | H166: 0.05550300521
A167: 147 | B167: 36.75 | C167: 1 | D167: 0.53125 | E167: 0.8074948659 | F167: 0.7865937883 | G167: 0.2494281164 | H167: 0.06235702911
A168: 148 | B168: 37 | C168: 1 | D168: 0.5416666667 | E168: 0.8081185205 | F168: 0.8039723257 | G168: 0.2663282093 | H168: 0.06658205232
A169: 149 | B169: 37.25 | C169: 1 | D169: 0.5520833333 | E169: 0.8087457408 | F169: 0.8084861943 | G169: 0.2708393074 | H169: 0.06770982685
A170: 150 | B170: 37.5 | C170: 1 | D170: 0.5625 | E170: 0.8093765136 | F170: 0.8000430461 | G170: 0.2624423597 | H170: 0.06561058991
A171: 151 | B171: 37.75 | C171: 1 | D171: 0.5729166667 | E171: 0.8100108259 | F171: 0.7787579595 | G171: 0.2420479257 | H171: 0.06051198143
A172: 152 | B172: 38 | C172: 1 | D172: 0.5833333333 | E172: 0.8106486645 | F172: 0.7449519227 | G172: 0.2118744587 | H172: 0.05296861467
A173: 153 | B173: 38.25 | C173: 1 | D173: 0.59375 | E173: 0.8112900163 | F173: 0.6991470205 | G173: 0.1751456693 | H173: 0.04378641733
A174: 154 | B174: 38.5 | C174: 1 | D174: 0.6041666667 | E174: 0.8119348678 | F174: 0.6420583935 | G174: 0.1356492675 | H174: 0.03391231688
A175: 155 | B175: 38.75 | C175: 1 | D175: 0.6145833333 | E175: 0.8125832058 | F175: 0.5745830951 | G175: 0.09721928058 | H175: 0.02430482014
A176: 156 | B176: 39 | C176: 1 | D176: 0.625 | E176: 0.8132350168 | F176: 0.497786019 | G176: 0.06321526368 | H176: 0.01580381592
A177: 157 | B177: 39.25 | C177: 1 | D177: 0.6354166667 | E177: 0.8138902872 | F177: 0.4128831164 | G177: 0.03607241693 | H177: 0.009018104232
A178: 158 | B178: 39.5 | C178: 1 | D178: 0.6458333333 | E178: 0.8145490035 | F178: 0.3212221688 | G178: 0.01698675409 | H178: 0.004246688523
A179: 159 | B179: 39.75 | C179: 1 | D179: 0.65625 | E179: 0.815211152 | F179: 0.224261419 | G179: 0.00578039567 | H179: 0.001445098918
A180: 160 | B180: 40 | C180: 1 | D180: 0.6666666667 | E180: 0.815876719 | F180: 0.1235463983 | G180: 0.0009664605622 | H180: 0.0002416151405
A181: 161 | B181: 40.25 | C181: 1 | D181: 0.6770833333 | E181: 0.8165456906 | F181: 0.0206853187 | G181: 4.536078057e-06 | H181: 1.134019514e-06
A182: 162 | B182: 40.5 | C182: 1 | D182: 0.6875 | E182: 0.8172180529 | F182: -0.08267657911 | G182: 0.0002896285471 | H182: 7.240713677e-05
A183: 163 | B183: 40.75 | C183: 1 | D183: 0.6979166667 | E183: 0.8178937922 | F183: -0.1848833137 | G183: 0.00323882154 | H183: 0.000809705385
A184: 164 | B184: 41 | C184: 1 | D184: 0.7083333333 | E184: 0.8185728942 | F184: -0.284294666 | G184: 0.01177605984 | H184: 0.002944014961
A185: 165 | B185: 41.25 | C185: 1 | D185: 0.71875 | E185: 0.8192553449 | F185: -0.3793124754 | G185: 0.02796953522 | H185: 0.006992383805
A186: 166 | B186: 41.5 | C186: 1 | D186: 0.7291666667 | E186: 0.8199411302 | F186: -0.468406306 | G186: 0.05266984851 | H186: 0.01316746213
A187: 167 | B187: 41.75 | C187: 1 | D187: 0.7395833333 | E187: 0.8206302359 | F187: -0.5501380726 | G187: 0.08533142035 | H187: 0.02133285509
A188: 168 | B188: 42 | C188: 1 | D188: 0.75 | E188: 0.8213226476 | F188: -0.6231852302 | G188: 0.1240353068 | H188: 0.0310088267
A189: 169 | B189: 42.25 | C189: 1 | D189: 0.7604166667 | E189: 0.822018351 | F189: -0.6863621524 | G189: 0.1657119593 | H189: 0.04142798982
A190: 170 | B190: 42.5 | C190: 1 | D190: 0.7708333333 | E190: 0.8227173316 | F190: -0.7386393551 | G190: 0.2065338305 | H190: 0.05163345764
A191: 171 | B191: 42.75 | C191: 1 | D191: 0.78125 | E191: 0.823419575 | F191: -0.7791602533 | G191: 0.2424232338 | H191: 0.06060580844
A192: 172 | B192: 43 | C192: 1 | D192: 0.7916666667 | E192: 0.8241250666 | F192: -0.8072551781 | G192: 0.2696040352 | H192: 0.0674010088
A193: 173 | B193: 43.25 | C193: 1 | D193: 0.8020833333 | E193: 0.8248337917 | F193: -0.8224524252 | G193: 0.2851190441 | H193: 0.07127976103
A194: 174 | B194: 43.5 | C194: 1 | D194: 0.8125 | E194: 0.8255457357 | F194: -0.8244861536 | G194: 0.2872393725 | H194: 0.07180984313
A195: 175 | B195: 43.75 | C195: 1 | D195: 0.8229166667 | E195: 0.8262608837 | F195: -0.8133010014 | G195: 0.2757069989 | H195: 0.06892674971
A196: 176 | B196: 44 | C196: 1 | D196: 0.8333333333 | E196: 0.826979221 | F196: -0.789053339 | G196: 0.2517752034 | H196: 0.06294380086
A197: 177 | B197: 44.25 | C197: 1 | D197: 0.84375 | E197: 0.8277007326 | F197: -0.7521091349 | G197: 0.2180401441 | H197: 0.05451003602
A198: 178 | B198: 44.5 | C198: 1 | D198: 0.8541666667 | E198: 0.8284254036 | F198: -0.7030384615 | G198: 0.1780865515 | H198: 0.04452163789
A199: 179 | B199: 44.75 | C199: 1 | D199: 0.8645833333 | E199: 0.8291532189 | F199: -0.6426067222 | G199: 0.1359971047 | H199: 0.03399927618
A200: 180 | B200: 45 | C200: 1 | D200: 0.875 | E200: 0.8298841635 | F200: -0.5717627353 | G200: 0.0957946842 | H200: 0.02394867105
A201: 181 | B201: 45.25 | C201: 1 | D201: 0.8854166667 | E201: 0.8306182222 | F201: -0.4916238603 | G201: 0.06089655542 | H201: 0.01522413886
A202: 182 | B202: 45.5 | C202: 1 | D202: 0.8958333333 | E202: 0.8313553797 | F202: -0.4034583973 | G202: 0.03365814265 | H202: 0.008414535663
A203: 183 | B203: 45.75 | C203: 1 | D203: 0.90625 | E203: 0.8320956207 | F203: -0.3086655384 | G203: 0.01507156334 | H203: 0.003767890836
... 2579 more rows

Sheet Tidal Stream 2
A1: Tidal Stream Resource
A3: =Input!A45 -> Site Name | B3: =IF(Input!B55<>"",Input!B55,"-") -> East Castle Island | C3: =Input!C45 -> 0 | I3: Plots:
A4: =Input!A46 -> Peak Flow (Springs) | B4: =IF((AND(Input!B56<>"",Input!B56<>"[Enter Value]")),Input!B56,"0") -> 1 | C4: =Input!C46 -> m/s
A5: =Input!A47 -> Peak Flow (Neaps) | B5: =IF((AND(Input!B57<>"",Input!B57<>"[Enter Value]")),Input!B57,"0") -> 0.76 | C5: =Input!C47 -> m/s
A6: =Input!A48 -> Lunar Cycle Period | B6: =IF((AND(Input!B58<>"",Input!B58<>"[Enter Value]")),Input!B58,"0") -> 28.74 | C6: =Input!C48 -> days
A7: =Input!A49 -> Tidal Period | B7: =IF((AND(Input!B59<>"",Input!B59<>"[Enter Value]")),Input!B59,"0") -> 12.4 | C7: =Input!C49 -> hours
A8: =Input!A50 -> Proximity to Grid Connection | B8: =IF(Input!B60<>"",Input!B60,"-") -> 1-2 km
A9: =Input!A51 -> Average Water Depth | B9: =IF(Input!B61<>"",Input!B61,"-") -> 5 - 10 m
A10: =Input!A52 -> Seabed Topography | B10: =IF(Input!B62<>"",Input!B62,"-") -> Harsh (Rocky, Moderate/Steep Gradient)
A11: =Input!A53 -> Accessibility | B11: =IF(Input!B63<>"",Input!B63,"-") -> Partially Accessible (Complex Temporary Works, Obstacles)
A13: Time Step | B13: 0.25 | C13: hours
A14: Period | B14: =B6/2 -> 14.37 | C14: days
B15: =B14*24 -> 344.88 | C15: hours
A16: Number of Steps | B16: =B15/B13*2 -> 2759.04 | C16: -
A18: No. | B18: Time | E18: Amplitude | F18: Current | G18: Power | H18: Energy
B19: Hours | C19: Day | D19: Time | E19: m/s | F19: m/s | G19: kW/(m^2) | H19: kWh/(m^2)
A20: 0 | B20: =A20*$B$13 -> 0 | C20: =ROUNDDOWN(A20*$B$1/24,0) -> 0 | D20: =MOD(B20,24)/24 -> 0 | E20: =IF(A20<>"",($B$4+$B$5)/2+($B$5-$B$4)/2*COS(2*PI()/$B$15*B20),"") -> 0.76 | F20: =IF(A20<>"",E20*COS(2*PI()/$B$7*B20),"") -> 0.76 | G20: =ABS(0.5*1.025*1*(F20^3)) -> 0.2249752 | H20: =G20*$B$13 -> 0.0562438
A21: =IF(IF(A20<>"",A20+1<=$B$16,0),A20+1,"") -> 1 | B21: =IF(A21<>"",A21*$B$13,"") -> 0.25 | C21: =IF(A21<>"",ROUNDDOWN(A21*$B$13/24,0),"") -> 0 | D21: =IF(A21<>"",MOD(B21,24)/24,"") -> 0.01041666667 | E21: =IF(A21<>"",($B$4+$B$5)/2+($B$5-$B$4)/2*COS(2*PI()/$B$15*B21),"") -> 0.7600012447 | F21: =IF(A21<>"",E21*COS(2*PI()/$B$7*B21),"") -> 0.7539114893 | G21: =ABS(0.5*1.025*1*(F21^3)) -> 0.2196114377 | H21: =G21*$B$13 -> 0.05490285943
A22: =IF(IF(A21<>"",A21+1<=$B$16,0),A21+1,"") -> 2 | B22: =IF(A22<>"",A22*$B$13,"") -> 0.5 | C22: =IF(A22<>"",ROUNDDOWN(A22*$B$13/24,0),"") -> 0 | D22: 0.02083333333 | E22: =IF(A22<>"",($B$4+$B$5)/2+($B$5-$B$4)/2*COS(2*PI()/$B$15*B22),"") -> 0.7600049787 | F22: =IF(A22<>"",E22*COS(2*PI()/$B$7*B22),"") -> 0.7357434301 | G22: =ABS(0.5*1.025*1*(F22^3)) -> 0.2041141195 | H22: 0.05102852986
A23: 3 | B23: 0.75 | C23: 0 | D23: 0.03125 | E23: 0.7600112019 | F23: 0.7057866823 | G23: 0.1801831801 | H23: 0.04504579502
A24: 4 | B24: 1 | C24: 0 | D24: 0.04166666667 | E24: 0.7600199142 | F24: 0.6645208402 | G24: 0.1503902517 | H24: 0.03759756293
A25: 5 | B25: 1.25 | C25: 0 | D25: 0.05208333333 | E25: 0.7600311155 | F25: 0.6126065602 | G25: 0.1178253665 | H25: 0.02945634162
A26: 6 | B26: 1.5 | C26: 0 | D26: 0.0625 | E26: 0.7600448054 | F26: 0.5508749929 | G26: 0.08567478901 | H26: 0.02141869725
A27: 7 | B27: 1.75 | C27: 0 | D27: 0.07291666667 | E27: 0.7600609838 | F27: 0.4803144874 | G27: 0.05678987703 | H27: 0.01419746926
A28: 8 | B28: 2 | C28: 0 | D28: 0.08333333333 | E28: 0.7600796502 | F28: 0.4020547799 | G28: 0.03330807692 | H28: 0.008327019229
A29: 9 | B29: 2.25 | C29: 0 | D29: 0.09375 | E29: 0.7601008043 | F29: 0.3173489209 | G29: 0.01637966243 | H29: 0.004094915609
A30: 10 | B30: 2.5 | C30: 0 | D30: 0.1041666667 | E30: 0.7601244457 | F30: 0.2275532279 | G30: 0.006038691888 | H30: 0.001509672972
A31: 11 | B31: 2.75 | C31: 0 | D31: 0.1145833333 | E31: 0.7601505738 | F31: 0.1341055866 | G31: 0.001236045563 | H31: 0.0003090113906
A32: 12 | B32: 3 | C32: 0 | D32: 0.125 | E32: 0.7601791882 | F32: 0.03850244405 | G32: 2.925221556e-05 | H32: 7.313053889e-06
A33: 13 | B33: 3.25 | C33: 0 | D33: 0.1354166667 | E33: 0.7602102882 | F33: -0.05772513465 | G33: 9.857998177e-05 | H33: 2.464499544e-05
A34: 14 | B34: 3.5 | C34: 0 | D34: 0.1458333333 | E34: 0.7602438731 | F34: -0.1530359666 | G34: 0.001836853001 | H34: 0.0004592132504
A35: 15 | B35: 3.75 | C35: 0 | D35: 0.15625 | E35: 0.7602799423 | F35: -0.2459034142 | G35: 0.007620571563 | H35: 0.001905142891
A36: 16 | B36: 4 | C36: 0 | D36: 0.1666666667 | E36: 0.7603184951 | F36: -0.3348398186 | G36: 0.01924000424 | H36: 0.004810001061
A37: 17 | B37: 4.25 | C37: 0 | D37: 0.1770833333 | E37: 0.7603595306 | F37: -0.4184203106 | G37: 0.03754327395 | H37: 0.009385818487
A38: 18 | B38: 4.5 | C38: 0 | D38: 0.1875 | E38: 0.760403048 | F38: -0.4953056212 | G38: 0.06227498623 | H38: 0.01556874656
A39: 19 | B39: 4.75 | C39: 0 | D39: 0.1979166667 | E39: 0.7604490463 | F39: -0.5642635234 | G39: 0.09207459111 | H39: 0.02301864778
A40: 20 | B40: 5 | C40: 0 | D40: 0.2083333333 | E40: 0.7604975247 | F40: -0.6241885654 | G40: 0.1246353665 | H40: 0.03115884163
A41: 21 | B41: 5.25 | C41: 0 | D41: 0.21875 | E41: 0.7605484821 | F41: -0.6741197775 | G41: 0.1570019607 | H41: 0.03925049016
A42: 22 | B42: 5.5 | C42: 0 | D42: 0.2291666667 | E42: 0.7606019175 | F42: -0.7132560698 | G42: 0.1859646077 | H42: 0.04649115193
A43: 23 | B43: 5.75 | C43: 0 | D43: 0.2395833333 | E43: 0.7606578297 | F43: -0.740969075 | G43: 0.2084942671 | H43: 0.05212356677
A44: 24 | B44: 6 | C44: 0 | D44: 0.25 | E44: 0.7607162176 | F44: -0.7568132287 | G44: 0.222157006 | H44: 0.0555392515
A45: 25 | B45: 6.25 | C45: 0 | D45: 0.2604166667 | E45: 0.76077708 | F45: -0.7605329278 | G45: 0.2254488038 | H45: 0.05636220096
A46: 26 | B46: 6.5 | C46: 0 | D46: 0.2708333333 | E46: 0.7608404156 | F46: -0.7520666507 | G46: 0.218003197 | H46: 0.05450079925
A47: 27 | B47: 6.75 | C47: 0 | D47: 0.28125 | E47: 0.7609062231 | F47: -0.7315479729 | G47: 0.2006422103 | H47: 0.05016055257
A48: 28 | B48: 7 | C48: 0 | D48: 0.2916666667 | E48: 0.7609745012 | F48: -0.6993034623 | G48: 0.1752632679 | H48: 0.04381581697
A49: 29 | B49: 7.25 | C49: 0 | D49: 0.3020833333 | E49: 0.7610452484 | F49: -0.6558474863 | G49: 0.1445780773 | H49: 0.03614451932
A50: 30 | B50: 7.5 | C50: 0 | D50: 0.3125 | E50: 0.7611184632 | F50: -0.6018740136 | G50: 0.1117405097 | H50: 0.02793512742
A51: 31 | B51: 7.75 | C51: 0 | D51: 0.3229166667 | E51: 0.7611941442 | F51: -0.5382455411 | G51: 0.07991626753 | H51: 0.01997906688
A52: 32 | B52: 8 | C52: 0 | D52: 0.3333333333 | E52: 0.7612722897 | F52: -0.4659793229 | G52: 0.05185537839 | H52: 0.0129638446
A53: 33 | B53: 8.25 | C53: 0 | D53: 0.34375 | E53: 0.7613528982 | F53: -0.3862311201 | G53: 0.02952811071 | H53: 0.007382027678
A54: 34 | B54: 8.5 | C54: 0 | D54: 0.3541666667 | E54: 0.761435968 | F54: -0.3002767323 | G54: 0.01387582816 | H54: 0.00346895704
A55: 35 | B55: 8.75 | C55: 0 | D55: 0.3645833333 | E55: 0.7615214973 | F55: -0.2094916037 | G55: 0.004711874709 | H55: 0.001177968677
A56: 36 | B56: 9 | C56: 0 | D56: 0.375 | E56: 0.7616094844 | F56: -0.1153288315 | G56: 0.0007861538502 | H56: 0.0001965384626
A57: 37 | B57: 9.25 | C57: 0 | D57: 0.3854166667 | E57: 0.7616999274 | F57: -0.01929592665 | G57: 3.682059386e-06 | H57: 9.205148465e-07
A58: 38 | B58: 9.5 | C58: 0 | D58: 0.3958333333 | E58: 0.7617928246 | F58: 0.07706930176 | G58: 0.0002346054749 | H58: 5.865136872e-05
A59: 39 | B59: 9.75 | C59: 0 | D59: 0.40625 | E59: 0.7618881738 | F59: 0.1722233517 | G59: 0.002618002039 | H59: 0.0006545005098
A60: 40 | B60: 10 | C60: 0 | D60: 0.4166666667 | E60: 0.7619859733 | F60: 0.2646417311 | G60: 0.009498802459 | H60: 0.002374700615
A61: 41 | B61: 10.25 | C61: 0 | D61: 0.4270833333 | E61: 0.7620862209 | F61: 0.3528433628 | G61: 0.02251332948 | H61: 0.005628332369
A62: 42 | B62: 10.5 | C62: 0 | D62: 0.4375 | E62: 0.7621889145 | F62: 0.4354143008 | G62: 0.04230599722 | H62: 0.0105764993
A63: 43 | B63: 10.75 | C63: 0 | D63: 0.4479166667 | E63: 0.7622940521 | F63: 0.5110303792 | G63: 0.06839652305 | H63: 0.01709913076
A64: 44 | B64: 11 | C64: 0 | D64: 0.4583333333 | E64: 0.7624016314 | F64: 0.5784784306 | G64: 0.09920998424 | H64: 0.02480249606
A65: 45 | B65: 11.25 | C65: 0 | D65: 0.46875 | E65: 0.7625116503 | F65: 0.6366757346 | G65: 0.1322661658 | H65: 0.03306654144
A66: 46 | B66: 11.5 | C66: 0 | D66: 0.4791666667 | E66: 0.7626241064 | F66: 0.6846873847 | G66: 0.1645018733 | H66: 0.04112546834
A67: 47 | B67: 11.75 | C67: 0 | D67: 0.4895833333 | E67: 0.7627389974 | F67: 0.721741295 | G67: 0.192680841 | H67: 0.04817021026
A68: 48 | B68: 12 | C68: 0 | D68: 0.5 | E68: 0.7628563209 | F68: 0.7472406072 | G68: 0.2138332633 | H68: 0.05345831582
A69: 49 | B69: 12.25 | C69: 0 | D69: 0.5104166667 | E69: 0.7629760745 | F69: 0.7607732965 | G69: 0.2256626327 | H69: 0.05641565818
A70: 50 | B70: 12.5 | C70: 0 | D70: 0.5208333333 | E70: 0.7630982557 | F70: 0.7621188246 | G70: 0.2268620941 | H70: 0.05671552352
A71: 51 | B71: 12.75 | C71: 0 | D71: 0.53125 | E71: 0.763222862 | F71: 0.7512517295 | G71: 0.2172952957 | H71: 0.05432382393
A72: 52 | B72: 13 | C72: 0 | D72: 0.5416666667 | E72: 0.7633498907 | F72: 0.7283420971 | G72: 0.1980159194 | H72: 0.04950397985
A73: 53 | B73: 13.25 | C73: 0 | D73: 0.5520833333 | E73: 0.7634793393 | F73: 0.6937529022 | G73: 0.1711229698 | H73: 0.04278074244
A74: 54 | B74: 13.5 | C74: 0 | D74: 0.5625 | E74: 0.7636112051 | F74: 0.6480342642 | G74: 0.1394722406 | H74: 0.03486806015
A75: 55 | B75: 13.75 | C75: 0 | D75: 0.5729166667 | E75: 0.7637454853 | F75: 0.5919147049 | G75: 0.1062848239 | H75: 0.02657120598
A76: 56 | B76: 14 | C76: 0 | D76: 0.5833333333 | E76: 0.7638821771 | F76: 0.5262895501 | G76: 0.07470817205 | H76: 0.01867704301
A77: 57 | B77: 14.25 | C77: 0 | D77: 0.59375 | E77: 0.7640212778 | F77: 0.4522066576 | G77: 0.04739196602 | H77: 0.01184799151
A78: 58 | B78: 14.5 | C78: 0 | D78: 0.6041666667 | E78: 0.7641627843 | F78: 0.3708496989 | G78: 0.02613892135 | H78: 0.006534730338
A79: 59 | B79: 14.75 | C79: 0 | D79: 0.6145833333 | E79: 0.7643066939 | F79: 0.283519263 | G79: 0.01167996614 | H79: 0.002919991535
A80: 60 | B80: 15 | C80: 0 | D80: 0.625 | E80: 0.7644530034 | F80: 0.1916120811 | G80: 0.00360547537 | H80: 0.0009013688424
A81: 61 | B81: 15.25 | C81: 0 | D81: 0.6354166667 | E81: 0.7646017099 | F81: 0.09659870571 | G81: 0.0004619636374 | H81: 0.0001154909094
A82: 62 | B82: 15.5 | C82: 0 | D82: 0.6458333333 | E82: 0.7647528103 | F82: -4.450030116e-16 | G82: 4.516299348e-47 | H82: 1.129074837e-47
A83: 63 | B83: 15.75 | C83: 0 | D83: 0.65625 | E83: 0.7649063015 | F83: -0.09663718738 | G83: 0.0004625159496 | H83: 0.0001156289874
A84: 64 | B84: 16 | C84: 0 | D84: 0.6666666667 | E84: 0.7650621802 | F84: -0.1917647728 | G84: 0.003614101626 | H84: 0.0009035254065
A85: 65 | B85: 16.25 | C85: 0 | D85: =IF(A85<>"",MOD(B85,24)/24,"") -> 0.6770833333 | E85: 0.7652204432 | F85: -0.283858218 | G85: =ABS(0.5*1.025*1*(F85^3)) -> 0.01172190739 | H85: =G85*$B$13 -> 0.002930476847
A86: =IF(IF(A85<>"",A85+1<=$B$16,0),A85+1,"") -> 66 | B86: =IF(A86<>"",A86*$B$13,"") -> 16.5 | C86: =IF(A86<>"",ROUNDDOWN(A86*$B$13/24,0),"") -> 0 | D86: 0.6875 | E86: =IF(A86<>"",($B$4+$B$5)/2+($B$5-$B$4)/2*COS(2*PI()/$B$15*B86),"") -> 0.7653810873 | F86: =IF(A86<>"",E86*COS(2*PI()/$B$7*B86),"") -> -0.3714409437 | G86: 0.02626414044 | H86: 0.00656603511
A87: 67 | B87: 16.75 | C87: 0 | D87: 0.6979166667 | E87: 0.7655441091 | F87: -0.4531079865 | G87: 0.04767591327 | H87: 0.01191897832
A88: 68 | B88: 17 | C88: 0 | D88: 0.7083333333 | E88: 0.7657095052 | F88: -0.5275485187 | G88: 0.07524559721 | H88: 0.0188113993
A89: 69 | B89: 17.25 | C89: 0 | D89: 0.71875 | E89: 0.7658772722 | F89: -0.5935668731 | G89: 0.1071773056 | H89: 0.02679432639
A90: 70 | B90: 17.5 | C90: 0 | D90: 0.7291666667 | E90: 0.7660474066 | F90: -0.6501017326 | G90: 0.1408114077 | H90: 0.03520285193
A91: 71 | B91: 17.75 | C91: 0 | D91: 0.7395833333 | E91: 0.7662199049 | F91: -0.6962431797 | G91: 0.1729723682 | H91: 0.04324309204
A92: 72 | B92: 18 | C92: 0 | D92: 0.75 | E92: 0.7663947636 | F92: -0.7312473298 | G92: 0.2003949392 | H92: 0.05009873479
A93: 73 | B93: 18.25 | C93: 0 | D93: 0.7604166667 | E93: 0.7665719789 | F93: -0.7545483157 | G93: 0.220168423 | H93: 0.05504210575
A94: 74 | B94: 18.5 | C94: 0 | D94: 0.7708333333 | E94: 0.7667515472 | F94: -0.7657674271 | G94: 0.2301359877 | H94: 0.05753399693
A95: 75 | B95: 18.75 | C95: 0 | D95: 0.78125 | E95: 0.7669334648 | F95: -0.7647192615 | G95: 0.2291922654 | H95: 0.05729806636
A96: 76 | B96: 19 | C96: 0 | D96: 0.7916666667 | E96: 0.767117728 | F96: -0.751414783 | G96: 0.2174368133 | H96: 0.05435920332
A97: 77 | B97: 19.25 | C97: 0 | D97: 0.8020833333 | E97: 0.7673043328 | F97: -0.7260612408 | G97: 0.1961614351 | H97: 0.04904035878
A98: 78 | B98: 19.5 | C98: 0 | D98: 0.8125 | E98: 0.7674932754 | F98: -0.6890589467 | G98: 0.167672947 | H98: 0.04191823676
A99: 79 | B99: 19.75 | C99: 0 | D99: 0.8229166667 | E99: 0.7676845519 | F99: -0.6409949617 | G99: 0.1349763617 | H99: 0.03374409042
A100: 80 | B100: 20 | C100: 0 | D100: 0.8333333333 | E100: 0.7678781583 | F100: -0.5826337899 | G100: 0.1013633309 | H100: 0.02534083273
A101: 81 | B101: 20.25 | C101: 0 | D101: 0.84375 | E101: 0.7680740907 | F101: -0.5149052294 | G101: 0.06996418468 | H101: 0.01749104617
A102: 82 | B102: 20.5 | C102: 0 | D102: 0.8541666667 | E102: 0.7682723449 | F102: -0.4388895712 | G102: 0.04332710321 | H102: 0.0108317758
A103: 83 | B103: 20.75 | C103: 0 | D103: 0.8645833333 | E103: 0.7684729168 | F103: -0.3558003816 | G103: 0.02308410804 | H103: 0.00577102701
A104: 84 | B104: 21 | C104: 0 | D104: 0.875 | E104: 0.7686758023 | F104: -0.2669651439 | G104: 0.009751188567 | H104: 0.002437797142
A105: 85 | B105: 21.25 | C105: 0 | D105: 0.8854166667 | E105: 0.7688809972 | F105: -0.1738040659 | G105: 0.002690751963 | H105: 0.0006726879907
A106: 86 | B106: 21.5 | C106: 0 | D106: 0.8958333333 | E106: 0.7690884972 | F106: -0.07780739272 | G106: 0.0002414106679 | H106: 6.035266697e-05
A107: 87 | B107: 21.75 | C107: 0 | D107: 0.90625 | E107: 0.769298298 | F107: 0.019488414 | G107: 3.79335389e-06 | H107: 9.483384724e-07
A108: 88 | B108: 22 | C108: 0 | D108: 0.9166666667 | E108: 0.7695103952 | F108: 0.1165252489 | G108: 0.0008108751433 | H108: 0.0002027187858
A109: 89 | B109: 22.25 | C109: 0 | D109: 0.9270833333 | E109: 0.7697247845 | F109: 0.2117482961 | G109: 0.004865793151 | H109: 0.001216448288
A110: 90 | B110: 22.5 | C110: 0 | D110: 0.9375 | E110: 0.7699414614 | F110: 0.3036309234 | G110: 0.01434603449 | H110: 0.003586508624
A111: 91 | B111: 22.75 | C111: 0 | D111: 0.9479166667 | E111: 0.7701604214 | F111: 0.3906991395 | G111: 0.03056477717 | H111: 0.007641194293
A112: 92 | B112: 23 | C112: 0 | D112: 0.9583333333 | E112: 0.77038166 | F112: 0.4715552229 | G112: 0.05373924344 | H112: 0.01343481086
A113: 93 | B113: 23.25 | C113: 0 | D113: 0.96875 | E113: 0.7706051725 | F113: 0.5449001431 | G113: 0.08291720142 | H113: 0.02072930036
A114: 94 | B114: 23.5 | C114: 0 | D114: 0.9791666667 | E114: 0.7708309544 | F114: 0.609554416 | G114: 0.1160730284 | H114: 0.0290182571
A115: 95 | B115: 23.75 | C115: 0 | D115: 0.9895833333 | E115: 0.7710590009 | F115: 0.6644770579 | G115: 0.1503605281 | H115: 0.03759013202
A116: 96 | B116: 24 | C116: 1 | D116: 0 | E116: 0.7712893074 | F116: 0.7087823341 | G116: 0.1824872486 | H116: 0.04562181215
A117: 97 | B117: 24.25 | C117: 1 | D117: 0.01041666667 | E117: 0.771521869 | F117: 0.7417540325 | G117: 0.2091575845 | H117: 0.05228939613
A118: 98 | B118: 24.5 | C118: 1 | D118: 0.02083333333 | E118: 0.771756681 | F118: 0.7628570332 | G118: 0.2275219669 | H118: 0.05688049173
A119: 99 | B119: 24.75 | C119: 1 | D119: 0.03125 | E119: 0.7719937384 | F119: 0.7717459865 | G119: 0.2355683872 | H119: 0.05889209679
A120: 100 | B120: 25 | C120: 1 | D120: 0.04166666667 | E120: 0.7722330363 | F120: 0.7682709583 | G120: 0.2324005329 | H120: 0.05810013322
A121: 101 | B121: 25.25 | C121: 1 | D121: 0.05208333333 | E121: 0.7724745698 | F121: 0.7524799524 | G121: 0.2183628085 | H121: 0.05459070214
A122: 102 | B122: 25.5 | C122: 1 | D122: 0.0625 | E122: 0.7727183339 | F122: 0.7246182652 | G122: 0.1949942031 | H122: 0.04874855076
A123: 103 | B123: 25.75 | C123: 1 | D123: 0.07291666667 | E123: 0.7729643235 | F123: 0.685124683 | G123: 0.1648172684 | H123: 0.04120431711
A124: 104 | B124: 26 | C124: 1 | D124: 0.08333333333 | E124: 0.7732125334 | F124: 0.6346245797 | G124: 0.1309919286 | H124: 0.03274798214
A125: 105 | B125: 26.25 | C125: 1 | D125: 0.09375 | E125: 0.7734629587 | F125: 0.5739200232 | G125: 0.09688309414 | H125: 0.02422077353
A126: 106 | B126: 26.5 | C126: 1 | D126: 0.1041666667 | E126: 0.773715594 | F126: 0.5039770474 | G126: 0.06560336906 | H126: 0.01640084227
A127: 107 | B127: 26.75 | C127: 1 | D127: 0.1145833333 | E127: 0.7739704341 | F127: 0.4259102917 | G127: 0.03959572261 | H127: 0.009898930653
A128: 108 | B128: 27 | C128: 1 | D128: 0.125 | E128: 0.7742274737 | F128: 0.3409652514 | G128: 0.02031534647 | H128: 0.005078836617
A129: 109 | B129: 27.25 | C129: 1 | D129: 0.1354166667 | E129: 0.7744867075 | F129: 0.2504984218 | G129: 0.008055803267 | H129: 0.002013950817
A130: 110 | B130: 27.5 | C130: 1 | D130: 0.1458333333 | E130: 0.7747481302 | F130: 0.155955652 | G130: 0.001944004322 | H130: 0.0004860010805
A131: 111 | B131: 27.75 | C131: 1 | D131: 0.15625 | E131: 0.7750117362 | F131: 0.05884905469 | G131: 0.0001044509376 | H131: 2.611273441e-05
A132: 112 | B132: 28 | C132: 1 | D132: 0.1666666667 | E132: 0.7752775202 | F132: -0.03926716202 | G132: 3.103004553e-05 | H132: 7.757511381e-06
A133: 113 | B133: 28.25 | C133: 1 | D133: 0.1770833333 | E133: 0.7755454766 | F133: -0.1368215517 | G133: 0.001312675574 | H133: 0.0003281688936
A134: 114 | B134: 28.5 | C134: 1 | D134: 0.1875 | E134: 0.7758155998 | F134: -0.2322505808 | G134: 0.006420432671 | H134: 0.001605108168
A135: 115 | B135: 28.75 | C135: 1 | D135: 0.1979166667 | E135: 0.7760878844 | F135: -0.3240236705 | G135: 0.01743508552 | H135: 0.004358771379
A136: 116 | B136: 29 | C136: 1 | D136: 0.2083333333 | E136: 0.7763623245 | F136: -0.4106677286 | G136: 0.03549487068 | H136: 0.008873717669
A137: 117 | B137: 29.25 | C137: 1 | D137: 0.21875 | E137: 0.7766389145 | F137: -0.4907907788 | G137: 0.0605875028 | H137: 0.0151468757
A138: 118 | B138: 29.5 | C138: 1 | D138: 0.2291666667 | E138: 0.7769176487 | F138: -0.563104308 | G138: 0.09150828572 | H138: 0.02287707143
A139: 119 | B139: 29.75 | C139: 1 | D139: 0.2395833333 | E139: 0.7771985213 | F139: -0.6264439745 | G139: 0.1259913062 | H139: 0.03149782656
A140: 120 | B140: 30 | C140: 1 | D140: 0.25 | E140: 0.7774815264 | F140: -0.6797883417 | G140: 0.1609959705 | H140: 0.04024899263
A141: 121 | B141: 30.25 | C141: 1 | D141: 0.2604166667 | E141: 0.7777666583 | F141: -0.7222753402 | G141: 0.1931088743 | H141: 0.04827721857
A142: 122 | B142: 30.5 | C142: 1 | D142: 0.2708333333 | E142: 0.7780539109 | F142: -0.7532161884 | G142: 0.2190043827 | H142: 0.05475109568
A143: 123 | B143: 30.75 | C143: 1 | D143: 0.28125 | E143: 0.7783432783 | F143: -0.7721065515 | G143: 0.2358987189 | H143: 0.05897467972
A144: 124 | B144: 31 | C144: 1 | D144: 0.2916666667 | E144: 0.7786347546 | F144: -0.7786347546 | G144: 0.2419330629 | H144: 0.06048326574
A145: 125 | B145: 31.25 | C145: 1 | D145: 0.3020833333 | E145: 0.7789283336 | F145: -0.7726869188 | G145: 0.236431071 | H145: 0.05910776775
A146: 126 | B146: 31.5 | C146: 1 | D146: 0.3125 | E146: 0.7792240094 | F146: -0.7543489339 | G146: 0.2199939373 | H146: 0.05499848432
A147: 127 | B147: 31.75 | C147: 1 | D147: 0.3229166667 | E147: 0.7795217756 | F147: -0.7239052352 | G147: 0.1944191419 | H147: 0.04860478546
A148: 128 | B148: 32 | C148: 1 | D148: 0.3333333333 | E148: 0.7798216263 | F148: -0.6818344001 | G148: 0.1624540697 | H148: 0.04061351743
A149: 129 | B149: 32.25 | C149: 1 | D149: =IF(A149<>"",MOD(B149,24)/24,"") -> 0.34375 | E149: 0.780123555 | F149: -0.6288016343 | G149: =ABS(0.5*1.025*1*(F149^3)) -> 0.1274191945 | H149: =G149*$B$13 -> 0.03185479862
A150: =IF(IF(A149<>"",A149+1<=$B$16,0),A149+1,"") -> 130 | B150: =IF(A150<>"",A150*$B$13,"") -> 32.5 | C150: =IF(A150<>"",ROUNDDOWN(A150*$B$13/24,0),"") -> 1 | D150: 0.3541666667 | E150: =IF(A150<>"",($B$4+$B$5)/2+($B$5-$B$4)/2*COS(2*PI()/$B$15*B150),"") -> 0.7804275557 | F150: =IF(A150<>"",E150*COS(2*PI()/$B$7*B150),"") -> -0.5656482633 | G150: 0.09275412738 | H150: 0.02318853184
A151: 131 | B151: 32.75 | C151: 1 | D151: 0.3645833333 | E151: 0.780733622 | F151: -0.4933783965 | G151: 0.06155087871 | H151: 0.01538771968
A152: 132 | B152: 33 | C152: 1 | D152: 0.375 | E152: 0.7810417475 | F152: -0.413142975 | G152: 0.03614056911 | H152: 0.009035142276
A153: 133 | B153: 33.25 | C153: 1 | D153: 0.3854166667 | E153: 0.7813519258 | F153: -0.3262214552 | G153: 0.01779227291 | H153: 0.004448068229
A154: 134 | B154: 33.5 | C154: 1 | D154: 0.3958333333 | E154: 0.7816641505 | F154: -0.2340014212 | G154: 0.006566732949 | H154: 0.001641683237
A155: 135 | B155: 33.75 | C155: 1 | D155: 0.40625 | E155: 0.7819784152 | F155: -0.1379564492 | G155: 0.001345612129 | H155: 0.0003364030323
A156: 136 | B156: 34 | C156: 1 | D156: 0.4166666667 | E156: 0.7822947132 | F156: -0.03962257701 | G156: 3.188027245e-05 | H156: 7.970068114e-06
A157: 137 | B157: 34.25 | C157: 1 | D157: 0.4270833333 | E157: 0.7826130381 | F157: 0.05942624522 | G157: 0.0001075545387 | H157: 2.688863467e-05
A158: 138 | B158: 34.5 | C158: 1 | D158: 0.4375 | E158: 0.7829333833 | F158: 0.1576033314 | G158: 0.002006273097 | H158: 0.0005015682743
A159: 139 | B159: 34.75 | C159: 1 | D159: 0.4479166667 | E159: 0.7832557421 | F159: 0.2533346606 | G159: 0.008332545785 | H159: 0.002083136446
A160: 140 | B160: 35 | C160: 1 | D160: 0.4583333333 | E160: 0.7835801077 | F160: 0.3450840967 | G160: 0.02106050134 | H160: 0.005265125336
A161: 141 | B161: 35.25 | C161: 1 | D161: 0.46875 | E161: 0.7839064736 | F161: 0.4313780218 | G161: 0.0411403435 | H161: 0.01028508587
A162: 142 | B162: 35.5 | C162: 1 | D162: 0.4791666667 | E162: 0.7842348328 | F162: 0.5108289901 | G162: 0.06831569291 | H162: 0.01707892323
A163: 143 | B163: 35.75 | C163: 1 | D163: 0.4895833333 | E163: 0.7845651787 | F163: 0.5821580213 | G163: 0.1011152191 | H163: 0.02527880476
A164: 144 | B164: 36 | C164: 1 | D164: 0.5 | E164: 0.7848975043 | F164: 0.6442151766 | G164: 0.1370208715 | H164: 0.03425521786
A165: 145 | B165: 36.25 | C165: 1 | D165: 0.5104166667 | E165: 0.7852318028 | F165: 0.6959980864 | G165: 0.172789762 | H165: 0.04319744049
A166: 146 | B166: 36.5 | C166: 1 | D166: 0.5208333333 | E166: 0.7855680672 | F166: 0.7366681299 | G166: 0.2048846936 | H166: 0.0512211734
A167: 147 | B167: 36.75 | C167: 1 | D167: 0.53125 | E167: 0.7859062905 | F167: 0.7655640084 | G167: 0.2299526362 | H167: 0.05748815905
A168: 148 | B168: 37 | C168: 1 | D168: 0.5416666667 | E168: 0.7862464657 | F168: 0.7822124894 | G168: 0.2452833718 | H168: 0.06132084294
A169: 149 | B169: 37.25 | C169: 1 | D169: 0.5520833333 | E169: 0.7865885859 | F169: 0.7863361502 | G169: 0.2491831063 | H169: 0.06229577658
A170: 150 | B170: 37.5 | C170: 1 | D170: 0.5625 | E170: 0.7869326438 | F170: 0.7778579917 | G170: 0.2412097307 | H170: 0.06030243268
A171: 151 | B171: 37.75 | C171: 1 | D171: 0.5729166667 | E171: 0.7872786323 | F171: 0.7569028483 | G171: 0.2222359369 | H171: 0.05555898422
A172: 152 | B172: 38 | C172: 1 | D172: 0.5833333333 | E172: 0.7876265443 | F172: 0.7237955655 | G172: 0.1943307934 | H172: 0.04858269834
A173: 153 | B173: 38.25 | C173: 1 | D173: 0.59375 | E173: 0.7879763725 | F173: 0.6790559751 | G173: 0.1604761862 | H173: 0.04011904656
A174: 154 | B174: 38.5 | C174: 1 | D174: 0.6041666667 | E174: 0.7883281097 | F174: 0.6233907419 | G174: 0.124158059 | H174: 0.03103951474
A175: 155 | B175: 38.75 | C175: 1 | D175: 0.6145833333 | E175: 0.7886817486 | F175: 0.5576822127 | G175: 0.08889027469 | H175: 0.02222256867
A176: 156 | B176: 39 | C176: 1 | D176: 0.625 | E176: 0.7890372819 | F176: 0.4829744407 | G176: 0.05773860867 | H176: 0.01443465217
A177: 157 | B177: 39.25 | C177: 1 | D177: 0.6354166667 | E177: 0.7893947021 | F177: 0.4004566092 | G177: 0.03291245413 | H177: 0.008228113532
A178: 158 | B178: 39.5 | C178: 1 | D178: 0.6458333333 | E178: 0.7897540019 | F178: 0.3114441148 | G178: 0.0154822564 | H178: 0.0038705641
A179: 159 | B179: 39.75 | C179: 1 | D179: 0.65625 | E179: 0.7901151738 | F179: 0.2173576129 | G179: 0.005262819044 | H179: 0.001315704761
A180: 160 | B180: 40 | C180: 1 | D180: 0.6666666667 | E180: 0.7904782103 | F180: 0.1197003586 | G180: 0.00087898249 | H180: 0.0002197456225
A181: 161 | B181: 40.25 | C181: 1 | D181: 0.6770833333 | E181: 0.7908431039 | F181: 0.02003420242 | G181: 4.12107048e-06 | H181: 1.03026762e-06
A182: 162 | B182: 40.5 | C182: 1 | D182: 0.6875 | E182: 0.7912098471 | F182: -0.08004537257 | G182: 0.0002628467193 | H182: 6.571167983e-05
A183: 163 | B183: 40.75 | C183: 1 | D183: 0.6979166667 | E183: 0.7915784321 | F183: -0.1789347773 | G183: 0.002936149339 | H183: 0.0007340373348
A184: 164 | B184: 41 | C184: 1 | D184: 0.7083333333 | E184: 0.7919488514 | F184: -0.2750479961 | G184: 0.01066398008 | H184: 0.00266599502
A185: 165 | B185: 41.25 | C185: 1 | D185: 0.71875 | E185: 0.7923210972 | F185: -0.3668420091 | G185: 0.02530061392 | H185: 0.006325153481
A186: 166 | B186: 41.5 | C186: 1 | D186: 0.7291666667 | E186: 0.792695162 | F186: -0.4528415503 | G186: 0.04759185966 | H186: 0.01189796492
A187: 167 | B187: 41.75 | C187: 1 | D187: 0.7395833333 | E187: 0.7930710378 | F187: -0.5316628039 | G187: 0.0770198559 | H187: 0.01925496398
A188: 168 | B188: 42 | C188: 1 | D188: 0.75 | E188: 0.7934487169 | F188: -0.6020356589 | G188: 0.1118305643 | H188: 0.02795764107
A189: 169 | B189: 42.25 | C189: 1 | D189: 0.7604166667 | E189: 0.7938281915 | F189: -0.6628241638 | G189: 0.1492412464 | H189: 0.0373103116
A190: 170 | B190: 42.5 | C190: 1 | D190: 0.7708333333 | E190: 0.7942094536 | F190: -0.7130448528 | G190: 0.1857994472 | H190: 0.04644986179
A191: 171 | B191: 42.75 | C191: 1 | D191: 0.78125 | E191: 0.7945924955 | F191: -0.7518826475 | G191: 0.2178432239 | H191: 0.05446080598
A192: 172 | B192: 43 | C192: 1 | D192: 0.7916666667 | E192: 0.7949773091 | F192: -0.7787040768 | G192: 0.241997687 | H192: 0.06049942174
A193: 173 | B193: 43.25 | C193: 1 | D193: 0.8020833333 | E193: 0.7953638864 | F193: -0.793067602 | G193: 0.2556374611 | H193: 0.06390936529
A194: 174 | B194: 43.5 | C194: 1 | D194: 0.8125 | E194: 0.7957522195 | F194: -0.7947308772 | G194: 0.2572492575 | H194: 0.06431231437
A195: 175 | B195: 43.75 | C195: 1 | D195: 0.8229166667 | E195: 0.7961423002 | F195: -0.7836548272 | G195: 0.2466427245 | H195: 0.06166068112
A196: 176 | B196: 44 | C196: 1 | D196: 0.8333333333 | E196: 0.7965341205 | F196: -0.7600044735 | G196: 0.2249791727 | H196: 0.05624479318
A197: 177 | B197: 44.25 | C197: 1 | D197: 0.84375 | E197: 0.7969276723 | F197: -0.7241464924 | G197: 0.1946135899 | H197: 0.04865339748
A198: 178 | B198: 44.5 | C198: 1 | D198: 0.8541666667 | E198: 0.7973229474 | F198: -0.6766435407 | G198: 0.1587719179 | H198: 0.03969297946
A199: 179 | B199: 44.75 | C199: 1 | D199: 0.8645833333 | E199: 0.7977199376 | F199: -0.6182454371 | G199: 0.1211090588 | H199: 0.03027726471
A200: 180 | B200: 45 | C200: 1 | D200: 0.875 | E200: 0.7981186346 | F200: -0.5498773368 | G200: 0.08521015032 | H200: 0.02130253758
A201: 181 | B201: 45.25 | C201: 1 | D201: 0.8854166667 | E201: 0.7985190303 | F201: -0.4726250854 | G201: 0.05410584405 | H201: 0.01352646101
A202: 182 | B202: 45.5 | C202: 1 | D202: 0.8958333333 | E202: 0.7989211162 | F202: -0.3877179856 | G202: 0.02987044638 | H202: 0.007467611596
A203: 183 | B203: 45.75 | C203: 1 | D203: 0.90625 | E203: 0.799324884 | F203: -0.2965092467 | G203: 0.01336006571 | H203: 0.003340016427
... 2579 more rows

Sheet Tidal Stream 3
A1: Tidal Stream Resource
A3: =Input!A45 -> Site Name | B3: =IF(Input!B65<>"",Input!B65,"-") -> Southwest Eigg | C3: =Input!C45 -> 0 | I3: Plots:
A4: =Input!A46 -> Peak Flow (Springs) | B4: =IF((AND(Input!B66<>"",Input!B66<>"[Enter Value]")),Input!B66,"0") -> 0.5 | C4: =Input!C46 -> m/s
A5: =Input!A47 -> Peak Flow (Neaps) | B5: =IF((AND(Input!B67<>"",Input!B67<>"[Enter Value]")),Input!B67,"0") -> 0.26 | C5: =Input!C47 -> m/s
A6: =Input!A48 -> Lunar Cycle Period | B6: =IF((AND(Input!B68<>"",Input!B68<>"[Enter Value]")),Input!B68,"0") -> 28.74 | C6: =Input!C48 -> days
A7: =Input!A49 -> Tidal Period | B7: =IF((AND(Input!B69<>"",Input!B69<>"[Enter Value]")),Input!B69,"0") -> 12.4 | C7: =Input!C49 -> hours
A8: =Input!A50 -> Proximity to Grid Connection | B8: =IF(Input!B70<>"",Input!B70,"-") -> 2-3 km
A9: =Input!A51 -> Average Water Depth | B9: =IF(Input!B71<>"",Input!B71,"-") -> 5 - 10 m
A10: =Input!A52 -> Seabed Topography | B10: =IF(Input!B72<>"",Input!B72,"-") -> Moderate (Rocky, Gentle Gradient)
A11: =Input!A53 -> Accessibility | B11: =IF(Input!B73<>"",Input!B73,"-") -> Partially Accessible (Complex Temporary Works, Obstacles)
A13: Time Step | B13: 0.25 | C13: hours
A14: Period | B14: =B6/2 -> 14.37 | C14: days
B15: =B14*24 -> 344.88 | C15: hours
A16: Number of Steps | B16: =B15/B13*2 -> 2759.04 | C16: -
A18: No. | B18: Time | E18: Amplitude | F18: Current | G18: Power | H18: Energy
B19: Hours | C19: Day | D19: Time | E19: m/s | F19: m/s | G19: kW/(m^2) | H19: kWh/(m^2)
A20: 0 | B20: =A20*$B$13 -> 0 | C20: =ROUNDDOWN(A20*$B$1/24,0) -> 0 | D20: =MOD(B20,24)/24 -> 0 | E20: =IF(A20<>"",($B$4+$B$5)/2+($B$5-$B$4)/2*COS(2*PI()/$B$15*B20),"") -> 0.26 | F20: =IF(A20<>"",E20*COS(2*PI()/$B$7*B20),"") -> 0.26 | G20: =ABS(0.5*1.025*1*(F20^3)) -> 0.0090077 | H20: =G20*$B$13 -> 0.002251925
A21: =IF(IF(A20<>"",A20+1<=$B$16,0),A20+1,"") -> 1 | B21: =IF(A21<>"",A21*$B$13,"") -> 0.25 | C21: =IF(A21<>"",ROUNDDOWN(A21*$B$13/24,0),"") -> 0 | D21: =IF(A21<>"",MOD(B21,24)/24,"") -> 0.01041666667 | E21: =IF(A21<>"",($B$4+$B$5)/2+($B$5-$B$4)/2*COS(2*PI()/$B$15*B21),"") -> 0.2600012447 | F21: =IF(A21<>"",E21*COS(2*PI()/$B$7*B21),"") -> 0.2579179007 | G21: =ABS(0.5*1.025*1*(F21^3)) -> 0.008793025358 | H21: =G21*$B$13 -> 0.002198256339
A22: =IF(IF(A21<>"",A21+1<=$B$16,0),A21+1,"") -> 2 | B22: =IF(A22<>"",A22*$B$13,"") -> 0.5 | C22: =IF(A22<>"",ROUNDDOWN(A22*$B$13/24,0),"") -> 0 | D22: 0.02083333333 | E22: =IF(A22<>"",($B$4+$B$5)/2+($B$5-$B$4)/2*COS(2*PI()/$B$15*B22),"") -> 0.2600049787 | F22: =IF(A22<>"",E22*COS(2*PI()/$B$7*B22),"") -> 0.2517048706 | G22: 0.00817275967 | H22: 0.002043189917
A23: 3 | B23: 0.75 | C23: 0 | D23: 0.03125 | E23: 0.2600112019 | F23: 0.2414601825 | G23: 0.007214902119 | H23: 0.00180372553
A24: 4 | B24: 1 | C24: 0 | D24: 0.04166666667 | E24: 0.2600199142 | F24: 0.2273475321 | G24: 0.006022330735 | H24: 0.001505582684
A25: 5 | B25: 1.25 | C25: 0 | D25: 0.05208333333 | E25: 0.2600311155 | F25: 0.2095924284 | G25: 0.004718681219 | H25: 0.001179670305
A26: 6 | B26: 1.5 | C26: 0 | D26: 0.0625 | E26: 0.2600448054 | F26: 0.1884785993 | G26: 0.003431468422 | H26: 0.0008578671055
A27: 7 | B27: 1.75 | C27: 0 | D27: 0.07291666667 | E27: 0.2600609838 | F27: 0.1643434682 | G27: 0.00227484187 | H27: 0.0005687104676
A28: 8 | B28: 2 | C28: 0 | D28: 0.08333333333 | E28: 0.2600796502 | F28: 0.1375727748 | G28: 0.001334416368 | H28: 0.000333604092
A29: 9 | B29: 2.25 | C29: 0 | D29: 0.09375 | E29: 0.2601008043 | F29: 0.1085944247 | G29: 0.0006563212359 | H29: 0.000164080309
A30: 10 | B30: 2.5 | C30: 0 | D30: 0.1041666667 | E30: 0.2601244457 | F30: 0.07787166643 | G30: 0.0002420094225 | H30: 6.050235563e-05
A31: 11 | B31: 2.75 | C31: 0 | D31: 0.1145833333 | E31: 0.2601505738 | F31: 0.04589570343 | G31: 4.95461555e-05 | H31: 1.238653887e-05
A32: 12 | B32: 3 | C32: 0 | D32: 0.125 | E32: 0.2601791882 | F32: 0.01317785963 | G32: 1.172812271e-06 | H32: 2.932030677e-07
A33: 13 | B33: 3.25 | C33: 0 | D33: 0.1354166667 | E33: 0.2602102882 | F33: -0.01975857753 | G33: 3.953310229e-06 | H33: 9.883275573e-07
A34: 14 | B34: 3.5 | C34: 0 | D34: 0.1458333333 | E34: 0.2602438731 | F34: -0.05238670652 | G34: 7.368127919e-05 | H34: 1.84203198e-05
A35: 15 | B35: 3.75 | C35: 0 | D35: 0.15625 | E35: 0.2602799423 | F35: -0.08418442064 | G35: 0.0003057659015 | H35: 7.644147538e-05
A36: 16 | B36: 4 | C36: 0 | D36: 0.1666666667 | E36: 0.2603184951 | F36: -0.1146427428 | G36: 0.0007722067139 | H36: 0.0001930516785
A37: 17 | B37: 4.25 | C37: 0 | D37: 0.1770833333 | E37: 0.2603595306 | F37: -0.143273953 | G37: 0.001507285774 | H37: 0.0003768214436
A38: 18 | B38: 4.5 | C38: 0 | D38: 0.1875 | E38: 0.260403048 | F38: -0.1696193799 | G38: 0.002501037957 | H38: 0.0006252594894
A39: 19 | B39: 4.75 | C39: 0 | D39: 0.1979166667 | E39: 0.2604490463 | F39: -0.1932567307 | G39: 0.003699114332 | H39: 0.0009247785831
A40: 20 | B40: 5 | C40: 0 | D40: 0.2083333333 | E40: 0.2604975247 | F40: -0.2138068448 | G40: 0.005009088253 | H40: 0.001252272063
A41: 21 | B41: 5.25 | C41: 0 | D41: 0.21875 | E41: 0.2605484821 | F41: -0.2309397611 | G41: 0.006312334525 | H41: 0.001578083631
A42: 22 | B42: 5.5 | C42: 0 | D42: 0.2291666667 | E42: 0.2606019175 | F42: -0.2443800037 | G42: 0.007479815251 | H42: 0.001869953813
A43: 23 | B43: 5.75 | C43: 0 | D43: 0.2395833333 | E43: 0.2606578297 | F43: -0.253911001 | G43: 0.008389545283 | H43: 0.002097386321
A44: 24 | B44: 6 | C44: 0 | D44: 0.25 | E44: 0.2607162176 | F44: -0.259378567 | G44: 0.008943265612 | H44: 0.002235816403
A45: 25 | B45: 6.25 | C45: 0 | D45: 0.2604166667 | E45: 0.26077708 | F45: -0.2606933902 | G45: 0.009079959874 | H45: 0.002269989969
A46: 26 | B46: 6.5 | C46: 0 | D46: 0.2708333333 | E46: 0.2608404156 | F46: -0.2578324885 | G46: 0.008784292543 | H46: 0.002196073136
A47: 27 | B47: 6.75 | C47: 0 | D47: 0.28125 | E47: 0.2609062231 | F47: -0.2508396079 | G47: 0.008088764833 | H47: 0.002022191208
A48: 28 | B48: 7 | C48: 0 | D48: 0.2916666667 | E48: 0.2609745012 | F48: -0.2398245565 | G48: 0.007069274077 | H48: 0.001767318519
A49: 29 | B49: 7.25 | C49: 0 | D49: 0.3020833333 | E49: 0.2610452484 | F49: -0.224961486 | G49: 0.005834698049 | H49: 0.001458674512
A50: 30 | B50: 7.5 | C50: 0 | D50: 0.3125 | E50: 0.2611184632 | F50: -0.2064861452 | G50: 0.004511974324 | H50: 0.001127993581
A51: 31 | B51: 7.75 | C51: 0 | D51: 0.3229166667 | E51: 0.2611941442 | F51: -0.1846921505 | G51: 0.003228785427 | H51: 0.0008071963568
A52: 32 | B52: 8 | C52: 0 | D52: 0.3333333333 | E52: 0.2612722897 | F52: -0.1599263316 | G52: 0.002096301747 | H52: 0.0005240754367
A53: 33 | B53: 8.25 | C53: 0 | D53: 0.34375 | E53: 0.2613528982 | F53: -0.132583225 | G53: 0.001194426984 | H53: 0.0002986067459
A54: 34 | B54: 8.5 | C54: 0 | D54: 0.3541666667 | E54: 0.261435968 | F54: -0.1030988047 | G54: 0.000561635771 | H54: 0.0001404089427
A55: 35 | B55: 8.75 | C55: 0 | D55: 0.3645833333 | E55: 0.2615214973 | F55: -0.07194354731 | G55: 0.0001908400022 | H55: 4.771000054e-05
A56: 36 | B56: 9 | C56: 0 | D56: 0.375 | E56: 0.2616094844 | F56: -0.0396149428 | G56: 3.186184857e-05 | H56: 7.965462141e-06
A57: 37 | B57: 9.25 | C57: 0 | D57: 0.3854166667 | E57: 0.2616999274 | F57: -0.006629569498 | G57: 1.493309585e-07 | H57: 3.733273963e-08
A58: 38 | B58: 9.5 | C58: 0 | D58: 0.3958333333 | E58: 0.2617928246 | F58: 0.02648514077 | G58: 9.521398157e-06 | H58: 2.380349539e-06
A59: 39 | B59: 9.75 | C59: 0 | D59: 0.40625 | E59: 0.2618881738 | F59: 0.05919931641 | G59: 0.0001063270942 | H59: 2.658177354e-05
A60: 40 | B60: 10 | C60: 0 | D60: 0.4166666667 | E60: 0.2619859733 | F60: 0.0909891047 | G60: 0.0003860664347 | H60: 9.651660867e-05
A61: 41 | B61: 10.25 | C61: 0 | D61: 0.4270833333 | E61: 0.2620862209 | F61: 0.1213450407 | G61: 0.0009157142342 | H61: 0.0002289285586
A62: 42 | B62: 10.5 | C62: 0 | D62: 0.4375 | E62: 0.2621889145 | F62: 0.1497801932 | G62: 0.001722094696 | H62: 0.0004305236741
A63: 43 | B63: 10.75 | C63: 0 | D63: 0.4479166667 | E63: 0.2622940521 | F63: 0.1758379572 | G63: 0.002786324917 | H63: 0.0006965812293
A64: 44 | B64: 11 | C64: 0 | D64: 0.4583333333 | E64: 0.2624016314 | F64: 0.1990993693 | G64: 0.00404486026 | H64: 0.001011215065
A65: 45 | B65: 11.25 | C65: 0 | D65: 0.46875 | E65: 0.2625116503 | F65: 0.2191898284 | G65: 0.00539703283 | H65: 0.001349258207
A66: 46 | B66: 11.5 | C66: 0 | D66: 0.4791666667 | E66: 0.2626241064 | F66: 0.2357851149 | G66: 0.006718046781 | H66: 0.001679511695
A67: 47 | B67: 11.75 | C67: 0 | D67: 0.4895833333 | E67: 0.2627389974 | F67: 0.2486166105 | G67: 0.007875611662 | H67: 0.001968902916
A68: 48 | B68: 12 | C68: 0 | D68: 0.5 | E68: 0.2628563209 | F68: 0.2574756366 | G68: 0.008747869413 | H68: 0.002186967353
A69: 49 | B69: 12.25 | C69: 0 | D69: 0.5104166667 | E69: 0.2629760745 | F69: 0.2622168398 | G69: 0.009240077351 | H69: 0.002310019338
A70: 50 | B70: 12.5 | C70: 0 | D70: 0.5208333333 | E70: 0.2630982557 | F70: 0.262760571 | G70: 0.009297677122 | H70: 0.00232441928
A71: 51 | B71: 12.75 | C71: 0 | D71: 0.53125 | E71: 0.263222862 | F71: 0.2590942176 | G71: 0.008913885102 | H71: 0.002228471275
A72: 52 | B72: 13 | C72: 0 | D72: 0.5416666667 | E72: 0.2633498907 | F72: 0.2512724689 | G72: 0.008130712237 | H72: 0.002032678059
A73: 53 | B73: 13.25 | C73: 0 | D73: 0.5520833333 | E73: 0.2634793393 | F73: 0.2394165067 | G73: 0.007033251361 | H73: 0.00175831284
A74: 54 | B74: 13.5 | C74: 0 | D74: 0.5625 | E74: 0.2636112051 | F74: 0.2237121354 | G74: 0.005738025841 | H74: 0.00143450646
A75: 55 | B75: 13.75 | C75: 0 | D75: 0.5729166667 | E75: 0.2637454853 | F75: 0.2044068791 | G75: 0.004377038757 | H75: 0.001094259689
A76: 56 | B76: 14 | C76: 0 | D76: 0.5833333333 | E76: 0.2638821771 | F76: 0.1818060906 | G76: 0.00307977617 | H76: 0.0007699440424
A77: 57 | B77: 14.25 | C77: 0 | D77: 0.59375 | E77: 0.2640212778 | F77: 0.1562681342 | G77: 0.001955713123 | H77: 0.0004889282808
A78: 58 | B78: 14.5 | C78: 0 | D78: 0.6041666667 | E78: 0.2641627843 | F78: 0.1281987177 | G78: 0.001079803953 | H78: 0.0002699509882
A79: 59 | B79: 14.75 | C79: 0 | D79: 0.6145833333 | E79: 0.2643066939 | F79: 0.0980444626 | G79: 0.0004830177394 | H79: 0.0001207544349
A80: 60 | B80: 15 | C80: 0 | D80: 0.625 | E80: 0.2644530034 | F80: 0.06628581497 | G80: 0.0001492642044 | H80: 3.73160511e-05
A81: 61 | B81: 15.25 | C81: 0 | D81: 0.6354166667 | E81: 0.2646017099 | F81: 0.03342940825 | G81: 1.914608297e-05 | H81: 4.786520744e-06
A82: 62 | B82: 15.5 | C82: 0 | D82: 0.6458333333 | E82: 0.2647528103 | F82: -1.540573586e-16 | G82: 1.873877565e-48 | H82: 4.684693912e-49
A83: 63 | B83: 15.75 | C83: 0 | D83: 0.65625 | E83: 0.2649063015 | F83: -0.03346788992 | G83: 1.921227813e-05 | H83: 4.803069532e-06
A84: 64 | B84: 16 | C84: 0 | D84: 0.6666666667 | E84: 0.2650621802 | F84: -0.06643850667 | G84: 0.0001502980883 | H84: 3.757452207e-05
A85: 65 | B85: 16.25 | C85: 0 | D85: =IF(A85<>"",MOD(B85,24)/24,"") -> 0.6770833333 | E85: 0.2652204432 | F85: -0.09838341755 | G85: =ABS(0.5*1.025*1*(F85^3)) -> 0.0004880446805 | H85: =G85*$B$13 -> 0.0001220111701
A86: =IF(IF(A85<>"",A85+1<=$B$16,0),A85+1,"") -> 66 | B86: =IF(A86<>"",A86*$B$13,"") -> 16.5 | C86: =IF(A86<>"",ROUNDDOWN(A86*$B$13/24,0),"") -> 0 | D86: 0.6875 | E86: =IF(A86<>"",($B$4+$B$5)/2+($B$5-$B$4)/2*COS(2*PI()/$B$15*B86),"") -> 0.2653810873 | F86: =IF(A86<>"",E86*COS(2*PI()/$B$7*B86),"") -> -0.1287899625 | G86: 0.001094812935 | H86: 0.0002737032337
A87: 67 | B87: 16.75 | C87: 0 | D87: 0.6979166667 | E87: 0.2655441091 | F87: -0.1571694631 | G87: 0.001989749381 | H87: 0.0004974373452
A88: 68 | B88: 17 | C88: 0 | D88: 0.7083333333 | E88: 0.2657095052 | F88: -0.1830650592 | G88: 0.003144200631 | H88: 0.0007860501578
A89: 69 | B89: 17.25 | C89: 0 | D89: 0.71875 | E89: 0.2658772722 | F89: -0.2060590473 | G89: 0.004484034368 | H89: 0.001121008592
A90: 70 | B90: 17.5 | C90: 0 | D90: 0.7291666667 | E90: 0.2660474066 | F90: -0.2257796039 | G90: 0.005898587007 | H90: 0.001474646752
A91: 71 | B91: 17.75 | C91: 0 | D91: 0.7395833333 | E91: 0.2662199049 | F91: -0.2419067841 | G91: 0.007255009971 | H91: 0.001813752493
A92: 72 | B92: 18 | C92: 0 | D92: 0.75 | E92: 0.2663947636 | F92: -0.2541777016 | G92: 0.008416009455 | H92: 0.002104002364
A93: 73 | B93: 18.25 | C93: 0 | D93: 0.7604166667 | E93: 0.2665719789 | F93: -0.2623908038 | G93: 0.00925848014 | H93: 0.002314620035
A94: 74 | B94: 18.5 | C94: 0 | D94: 0.7708333333 | E94: 0.2667515472 | F94: -0.2664091735 | G94: 0.009690393111 | H94: 0.002422598278
A95: 75 | B95: 18.75 | C95: 0 | D95: 0.78125 | E95: 0.2669334648 | F95: -0.2661628048 | G95: 0.009663533647 | H95: 0.002415883412
A96: 76 | B96: 19 | C96: 0 | D96: 0.7916666667 | E96: 0.267117728 | F96: -0.2616498124 | G96: 0.009180263622 | H96: 0.002295065905
A97: 77 | B97: 19.25 | C97: 0 | D97: 0.8020833333 | E97: 0.2673043328 | F97: -0.2529365562 | G97: 0.008293324782 | H97: 0.002073331196
A98: 78 | B98: 19.5 | C98: 0 | D98: 0.8125 | E98: 0.2674932754 | F98: -0.2401566769 | G98: 0.007098684369 | H98: 0.001774671092
A99: 79 | B99: 19.75 | C99: 0 | D99: 0.8229166667 | E99: 0.2676845519 | F99: -0.2235090554 | G99: 0.005722413537 | H99: 0.001430603384
A100: 80 | B100: 20 | C100: 0 | D100: 0.8333333333 | E100: 0.2678781583 | F100: -0.2032547285 | G100: 0.004303440901 | H100: 0.001075860225
A101: 81 | B101: 20.25 | C101: 0 | D101: 0.84375 | E101: 0.2680740907 | F101: -0.1797128075 | G101: 0.002974616317 | H101: 0.0007436540793
A102: 82 | B102: 20.5 | C102: 0 | D102: 0.8541666667 | E102: 0.2682723449 | F102: -0.1532554636 | G102: 0.00184476805 | H102: 0.0004611920126
A103: 83 | B103: 20.75 | C103: 0 | D103: 0.8645833333 | E103: 0.2684729168 | F103: -0.1243020595 | G103: 0.0009843030773 | H103: 0.0002460757693
A104: 84 | B104: 21 | C104: 0 | D104: 0.875 | E104: 0.2686758023 | F104: -0.09331251746 | G104: 0.0004164027497 | H104: 0.0001041006874
A105: 85 | B105: 21.25 | C105: 0 | D105: 0.8854166667 | E105: 0.2688809972 | F105: -0.06078003063 | G105: 0.0001150738421 | H105: 2.876846053e-05
A106: 86 | B106: 21.5 | C106: 0 | D106: 0.8958333333 | E106: 0.2690884972 | F106: -0.02722323173 | G106: 1.033981836e-05 | H106: 2.58495459e-06
A107: 87 | B107: 21.75 | C107: 0 | D107: 0.90625 | E107: 0.269298298 | F107: 0.006822056847 | G107: 1.627196014e-07 | H107: 4.067990035e-08
A108: 88 | B108: 22 | C108: 0 | D108: 0.9166666667 | E108: 0.2695103952 | F108: 0.04081136016 | G108: 3.483670551e-05 | H108: 8.709176377e-06
A109: 89 | B109: 22.25 | C109: 0 | D109: 0.9270833333 | E109: 0.2697247845 | F109: 0.07420023973 | G109: 0.0002093677544 | H109: 5.23419386e-05
A110: 90 | B110: 22.5 | C110: 0 | D110: 0.9375 | E110: 0.2699414614 | F110: 0.1064529958 | G110: 0.0006182548526 | H110: 0.0001545637131
A111: 91 | B111: 22.75 | C111: 0 | D111: 0.9479166667 | E111: 0.2701604214 | F111: 0.1370512444 | G111: 0.001319297744 | H111: 0.000329824436
A112: 92 | B112: 23 | C112: 0 | D112: 0.9583333333 | E112: 0.27038166 | F112: 0.1655022316 | G112: 0.002323300748 | H112: 0.000580825187
A113: 93 | B113: 23.25 | C113: 0 | D113: 0.96875 | E113: 0.2706051725 | F113: 0.1913467525 | G113: 0.003590518406 | H113: 0.0008976296014
A114: 94 | B114: 23.5 | C114: 0 | D114: 0.9791666667 | E114: 0.2708309544 | F114: 0.2141665475 | G114: 0.005034412267 | H114: 0.001258603067
A115: 95 | B115: 23.75 | C115: 0 | D115: 0.9895833333 | E115: 0.2710590009 | F115: 0.2335910576 | G115: 0.006532245651 | H115: 0.001633061413
A116: 96 | B116: 24 | C116: 1 | D116: 0 | E116: 0.2712893074 | F116: 0.2493034283 | G116: 0.007941062639 | H116: 0.00198526566
A117: 97 | B117: 24.25 | C117: 1 | D117: 0.01041666667 | E117: 0.271521869 | F117: 0.2610456675 | G117: 0.009116819128 | H117: 0.002279204782
A118: 98 | B118: 24.5 | C118: 1 | D118: 0.02083333333 | E118: 0.271756681 | F118: 0.2686228711 | G118: 0.009933969665 | H118: 0.002483492416
A119: 99 | B119: 24.75 | C119: 1 | D119: 0.03125 | E119: 0.2719937384 | F119: 0.2719064489 | G119: 0.01030273178 | H119: 0.002575682945
A120: 100 | B120: 25 | C120: 1 | D120: 0.04166666667 | E120: 0.2722330363 | F120: 0.2708362966 | G120: 0.0101815634 | H120: 0.00254539085
A121: 101 | B121: 25.25 | C121: 1 | D121: 0.05208333333 | E121: 0.2724745698 | F121: 0.2654218784 | G121: 0.009583055972 | H121: 0.002395763993
A122: 102 | B122: 25.5 | C122: 1 | D122: 0.0625 | E122: 0.2727183339 | F122: 0.2557421991 | G122: 0.008572372918 | H122: 0.002143093229
A123: 103 | B123: 25.75 | C123: 1 | D123: 0.07291666667 | E123: 0.2729643235 | F123: 0.2419446667 | G123: 0.007258418907 | H123: 0.001814604727
A124: 104 | B124: 26 | C124: 1 | D124: 0.08333333333 | E124: 0.2732125334 | F124: 0.2242428591 | G124: 0.005778960634 | H124: 0.001444740158
A125: 105 | B125: 26.25 | C125: 1 | D125: 0.09375 | E125: 0.2734629587 | F125: 0.2029132305 | G125: 0.004281786069 | H125: 0.001070446517
A126: 106 | B126: 26.5 | C126: 1 | D126: 0.1041666667 | E126: 0.273715594 | F126: 0.178290806 | G126: 0.002904562424 | H126: 0.0007261406059
A127: 107 | B127: 26.75 | C127: 1 | D127: 0.1145833333 | E127: 0.2739704341 | F127: 0.1507639341 | G127: 0.001756249664 | H127: 0.000439062416
A128: 108 | B128: 27 | C128: 1 | D128: 0.125 | E128: 0.2742274737 | F128: 0.1207681756 | G128: 0.0009027165126 | H128: 0.0002256791282
A129: 109 | B129: 27.25 | C129: 1 | D129: 0.1354166667 | E129: 0.2744867075 | F129: 0.08877942818 | G129: 0.0003586170222 | H129: 8.965425556e-05
A130: 110 | B130: 27.5 | C130: 1 | D130: 0.1458333333 | E130: 0.2747481302 | F130: 0.055306392 | G130: 8.670015068e-05 | H130: 2.167503767e-05
A131: 111 | B131: 27.75 | C131: 1 | D131: 0.15625 | E131: 0.2750117362 | F131: 0.02088249758 | G131: 4.667036409e-06 | H131: 1.166759102e-06
A132: 112 | B132: 28 | C132: 1 | D132: 0.1666666667 | E132: 0.2752775202 | F132: -0.0139425776 | G132: 1.389066637e-06 | H132: 3.472666593e-07
A133: 113 | B133: 28.25 | C133: 1 | D133: 0.1770833333 | E133: 0.2755454766 | F133: -0.04861166857 | G133: 5.887290346e-05 | H133: 1.471822587e-05
A134: 114 | B134: 28.5 | C134: 1 | D134: 0.1875 | E134: 0.2758155998 | F134: -0.08256901934 | G134: 0.0002884996226 | H134: 7.212490565e-05
A135: 115 | B135: 28.75 | C135: 1 | D135: 0.1979166667 | E135: 0.2760878844 | F135: -0.1152691744 | G135: 0.0007849344988 | H135: 0.0001962336247
A136: 116 | B136: 29 | C136: 1 | D136: 0.2083333333 | E136: 0.2763623245 | F136: -0.1461857234 | G136: 0.001601064226 | H136: 0.0004002660564
A137: 117 | B137: 29.25 | C137: 1 | D137: 0.21875 | E137: 0.2766389145 | F137: -0.1748197595 | G137: 0.002738201634 | H137: 0.0006845504085
A138: 118 | B138: 29.5 | C138: 1 | D138: 0.2291666667 | E138: 0.2769176487 | F138: -0.2007079144 | G138: 0.00414369102 | H138: 0.001035922755
A139: 119 | B139: 29.75 | C139: 1 | D139: 0.2395833333 | E139: 0.2771985213 | F139: -0.2234298427 | G139: 0.005716331537 | H139: 0.001429082884
A140: 120 | B140: 30 | C140: 1 | D140: 0.25 | E140: 0.2774815264 | F140: -0.2426150337 | G140: 0.007318919916 | H140: 0.001829729979
A141: 121 | B141: 30.25 | C141: 1 | D141: 0.2604166667 | E141: 0.2777666583 | F141: -0.2579488404 | G141: 0.008796190152 | H141: 0.002199047538
A142: 122 | B142: 30.5 | C142: 1 | D142: 0.2708333333 | E142: 0.2780539109 | F142: -0.2691776289 | G142: 0.009995643529 | H142: 0.002498910882
A143: 123 | B143: 30.75 | C143: 1 | D143: 0.28125 | E143: 0.2783432783 | F143: -0.2761129629 | G143: 0.0107883309 | H143: 0.002697082725
A144: 124 | B144: 31 | C144: 1 | D144: 0.2916666667 | E144: 0.2786347546 | F144: -0.2786347546 | G144: 0.01108663442 | H144: 0.002771658606
A145: 125 | B145: 31.25 | C145: 1 | D145: 0.3020833333 | E145: 0.2789283336 | F145: -0.2766933303 | G145: 0.01085650262 | H145: 0.002714125654
A146: 126 | B146: 31.5 | C146: 1 | D146: 0.3125 | E146: 0.2792240094 | F146: -0.2703103745 | G146: 0.01012236544 | H146: 0.002530591361
A147: 127 | B147: 31.75 | C147: 1 | D147: 0.3229166667 | E147: 0.2795217756 | F147: -0.2595787354 | G147: 0.008963986764 | H147: 0.002240996691
A148: 128 | B148: 32 | C148: 1 | D148: 0.3333333333 | E148: 0.2798216263 | F148: -0.244661092 | G148: 0.007505655022 | H148: 0.001876413756
A149: 129 | B149: 32.25 | C149: 1 | D149: =IF(A149<>"",MOD(B149,24)/24,"") -> 0.34375 | E149: 0.280123555 | F149: -0.2257875026 | G149: =ABS(0.5*1.025*1*(F149^3)) -> 0.005899206104 | H149: =G149*$B$13 -> 0.001474801526
A150: =IF(IF(A149<>"",A149+1<=$B$16,0),A149+1,"") -> 130 | B150: =IF(A150<>"",A150*$B$13,"") -> 32.5 | C150: =IF(A150<>"",ROUNDDOWN(A150*$B$13/24,0),"") -> 1 | D150: 0.3541666667 | E150: =IF(A150<>"",($B$4+$B$5)/2+($B$5-$B$4)/2*COS(2*PI()/$B$15*B150),"") -> 0.2804275557 | F150: =IF(A150<>"",E150*COS(2*PI()/$B$7*B150),"") -> -0.2032518697 | G150: 0.004303259318 | H150: 0.00107581483
A151: 131 | B151: 32.75 | C151: 1 | D151: 0.3645833333 | E151: 0.280733622 | F151: -0.1774073773 | G151: 0.002861599799 | H151: 0.0007153999497
A152: 132 | B152: 33 | C152: 1 | D152: 0.375 | E152: 0.2810417475 | F152: -0.1486609698 | G152: 0.001683777705 | H152: 0.0004209444262
A153: 133 | B153: 33.25 | C153: 1 | D153: 0.3854166667 | E153: 0.2813519258 | F153: -0.117466959 | G153: 0.0008306939497 | H153: 0.0002076734874
A154: 134 | B154: 33.5 | C154: 1 | D154: 0.3958333333 | E154: 0.2816641505 | F154: -0.08431985973 | G154: 0.0003072440604 | H154: 7.681101509e-05
A155: 135 | B155: 33.75 | C155: 1 | D155: 0.40625 | E155: 0.2819784152 | F155: -0.04974656609 | G155: 6.309329266e-05 | H155: 1.577332317e-05
A156: 136 | B156: 34 | C156: 1 | D156: 0.4166666667 | E156: 0.2822947132 | F156: -0.01429799259 | G156: 1.49802504e-06 | H156: 3.745062601e-07
A157: 137 | B157: 34.25 | C157: 1 | D157: 0.4270833333 | E157: 0.2826130381 | F157: 0.02145968811 | G157: 5.064820832e-06 | H157: 1.266205208e-06
A158: 138 | B158: 34.5 | C158: 1 | D158: 0.4375 | E158: 0.2829333833 | F158: 0.05695407134 | G158: 9.468216817e-05 | H158: 2.367054204e-05
A159: 139 | B159: 34.75 | C159: 1 | D159: 0.4479166667 | E159: 0.2832557421 | F159: 0.09161566706 | G159: 0.0003940969865 | H159: 9.852424661e-05
A160: 140 | B160: 35 | C160: 1 | D160: 0.4583333333 | E160: 0.2835801077 | F160: 0.1248870209 | G160: 0.0009982648695 | H160: 0.0002495662174
A161: 141 | B161: 35.25 | C161: 1 | D161: 0.46875 | E161: 0.2839064736 | F161: 0.1562316642 | G161: 0.001954344166 | H161: 0.0004885860415
A162: 142 | B162: 35.5 | C162: 1 | D162: 0.4791666667 | E162: 0.2842348328 | F162: 0.1851427487 | G162: 0.003252475183 | H162: 0.0008131187957
A163: 143 | B163: 35.75 | C163: 1 | D163: 0.4895833333 | E163: 0.2845651787 | F163: 0.2111512285 | G163: 0.004824748809 | H163: 0.001206187202
A164: 144 | B164: 36 | C164: 1 | D164: 0.5 | E164: 0.2848975043 | F164: 0.233833456 | G164: 0.006552602381 | H164: 0.001638150595
A165: 145 | B165: 36.25 | C165: 1 | D165: 0.5104166667 | E165: 0.2852318028 | F165: 0.25281807 | G165: 0.008281675408 | H165: 0.002070418852
A166: 146 | B166: 36.5 | C166: 1 | D166: 0.5208333333 | E166: 0.2855680672 | F166: 0.2677920639 | G166: 0.009842081947 | H166: 0.002460520487
A167: 147 | B167: 36.75 | C167: 1 | D167: 0.53125 | E167: 0.2859062905 | F167: 0.2785059344 | G167: 0.0110712646 | H167: 0.002767816149
A168: 148 | B168: 37 | C168: 1 | D168: 0.5416666667 | E168: 0.2862464657 | F168: 0.2847778277 | G168: 0.01183620254 | H168: 0.002959050636
A169: 149 | B169: 37.25 | C169: 1 | D169: 0.5520833333 | E169: 0.2865885859 | F169: 0.2864966125 | G169: 0.01205181187 | H169: 0.003012952967
A170: 150 | B170: 37.5 | C170: 1 | D170: 0.5625 | E170: 0.2869326438 | F170: 0.2836238296 | G170: 0.01169289419 | H170: 0.002923223548
A171: 151 | B171: 37.75 | C171: 1 | D171: 0.5729166667 | E171: 0.2872786323 | F171: 0.2761944833 | G171: 0.01079788925 | H171: 0.002699472313
A172: 152 | B172: 38 | C172: 1 | D172: 0.5833333333 | E172: 0.2876265443 | F172: 0.2643166597 | G172: 0.009463842011 | H172: 0.002365960503
A173: 153 | B173: 38.25 | C173: 1 | D173: 0.59375 | E173: 0.2879763725 | F173: 0.2481699747 | G173: 0.007833242635 | H173: 0.001958310659
A174: 154 | B174: 38.5 | C174: 1 | D174: 0.6041666667 | E174: 0.2883281097 | F174: 0.2280028735 | G174: 0.006074560065 | H174: 0.001518640016
A175: 155 | B175: 38.75 | C175: 1 | D175: 0.6145833333 | E175: 0.2886817486 | F175: 0.2041288221 | G175: 0.004359200635 | H175: 0.001089800159
A176: 156 | B176: 39 | C176: 1 | D176: 0.625 | E176: 0.2890372819 | F176: 0.1769214494 | G176: 0.002838149941 | H176: 0.0007095374852
A177: 157 | B177: 39.25 | C177: 1 | D177: 0.6354166667 | E177: 0.2893947021 | F177: 0.1468087141 | G177: 0.001621621052 | H177: 0.0004054052629
A178: 158 | B178: 39.5 | C178: 1 | D178: 0.6458333333 | E178: 0.2897540019 | F178: 0.1142661872 | G178: 0.0007646225085 | H178: 0.0001911556271
A179: 159 | B179: 39.75 | C179: 1 | D179: 0.65625 | E179: 0.2901151738 | F179: 0.07980955657 | G179: 0.0002605304942 | H179: 6.513262354e-05
A180: 160 | B180: 40 | C180: 1 | D180: 0.6666666667 | E180: 0.2904782103 | F180: 0.04398646981 | G180: 4.361653841e-05 | H180: 1.09041346e-05
A181: 161 | B181: 40.25 | C181: 1 | D181: 0.6770833333 | E181: 0.2908431039 | F181: 0.007367845262 | G181: 2.049818265e-07 | H181: 5.124545664e-08
A182: 162 | B182: 40.5 | C182: 1 | D182: 0.6875 | E182: 0.2912098471 | F182: -0.02946121157 | G182: 1.310526112e-05 | H182: 3.27631528e-06
A183: 163 | B183: 40.75 | C183: 1 | D183: 0.6979166667 | E183: 0.2915784321 | F183: -0.065910742 | G183: 0.000146744716 | H183: 3.6686179e-05
A184: 164 | B184: 41 | C184: 1 | D184: 0.7083333333 | E184: 0.2919488514 | F184: -0.1013953696 | G184: 0.0005342545606 | H184: 0.0001335636401
A185: 165 | B185: 41.25 | C185: 1 | D185: 0.71875 | E185: 0.2923210972 | F185: -0.135343687 | G185: 0.001270597158 | H185: 0.0003176492896
A186: 166 | B186: 41.5 | C186: 1 | D186: 0.7291666667 | E186: 0.292695162 | F186: -0.1672074427 | G186: 0.002395855848 | H186: 0.0005989639621
A187: 167 | B187: 41.75 | C187: 1 | D187: 0.7395833333 | E187: 0.2930710378 | F187: -0.1964703819 | G187: 0.00388673685 | H187: 0.0009716842124
A188: 168 | B188: 42 | C188: 1 | D188: 0.75 | E188: 0.2934487169 | F188: -0.2226565975 | G188: 0.005657187517 | H188: 0.001414296879
A189: 169 | B189: 42.25 | C189: 1 | D189: 0.7604166667 | E189: 0.2938281915 | F189: -0.2453382576 | G189: 0.007568149444 | H189: 0.001892037361
A190: 170 | B190: 42.5 | C190: 1 | D190: 0.7708333333 | E190: 0.2942094536 | F190: -0.264142583 | G190: 0.00944515591 | H190: 0.002361288978
A191: 171 | B191: 42.75 | C191: 1 | D191: 0.78125 | E191: 0.2945924955 | F191: -0.278757963 | G191: 0.01110134799 | H191: 0.002775336997
A192: 172 | B192: 43 | C192: 1 | D192: 0.7916666667 | E192: 0.2949773091 | F192: -0.2889391062 | G192: 0.01236268617 | H192: 0.003090671543
A193: 173 | B193: 43.25 | C193: 1 | D193: 0.8020833333 | E193: 0.2953638864 | F193: -0.2945111453 | G193: 0.0130917913 | H193: 0.003272947825
A194: 174 | B194: 43.5 | C194: 1 | D194: 0.8125 | E194: 0.2957522195 | F194: -0.2953726236 | G194: 0.01320701258 | H194: 0.003301753145
A195: 175 | B195: 43.75 | C195: 1 | D195: 0.8229166667 | E195: 0.2961423002 | F195: -0.2914973153 | G195: 0.01269397233 | H195: 0.003173493083
A196: 176 | B196: 44 | C196: 1 | D196: 0.8333333333 | E196: 0.2965341205 | F196: -0.2829348453 | G196: 0.01160788724 | H196: 0.002901971809
A197: 177 | B197: 44.25 | C197: 1 | D197: 0.84375 | E197: 0.2969276723 | F197: -0.2698100968 | G197: 0.0100662674 | H197: 0.002516566851
A198: 178 | B198: 44.5 | C198: 1 | D198: 0.8541666667 | E198: 0.2973229474 | F198: -0.252321412 | G198: 0.00823296347 | H198: 0.002058240868
A199: 179 | B199: 44.75 | C199: 1 | D199: 0.8645833333 | E199: 0.2977199376 | F199: -0.2307376114 | G199: 0.006295772804 | H199: 0.001573943201
A200: 180 | B200: 45 | C200: 1 | D200: 0.875 | E200: 0.2981186346 | F200: -0.2053938772 | G200: 0.004440750254 | H200: 0.001110187563
A201: 181 | B201: 45.25 | C201: 1 | D201: 0.8854166667 | E201: 0.2985190303 | F201: -0.176686562 | G201: 0.002826860847 | H201: 0.0007067152118
A202: 182 | B202: 45.5 | C202: 1 | D202: 0.8958333333 | E202: 0.2989211162 | F202: -0.1450670043 | G202: 0.001564587291 | H202: 0.0003911468228
A203: 183 | B203: 45.75 | C203: 1 | D203: 0.90625 | E203: 0.299324884 | F203: -0.1110344463 | G203: 0.0007015636241 | H203: 0.000175390906
... 2579 more rows

Sheet Tidal Stream 4
A1: Tidal Stream Resource
A3: =Input!A45 -> Site Name | B3: =IF(Input!B75<>"",Input!B75,"-") -> Northeast Eigg | C3: =Input!C45 -> 0 | I3: Plots:
A4: =Input!A46 -> Peak Flow (Springs) | B4: =IF((AND(Input!B76<>"",Input!B76<>"[Enter Value]")),Input!B76,"0") -> 0.75 | C4: =Input!C46 -> m/s
A5: =Input!A47 -> Peak Flow (Neaps) | B5: =IF((AND(Input!B77<>"",Input!B77<>"[Enter Value]")),Input!B77,"0") -> 0.51 | C5: =Input!C47 -> m/s
A6: =Input!A48 -> Lunar Cycle Period | B6: =IF((AND(Input!B78<>"",Input!B78<>"[Enter Value]")),Input!B78,"0") -> 28.74 | C6: =Input!C48 -> days
A7: =Input!A49 -> Tidal Period | B7: =IF((AND(Input!B79<>"",Input!B79<>"[Enter Value]")),Input!B79,"0") -> 12.4 | C7: =Input!C49 -> hours
A8: =Input!A50 -> Proximity to Grid Connection | B8: =IF(Input!B80<>"",Input!B80,"-") -> 1-2 km
A9: =Input!A51 -> Average Water Depth | B9: =IF(Input!B81<>"",Input!B81,"-") -> 10 -15 m
A10: =Input!A52 -> Seabed Topography | B10: =IF(Input!B82<>"",Input!B82,"-") -> Harsh (Rocky, Moderate/Steep Gradient)
A11: =Input!A53 -> Accessibility | B11: =IF(Input!B83<>"",Input!B83,"-") -> Inaccessible (No Infrastructure, Extremely Difficult)
A13: Time Step | B13: 0.25 | C13: hours
A14: Period | B14: =B6/2 -> 14.37 | C14: days
B15: =B14*24 -> 344.88 | C15: hours
A16: Number of Steps | B16: =B15/B13*2 -> 2759.04 | C16: -
A18: No. | B18: Time | E18: Amplitude | F18: Current | G18: Power | H18: Energy
B19: Hours | C19: Day | D19: Time | E19: m/s | F19: m/s | G19: kW/(m^2) | H19: kWh/(m^2)
A20: 0 | B20: =A20*$B$13 -> 0 | C20: =ROUNDDOWN(A20*$B$1/24,0) -> 0 | D20: =MOD(B20,24)/24 -> 0 | E20: =IF(A20<>"",($B$4+$B$5)/2+($B$5-$B$4)/2*COS(2*PI()/$B$15*B20),"") -> 0.51 | F20: =IF(A20<>"",E20*COS(2*PI()/$B$7*B20),"") -> 0.51 | G20: =ABS(0.5*1.025*1*(F20^3)) -> 0.0679836375 | H20: =G20*$B$13 -> 0.01699590937
A21: =IF(IF(A20<>"",A20+1<=$B$16,0),A20+1,"") -> 1 | B21: =IF(A21<>"",A21*$B$13,"") -> 0.25 | C21: =IF(A21<>"",ROUNDDOWN(A21*$B$13/24,0),"") -> 0 | D21: =IF(A21<>"",MOD(B21,24)/24,"") -> 0.01041666667 | E21: =IF(A21<>"",($B$4+$B$5)/2+($B$5-$B$4)/2*COS(2*PI()/$B$15*B21),"") -> 0.5100012447 | F21: =IF(A21<>"",E21*COS(2*PI()/$B$7*B21),"") -> 0.505914695 | G21: =ABS(0.5*1.025*1*(F21^3)) -> 0.06636296059 | H21: =G21*$B$13 -> 0.01659074015
A22: =IF(IF(A21<>"",A21+1<=$B$16,0),A21+1,"") -> 2 | B22: =IF(A22<>"",A22*$B$13,"") -> 0.5 | C22: =IF(A22<>"",ROUNDDOWN(A22*$B$13/24,0),"") -> 0 | D22: 0.02083333333 | E22: =IF(A22<>"",($B$4+$B$5)/2+($B$5-$B$4)/2*COS(2*PI()/$B$15*B22),"") -> 0.5100049787 | F22: =IF(A22<>"",E22*COS(2*PI()/$B$7*B22),"") -> 0.4937241503 | G22: 0.06168037182 | H22: 0.01542009295
A23: 3 | B23: 0.75 | C23: 0 | D23: 0.03125 | E23: 0.5100112019 | F23: 0.4736234324 | G23: 0.05444943936 | H23: 0.01361235984
A24: 4 | B24: 1 | C24: 0 | D24: 0.04166666667 | E24: 0.5100199142 | F24: 0.4459341862 | G24: 0.0454470996 | H24: 0.0113617749
A25: 5 | B25: 1.25 | C25: 0 | D25: 0.05208333333 | E25: 0.5100311155 | F25: 0.4110994943 | G25: 0.03560694366 | H25: 0.008901735915
A26: 6 | B26: 1.5 | C26: 0 | D26: 0.0625 | E26: 0.5100448054 | F26: 0.3696767961 | G26: 0.02589169274 | H26: 0.006472923186
A27: 7 | B27: 1.75 | C27: 0 | D27: 0.07291666667 | E27: 0.5100609838 | F27: 0.3223289778 | G27: 0.01716294942 | H27: 0.004290737354
A28: 8 | B28: 2 | C28: 0 | D28: 0.08333333333 | E28: 0.5100796502 | F28: 0.2698137774 | G28: 0.01006667936 | H28: 0.00251666984
A29: 9 | B29: 2.25 | C29: 0 | D29: 0.09375 | E29: 0.5101008043 | F29: 0.2129716728 | G29: 0.004950617765 | H29: 0.001237654441
A30: 10 | B30: 2.5 | C30: 0 | D30: 0.1041666667 | E30: 0.5101244457 | F30: 0.1527124472 | G30: 0.00182522824 | H30: 0.0004563070601
A31: 11 | B31: 2.75 | C31: 0 | D31: 0.1145833333 | E31: 0.5101505738 | F31: 0.09000064499 | G31: 0.0003736205326 | H31: 9.340513316e-05
A32: 12 | B32: 3 | C32: 0 | D32: 0.125 | E32: 0.5101791882 | F32: 0.02584015184 | G32: 8.84258114e-06 | H32: 2.210645285e-06
A33: 13 | B33: 3.25 | C33: 0 | D33: 0.1354166667 | E33: 0.5102102882 | F33: -0.03874185609 | G33: 2.980129527e-05 | H33: 7.450323816e-06
A34: 14 | B34: 3.5 | C34: 0 | D34: 0.1458333333 | E34: 0.5102438731 | F34: -0.1027113365 | G34: 0.0005553272839 | H34: 0.000138831821
A35: 15 | B35: 3.75 | C35: 0 | D35: 0.15625 | E35: 0.5102799423 | F35: -0.1650439174 | G35: 0.002304052867 | H35: 0.0005760132167
A36: 16 | B36: 4 | C36: 0 | D36: 0.1666666667 | E36: 0.5103184951 | F36: -0.2247412807 | G36: 0.005817580798 | H36: 0.001454395199
A37: 17 | B37: 4.25 | C37: 0 | D37: 0.1770833333 | E37: 0.5103595306 | F37: -0.2808471318 | G37: 0.01135282252 | H37: 0.002838205631
A38: 18 | B38: 4.5 | C38: 0 | D38: 0.1875 | E38: 0.510403048 | F38: -0.3324625005 | G38: 0.01883310253 | H38: 0.004708275632
A39: 19 | B39: 4.75 | C39: 0 | D39: 0.1979166667 | E39: 0.5104490463 | F39: -0.3787601271 | G39: 0.02784752679 | H39: 0.006961881697
A40: 20 | B40: 5 | C40: 0 | D40: 0.2083333333 | E40: 0.5104975247 | F40: -0.4189977051 | G40: 0.03769891079 | H40: 0.009424727698
A41: 21 | B41: 5.25 | C41: 0 | D41: 0.21875 | E41: 0.5105484821 | F41: -0.4525297693 | G41: 0.04749362647 | H41: 0.01187340662
A42: 22 | B42: 5.5 | C42: 0 | D42: 0.2291666667 | E42: 0.5106019175 | F42: -0.4788180368 | G42: 0.05626073152 | H42: 0.01406518288
A43: 23 | B43: 5.75 | C43: 0 | D43: 0.2395833333 | E43: 0.5106578297 | F43: -0.497440038 | G43: 0.06308354394 | H43: 0.01577088598
A44: 24 | B44: 6 | C44: 0 | D44: 0.25 | E44: 0.5107162176 | F44: -0.5080958978 | G44: 0.06722501929 | H44: 0.01680625482
A45: 25 | B45: 6.25 | C45: 0 | D45: 0.2604166667 | E45: 0.51077708 | F45: -0.510613159 | G45: 0.068229137 | H45: 0.01705728425
A46: 26 | B46: 6.5 | C46: 0 | D46: 0.2708333333 | E46: 0.5108404156 | F46: -0.5049495696 | G46: 0.06598388598 | H46: 0.01649597149
A47: 27 | B47: 6.75 | C47: 0 | D47: 0.28125 | E47: 0.5109062231 | F47: -0.4911937904 | G47: 0.06073687922 | H47: 0.01518421981
A48: 28 | B48: 7 | C48: 0 | D48: 0.2916666667 | E48: 0.5109745012 | F48: -0.4695640094 | G48: 0.05306134769 | H48: 0.01326533692
A49: 29 | B49: 7.25 | C49: 0 | D49: 0.3020833333 | E49: 0.5110452484 | F49: -0.4404044861 | G49: 0.04377731006 | H49: 0.01094432752
A50: 30 | B50: 7.5 | C50: 0 | D50: 0.3125 | E50: 0.5111184632 | F50: -0.4041800794 | G50: 0.0338390829 | H50: 0.008459770724
A51: 31 | B51: 7.75 | C51: 0 | D51: 0.3229166667 | E51: 0.5111941442 | F51: -0.3614688458 | G51: 0.02420507803 | H51: 0.006051269507
A52: 32 | B52: 8 | C52: 0 | D52: 0.3333333333 | E52: 0.5112722897 | F52: -0.3129528272 | G52: 0.01570834778 | H52: 0.003927086944
A53: 33 | B53: 8.25 | C53: 0 | D53: 0.34375 | E53: 0.5113528982 | F53: -0.2594071726 | G53: 0.008946224863 | H53: 0.002236556216
A54: 34 | B54: 8.5 | C54: 0 | D54: 0.3541666667 | E54: 0.511435968 | F54: -0.2016877685 | G54: 0.004204676159 | H54: 0.00105116904
A55: 35 | B55: 8.75 | C55: 0 | D55: 0.3645833333 | E55: 0.5115214973 | F55: -0.1407175755 | G55: 0.001428035162 | H55: 0.0003570087906
A56: 36 | B56: 9 | C56: 0 | D56: 0.375 | E56: 0.5116094844 | F56: -0.07747188717 | G56: 0.0002383012254 | H56: 5.957530634e-05
A57: 37 | B57: 9.25 | C57: 0 | D57: 0.3854166667 | E57: 0.5116999274 | F57: -0.01296274808 | G57: 1.116310763e-06 | H57: 2.790776909e-07
A58: 38 | B58: 9.5 | C58: 0 | D58: 0.3958333333 | E58: 0.5117928246 | F58: 0.05177722127 | G58: 7.113938198e-05 | H58: 1.778484549e-05
A59: 39 | B59: 9.75 | C59: 0 | D59: 0.40625 | E59: 0.5118881738 | F59: 0.1157113341 | G59: 0.0007940019549 | H59: 0.0001985004887
A60: 40 | B60: 10 | C60: 0 | D60: 0.4166666667 | E60: 0.5119859733 | F60: 0.1778154179 | G60: 0.002881390461 | H60: 0.0007203476153
A61: 41 | B61: 10.25 | C61: 0 | D61: 0.4270833333 | E61: 0.5120862209 | F61: 0.2370942018 | G61: 0.006830565645 | H61: 0.001707641411
A62: 42 | B62: 10.5 | C62: 0 | D62: 0.4375 | E62: 0.5121889145 | F62: 0.292597247 | G62: 0.01283821299 | H62: 0.003209553248
A63: 43 | B63: 10.75 | C63: 0 | D63: 0.4479166667 | E63: 0.5122940521 | F63: 0.3434341682 | G63: 0.0207598577 | H63: 0.005189964424
A64: 44 | B64: 11 | C64: 0 | D64: 0.4583333333 | E64: 0.5124016314 | F64: 0.3887888999 | G64: 0.03011864581 | H64: 0.007529661452
A65: 45 | B65: 11.25 | C65: 0 | D65: 0.46875 | E65: 0.5125116503 | F65: 0.4279327815 | G65: 0.0401624816 | H65: 0.0100406204
A66: 46 | B66: 11.5 | C66: 0 | D66: 0.4791666667 | E66: 0.5126241064 | F66: 0.4602362498 | G66: 0.04996159981 | H66: 0.01249039995
A67: 47 | B67: 11.75 | C67: 0 | D67: 0.4895833333 | E67: 0.5127389974 | F67: 0.4851789528 | G67: 0.05853285772 | H67: 0.01463321443
A68: 48 | B68: 12 | C68: 0 | D68: 0.5 | E68: 0.5128563209 | F68: 0.5023581219 | G68: 0.06497318463 | H68: 0.01624329616
A69: 49 | B69: 12.25 | C69: 0 | D69: 0.5104166667 | E69: 0.5129760745 | F69: 0.5114950682 | G69: 0.06858327528 | H69: 0.01714581882
A70: 50 | B70: 12.5 | C70: 0 | D70: 0.5208333333 | E70: 0.5130982557 | F70: 0.5124396978 | G70: 0.06896395644 | H70: 0.01724098911
A71: 51 | B71: 12.75 | C71: 0 | D71: 0.53125 | E71: 0.513222862 | F71: 0.5051729736 | G71: 0.06607150415 | H71: 0.01651787604
A72: 52 | B72: 13 | C72: 0 | D72: 0.5416666667 | E72: 0.5133498907 | F72: 0.489807283 | G72: 0.06022399828 | H72: 0.01505599957
A73: 53 | B73: 13.25 | C73: 0 | D73: 0.5520833333 | E73: 0.5134793393 | F73: 0.4665847045 | G73: 0.05205774633 | H73: 0.01301443658
A74: 54 | B74: 13.5 | C74: 0 | D74: 0.5625 | E74: 0.5136112051 | F74: 0.4358731998 | G74: 0.04243990175 | H74: 0.01060997544
A75: 55 | B75: 13.75 | C75: 0 | D75: 0.5729166667 | E75: 0.5137454853 | F75: 0.398160792 | G75: 0.03234963199 | H75: 0.008087407998
A76: 56 | B76: 14 | C76: 0 | D76: 0.5833333333 | E76: 0.5138821771 | F76: 0.3540478203 | G76: 0.02274467025 | H76: 0.005686167563
A77: 57 | B77: 14.25 | C77: 0 | D77: 0.59375 | E77: 0.5140212778 | F77: 0.3042373959 | G77: 0.01443217063 | H77: 0.003608042658
A78: 58 | B78: 14.5 | C78: 0 | D78: 0.6041666667 | E78: 0.5141627843 | F78: 0.2495242083 | G78: 0.00796217885 | H78: 0.001990544713
A79: 59 | B79: 14.75 | C79: 0 | D79: 0.6145833333 | E79: 0.5143066939 | F79: 0.1907818628 | G79: 0.003558812642 | H79: 0.0008897031606
A80: 60 | B80: 15 | C80: 0 | D80: 0.625 | E80: 0.5144530034 | F80: 0.128948948 | G80: 0.001098872438 | H80: 0.0002747181094
A81: 61 | B81: 15.25 | C81: 0 | D81: 0.6354166667 | E81: 0.5146017099 | F81: 0.06501405698 | G81: 0.0001408366455 | H81: 3.520916138e-05
A82: 62 | B82: 15.5 | C82: 0 | D82: 0.6458333333 | E82: 0.5147528103 | F82: -2.995301851e-16 | G82: 1.377259111e-47 | H82: 3.443147779e-48
A83: 63 | B83: 15.75 | C83: 0 | D83: 0.65625 | E83: 0.5149063015 | F83: -0.06505253865 | G83: 0.0001410868762 | H83: 3.527171905e-05
A84: 64 | B84: 16 | C84: 0 | D84: 0.6666666667 | E84: 0.5150621802 | F84: -0.1291016397 | G84: 0.001102780669 | H84: 0.0002756951673
A85: 65 | B85: 16.25 | C85: 0 | D85: =IF(A85<>"",MOD(B85,24)/24,"") -> 0.6770833333 | E85: 0.5152204432 | F85: -0.1911208178 | G85: =ABS(0.5*1.025*1*(F85^3)) -> 0.003577814788 | H85: =G85*$B$13 -> 0.0008944536969
A86: =IF(IF(A85<>"",A85+1<=$B$16,0),A85+1,"") -> 66 | B86: =IF(A86<>"",A86*$B$13,"") -> 16.5 | C86: =IF(A86<>"",ROUNDDOWN(A86*$B$13/24,0),"") -> 0 | D86: 0.6875 | E86: =IF(A86<>"",($B$4+$B$5)/2+($B$5-$B$4)/2*COS(2*PI()/$B$15*B86),"") -> 0.5153810873 | F86: =IF(A86<>"",E86*COS(2*PI()/$B$7*B86),"") -> -0.2501154531 | G86: 0.008018911946 | H86: 0.002004727987
A87: 67 | B87: 16.75 | C87: 0 | D87: 0.6979166667 | E87: 0.5155441091 | F87: -0.3051387248 | G87: 0.01456082058 | H87: 0.003640205144
A88: 68 | B88: 17 | C88: 0 | D88: 0.7083333333 | E88: 0.5157095052 | F88: -0.3553067889 | G88: 0.0229881693 | H88: 0.005747042325
A89: 69 | B89: 17.25 | C89: 0 | D89: 0.71875 | E89: 0.5158772722 | F89: -0.3998129602 | G89: 0.03275400972 | H89: 0.00818850243
A90: 70 | B90: 17.5 | C90: 0 | D90: 0.7291666667 | E90: 0.5160474066 | F90: -0.4379406682 | G90: 0.04304668376 | H90: 0.01076167094
A91: 71 | B91: 17.75 | C91: 0 | D91: 0.7395833333 | E91: 0.5162199049 | F91: -0.4690749819 | G91: 0.05289573804 | H91: 0.01322393451
A92: 72 | B92: 18 | C92: 0 | D92: 0.75 | E92: 0.5163947636 | F92: -0.4927125157 | G92: 0.06130200122 | H92: 0.01532550031
A93: 73 | B93: 18.25 | C93: 0 | D93: 0.7604166667 | E93: 0.5165719789 | F93: -0.5084695597 | G93: 0.06737344346 | H93: 0.01684336087
A94: 74 | B94: 18.5 | C94: 0 | D94: 0.7708333333 | E94: 0.5167515472 | F94: -0.5160883003 | G94: 0.07044755276 | H94: 0.01761188819
A95: 75 | B95: 18.75 | C95: 0 | D95: 0.78125 | E95: 0.5169334648 | F95: -0.5154410332 | G95: 0.07018282352 | H95: 0.01754570588
A96: 76 | B96: 19 | C96: 0 | D96: 0.7916666667 | E96: 0.517117728 | F96: -0.5065322977 | G96: 0.06660629804 | H96: 0.01665157451
A97: 77 | B97: 19.25 | C97: 0 | D97: 0.8020833333 | E97: 0.5173043328 | F97: -0.4894988985 | G97: 0.06011031811 | H97: 0.01502757953
A98: 78 | B98: 19.5 | C98: 0 | D98: 0.8125 | E98: 0.5174932754 | F98: -0.4646078118 | G98: 0.05139884888 | H98: 0.01284971222
A99: 79 | B99: 19.75 | C99: 0 | D99: 0.8229166667 | E99: 0.5176845519 | F99: -0.4322520086 | G99: 0.04139090571 | H99: 0.01034772643
A100: 80 | B100: 20 | C100: 0 | D100: 0.8333333333 | E100: 0.5178781583 | F100: -0.3929442592 | G100: 0.03109472458 | H100: 0.007773681145
A101: 81 | B101: 20.25 | C101: 0 | D101: 0.84375 | E101: 0.5180740907 | F101: -0.3473090184 | G101: 0.02147049472 | H101: 0.005367623681
A102: 82 | B102: 20.5 | C102: 0 | D102: 0.8541666667 | E102: 0.5182723449 | F102: -0.2960725174 | G102: 0.01330111838 | H102: 0.003325279596
A103: 83 | B103: 20.75 | C103: 0 | D103: 0.8645833333 | E103: 0.5184729168 | F103: -0.2400512205 | G103: 0.00708933706 | H103: 0.001772334265
A104: 84 | B104: 21 | C104: 0 | D104: 0.875 | E104: 0.5186758023 | F104: -0.1801388307 | G104: 0.002995821185 | H104: 0.0007489552963
A105: 85 | B105: 21.25 | C105: 0 | D105: 0.8854166667 | E105: 0.5188809972 | F105: -0.1172920483 | G105: 0.000826988711 | H105: 0.0002067471777
A106: 86 | B106: 21.5 | C106: 0 | D106: 0.8958333333 | E106: 0.5190884972 | F106: -0.05251531222 | G106: 7.422525962e-05 | H106: 1.855631491e-05
A107: 87 | B107: 21.75 | C107: 0 | D107: 0.90625 | E107: 0.519298298 | F107: 0.01315523543 | G107: 1.166782062e-06 | H107: 2.916955154e-07
A108: 88 | B108: 22 | C108: 0 | D108: 0.9166666667 | E108: 0.5195103952 | F108: 0.07866830454 | G108: 0.0002495130361 | H108: 6.237825902e-05
A109: 89 | B109: 22.25 | C109: 0 | D109: 0.9270833333 | E109: 0.5197247845 | F109: 0.1429742679 | G109: 0.001497847208 | H109: 0.0003744618019
A110: 90 | B110: 22.5 | C110: 0 | D110: 0.9375 | E110: 0.5199414614 | F110: 0.2050419596 | G110: 0.004417963272 | H110: 0.001104490818
A111: 91 | B111: 22.75 | C111: 0 | D111: 0.9479166667 | E111: 0.5201604214 | F111: 0.263875192 | G111: 0.009416500995 | H111: 0.002354125249
A112: 92 | B112: 23 | C112: 0 | D112: 0.9583333333 | E112: 0.52038166 | F112: 0.3185287273 | G112: 0.01656302619 | H112: 0.004140756548
A113: 93 | B113: 23.25 | C113: 0 | D113: 0.96875 | E113: 0.5206051725 | F113: 0.3681234478 | G113: 0.02556667863 | H113: 0.006391669658
A114: 94 | B114: 23.5 | C114: 0 | D114: 0.9791666667 | E114: 0.5208309544 | F114: 0.4118604818 | G114: 0.03580504627 | H114: 0.008951261567
A115: 95 | B115: 23.75 | C115: 0 | D115: 0.9895833333 | E115: 0.5210590009 | F115: 0.4490340577 | G115: 0.04640146751 | H115: 0.01160036688
A116: 96 | B116: 24 | C116: 1 | D116: 0 | E116: 0.5212893074 | F116: 0.4790428812 | G116: 0.05634002584 | H116: 0.01408500646
A117: 97 | B117: 24.25 | C117: 1 | D117: 0.01041666667 | E117: 0.521521869 | F117: 0.50139985 | G117: 0.06460207516 | H117: 0.01615051879
A118: 98 | B118: 24.5 | C118: 1 | D118: 0.02083333333 | E118: 0.521756681 | F118: 0.5157399522 | G118: 0.07030499742 | H118: 0.01757624936
A119: 99 | B119: 24.75 | C119: 1 | D119: 0.03125 | E119: 0.5219937384 | F119: 0.5218262177 | G119: 0.07282350126 | H119: 0.01820587531
A120: 100 | B120: 25 | C120: 1 | D120: 0.04166666667 | E120: 0.5222330363 | F120: 0.5195536275 | G120: 0.07187618435 | H120: 0.01796904609
A121: 101 | B121: 25.25 | C121: 1 | D121: 0.05208333333 | E121: 0.5224745698 | F121: 0.5089509154 | G121: 0.06756496703 | H121: 0.01689124176
A122: 102 | B122: 25.5 | C122: 1 | D122: 0.0625 | E122: 0.5227183339 | F122: 0.4901802321 | G122: 0.06036167034 | H122: 0.01509041758
A123: 103 | B123: 25.75 | C123: 1 | D123: 0.07291666667 | E123: 0.5229643235 | F123: 0.4635346748 | G123: 0.0510435124 | H123: 0.0127608781
A124: 104 | B124: 26 | C124: 1 | D124: 0.08333333333 | E124: 0.5232125334 | F124: 0.4294337194 | G124: 0.04058656505 | H124: 0.01014664126
A125: 105 | B125: 26.25 | C125: 1 | D125: 0.09375 | E125: 0.5234629587 | F125: 0.3884166268 | G125: 0.03003221101 | H125: 0.007508052753
A126: 106 | B126: 26.5 | C126: 1 | D126: 0.1041666667 | E126: 0.523715594 | F126: 0.3411339267 | G126: 0.02034551135 | H126: 0.005086377838
A127: 107 | B127: 26.75 | C127: 1 | D127: 0.1145833333 | E127: 0.5239704341 | F127: 0.2883371129 | G127: 0.01228557553 | H127: 0.003071393883
A128: 108 | B128: 27 | C128: 1 | D128: 0.125 | E128: 0.5242274737 | F128: 0.2308667135 | G128: 0.006306346533 | H128: 0.001576586633
A129: 109 | B129: 27.25 | C129: 1 | D129: 0.1354166667 | E129: 0.5244867075 | F129: 0.169638925 | G129: 0.002501902635 | H129: 0.0006254756587
A130: 110 | B130: 27.5 | C130: 1 | D130: 0.1458333333 | E130: 0.5247481302 | F130: 0.105631022 | G130: 0.0006040436388 | H130: 0.0001510109097
A131: 111 | B131: 27.75 | C131: 1 | D131: 0.15625 | E131: 0.5250117362 | F131: 0.03986577614 | G131: 3.247091604e-05 | H131: 8.117729011e-06
A132: 112 | B132: 28 | C132: 1 | D132: 0.1666666667 | E132: 0.5252775202 | F132: -0.02660486981 | G132: 9.651110405e-06 | H132: 2.412777601e-06
A133: 113 | B133: 28.25 | C133: 1 | D133: 0.1770833333 | E133: 0.5255454766 | F133: -0.09271661014 | G133: 0.0004084759618 | H133: 0.0001021189905
A134: 114 | B134: 28.5 | C134: 1 | D134: 0.1875 | E134: 0.5258155998 | F134: -0.1574098001 | G134: 0.001998891272 | H134: 0.0004997228181
A135: 115 | B135: 28.75 | C135: 1 | D135: 0.1979166667 | E135: 0.5260878844 | F135: -0.2196464224 | G135: 0.005430830791 | H135: 0.001357707698
A136: 116 | B136: 29 | C136: 1 | D136: 0.2083333333 | E136: 0.5263623245 | F136: -0.278426726 | G136: 0.01106182113 | H136: 0.002765455282
A137: 117 | B137: 29.25 | C137: 1 | D137: 0.21875 | E137: 0.5266389145 | F137: -0.3328052691 | G137: 0.01889141335 | H137: 0.004722853338
A138: 118 | B138: 29.5 | C138: 1 | D138: 0.2291666667 | E138: 0.5269176487 | F138: -0.3819061112 | G138: 0.02854721156 | H138: 0.007136802891
A139: 119 | B139: 29.75 | C139: 1 | D139: 0.2395833333 | E139: 0.5271985213 | F139: -0.4249369086 | G139: 0.03932486424 | H139: 0.00983121606
A140: 120 | B140: 30 | C140: 1 | D140: 0.25 | E140: 0.5274815264 | F140: -0.4612016877 | G140: 0.05027667326 | H140: 0.01256916832
A141: 121 | B141: 30.25 | C141: 1 | D141: 0.2604166667 | E141: 0.5277666583 | F141: -0.4901120903 | G141: 0.06033650051 | H141: 0.01508412513
A142: 122 | B142: 30.5 | C142: 1 | D142: 0.2708333333 | E142: 0.5280539109 | F142: -0.5111969087 | G142: 0.06846340997 | H142: 0.01711585249
A143: 123 | B143: 30.75 | C143: 1 | D143: 0.28125 | E143: 0.5283432783 | F143: -0.5241097572 | G143: 0.07378372967 | H143: 0.01844593242
A144: 124 | B144: 31 | C144: 1 | D144: 0.2916666667 | E144: 0.5286347546 | F144: -0.5286347546 | G144: 0.07571135273 | H144: 0.01892783818
A145: 125 | B145: 31.25 | C145: 1 | D145: 0.3020833333 | E145: 0.5289283336 | F145: -0.5246901245 | G145: 0.07402911207 | H145: 0.01850727802
A146: 126 | B146: 31.5 | C146: 1 | D146: 0.3125 | E146: 0.5292240094 | F146: -0.5123296542 | G146: 0.06891953711 | H146: 0.01722988428
A147: 127 | B147: 31.75 | C147: 1 | D147: 0.3229166667 | E147: 0.5295217756 | F147: -0.4917419853 | G147: 0.06094046173 | H147: 0.01523511543
A148: 128 | B148: 32 | C148: 1 | D148: 0.3333333333 | E148: 0.5298216263 | F148: -0.4632477461 | G148: 0.050948783 | H148: 0.01273719575
A149: 129 | B149: 32.25 | C149: 1 | D149: =IF(A149<>"",MOD(B149,24)/24,"") -> 0.34375 | E149: 0.530123555 | F149: -0.4272945685 | G149: =ABS(0.5*1.025*1*(F149^3)) -> 0.03998305615 | H149: =G149*$B$13 -> 0.009995764037
A150: =IF(IF(A149<>"",A149+1<=$B$16,0),A149+1,"") -> 130 | B150: =IF(A150<>"",A150*$B$13,"") -> 32.5 | C150: =IF(A150<>"",ROUNDDOWN(A150*$B$13/24,0),"") -> 1 | D150: 0.3541666667 | E150: =IF(A150<>"",($B$4+$B$5)/2+($B$5-$B$4)/2*COS(2*PI()/$B$15*B150),"") -> 0.5304275557 | F150: =IF(A150<>"",E150*COS(2*PI()/$B$7*B150),"") -> -0.3844500665 | G150: 0.02912149664 | H150: 0.00728037416
A151: 131 | B151: 32.75 | C151: 1 | D151: 0.3645833333 | E151: 0.530733622 | F151: -0.3353928869 | G151: 0.01933550027 | H151: 0.004833875067
A152: 132 | B152: 33 | C152: 1 | D152: 0.375 | E152: 0.5310417475 | F152: -0.2809019724 | G152: 0.01135947436 | H152: 0.002839868591
A153: 133 | B153: 33.25 | C153: 1 | D153: 0.3854166667 | E153: 0.5313519258 | F153: -0.2218442071 | G153: 0.005595490306 | H153: 0.001398872577
A154: 134 | B154: 33.5 | C154: 1 | D154: 0.3958333333 | E154: 0.5316641505 | F154: -0.1591606405 | G154: 0.002066335819 | H154: 0.0005165839547
A155: 135 | B155: 33.75 | C155: 1 | D155: 0.40625 | E155: 0.5319784152 | F155: -0.09385150766 | G155: 0.0004236601646 | H155: 0.0001059150412
A156: 136 | B156: 34 | C156: 1 | D156: 0.4166666667 | E156: 0.5322947132 | F156: -0.0269602848 | G156: 1.004308866e-05 | H156: 2.510772166e-06
A157: 137 | B157: 34.25 | C157: 1 | D157: 0.4270833333 | E157: 0.5326130381 | F157: 0.04044296666 | G157: 3.390181003e-05 | H157: 8.475452509e-06
A158: 138 | B158: 34.5 | C158: 1 | D158: 0.4375 | E158: 0.5329333833 | F158: 0.1072787014 | G158: 0.0006327532618 | H158: 0.0001581883155
A159: 139 | B159: 34.75 | C159: 1 | D159: 0.4479166667 | E159: 0.5332557421 | F159: 0.1724751638 | G159: 0.00262950238 | H159: 0.0006573755951
A160: 140 | B160: 35 | C160: 1 | D160: 0.4583333333 | E160: 0.5335801077 | F160: 0.2349855588 | G160: 0.006649934836 | H160: 0.001662483709
A161: 141 | B161: 35.25 | C161: 1 | D161: 0.46875 | E161: 0.5339064736 | F161: 0.293804843 | G161: 0.01299782606 | H161: 0.003249456514
A162: 142 | B162: 35.5 | C162: 1 | D162: 0.4791666667 | E162: 0.5342348328 | F162: 0.3479858694 | G162: 0.02159626743 | H162: 0.005399066858
A163: 143 | B163: 35.75 | C163: 1 | D163: 0.4895833333 | E163: 0.5345651787 | F163: 0.3966546249 | G163: 0.03198390133 | H163: 0.007995975333
A164: 144 | B164: 36 | C164: 1 | D164: 0.5 | E164: 0.5348975043 | F164: 0.4390243163 | G164: 0.04336702152 | H164: 0.01084175538
A165: 145 | B165: 36.25 | C165: 1 | D165: 0.5104166667 | E165: 0.5352318028 | F165: 0.4744080782 | G165: 0.05472050497 | H165: 0.01368012624
A166: 146 | B166: 36.5 | C166: 1 | D166: 0.5208333333 | E166: 0.5355680672 | F166: 0.5022300969 | G166: 0.06492352243 | H166: 0.01623088061
A167: 147 | B167: 36.75 | C167: 1 | D167: 0.53125 | E167: 0.5359062905 | F167: 0.5220349714 | G167: 0.07291093413 | H167: 0.01822773353
A168: 148 | B168: 37 | C168: 1 | D168: 0.5416666667 | E168: 0.5362464657 | F168: 0.5334951585 | G168: 0.07781894118 | H168: 0.0194547353
A169: 149 | B169: 37.25 | C169: 1 | D169: 0.5520833333 | E169: 0.5365885859 | F169: 0.5364163813 | G169: 0.07910427708 | H169: 0.01977606927
A170: 150 | B170: 37.5 | C170: 1 | D170: 0.5625 | E170: 0.5369326438 | F170: 0.5307409107 | G170: 0.07661989731 | H170: 0.01915497433
A171: 151 | B171: 37.75 | C171: 1 | D171: 0.5729166667 | E171: 0.5372786323 | F171: 0.5165486658 | G171: 0.07063624465 | H171: 0.01765906116
A172: 152 | B172: 38 | C172: 1 | D172: 0.5833333333 | E172: 0.5376265443 | F172: 0.4940561126 | G172: 0.06180487044 | H172: 0.01545121761
A173: 153 | B173: 38.25 | C173: 1 | D173: 0.59375 | E173: 0.5379763725 | F173: 0.4636129749 | G173: 0.05106938351 | H173: 0.01276734588
A174: 154 | B174: 38.5 | C174: 1 | D174: 0.6041666667 | E174: 0.5383281097 | F174: 0.4256968077 | G174: 0.03953621137 | H174: 0.009884052843
A175: 155 | B175: 38.75 | C175: 1 | D175: 0.6145833333 | E175: 0.5386817486 | F175: 0.3809055174 | G175: 0.02832341788 | H175: 0.00708085447
A176: 156 | B176: 39 | C176: 1 | D176: 0.625 | E176: 0.5390372819 | F176: 0.3299479451 | G176: 0.01840899812 | H176: 0.00460224953
A177: 157 | B177: 39.25 | C177: 1 | D177: 0.6354166667 | E177: 0.5393947021 | F177: 0.2736326616 | G177: 0.01050020249 | H177: 0.002625050623
A178: 158 | B178: 39.5 | C178: 1 | D178: 0.6458333333 | E178: 0.5397540019 | F178: 0.212855151 | G178: 0.004942496412 | H178: 0.001235624103
A179: 159 | B179: 39.75 | C179: 1 | D179: 0.65625 | E179: 0.5401151738 | F179: 0.1485835848 | G179: 0.001681149616 | H179: 0.000420287404
A180: 160 | B180: 40 | C180: 1 | D180: 0.6666666667 | E180: 0.5404782103 | F180: 0.08184341418 | G180: 0.0002809603816 | H180: 7.02400954e-05
A181: 161 | B181: 40.25 | C181: 1 | D181: 0.6770833333 | E181: 0.5408431039 | F181: 0.01370102384 | G181: 1.318113888e-06 | H181: 3.295284719e-07
A182: 162 | B182: 40.5 | C182: 1 | D182: 0.6875 | E182: 0.5412098471 | F182: -0.05475329207 | G182: 8.412490352e-05 | H182: 2.103122588e-05
A183: 163 | B183: 40.75 | C183: 1 | D183: 0.6979166667 | E183: 0.5415784321 | F183: -0.1224227596 | G183: 0.0009403301583 | H183: 0.0002350825396
A184: 164 | B184: 41 | C184: 1 | D184: 0.7083333333 | E184: 0.5419488514 | F184: -0.1882216829 | G184: 0.003417455167 | H184: 0.0008543637918
A185: 165 | B185: 41.25 | C185: 1 | D185: 0.71875 | E185: 0.5423210972 | F185: -0.251092848 | G185: 0.008113288101 | H185: 0.002028322025
A186: 166 | B186: 41.5 | C186: 1 | D186: 0.7291666667 | E186: 0.542695162 | F186: -0.3100244965 | G186: 0.01527150724 | H186: 0.003817876809
A187: 167 | B187: 41.75 | C187: 1 | D187: 0.7395833333 | E187: 0.5430710378 | F187: -0.3640665929 | G187: 0.0247306971 | H187: 0.006182674274
A188: 168 | B188: 42 | C188: 1 | D188: 0.75 | E188: 0.5434487169 | F188: -0.4123461282 | G188: 0.03593185453 | H188: 0.008982963633
A189: 169 | B189: 42.25 | C189: 1 | D189: 0.7604166667 | E189: 0.5438281915 | F189: -0.4540812107 | G189: 0.04798378084 | H189: 0.01199594521
A190: 170 | B190: 42.5 | C190: 1 | D190: 0.7708333333 | E190: 0.5442094536 | F190: -0.4885937179 | G190: 0.05977746667 | H190: 0.01494436667
A191: 171 | B191: 42.75 | C191: 1 | D191: 0.78125 | E191: 0.5445924955 | F191: -0.5153203052 | G191: 0.07013351986 | H191: 0.01753337997
A192: 172 | B192: 43 | C192: 1 | D192: 0.7916666667 | E192: 0.5449773091 | F192: -0.5338215915 | G192: 0.07796187527 | H192: 0.01949046882
A193: 173 | B193: 43.25 | C193: 1 | D193: 0.8020833333 | E193: 0.5453638864 | F193: -0.5437893736 | G193: 0.08241115857 | H193: 0.02060278964
A194: 174 | B194: 43.5 | C194: 1 | D194: 0.8125 | E194: 0.5457522195 | F194: -0.5450517504 | G194: 0.08298643072 | H194: 0.02074660768
A195: 175 | B195: 43.75 | C195: 1 | D195: 0.8229166667 | E195: 0.5461423002 | F195: -0.5375760712 | G195: 0.07961843867 | H195: 0.01990460967
A196: 176 | B196: 44 | C196: 1 | D196: 0.8333333333 | E196: 0.5465341205 | F196: -0.5214696594 | G196: 0.07267432465 | H196: 0.01816858116
A197: 177 | B197: 44.25 | C197: 1 | D197: 0.84375 | E197: 0.5469276723 | F197: -0.4969782946 | G197: 0.06290803707 | H197: 0.01572700927
A198: 178 | B198: 44.5 | C198: 1 | D198: 0.8541666667 | E198: 0.5473229474 | F198: -0.4644824763 | G198: 0.05135726308 | H198: 0.01283931577
A199: 179 | B199: 44.75 | C199: 1 | D199: 0.8645833333 | E199: 0.5477199376 | F199: -0.4244915243 | G199: 0.03920134242 | H199: 0.009800335605
A200: 180 | B200: 45 | C200: 1 | D200: 0.875 | E200: 0.5481186346 | F200: -0.377635607 | G200: 0.02760022868 | H200: 0.00690005717
A201: 181 | B201: 45.25 | C201: 1 | D201: 0.8854166667 | E201: 0.5485190303 | F201: -0.3246558237 | G201: 0.01753732955 | H201: 0.004384332387
A202: 182 | B202: 45.5 | C202: 1 | D202: 0.8958333333 | E202: 0.5489211162 | F202: -0.266392495 | G202: 0.009688573221 | H202: 0.002422143305
A203: 183 | B203: 45.75 | C203: 1 | D203: 0.90625 | E203: 0.549324884 | F203: -0.2037718465 | G203: 0.004336370809 | H203: 0.001084092702
... 2579 more rows

Sheet Tidal Stream 5
A1: Tidal Stream Resource
A3: =Input!A45 -> Site Name | B3: =IF(Input!B85<>"",Input!B85,"-") -> [Enter Name] | C3: =Input!C45 -> 0 | I3: Plots:
A4: =Input!A46 -> Peak Flow (Springs) | B4: =IF((AND(Input!B86<>"",Input!B86<>"[Enter Value]")),Input!B86,"0") -> 0 | C4: =Input!C46 -> m/s
A5: =Input!A47 -> Peak Flow (Neaps) | B5: =IF((AND(Input!B87<>"",Input!B87<>"[Enter Value]")),Input!B87,"0") -> 0 | C5: =Input!C47 -> m/s
A6: =Input!A48 -> Lunar Cycle Period | B6: =IF((AND(Input!B88<>"",Input!B88<>"[Enter Value]")),Input!B88,"0") -> 0 | C6: =Input!C48 -> days
A7: =Input!A49 -> Tidal Period | B7: =IF((AND(Input!B89<>"",Input!B89<>"[Enter Value]")),Input!B89,"0") -> 0 | C7: =Input!C49 -> hours
A8: =Input!A50 -> Proximity to Grid Connection | B8: =IF(Input!B90<>"",Input!B90,"-") -> [Select Value]
A9: =Input!A51 -> Average Water Depth | B9: =IF(Input!B91<>"",Input!B91,"-") -> [Select Value]
A10: =Input!A52 -> Seabed Topography | B10: =IF(Input!B92<>"",Input!B92,"-") -> [Select Value]
A11: =Input!A53 -> Accessibility | B11: =IF(Input!B93<>"",Input!B93,"-") -> [Select Value]
A13: Time Step | B13: 0.25 | C13: hours
A14: Period | B14: =B6/2 -> 0 | C14: days
B15: =B14*24 -> 0 | C15: hours
A16: Number of Steps | B16: =B15/B13*2 -> 0 | C16: -
A18: No. | B18: Time | E18: Amplitude | F18: Current | G18: Power | H18: Energy
B19: Hours | C19: Day | D19: Time | E19: m/s | F19: m/s | G19: kW/(m^2) | H19: kWh/(m^2)
A20: 0 | B20: =A20*$B$13 -> 0 | C20: =ROUNDDOWN(A20*$B$1/24,0) -> 0 | D20: =MOD(B20,24)/24 -> 0 | E20: =IF(A20<>"",($B$4+$B$5)/2+($B$5-$B$4)/2*COS(2*PI()/$B$15*B20),"") ->  | F20: =IF(A20<>"",E20*COS(2*PI()/$B$7*B20),"") ->  | G20: =ABS(0.5*1.025*1*(F20^3)) ->  | H20: =G20*$B$13 -> 
A21: =IF(IF(A20<>"",A20+1<=$B$16,0),A20+1,"") ->  | B21: =IF(A21<>"",A21*$B$13,"") ->  | C21: =IF(A21<>"",ROUNDDOWN(A21*$B$13/24,0),"") ->  | D21: =IF(A21<>"",MOD(B21,24)/24,"") ->  | E21: =IF(A21<>"",($B$4+$B$5)/2+($B$5-$B$4)/2*COS(2*PI()/$B$15*B21),"") ->  | F21: =IF(A21<>"",E21*COS(2*PI()/$B$7*B21),"") ->  | G21: =ABS(0.5*1.025*1*(F21^3)) ->  | H21: =G21*$B$13 -> 
A22: =IF(IF(A21<>"",A21+1<=$B$16,0),A21+1,"") ->  | B22: =IF(A22<>"",A22*$B$13,"") ->  | C22: =IF(A22<>"",ROUNDDOWN(A22*$B$13/24,0),"") ->  | E22: =IF(A22<>"",($B$4+$B$5)/2+($B$5-$B$4)/2*COS(2*PI()/$B$15*B22),"") ->  | F22: =IF(A22<>"",E22*COS(2*PI()/$B$7*B22),"") -> 
D85: =IF(A85<>"",MOD(B85,24)/24,"") ->  | G85: =ABS(0.5*1.025*1*(F85^3)) ->  | H85: =G85*$B$13 -> 
A86: =IF(IF(A85<>"",A85+1<=$B$16,0),A85+1,"") ->  | B86: =IF(A86<>"",A86*$B$13,"") ->  | C86: =IF(A86<>"",ROUNDDOWN(A86*$B$13/24,0),"") ->  | E86: =IF(A86<>"",($B$4+$B$5)/2+($B$5-$B$4)/2*COS(2*PI()/$B$15*B86),"") ->  | F86: =IF(A86<>"",E86*COS(2*PI()/$B$7*B86),"") -> 
D149: =IF(A149<>"",MOD(B149,24)/24,"") ->  | G149: =ABS(0.5*1.025*1*(F149^3)) ->  | H149: =G149*$B$13 -> 
A150: =IF(IF(A149<>"",A149+1<=$B$16,0),A149+1,"") ->  | B150: =IF(A150<>"",A150*$B$13,"") ->  | C150: =IF(A150<>"",ROUNDDOWN(A150*$B$13/24,0),"") ->  | E150: =IF(A150<>"",($B$4+$B$5)/2+($B$5-$B$4)/2*COS(2*PI()/$B$15*B150),"") ->  | F150: =IF(A150<>"",E150*COS(2*PI()/$B$7*B150),"") -> 
D213: =IF(A213<>"",MOD(B213,24)/24,"") ->  | G213: =ABS(0.5*1.025*1*(F213^3)) ->  | H213: =G213*$B$13 -> 
A214: =IF(IF(A213<>"",A213+1<=$B$16,0),A213+1,"") ->  | B214: =IF(A214<>"",A214*$B$13,"") ->  | C214: =IF(A214<>"",ROUNDDOWN(A214*$B$13/24,0),"") ->  | E214: =IF(A214<>"",($B$4+$B$5)/2+($B$5-$B$4)/2*COS(2*PI()/$B$15*B214),"") ->  | F214: =IF(A214<>"",E214*COS(2*PI()/$B$7*B214),"") -> 
D277: =IF(A277<>"",MOD(B277,24)/24,"") ->  | G277: =ABS(0.5*1.025*1*(F277^3)) ->  | H277: =G277*$B$13 -> 
A278: =IF(IF(A277<>"",A277+1<=$B$16,0),A277+1,"") ->  | B278: =IF(A278<>"",A278*$B$13,"") ->  | C278: =IF(A278<>"",ROUNDDOWN(A278*$B$13/24,0),"") ->  | E278: =IF(A278<>"",($B$4+$B$5)/2+($B$5-$B$4)/2*COS(2*PI()/$B$15*B278),"") ->  | F278: =IF(A278<>"",E278*COS(2*PI()/$B$7*B278),"") -> 
D341: =IF(A341<>"",MOD(B341,24)/24,"") ->  | G341: =ABS(0.5*1.025*1*(F341^3)) ->  | H341: =G341*$B$13 -> 
A342: =IF(IF(A341<>"",A341+1<=$B$16,0),A341+1,"") ->  | B342: =IF(A342<>"",A342*$B$13,"") ->  | C342: =IF(A342<>"",ROUNDDOWN(A342*$B$13/24,0),"") ->  | E342: =IF(A342<>"",($B$4+$B$5)/2+($B$5-$B$4)/2*COS(2*PI()/$B$15*B342),"") ->  | F342: =IF(A342<>"",E342*COS(2*PI()/$B$7*B342),"") -> 
D405: =IF(A405<>"",MOD(B405,24)/24,"") ->  | G405: =ABS(0.5*1.025*1*(F405^3)) ->  | H405: =G405*$B$13 -> 
A406: =IF(IF(A405<>"",A405+1<=$B$16,0),A405+1,"") ->  | B406: =IF(A406<>"",A406*$B$13,"") ->  | C406: =IF(A406<>"",ROUNDDOWN(A406*$B$13/24,0),"") ->  | E406: =IF(A406<>"",($B$4+$B$5)/2+($B$5-$B$4)/2*COS(2*PI()/$B$15*B406),"") ->  | F406: =IF(A406<>"",E406*COS(2*PI()/$B$7*B406),"") -> 
D469: =IF(A469<>"",MOD(B469,24)/24,"") ->  | G469: =ABS(0.5*1.025*1*(F469^3)) ->  | H469: =G469*$B$13 -> 
A470: =IF(IF(A469<>"",A469+1<=$B$16,0),A469+1,"") ->  | B470: =IF(A470<>"",A470*$B$13,"") ->  | C470: =IF(A470<>"",ROUNDDOWN(A470*$B$13/24,0),"") ->  | E470: =IF(A470<>"",($B$4+$B$5)/2+($B$5-$B$4)/2*COS(2*PI()/$B$15*B470),"") ->  | F470: =IF(A470<>"",E470*COS(2*PI()/$B$7*B470),"") -> 
D533: =IF(A533<>"",MOD(B533,24)/24,"") ->  | G533: =ABS(0.5*1.025*1*(F533^3)) ->  | H533: =G533*$B$13 -> 
A534: =IF(IF(A533<>"",A533+1<=$B$16,0),A533+1,"") ->  | B534: =IF(A534<>"",A534*$B$13,"") ->  | C534: =IF(A534<>"",ROUNDDOWN(A534*$B$13/24,0),"") ->  | E534: =IF(A534<>"",($B$4+$B$5)/2+($B$5-$B$4)/2*COS(2*PI()/$B$15*B534),"") ->  | F534: =IF(A534<>"",E534*COS(2*PI()/$B$7*B534),"") -> 
D597: =IF(A597<>"",MOD(B597,24)/24,"") ->  | G597: =ABS(0.5*1.025*1*(F597^3)) ->  | H597: =G597*$B$13 -> 
A598: =IF(IF(A597<>"",A597+1<=$B$16,0),A597+1,"") ->  | B598: =IF(A598<>"",A598*$B$13,"") ->  | C598: =IF(A598<>"",ROUNDDOWN(A598*$B$13/24,0),"") ->  | E598: =IF(A598<>"",($B$4+$B$5)/2+($B$5-$B$4)/2*COS(2*PI()/$B$15*B598),"") ->  | F598: =IF(A598<>"",E598*COS(2*PI()/$B$7*B598),"") -> 
D661: =IF(A661<>"",MOD(B661,24)/24,"") ->  | G661: =ABS(0.5*1.025*1*(F661^3)) ->  | H661: =G661*$B$13 -> 
A662: =IF(IF(A661<>"",A661+1<=$B$16,0),A661+1,"") ->  | B662: =IF(A662<>"",A662*$B$13,"") ->  | C662: =IF(A662<>"",ROUNDDOWN(A662*$B$13/24,0),"") ->  | E662: =IF(A662<>"",($B$4+$B$5)/2+($B$5-$B$4)/2*COS(2*PI()/$B$15*B662),"") ->  | F662: =IF(A662<>"",E662*COS(2*PI()/$B$7*B662),"") -> 
D725: =IF(A725<>"",MOD(B725,24)/24,"") ->  | G725: =ABS(0.5*1.025*1*(F725^3)) ->  | H725: =G725*$B$13 -> 
A726: =IF(IF(A725<>"",A725+1<=$B$16,0),A725+1,"") ->  | B726: =IF(A726<>"",A726*$B$13,"") ->  | C726: =IF(A726<>"",ROUNDDOWN(A726*$B$13/24,0),"") ->  | E726: =IF(A726<>"",($B$4+$B$5)/2+($B$5-$B$4)/2*COS(2*PI()/$B$15*B726),"") ->  | F726: =IF(A726<>"",E726*COS(2*PI()/$B$7*B726),"") -> 
D789: =IF(A789<>"",MOD(B789,24)/24,"") ->  | G789: =ABS(0.5*1.025*1*(F789^3)) ->  | H789: =G789*$B$13 -> 
A790: =IF(IF(A789<>"",A789+1<=$B$16,0),A789+1,"") ->  | B790: =IF(A790<>"",A790*$B$13,"") ->  | C790: =IF(A790<>"",ROUNDDOWN(A790*$B$13/24,0),"") ->  | E790: =IF(A790<>"",($B$4+$B$5)/2+($B$5-$B$4)/2*COS(2*PI()/$B$15*B790),"") ->  | F790: =IF(A790<>"",E790*COS(2*PI()/$B$7*B790),"") -> 
D853: =IF(A853<>"",MOD(B853,24)/24,"") ->  | G853: =ABS(0.5*1.025*1*(F853^3)) ->  | H853: =G853*$B$13 -> 
A854: =IF(IF(A853<>"",A853+1<=$B$16,0),A853+1,"") ->  | B854: =IF(A854<>"",A854*$B$13,"") ->  | C854: =IF(A854<>"",ROUNDDOWN(A854*$B$13/24,0),"") ->  | E854: =IF(A854<>"",($B$4+$B$5)/2+($B$5-$B$4)/2*COS(2*PI()/$B$15*B854),"") ->  | F854: =IF(A854<>"",E854*COS(2*PI()/$B$7*B854),"") -> 
D917: =IF(A917<>"",MOD(B917,24)/24,"") ->  | G917: =ABS(0.5*1.025*1*(F917^3)) ->  | H917: =G917*$B$13 -> 
A918: =IF(IF(A917<>"",A917+1<=$B$16,0),A917+1,"") ->  | B918: =IF(A918<>"",A918*$B$13,"") ->  | C918: =IF(A918<>"",ROUNDDOWN(A918*$B$13/24,0),"") ->  | E918: =IF(A918<>"",($B$4+$B$5)/2+($B$5-$B$4)/2*COS(2*PI()/$B$15*B918),"") ->  | F918: =IF(A918<>"",E918*COS(2*PI()/$B$7*B918),"") -> 
D981: =IF(A981<>"",MOD(B981,24)/24,"") ->  | G981: =ABS(0.5*1.025*1*(F981^3)) ->  | H981: =G981*$B$13 -> 
A982: =IF(IF(A981<>"",A981+1<=$B$16,0),A981+1,"") ->  | B982: =IF(A982<>"",A982*$B$13,"") ->  | C982: =IF(A982<>"",ROUNDDOWN(A982*$B$13/24,0),"") ->  | E982: =IF(A982<>"",($B$4+$B$5)/2+($B$5-$B$4)/2*COS(2*PI()/$B$15*B982),"") ->  | F982: =IF(A982<>"",E982*COS(2*PI()/$B$7*B982),"") -> 
D1045: =IF(A1045<>"",MOD(B1045,24)/24,"") ->  | G1045: =ABS(0.5*1.025*1*(F1045^3)) ->  | H1045: =G1045*$B$13 -> 
A1046: =IF(IF(A1045<>"",A1045+1<=$B$16,0),A1045+1,"") ->  | B1046: =IF(A1046<>"",A1046*$B$13,"") ->  | C1046: =IF(A1046<>"",ROUNDDOWN(A1046*$B$13/24,0),"") ->  | E1046: =IF(A1046<>"",($B$4+$B$5)/2+($B$5-$B$4)/2*COS(2*PI()/$B$15*B1046),"") ->  | F1046: =IF(A1046<>"",E1046*COS(2*PI()/$B$7*B1046),"") -> 
D1109: =IF(A1109<>"",MOD(B1109,24)/24,"") ->  | G1109: =ABS(0.5*1.025*1*(F1109^3)) ->  | H1109: =G1109*$B$13 -> 
A1110: =IF(IF(A1109<>"",A1109+1<=$B$16,0),A1109+1,"") ->  | B1110: =IF(A1110<>"",A1110*$B$13,"") ->  | C1110: =IF(A1110<>"",ROUNDDOWN(A1110*$B$13/24,0),"") ->  | E1110: =IF(A1110<>"",($B$4+$B$5)/2+($B$5-$B$4)/2*COS(2*PI()/$B$15*B1110),"") ->  | F1110: =IF(A1110<>"",E1110*COS(2*PI()/$B$7*B1110),"") -> 
D1173: =IF(A1173<>"",MOD(B1173,24)/24,"") ->  | G1173: =ABS(0.5*1.025*1*(F1173^3)) ->  | H1173: =G1173*$B$13 -> 
A1174: =IF(IF(A1173<>"",A1173+1<=$B$16,0),A1173+1,"") ->  | B1174: =IF(A1174<>"",A1174*$B$13,"") ->  | C1174: =IF(A1174<>"",ROUNDDOWN(A1174*$B$13/24,0),"") ->  | E1174: =IF(A1174<>"",($B$4+$B$5)/2+($B$5-$B$4)/2*COS(2*PI()/$B$15*B1174),"") ->  | F1174: =IF(A1174<>"",E1174*COS(2*PI()/$B$7*B1174),"") -> 
D1237: =IF(A1237<>"",MOD(B1237,24)/24,"") ->  | G1237: =ABS(0.5*1.025*1*(F1237^3)) ->  | H1237: =G1237*$B$13 -> 
A1238: =IF(IF(A1237<>"",A1237+1<=$B$16,0),A1237+1,"") ->  | B1238: =IF(A1238<>"",A1238*$B$13,"") ->  | C1238: =IF(A1238<>"",ROUNDDOWN(A1238*$B$13/24,0),"") ->  | E1238: =IF(A1238<>"",($B$4+$B$5)/2+($B$5-$B$4)/2*COS(2*PI()/$B$15*B1238),"") ->  | F1238: =IF(A1238<>"",E1238*COS(2*PI()/$B$7*B1238),"") -> 
D1301: =IF(A1301<>"",MOD(B1301,24)/24,"") ->  | G1301: =ABS(0.5*1.025*1*(F1301^3)) ->  | H1301: =G1301*$B$13 -> 
A1302: =IF(IF(A1301<>"",A1301+1<=$B$16,0),A1301+1,"") ->  | B1302: =IF(A1302<>"",A1302*$B$13,"") ->  | C1302: =IF(A1302<>"",ROUNDDOWN(A1302*$B$13/24,0),"") ->  | E1302: =IF(A1302<>"",($B$4+$B$5)/2+($B$5-$B$4)/2*COS(2*PI()/$B$15*B1302),"") ->  | F1302: =IF(A1302<>"",E1302*COS(2*PI()/$B$7*B1302),"") -> 
D1365: =IF(A1365<>"",MOD(B1365,24)/24,"") ->  | G1365: =ABS(0.5*1.025*1*(F1365^3)) ->  | H1365: =G1365*$B$13 -> 
A1366: =IF(IF(A1365<>"",A1365+1<=$B$16,0),A1365+1,"") ->  | B1366: =IF(A1366<>"",A1366*$B$13,"") ->  | C1366: =IF(A1366<>"",ROUNDDOWN(A1366*$B$13/24,0),"") ->  | E1366: =IF(A1366<>"",($B$4+$B$5)/2+($B$5-$B$4)/2*COS(2*PI()/$B$15*B1366),"") ->  | F1366: =IF(A1366<>"",E1366*COS(2*PI()/$B$7*B1366),"") -> 
D1429: =IF(A1429<>"",MOD(B1429,24)/24,"") ->  | G1429: =ABS(0.5*1.025*1*(F1429^3)) ->  | H1429: =G1429*$B$13 -> 
A1430: =IF(IF(A1429<>"",A1429+1<=$B$16,0),A1429+1,"") ->  | B1430: =IF(A1430<>"",A1430*$B$13,"") ->  | C1430: =IF(A1430<>"",ROUNDDOWN(A1430*$B$13/24,0),"") ->  | E1430: =IF(A1430<>"",($B$4+$B$5)/2+($B$5-$B$4)/2*COS(2*PI()/$B$15*B1430),"") ->  | F1430: =IF(A1430<>"",E1430*COS(2*PI()/$B$7*B1430),"") -> 
D1493: =IF(A1493<>"",MOD(B1493,24)/24,"") ->  | G1493: =ABS(0.5*1.025*1*(F1493^3)) ->  | H1493: =G1493*$B$13 -> 
A1494: =IF(IF(A1493<>"",A1493+1<=$B$16,0),A1493+1,"") ->  | B1494: =IF(A1494<>"",A1494*$B$13,"") ->  | C1494: =IF(A1494<>"",ROUNDDOWN(A1494*$B$13/24,0),"") ->  | E1494: =IF(A1494<>"",($B$4+$B$5)/2+($B$5-$B$4)/2*COS(2*PI()/$B$15*B1494),"") ->  | F1494: =IF(A1494<>"",E1494*COS(2*PI()/$B$7*B1494),"") -> 
D1557: =IF(A1557<>"",MOD(B1557,24)/24,"") ->  | G1557: =ABS(0.5*1.025*1*(F1557^3)) ->  | H1557: =G1557*$B$13 -> 
A1558: =IF(IF(A1557<>"",A1557+1<=$B$16,0),A1557+1,"") ->  | B1558: =IF(A1558<>"",A1558*$B$13,"") ->  | C1558: =IF(A1558<>"",ROUNDDOWN(A1558*$B$13/24,0),"") ->  | E1558: =IF(A1558<>"",($B$4+$B$5)/2+($B$5-$B$4)/2*COS(2*PI()/$B$15*B1558),"") ->  | F1558: =IF(A1558<>"",E1558*COS(2*PI()/$B$7*B1558),"") -> 
D1621: =IF(A1621<>"",MOD(B1621,24)/24,"") ->  | G1621: =ABS(0.5*1.025*1*(F1621^3)) ->  | H1621: =G1621*$B$13 -> 
A1622: =IF(IF(A1621<>"",A1621+1<=$B$16,0),A1621+1,"") ->  | B1622: =IF(A1622<>"",A1622*$B$13,"") ->  | C1622: =IF(A1622<>"",ROUNDDOWN(A1622*$B$13/24,0),"") ->  | E1622: =IF(A1622<>"",($B$4+$B$5)/2+($B$5-$B$4)/2*COS(2*PI()/$B$15*B1622),"") ->  | F1622: =IF(A1622<>"",E1622*COS(2*PI()/$B$7*B1622),"") -> 
D1685: =IF(A1685<>"",MOD(B1685,24)/24,"") ->  | G1685: =ABS(0.5*1.025*1*(F1685^3)) ->  | H1685: =G1685*$B$13 -> 
A1686: =IF(IF(A1685<>"",A1685+1<=$B$16,0),A1685+1,"") ->  | B1686: =IF(A1686<>"",A1686*$B$13,"") ->  | C1686: =IF(A1686<>"",ROUNDDOWN(A1686*$B$13/24,0),"") ->  | E1686: =IF(A1686<>"",($B$4+$B$5)/2+($B$5-$B$4)/2*COS(2*PI()/$B$15*B1686),"") ->  | F1686: =IF(A1686<>"",E1686*COS(2*PI()/$B$7*B1686),"") -> 
D1749: =IF(A1749<>"",MOD(B1749,24)/24,"") ->  | G1749: =ABS(0.5*1.025*1*(F1749^3)) ->  | H1749: =G1749*$B$13 -> 
A1750: =IF(IF(A1749<>"",A1749+1<=$B$16,0),A1749+1,"") ->  | B1750: =IF(A1750<>"",A1750*$B$13,"") ->  | C1750: =IF(A1750<>"",ROUNDDOWN(A1750*$B$13/24,0),"") ->  | E1750: =IF(A1750<>"",($B$4+$B$5)/2+($B$5-$B$4)/2*COS(2*PI()/$B$15*B1750),"") ->  | F1750: =IF(A1750<>"",E1750*COS(2*PI()/$B$7*B1750),"") -> 
D1813: =IF(A1813<>"",MOD(B1813,24)/24,"") ->  | G1813: =ABS(0.5*1.025*1*(F1813^3)) ->  | H1813: =G1813*$B$13 -> 
A1814: =IF(IF(A1813<>"",A1813+1<=$B$16,0),A1813+1,"") ->  | B1814: =IF(A1814<>"",A1814*$B$13,"") ->  | C1814: =IF(A1814<>"",ROUNDDOWN(A1814*$B$13/24,0),"") ->  | E1814: =IF(A1814<>"",($B$4+$B$5)/2+($B$5-$B$4)/2*COS(2*PI()/$B$15*B1814),"") ->  | F1814: =IF(A1814<>"",E1814*COS(2*PI()/$B$7*B1814),"") -> 
D1877: =IF(A1877<>"",MOD(B1877,24)/24,"") ->  | G1877: =ABS(0.5*1.025*1*(F1877^3)) ->  | H1877: =G1877*$B$13 -> 
A1878: =IF(IF(A1877<>"",A1877+1<=$B$16,0),A1877+1,"") ->  | B1878: =IF(A1878<>"",A1878*$B$13,"") ->  | C1878: =IF(A1878<>"",ROUNDDOWN(A1878*$B$13/24,0),"") ->  | E1878: =IF(A1878<>"",($B$4+$B$5)/2+($B$5-$B$4)/2*COS(2*PI()/$B$15*B1878),"") ->  | F1878: =IF(A1878<>"",E1878*COS(2*PI()/$B$7*B1878),"") -> 
D1941: =IF(A1941<>"",MOD(B1941,24)/24,"") ->  | G1941: =ABS(0.5*1.025*1*(F1941^3)) ->  | H1941: =G1941*$B$13 -> 
A1942: =IF(IF(A1941<>"",A1941+1<=$B$16,0),A1941+1,"") ->  | B1942: =IF(A1942<>"",A1942*$B$13,"") ->  | C1942: =IF(A1942<>"",ROUNDDOWN(A1942*$B$13/24,0),"") ->  | E1942: =IF(A1942<>"",($B$4+$B$5)/2+($B$5-$B$4)/2*COS(2*PI()/$B$15*B1942),"") ->  | F1942: =IF(A1942<>"",E1942*COS(2*PI()/$B$7*B1942),"") -> 
D2005: =IF(A2005<>"",MOD(B2005,24)/24,"") ->  | G2005: =ABS(0.5*1.025*1*(F2005^3)) ->  | H2005: =G2005*$B$13 -> 
A2006: =IF(IF(A2005<>"",A2005+1<=$B$16,0),A2005+1,"") ->  | B2006: =IF(A2006<>"",A2006*$B$13,"") ->  | C2006: =IF(A2006<>"",ROUNDDOWN(A2006*$B$13/24,0),"") ->  | E2006: =IF(A2006<>"",($B$4+$B$5)/2+($B$5-$B$4)/2*COS(2*PI()/$B$15*B2006),"") ->  | F2006: =IF(A2006<>"",E2006*COS(2*PI()/$B$7*B2006),"") -> 
D2069: =IF(A2069<>"",MOD(B2069,24)/24,"") ->  | G2069: =ABS(0.5*1.025*1*(F2069^3)) ->  | H2069: =G2069*$B$13 -> 
A2070: =IF(IF(A2069<>"",A2069+1<=$B$16,0),A2069+1,"") ->  | B2070: =IF(A2070<>"",A2070*$B$13,"") ->  | C2070: =IF(A2070<>"",ROUNDDOWN(A2070*$B$13/24,0),"") ->  | E2070: =IF(A2070<>"",($B$4+$B$5)/2+($B$5-$B$4)/2*COS(2*PI()/$B$15*B2070),"") ->  | F2070: =IF(A2070<>"",E2070*COS(2*PI()/$B$7*B2070),"") -> 
D2133: =IF(A2133<>"",MOD(B2133,24)/24,"") ->  | G2133: =ABS(0.5*1.025*1*(F2133^3)) ->  | H2133: =G2133*$B$13 -> 
A2134: =IF(IF(A2133<>"",A2133+1<=$B$16,0),A2133+1,"") ->  | B2134: =IF(A2134<>"",A2134*$B$13,"") ->  | C2134: =IF(A2134<>"",ROUNDDOWN(A2134*$B$13/24,0),"") ->  | E2134: =IF(A2134<>"",($B$4+$B$5)/2+($B$5-$B$4)/2*COS(2*PI()/$B$15*B2134),"") ->  | F2134: =IF(A2134<>"",E2134*COS(2*PI()/$B$7*B2134),"") -> 
D2197: =IF(A2197<>"",MOD(B2197,24)/24,"") ->  | G2197: =ABS(0.5*1.025*1*(F2197^3)) ->  | H2197: =G2197*$B$13 -> 
A2198: =IF(IF(A2197<>"",A2197+1<=$B$16,0),A2197+1,"") ->  | B2198: =IF(A2198<>"",A2198*$B$13,"") ->  | C2198: =IF(A2198<>"",ROUNDDOWN(A2198*$B$13/24,0),"") ->  | E2198: =IF(A2198<>"",($B$4+$B$5)/2+($B$5-$B$4)/2*COS(2*PI()/$B$15*B2198),"") ->  | F2198: =IF(A2198<>"",E2198*COS(2*PI()/$B$7*B2198),"") -> 
D2261: =IF(A2261<>"",MOD(B2261,24)/24,"") ->  | G2261: =ABS(0.5*1.025*1*(F2261^3)) ->  | H2261: =G2261*$B$13 -> 
A2262: =IF(IF(A2261<>"",A2261+1<=$B$16,0),A2261+1,"") ->  | B2262: =IF(A2262<>"",A2262*$B$13,"") ->  | C2262: =IF(A2262<>"",ROUNDDOWN(A2262*$B$13/24,0),"") ->  | E2262: =IF(A2262<>"",($B$4+$B$5)/2+($B$5-$B$4)/2*COS(2*PI()/$B$15*B2262),"") ->  | F2262: =IF(A2262<>"",E2262*COS(2*PI()/$B$7*B2262),"") -> 
D2325: =IF(A2325<>"",MOD(B2325,24)/24,"") ->  | G2325: =ABS(0.5*1.025*1*(F2325^3)) ->  | H2325: =G2325*$B$13 -> 
A2326: =IF(IF(A2325<>"",A2325+1<=$B$16,0),A2325+1,"") ->  | B2326: =IF(A2326<>"",A2326*$B$13,"") ->  | C2326: =IF(A2326<>"",ROUNDDOWN(A2326*$B$13/24,0),"") ->  | E2326: =IF(A2326<>"",($B$4+$B$5)/2+($B$5-$B$4)/2*COS(2*PI()/$B$15*B2326),"") ->  | F2326: =IF(A2326<>"",E2326*COS(2*PI()/$B$7*B2326),"") -> 
D2389: =IF(A2389<>"",MOD(B2389,24)/24,"") ->  | G2389: =ABS(0.5*1.025*1*(F2389^3)) ->  | H2389: =G2389*$B$13 -> 
A2390: =IF(IF(A2389<>"",A2389+1<=$B$16,0),A2389+1,"") ->  | B2390: =IF(A2390<>"",A2390*$B$13,"") ->  | C2390: =IF(A2390<>"",ROUNDDOWN(A2390*$B$13/24,0),"") ->  | E2390: =IF(A2390<>"",($B$4+$B$5)/2+($B$5-$B$4)/2*COS(2*PI()/$B$15*B2390),"") ->  | F2390: =IF(A2390<>"",E2390*COS(2*PI()/$B$7*B2390),"") -> 
D2453: =IF(A2453<>"",MOD(B2453,24)/24,"") ->  | G2453: =ABS(0.5*1.025*1*(F2453^3)) ->  | H2453: =G2453*$B$13 -> 
A2454: =IF(IF(A2453<>"",A2453+1<=$B$16,0),A2453+1,"") ->  | B2454: =IF(A2454<>"",A2454*$B$13,"") ->  | C2454: =IF(A2454<>"",ROUNDDOWN(A2454*$B$13/24,0),"") ->  | E2454: =IF(A2454<>"",($B$4+$B$5)/2+($B$5-$B$4)/2*COS(2*PI()/$B$15*B2454),"") ->  | F2454: =IF(A2454<>"",E2454*COS(2*PI()/$B$7*B2454),"") -> 
D2517: =IF(A2517<>"",MOD(B2517,24)/24,"") ->  | G2517: =ABS(0.5*1.025*1*(F2517^3)) ->  | H2517: =G2517*$B$13 -> 
A2518: =IF(IF(A2517<>"",A2517+1<=$B$16,0),A2517+1,"") ->  | B2518: =IF(A2518<>"",A2518*$B$13,"") ->  | C2518: =IF(A2518<>"",ROUNDDOWN(A2518*$B$13/24,0),"") ->  | E2518: =IF(A2518<>"",($B$4+$B$5)/2+($B$5-$B$4)/2*COS(2*PI()/$B$15*B2518),"") ->  | F2518: =IF(A2518<>"",E2518*COS(2*PI()/$B$7*B2518),"") -> 
D2581: =IF(A2581<>"",MOD(B2581,24)/24,"") ->  | G2581: =ABS(0.5*1.025*1*(F2581^3)) ->  | H2581: =G2581*$B$13 -> 
A2582: =IF(IF(A2581<>"",A2581+1<=$B$16,0),A2581+1,"") ->  | B2582: =IF(A2582<>"",A2582*$B$13,"") ->  | C2582: =IF(A2582<>"",ROUNDDOWN(A2582*$B$13/24,0),"") ->  | E2582: =IF(A2582<>"",($B$4+$B$5)/2+($B$5-$B$4)/2*COS(2*PI()/$B$15*B2582),"") ->  | F2582: =IF(A2582<>"",E2582*COS(2*PI()/$B$7*B2582),"") -> 
D2645: =IF(A2645<>"",MOD(B2645,24)/24,"") ->  | G2645: =ABS(0.5*1.025*1*(F2645^3)) ->  | H2645: =G2645*$B$13 -> 
A2646: =IF(IF(A2645<>"",A2645+1<=$B$16,0),A2645+1,"") ->  | B2646: =IF(A2646<>"",A2646*$B$13,"") ->  | C2646: =IF(A2646<>"",ROUNDDOWN(A2646*$B$13/24,0),"") ->  | E2646: =IF(A2646<>"",($B$4+$B$5)/2+($B$5-$B$4)/2*COS(2*PI()/$B$15*B2646),"") ->  | F2646: =IF(A2646<>"",E2646*COS(2*PI()/$B$7*B2646),"") -> 
D2709: =IF(A2709<>"",MOD(B2709,24)/24,"") ->  | G2709: =ABS(0.5*1.025*1*(F2709^3)) ->  | H2709: =G2709*$B$13 -> 
A2710: =IF(IF(A2709<>"",A2709+1<=$B$16,0),A2709+1,"") ->  | B2710: =IF(A2710<>"",A2710*$B$13,"") ->  | C2710: =IF(A2710<>"",ROUNDDOWN(A2710*$B$13/24,0),"") ->  | E2710: =IF(A2710<>"",($B$4+$B$5)/2+($B$5-$B$4)/2*COS(2*PI()/$B$15*B2710),"") ->  | F2710: =IF(A2710<>"",E2710*COS(2*PI()/$B$7*B2710),"") -> 
A2770: =IF(IF(A2769<>"",A2769+1<=$B$16,0),A2769+1,"") ->  | B2770: =IF(A2770<>"",A2770*$B$13,"") ->  | C2770: =IF(A2770<>"",ROUNDDOWN(A2770*$B$13/24,0),"") ->  | E2770: =IF(A2770<>"",($B$4+$B$5)/2+($B$5-$B$4)/2*COS(2*PI()/$B$15*B2770),"") ->  | F2770: =IF(A2770<>"",E2770*COS(2*PI()/$B$7*B2770),"") -> 
A2771: =IF(IF(A2770<>"",A2770+1<=$B$16,0),A2770+1,"") ->  | B2771: =IF(A2771<>"",A2771*$B$13,"") ->  | C2771: =IF(A2771<>"",ROUNDDOWN(A2771*$B$13/24,0),"") ->  | E2771: =IF(A2771<>"",($B$4+$B$5)/2+($B$5-$B$4)/2*COS(2*PI()/$B$15*B2771),"") ->  | F2771: =IF(A2771<>"",E2771*COS(2*PI()/$B$7*B2771),"") -> 
D2773: =IF(A2773<>"",MOD(B2773,24)/24,"") ->  | G2773: =ABS(0.5*1.025*1*(F2773^3)) ->  | H2773: =G2773*$B$13 -> 
E2780: Total Energy (kWh/m^2) | G2780: - | H2780: =IF(ISERROR(SUM(H20:H2779)),"",SUM(H20:H2779)) ->  | I2780: per lunar cycle
G2781: - | H2781: =IF(ISERROR(H2780*(365/$B$6)),"",(H2780*(365/$B$6))) ->  | I2781: per year
E2782: Average Power (kW/m^2) | G2782: =IF(ISERROR(AVERAGE(G20:G2779)),"",(AVERAGE(G20:G2779))) ->  | H2782: -

Sheet Tidal Barrage 1
A1: Tidal Barrage Resource
A3: =Input!E45 -> Site Name | B3: =Input!F45 -> Galmisdale Pier (Outer) | C3: =Input!G45 -> 0
A4: =Input!E46 -> Max Tidal Range | B4: =Input!F46 -> 4.2 | C4: =Input!G46 -> m
A5: =Input!E47 -> Mean Tidal Range | B5: =Input!F47 -> 2.7 | C5: =Input!G47 -> m
A6: =Input!E48 -> Lunar Cycle Period | B6: =Input!F48 -> 28.74 | C6: =Input!G48 -> days
A7: =Input!E49 -> Proposed Lagoon Surface Area | B7: =Input!F49 -> 26546.5 | C7: =Input!G49 -> m^2
A8: =Input!E50 -> Proximity to Grid Connection | B8: =Input!F50 -> < 1 km
A9: =Input!E51 -> Average Water Depth | B9: =Input!F51 -> < 5 m | C9: =Input!G51 -> 0
A10: =Input!E52 -> Seabed Topography | B10: =Input!F52 -> Moderate (Rocky, Gentle Gradient) | C10: =Input!G52 -> 0
A11: =Input!E53 -> Accessibility | B11: =Input!F53 -> Partially Accessible (Temporary Works, No Obstacles) | C11: =Input!G53 -> 0
A13: Gravitational Acceleration | B13: 9.81 | C13: m/s^2
A14: Specific Denisty of SeaWater | B14: 1025 | C14: kg/m^3
A15: Tidal Volume | B15: =B5*B7 -> 71675.55 | C15: m^3
A16: Tidal Mass | B16: =B15*B14 -> 73467438.75 | C16: kg/m^3
A18: Potential Energy at High Tide | B18: =0.5*B7*B14*B13*(B5^2) -> 972966025.1 | C18: J
A19: Total Potential per day | B19: =2*B18 -> 1945932050 | C19: J
A21: Daily Power Generation Potential | B21: =(B19/(60*60*24))/1000 -> 22.52236169 | C21: kW
A22: Assumed Efficiency | B22: 0.3
A23: Actual Power Generation | B23: =B21*B22 -> 6.756708508 | C23: kW
A24: Daily Energy | B24: =B23*24 -> 162.1610042 | C24: kWh
A26: Available Energy (MWh) | B26: =IF(ISERROR(B24*B6/1000),"",(B24*B6/1000)) -> 4.66050726 | C26: per lunar cycle
B27: =IF(ISERROR(365*B24/1000),"",(365*B24/1000)) -> 59.18876653 | C27: per year
B31: =24*B21 -> 540.5366806
H151: =MIN(H41:H144) -> 0

Sheet Tidal Barrage 2
A1: Tidal Barrage Resource
A3: =Input!E45 -> Site Name | B3: =Input!F55 -> Galmisdale Pier (Inner) | C3: =Input!G45 -> 0
A4: =Input!E46 -> Max Tidal Range | B4: =Input!F56 -> 4.2 | C4: =Input!G46 -> m
A5: =Input!E47 -> Mean Tidal Range | B5: =Input!F57 -> 2.7 | C5: =Input!G47 -> m
A6: =Input!E48 -> Lunar Cycle Period | B6: =Input!F58 -> 28.74 | C6: =Input!G48 -> days
A7: =Input!E49 -> Proposed Lagoon Surface Area | B7: =Input!F59 -> 49500 | C7: =Input!G49 -> m^2
A8: =Input!E50 -> Proximity to Grid Connection | B8: =Input!F60 -> < 1 km
A9: =Input!E51 -> Average Water Depth | B9: =Input!F61 -> < 5 m | C9: =Input!G51 -> 0
A10: =Input!E52 -> Seabed Topography | B10: =Input!F62 -> Benign (Sandy, Flat/Gentle Gradient) | C10: =Input!G52 -> 0
A11: =Input!E53 -> Accessibility | B11: =Input!F63 -> Partially Accessible (Temporary Works, No Obstacles) | C11: =Input!G53 -> 0
A13: Gravitational Acceleration | B13: 9.81 | C13: m/s^2
A14: Specific Denisty of SeaWater | B14: 1025 | C14: kg/m^3
A15: Tidal Volume | B15: =B5*B7 -> 133650 | C15: m^3
A16: Tidal Mass | B16: =B15*B14 -> 136991250 | C16: kg/m^3
A18: Potential Energy at High Tide | B18: =0.5*B7*B14*B13*(B5^2) -> 1814243619 | C18: J
A19: Total Potential per day | B19: =2*B18 -> 3628487239 | C19: J
A21: Daily Power Generation Potential | B21: =(B19/(60*60*24))/1000 -> 41.99638008 | C21: kW
A22: Assumed Efficiency | B22: 0.3
A23: Actual Power Generation | B23: =B21*B22 -> 12.59891402 | C23: kW
A24: Daily Energy | B24: =B23*24 -> 302.3739366 | C24: kWh
A26: Output (kWh) | B26: =IF(ISERROR(B24*B6/1000),"",(B24*B6/1000)) -> 8.690226937 | C26: per lunar cycle
B27: =IF(ISERROR(365*B24/1000),"",(365*B24/1000)) -> 110.3664868 | C27: per year
H151: =MIN(H41:H144) -> 0

Sheet Tidal Barrage 3
A1: Tidal Barrage Resource
A3: =Input!E45 -> Site Name | B3: =Input!F65 -> Bay of Laig | C3: =Input!G45 -> 0
A4: =Input!E46 -> Max Tidal Range | B4: =Input!F66 -> 4.6 | C4: =Input!G46 -> m
A5: =Input!E47 -> Mean Tidal Range | B5: =Input!F67 -> 3 | C5: =Input!G47 -> m
A6: =Input!E48 -> Lunar Cycle Period | B6: =Input!F68 -> 28.74 | C6: =Input!G48 -> days
A7: =Input!E49 -> Proposed Lagoon Surface Area | B7: =Input!F69 -> 164933.6 | C7: =Input!G49 -> m^2
A8: =Input!E50 -> Proximity to Grid Connection | B8: =Input!F70 -> 2-3 km
A9: =Input!E51 -> Average Water Depth | B9: =Input!F71 -> 5 - 10 m | C9: =Input!G51 -> 0
A10: =Input!E52 -> Seabed Topography | B10: =Input!F72 -> Benign (Sandy, Flat/Gentle Gradient) | C10: =Input!G52 -> 0
A11: =Input!E53 -> Accessibility | B11: =Input!F73 -> Partially Accessible (Temporary Works, No Obstacles) | C11: =Input!G53 -> 0
A13: Gravitational Acceleration | B13: 9.81 | C13: m/s^2
A14: Specific Denisty of SeaWater | B14: 1025 | C14: kg/m^3
A15: Tidal Volume | B15: =B5*B7 -> 494800.8 | C15: m^3
A16: Tidal Mass | B16: =B15*B14 -> 507170820 | C16: kg/m^3
A18: Potential Energy at High Tide | B18: =0.5*B7*B14*B13*(B5^2) -> 7463018616 | C18: J
A19: Total Potential per day | B19: =2*B18 -> 1.492603723e+10 | C19: J
A21: Daily Power Generation Potential | B21: =(B19/(60*60*24))/1000 -> 172.7550606 | C21: kW | D21: =24*B21 -> 4146.121453
A22: Assumed Efficiency | B22: 0.3
A23: Actual Power Generation | B23: =B21*B22 -> 51.82651817 | C23: kW
A24: Daily Energy | B24: =B23*24 -> 1243.836436 | C24: kWh
A26: Output (kWh) | B26: =IF(ISERROR(B24*B6/1000),"",(B24*B6/1000)) -> 35.74785917 | C26: per lunar cycle
B27: =IF(ISERROR(365*B24/1000),"",(365*B24/1000)) -> 454.0002992 | C27: per year
H151: =MIN(H41:H144) -> 0

Sheet Tidal Barrage 4
A1: Tidal Barrage Resource
A3: =Input!E45 -> Site Name | B3: =Input!F75 -> [Enter Name] | C3: =Input!G45 -> 0
A4: =Input!E46 -> Max Tidal Range | B4: =Input!F76 -> [Enter Value] | C4: =Input!G46 -> m
A5: =Input!E47 -> Mean Tidal Range | B5: =Input!F77 -> [Enter Value] | C5: =Input!G47 -> m
A6: =Input!E48 -> Lunar Cycle Period | B6: =Input!F78 -> [Enter Value] | C6: =Input!G48 -> days
A7: =Input!E49 -> Proposed Lagoon Surface Area | B7: =Input!F79 -> [Enter Value] | C7: =Input!G49 -> m^2
A8: =Input!E50 -> Proximity to Grid Connection | B8: =Input!F80 -> [Select Value]
A9: =Input!E51 -> Average Water Depth | B9: =Input!F81 -> [Select Value] | C9: =Input!G51 -> 0
A10: =Input!E52 -> Seabed Topography | B10: =Input!F82 -> [Select Value] | C10: =Input!G52 -> 0
A11: =Input!E53 -> Accessibility | B11: =Input!F83 -> [Select Value] | C11: =Input!G53 -> 0
A13: Gravitational Acceleration | B13: 9.81 | C13: m/s^2
A14: Specific Denisty of SeaWater | B14: 1025 | C14: kg/m^3
A15: Tidal Volume | B15: =B5*B7 ->  | C15: m^3
A16: Tidal Mass | B16: =B15*B14 ->  | C16: kg/m^3
A18: Potential Energy at High Tide | B18: =0.5*B7*B14*B13*(B5^2) ->  | C18: J
A19: Total Potential per day | B19: =2*B18 ->  | C19: J
A21: Daily Power Generation Potential | B21: =(B19/(60*60*24))/1000 ->  | C21: kW
A22: Assumed Efficiency | B22: 0.3
A23: Actual Power Generation | B23: =B21*B22 ->  | C23: kW
A24: Daily Energy | B24: =B23*24 ->  | C24: kWh
A26: Output (kWh) | B26: =IF(ISERROR(B24*B6/1000),"",(B24*B6/1000)) ->  | C26: per lunar cycle
B27: =IF(ISERROR(365*B24/1000),"",(365*B24/1000)) ->  | C27: per year
H151: =MIN(H41:H144) -> 0

Sheet Tidal Barrage 5
A1: Tidal Barrage Resource
A3: =Input!E45 -> Site Name | B3: =Input!F85 -> [Enter Name] | C3: =Input!G45 -> 0
A4: =Input!E46 -> Max Tidal Range | B4: =Input!F86 -> [Enter Value] | C4: =Input!G46 -> m
A5: =Input!E47 -> Mean Tidal Range | B5: =Input!F87 -> [Enter Value] | C5: =Input!G47 -> m
A6: =Input!E48 -> Lunar Cycle Period | B6: =Input!F88 -> [Enter Value] | C6: =Input!G48 -> days
A7: =Input!E49 -> Proposed Lagoon Surface Area | B7: =Input!F89 -> [Enter Value] | C7: =Input!G49 -> m^2
A8: =Input!E50 -> Proximity to Grid Connection | B8: =Input!F90 -> [Select Value]
A9: =Input!E51 -> Average Water Depth | B9: =Input!F91 -> [Select Value] | C9: =Input!G51 -> 0
A10: =Input!E52 -> Seabed Topography | B10: =Input!F92 -> [Select Value] | C10: =Input!G52 -> 0
A11: =Input!E53 -> Accessibility | B11: =Input!F93 -> [Select Value] | C11: =Input!G53 -> 0
A13: Gravitational Acceleration | B13: 9.81 | C13: m/s^2
A14: Specific Denisty of SeaWater | B14: 1025 | C14: kg/m^3
A15: Tidal Volume | B15: =B5*B7 ->  | C15: m^3
A16: Tidal Mass | B16: =B15*B14 ->  | C16: kg/m^3
A18: Potential Energy at High Tide | B18: =0.5*B7*B14*B13*(B5^2) ->  | C18: J
A19: Total Potential per day | B19: =2*B18 ->  | C19: J
A21: Daily Power Generation Potential | B21: =(B19/(60*60*24))/1000 ->  | C21: kW
A22: Assumed Efficiency | B22: 0.3
A23: Actual Power Generation | B23: =B21*B22 ->  | C23: kW
A24: Daily Energy | B24: =B23*24 ->  | C24: kWh
A26: Output (kWh) | B26: =IF(ISERROR(B24*B6/1000),"",(B24*B6/1000)) ->  | C26: per lunar cycle
B27: =IF(ISERROR(365*B24/1000),"",(365*B24/1000)) ->  | C27: per year
H151: =MIN(H41:H144) -> 0

Sheet Wave 1
A1: Wave Resource
A3: =Input!I45 -> Site Name | B3: =Input!J45 -> Southwest Eigg (Transitional Water)
A4: =Input!I46 -> Position Relevant to Island | B4: =Input!J46 -> SW
A5: =Input!I47 -> Relevant Ocean Wave Area | B5: =Input!J47 -> North Sea (AREA 10)
A6: =Input!I48 -> Average Wave Height | B6: =Input!J48 -> 1.6
A7: =Input!I49 -> Proximity to Grid Connection | B7: =Input!J49 -> 1-2 km
A8: =Input!I50 -> Average Water Depth | B8: =Input!J50 -> 10 -15 m
A9: =Input!I51 -> Seabed Topography | B9: =Input!J51 -> Moderate (Sandy, Steep Gradient)
A10: =Input!I52 -> Accessibility | B10: =Input!J52 -> Partially Accessible (Temporary Works, Obstacles)
A12: Relavant Wave Power (kW/m) | B12: =IF(B8<>"[Select Value]",(IF(B8="> 20m", BE63,BE37)),0) -> 8.055096264
A14: Transitional Waters Calculation ( | B14: >20m
A16: Wave Velocity C | B16: (m/s) | C16: =(C17/C18) -> 5.462857143 | D16: 6.988888889 | E16: 8.310909091 | F16: 9.289230769 | G16: 9.965333333 | H16: 10.43647059 | I16: 10.77157895 | J16: 11.01619048 | K16: 11.20173913 | L16: 11.3448 | M16: 11.45555556
A17: Wave Length (λ) | B17: (m) | C17: 19.12 | D17: 31.45 | E17: 45.71 | F17: 60.38 | G17: 74.74 | H17: 88.71 | I17: 102.33 | J17: 115.67 | K17: 128.82 | L17: 141.81 | M17: 154.65
A18: Wave Period (T) | B18: (s) | C18: 3.5 | D18: 4.5 | E18: 5.5 | F18: 6.5 | G18: 7.5 | H18: 8.5 | I18: 9.5 | J18: 10.5 | K18: 11.5 | L18: 12.5 | M18: 13.5
R19: North Sea Area 10 | AE19: North Sea Area 10 | AS19: North Sea Area 10
A20: Energy | B20: Wave Height (Hs) | C20: Power | N20: Total Power | R20: Number of Occurences | AE20: Percentage of Occurences | AS20: Annual Power (W/m) | BE20: Total Power
A21: (J) | B21: (m) | C21: (W/m) | N21: (W/m) | R21: Hs T | S21: 3.5 | T21: 4.5 | U21: 5.5 | V21: 6.5 | W21: 7.5 | X21: 8.5 | Y21: 9.5 | Z21: 10.5 | AA21: 11.5 | AB21: 12.5 | AC21: 13.5 | AE21: Hs T | AF21: 3.5 | AG21: 4.5 | AH21: 5.5 | AI21: 6.5 | AJ21: 7.5 | AK21: 8.5 | AL21: 9.5 | AM21: 10.5 | AN21: 11.5 | AO21: 12.5 | AP21: 13.5 | AQ21: Availability | AS21: Hs T | AT21: 3.5 | AU21: 4.5 | AV21: 5.5 | AW21: 6.5 | AX21: 7.5 | AY21: 8.5 | AZ21: 9.5 | BA21: 10.5 | BB21: 11.5 | BC21: 12.5 | BD21: 13.5 | BE21: (W/m)
A22: =(1025*9.81*B22^2)/8 -> 314.2265625 | B22: 0.5 | C22: =$A22*($C$16) -> 1716.574821 | D22: =$A22*(D16) -> 2196.094531 | E22: =A22*($E$16) -> 2611.508395 | F22: =$A22*($F$16) -> 2918.923053 | G22: =$A22*($G$16) -> 3131.372437 | H22: =$A22*($H$16) -> 3279.416278 | I22: 0 | J22: 0 | K22: 0 | L22: 0 | M22: 0 | N22: =SUM(C22:M22) -> 15853.88952 | R22: 0.5 | S22: =IF($B$4="SW",'Wave Areas'!P115,(IF($B$4="N",'Wave Areas'!B78,(IF($B$4="NE",'Wave Areas'!P79,(IF($B$4="E",'Wave Areas'!B96,(IF($B$4="SE",'Wave Areas'!P97,(IF($B$4="S",'Wave Areas'!B114,(IF($B$4="W",'Wave Areas'!B132,(IF($B$4="NW",'Wave Areas'!P133,0))))))))))))))) -> 1 | T22: =IF($B$4="SW",'Wave Areas'!Q115,(IF($B$4="N",'Wave Areas'!C78,(IF($B$4="NE",'Wave Areas'!Q79,(IF($B$4="E",'Wave Areas'!C96,(IF($B$4="SE",'Wave Areas'!Q97,(IF($B$4="S",'Wave Areas'!C114,(IF($B$4="W",'Wave Areas'!C132,(IF($B$4="NW",'Wave Areas'!Q133,0))))))))))))))) -> 28 | U22: =IF($B$4="SW",'Wave Areas'!R115,(IF($B$4="N",'Wave Areas'!D78,(IF($B$4="NE",'Wave Areas'!R79,(IF($B$4="E",'Wave Areas'!D96,(IF($B$4="SE",'Wave Areas'!R97,(IF($B$4="S",'Wave Areas'!D114,(IF($B$4="W",'Wave Areas'!D132,(IF($B$4="NW",'Wave Areas'!R133,0))))))))))))))) -> 97 | V22: =IF($B$4="SW",'Wave Areas'!S115,(IF($B$4="N",'Wave Areas'!E78,(IF($B$4="NE",'Wave Areas'!S79,(IF($B$4="E",'Wave Areas'!E96,(IF($B$4="SE",'Wave Areas'!S97,(IF($B$4="S",'Wave Areas'!E114,(IF($B$4="W",'Wave Areas'!E132,(IF($B$4="NW",'Wave Areas'!S133,0))))))))))))))) -> 117 | W22: =IF($B$4="SW",'Wave Areas'!T115,(IF($B$4="N",'Wave Areas'!F78,(IF($B$4="NE",'Wave Areas'!T79,(IF($B$4="E",'Wave Areas'!F96,(IF($B$4="SE",'Wave Areas'!T97,(IF($B$4="S",'Wave Areas'!F114,(IF($B$4="W",'Wave Areas'!F132,(IF($B$4="NW",'Wave Areas'!T133,0))))))))))))))) -> 65 | X22: =IF($B$4="SW",'Wave Areas'!U115,(IF($B$4="N",'Wave Areas'!G78,(IF($B$4="NE",'Wave Areas'!U79,(IF($B$4="E",'Wave Areas'!G96,(IF($B$4="SE",'Wave Areas'!U97,(IF($B$4="S",'Wave Areas'!G114,(IF($B$4="W",'Wave Areas'!G132,(IF($B$4="NW",'Wave Areas'!U133,0))))))))))))))) -> 20 | Y22: =IF($B$4="SW",'Wave Areas'!V115,(IF($B$4="N",'Wave Areas'!H78,(IF($B$4="NE",'Wave Areas'!V79,(IF($B$4="E",'Wave Areas'!H96,(IF($B$4="SE",'Wave Areas'!V97,(IF($B$4="S",'Wave Areas'!H114,(IF($B$4="W",'Wave Areas'!H132,(IF($B$4="NW",'Wave Areas'!V133,0))))))))))))))) -> 4 | Z22: =IF($B$4="SW",'Wave Areas'!W115,(IF($B$4="N",'Wave Areas'!I78,(IF($B$4="NE",'Wave Areas'!W79,(IF($B$4="E",'Wave Areas'!I96,(IF($B$4="SE",'Wave Areas'!W97,(IF($B$4="S",'Wave Areas'!I114,(IF($B$4="W",'Wave Areas'!I132,(IF($B$4="NW",'Wave Areas'!W133,0))))))))))))))) -> 0 | AA22: =IF($B$4="SW",'Wave Areas'!X115,(IF($B$4="N",'Wave Areas'!J78,(IF($B$4="NE",'Wave Areas'!X79,(IF($B$4="E",'Wave Areas'!J96,(IF($B$4="SE",'Wave Areas'!X97,(IF($B$4="S",'Wave Areas'!J114,(IF($B$4="W",'Wave Areas'!J132,(IF($B$4="NW",'Wave Areas'!X133,0))))))))))))))) -> 0 | AB22: =IF($B$4="SW",'Wave Areas'!Y115,(IF($B$4="N",'Wave Areas'!K78,(IF($B$4="NE",'Wave Areas'!Y79,(IF($B$4="E",'Wave Areas'!K96,(IF($B$4="SE",'Wave Areas'!Y97,(IF($B$4="S",'Wave Areas'!K114,(IF($B$4="W",'Wave Areas'!K132,(IF($B$4="NW",'Wave Areas'!Y133,0))))))))))))))) -> 0 | AC22: =IF($B$4="SW",'Wave Areas'!Z115,(IF($B$4="N",'Wave Areas'!L78,(IF($B$4="NE",'Wave Areas'!Z79,(IF($B$4="E",'Wave Areas'!L96,(IF($B$4="SE",'Wave Areas'!Z97,(IF($B$4="S",'Wave Areas'!L114,(IF($B$4="W",'Wave Areas'!L132,(IF($B$4="NW",'Wave Areas'!Z133,0))))))))))))))) -> 0 | AE22: 0.5 | AF22: =S22/($AC$33) -> 0.0003333333333 | AG22: =T22/($AC$33) -> 0.009333333333 | AH22: 0.03233333333 | AI22: 0.039 | AJ22: 0.02166666667 | AK22: 0.006666666667 | AL22: 0.001333333333 | AM22: 0 | AN22: 0 | AO22: 0 | AP22: 0 | AQ22: =SUM(AF22:AP22) -> 0.1106666667 | AS22: 0.5 | AT22: =C22*AF22 -> 0.5721916071 | AU22: 20.49688229 | AV22: 84.43877143 | AW22: 113.8379991 | AX22: 67.84640281 | AY22: 21.86277518 | AZ22: =AM22/1004 -> 0 | BA22: =AN22/1004 -> 0 | BB22: =AO22/1004 -> 0 | BC22: =AP22/1004 -> 0 | BD22: =AQ20/1004 -> 0 | BE22: =SUM(AT22:BD22) -> 309.0550224
A23: 2828.039062 | B23: 1.5 | C23: =$A23*($C$16) -> 15449.17339 | D23: =A23*($D$16) -> 19764.85078 | E23: 23503.57555 | F23: =$A23*($F$16) -> 26270.30748 | G23: 28182.35194 | H23: 29514.7465 | I23: =$A23*($I$16) -> 30462.44603 | J23: =$A23*($J$16) -> 31154.21699 | K23: 0 | L23: 0 | M23: 0 | N23: 204301.6687 | R23: 1.5 | S23: =IF($B$4="SW",'Wave Areas'!P116,(IF($B$4="N",'Wave Areas'!B79,(IF($B$4="NE",'Wave Areas'!P80,(IF($B$4="E",'Wave Areas'!B97,(IF($B$4="SE",'Wave Areas'!P98,(IF($B$4="S",'Wave Areas'!B115,(IF($B$4="W",'Wave Areas'!B133,(IF($B$4="NW",'Wave Areas'!P134,0))))))))))))))) -> 0 | T23: =IF($B$4="SW",'Wave Areas'!Q116,(IF($B$4="N",'Wave Areas'!C79,(IF($B$4="NE",'Wave Areas'!Q80,(IF($B$4="E",'Wave Areas'!C97,(IF($B$4="SE",'Wave Areas'!Q98,(IF($B$4="S",'Wave Areas'!C115,(IF($B$4="W",'Wave Areas'!C133,(IF($B$4="NW",'Wave Areas'!Q134,0))))))))))))))) -> 8 | U23: =IF($B$4="SW",'Wave Areas'!R116,(IF($B$4="N",'Wave Areas'!D79,(IF($B$4="NE",'Wave Areas'!R80,(IF($B$4="E",'Wave Areas'!D97,(IF($B$4="SE",'Wave Areas'!R98,(IF($B$4="S",'Wave Areas'!D115,(IF($B$4="W",'Wave Areas'!D133,(IF($B$4="NW",'Wave Areas'!R134,0))))))))))))))) -> 81 | V23: =IF($B$4="SW",'Wave Areas'!S116,(IF($B$4="N",'Wave Areas'!E79,(IF($B$4="NE",'Wave Areas'!S80,(IF($B$4="E",'Wave Areas'!E97,(IF($B$4="SE",'Wave Areas'!S98,(IF($B$4="S",'Wave Areas'!E115,(IF($B$4="W",'Wave Areas'!E133,(IF($B$4="NW",'Wave Areas'!S134,0))))))))))))))) -> 225 | W23: =IF($B$4="SW",'Wave Areas'!T116,(IF($B$4="N",'Wave Areas'!F79,(IF($B$4="NE",'Wave Areas'!T80,(IF($B$4="E",'Wave Areas'!F97,(IF($B$4="SE",'Wave Areas'!T98,(IF($B$4="S",'Wave Areas'!F115,(IF($B$4="W",'Wave Areas'!F133,(IF($B$4="NW",'Wave Areas'!T134,0))))))))))))))) -> 247 | X23: =IF($B$4="SW",'Wave Areas'!U116,(IF($B$4="N",'Wave Areas'!G79,(IF($B$4="NE",'Wave Areas'!U80,(IF($B$4="E",'Wave Areas'!G97,(IF($B$4="SE",'Wave Areas'!U98,(IF($B$4="S",'Wave Areas'!G115,(IF($B$4="W",'Wave Areas'!G133,(IF($B$4="NW",'Wave Areas'!U134,0))))))))))))))) -> 136 | Y23: =IF($B$4="SW",'Wave Areas'!V116,(IF($B$4="N",'Wave Areas'!H79,(IF($B$4="NE",'Wave Areas'!V80,(IF($B$4="E",'Wave Areas'!H97,(IF($B$4="SE",'Wave Areas'!V98,(IF($B$4="S",'Wave Areas'!H115,(IF($B$4="W",'Wave Areas'!H133,(IF($B$4="NW",'Wave Areas'!V134,0))))))))))))))) -> 46 | Z23: =IF($B$4="SW",'Wave Areas'!W116,(IF($B$4="N",'Wave Areas'!I79,(IF($B$4="NE",'Wave Areas'!W80,(IF($B$4="E",'Wave Areas'!I97,(IF($B$4="SE",'Wave Areas'!W98,(IF($B$4="S",'Wave Areas'!I115,(IF($B$4="W",'Wave Areas'!I133,(IF($B$4="NW",'Wave Areas'!W134,0))))))))))))))) -> 11 | AA23: =IF($B$4="SW",'Wave Areas'!X116,(IF($B$4="N",'Wave Areas'!J79,(IF($B$4="NE",'Wave Areas'!X80,(IF($B$4="E",'Wave Areas'!J97,(IF($B$4="SE",'Wave Areas'!X98,(IF($B$4="S",'Wave Areas'!J115,(IF($B$4="W",'Wave Areas'!J133,(IF($B$4="NW",'Wave Areas'!X134,0))))))))))))))) -> 2 | AB23: =IF($B$4="SW",'Wave Areas'!Y116,(IF($B$4="N",'Wave Areas'!K79,(IF($B$4="NE",'Wave Areas'!Y80,(IF($B$4="E",'Wave Areas'!K97,(IF($B$4="SE",'Wave Areas'!Y98,(IF($B$4="S",'Wave Areas'!K115,(IF($B$4="W",'Wave Areas'!K133,(IF($B$4="NW",'Wave Areas'!Y134,0))))))))))))))) -> 0 | AC23: =IF($B$4="SW",'Wave Areas'!Z116,(IF($B$4="N",'Wave Areas'!L79,(IF($B$4="NE",'Wave Areas'!Z80,(IF($B$4="E",'Wave Areas'!L97,(IF($B$4="SE",'Wave Areas'!Z98,(IF($B$4="S",'Wave Areas'!L115,(IF($B$4="W",'Wave Areas'!L133,(IF($B$4="NW",'Wave Areas'!Z134,0))))))))))))))) -> 0 | AE23: 1.5 | AF23: =S23/($AC$33) -> 0 | AG23: =T23/($AC$33) -> 0.002666666667 | AH23: =U23/($AC$33) -> 0.027 | AI23: =V23/($AC$33) -> 0.075 | AJ23: =W23/($AC$33) -> 0.08233333333 | AK23: =X23/($AC$33) -> 0.04533333333 | AL23: =Y23/($AC$33) -> 0.01533333333 | AM23: =Z23/($AC$33) -> 0.003666666667 | AN23: =AA23/($AC$33) -> 0.0006666666667 | AO23: =AB23/($AC$33) -> 0 | AP23: =AC23/($AC$33) -> 0 | AQ23: =SUM(AF23:AP23) -> 0.252 | AS23: 1.5 | AT23: 0 | AU23: 52.70626875 | AV23: 634.59654 | AW23: 1970.273061 | AX23: 2320.346976 | AY23: 1338.001841 | AZ23: =I23*AL23 -> 467.0908391 | BA23: 114.232129 | BB23: =AO23/1004 -> 0 | BC23: =AP23/1004 -> 0 | BD23: =AQ22/1004 -> 0.0001102257636 | BE23: 6897.247765
A24: 7855.664062 | B24: 2.5 | C24: 0 | D24: =A24*($D$16) -> 54902.36328 | E24: 65287.70987 | F24: =$A24*($F$16) -> 72973.07632 | G24: 78284.31094 | H24: 81985.40694 | I24: 84617.90563 | J24: 86539.49163 | K24: 0 | L24: 0 | M24: 0 | N24: 524590.2646 | R24: 2.5 | S24: =IF($B$4="SW",'Wave Areas'!P117,(IF($B$4="N",'Wave Areas'!B80,(IF($B$4="NE",'Wave Areas'!P81,(IF($B$4="E",'Wave Areas'!B98,(IF($B$4="SE",'Wave Areas'!P99,(IF($B$4="S",'Wave Areas'!B116,(IF($B$4="W",'Wave Areas'!B134,(IF($B$4="NW",'Wave Areas'!P135,0))))))))))))))) -> 0 | T24: =IF($B$4="SW",'Wave Areas'!Q117,(IF($B$4="N",'Wave Areas'!C80,(IF($B$4="NE",'Wave Areas'!Q81,(IF($B$4="E",'Wave Areas'!C98,(IF($B$4="SE",'Wave Areas'!Q99,(IF($B$4="S",'Wave Areas'!C116,(IF($B$4="W",'Wave Areas'!C134,(IF($B$4="NW",'Wave Areas'!Q135,0))))))))))))))) -> 2 | U24: =IF($B$4="SW",'Wave Areas'!R117,(IF($B$4="N",'Wave Areas'!D80,(IF($B$4="NE",'Wave Areas'!R81,(IF($B$4="E",'Wave Areas'!D98,(IF($B$4="SE",'Wave Areas'!R99,(IF($B$4="S",'Wave Areas'!D116,(IF($B$4="W",'Wave Areas'!D134,(IF($B$4="NW",'Wave Areas'!R135,0))))))))))))))) -> 33 | V24: =IF($B$4="SW",'Wave Areas'!S117,(IF($B$4="N",'Wave Areas'!E80,(IF($B$4="NE",'Wave Areas'!S81,(IF($B$4="E",'Wave Areas'!E98,(IF($B$4="SE",'Wave Areas'!S99,(IF($B$4="S",'Wave Areas'!E116,(IF($B$4="W",'Wave Areas'!E134,(IF($B$4="NW",'Wave Areas'!S135,0))))))))))))))) -> 140 | W24: =IF($B$4="SW",'Wave Areas'!T117,(IF($B$4="N",'Wave Areas'!F80,(IF($B$4="NE",'Wave Areas'!T81,(IF($B$4="E",'Wave Areas'!F98,(IF($B$4="SE",'Wave Areas'!T99,(IF($B$4="S",'Wave Areas'!F116,(IF($B$4="W",'Wave Areas'!F134,(IF($B$4="NW",'Wave Areas'!T135,0))))))))))))))) -> 231 | X24: =IF($B$4="SW",'Wave Areas'!U117,(IF($B$4="N",'Wave Areas'!G80,(IF($B$4="NE",'Wave Areas'!U81,(IF($B$4="E",'Wave Areas'!G98,(IF($B$4="SE",'Wave Areas'!U99,(IF($B$4="S",'Wave Areas'!G116,(IF($B$4="W",'Wave Areas'!G134,(IF($B$4="NW",'Wave Areas'!U135,0))))))))))))))) -> 186 | Y24: =IF($B$4="SW",'Wave Areas'!V117,(IF($B$4="N",'Wave Areas'!H80,(IF($B$4="NE",'Wave Areas'!V81,(IF($B$4="E",'Wave Areas'!H98,(IF($B$4="SE",'Wave Areas'!V99,(IF($B$4="S",'Wave Areas'!H116,(IF($B$4="W",'Wave Areas'!H134,(IF($B$4="NW",'Wave Areas'!V135,0))))))))))))))) -> 86 | Z24: =IF($B$4="SW",'Wave Areas'!W117,(IF($B$4="N",'Wave Areas'!I80,(IF($B$4="NE",'Wave Areas'!W81,(IF($B$4="E",'Wave Areas'!I98,(IF($B$4="SE",'Wave Areas'!W99,(IF($B$4="S",'Wave Areas'!I116,(IF($B$4="W",'Wave Areas'!I134,(IF($B$4="NW",'Wave Areas'!W135,0))))))))))))))) -> 27 | AA24: =IF($B$4="SW",'Wave Areas'!X117,(IF($B$4="N",'Wave Areas'!J80,(IF($B$4="NE",'Wave Areas'!X81,(IF($B$4="E",'Wave Areas'!J98,(IF($B$4="SE",'Wave Areas'!X99,(IF($B$4="S",'Wave Areas'!J116,(IF($B$4="W",'Wave Areas'!J134,(IF($B$4="NW",'Wave Areas'!X135,0))))))))))))))) -> 7 | AB24: =IF($B$4="SW",'Wave Areas'!Y117,(IF($B$4="N",'Wave Areas'!K80,(IF($B$4="NE",'Wave Areas'!Y81,(IF($B$4="E",'Wave Areas'!K98,(IF($B$4="SE",'Wave Areas'!Y99,(IF($B$4="S",'Wave Areas'!K116,(IF($B$4="W",'Wave Areas'!K134,(IF($B$4="NW",'Wave Areas'!Y135,0))))))))))))))) -> 2 | AC24: =IF($B$4="SW",'Wave Areas'!Z117,(IF($B$4="N",'Wave Areas'!L80,(IF($B$4="NE",'Wave Areas'!Z81,(IF($B$4="E",'Wave Areas'!L98,(IF($B$4="SE",'Wave Areas'!Z99,(IF($B$4="S",'Wave Areas'!L116,(IF($B$4="W",'Wave Areas'!L134,(IF($B$4="NW",'Wave Areas'!Z135,0))))))))))))))) -> 0 | AE24: 2.5 | AF24: 0 | AG24: =T24/($AC$33) -> 0.0006666666667 | AH24: =U24/($AC$33) -> 0.011 | AI24: 0.04666666667 | AJ24: 0.077 | AK24: 0.062 | AL24: 0.02866666667 | AM24: 0.009 | AN24: 0.002333333333 | AO24: 0.0006666666667 | AP24: 0 | AQ24: 0.238 | AS24: 2.5 | AT24: =AG24/1004 -> 6.640106242e-07 | AU24: =D24*AG24 -> 36.60157552 | AV24: =E24*AH24 -> 718.1648086 | AW24: 3405.410228 | AX24: 6027.891942 | AY24: 5083.09523 | AZ24: 2425.713295 | BA24: 778.8554247 | BB24: 6.640106242e-07 | BC24: 0 | BD24: 0.0002509960159 | BE24: 18475.73276
A25: 15397.10156 | B25: 3.5 | C25: 0 | D25: =A25*($D$16) -> 107608.632 | E25: 127963.9113 | F25: =$A25*($F$16) -> 143027.2296 | G25: 153437.2494 | H25: 160691.3976 | I25: 165851.095 | J25: 169617.4036 | K25: 0 | L25: 0 | M25: 0 | N25: 1028196.919 | R25: 3.5 | S25: =IF($B$4="SW",'Wave Areas'!P118,(IF($B$4="N",'Wave Areas'!B81,(IF($B$4="NE",'Wave Areas'!P82,(IF($B$4="E",'Wave Areas'!B99,(IF($B$4="SE",'Wave Areas'!P100,(IF($B$4="S",'Wave Areas'!B117,(IF($B$4="W",'Wave Areas'!B135,(IF($B$4="NW",'Wave Areas'!P136,0))))))))))))))) -> 0 | T25: =IF($B$4="SW",'Wave Areas'!Q118,(IF($B$4="N",'Wave Areas'!C81,(IF($B$4="NE",'Wave Areas'!Q82,(IF($B$4="E",'Wave Areas'!C99,(IF($B$4="SE",'Wave Areas'!Q100,(IF($B$4="S",'Wave Areas'!C117,(IF($B$4="W",'Wave Areas'!C135,(IF($B$4="NW",'Wave Areas'!Q136,0))))))))))))))) -> 0 | U25: =IF($B$4="SW",'Wave Areas'!R118,(IF($B$4="N",'Wave Areas'!D81,(IF($B$4="NE",'Wave Areas'!R82,(IF($B$4="E",'Wave Areas'!D99,(IF($B$4="SE",'Wave Areas'!R100,(IF($B$4="S",'Wave Areas'!D117,(IF($B$4="W",'Wave Areas'!D135,(IF($B$4="NW",'Wave Areas'!R136,0))))))))))))))) -> 12 | V25: =IF($B$4="SW",'Wave Areas'!S118,(IF($B$4="N",'Wave Areas'!E81,(IF($B$4="NE",'Wave Areas'!S82,(IF($B$4="E",'Wave Areas'!E99,(IF($B$4="SE",'Wave Areas'!S100,(IF($B$4="S",'Wave Areas'!E117,(IF($B$4="W",'Wave Areas'!E135,(IF($B$4="NW",'Wave Areas'!S136,0))))))))))))))) -> 67 | W25: =IF($B$4="SW",'Wave Areas'!T118,(IF($B$4="N",'Wave Areas'!F81,(IF($B$4="NE",'Wave Areas'!T82,(IF($B$4="E",'Wave Areas'!F99,(IF($B$4="SE",'Wave Areas'!T100,(IF($B$4="S",'Wave Areas'!F117,(IF($B$4="W",'Wave Areas'!F135,(IF($B$4="NW",'Wave Areas'!T136,0))))))))))))))) -> 143 | X25: =IF($B$4="SW",'Wave Areas'!U118,(IF($B$4="N",'Wave Areas'!G81,(IF($B$4="NE",'Wave Areas'!U82,(IF($B$4="E",'Wave Areas'!G99,(IF($B$4="SE",'Wave Areas'!U100,(IF($B$4="S",'Wave Areas'!G117,(IF($B$4="W",'Wave Areas'!G135,(IF($B$4="NW",'Wave Areas'!U136,0))))))))))))))) -> 147 | Y25: =IF($B$4="SW",'Wave Areas'!V118,(IF($B$4="N",'Wave Areas'!H81,(IF($B$4="NE",'Wave Areas'!V82,(IF($B$4="E",'Wave Areas'!H99,(IF($B$4="SE",'Wave Areas'!V100,(IF($B$4="S",'Wave Areas'!H117,(IF($B$4="W",'Wave Areas'!H135,(IF($B$4="NW",'Wave Areas'!V136,0))))))))))))))) -> 88 | Z25: =IF($B$4="SW",'Wave Areas'!W118,(IF($B$4="N",'Wave Areas'!I81,(IF($B$4="NE",'Wave Areas'!W82,(IF($B$4="E",'Wave Areas'!I99,(IF($B$4="SE",'Wave Areas'!W100,(IF($B$4="S",'Wave Areas'!I117,(IF($B$4="W",'Wave Areas'!I135,(IF($B$4="NW",'Wave Areas'!W136,0))))))))))))))) -> 34 | AA25: =IF($B$4="SW",'Wave Areas'!X118,(IF($B$4="N",'Wave Areas'!J81,(IF($B$4="NE",'Wave Areas'!X82,(IF($B$4="E",'Wave Areas'!J99,(IF($B$4="SE",'Wave Areas'!X100,(IF($B$4="S",'Wave Areas'!J117,(IF($B$4="W",'Wave Areas'!J135,(IF($B$4="NW",'Wave Areas'!X136,0))))))))))))))) -> 9 | AB25: =IF($B$4="SW",'Wave Areas'!Y118,(IF($B$4="N",'Wave Areas'!K81,(IF($B$4="NE",'Wave Areas'!Y82,(IF($B$4="E",'Wave Areas'!K99,(IF($B$4="SE",'Wave Areas'!Y100,(IF($B$4="S",'Wave Areas'!K117,(IF($B$4="W",'Wave Areas'!K135,(IF($B$4="NW",'Wave Areas'!Y136,0))))))))))))))) -> 3 | AC25: =IF($B$4="SW",'Wave Areas'!Z118,(IF($B$4="N",'Wave Areas'!L81,(IF($B$4="NE",'Wave Areas'!Z82,(IF($B$4="E",'Wave Areas'!L99,(IF($B$4="SE",'Wave Areas'!Z100,(IF($B$4="S",'Wave Areas'!L117,(IF($B$4="W",'Wave Areas'!L135,(IF($B$4="NW",'Wave Areas'!Z136,0))))))))))))))) -> 0 | AE25: 3.5 | AF25: 0 | AG25: 0 | AH25: 0.004 | AI25: 0.02233333333 | AJ25: 0.04766666667 | AK25: 0.049 | AL25: 0.02933333333 | AM25: 0.01133333333 | AN25: 0.003 | AO25: 0.001 | AP25: 0 | AQ25: 0.1676666667 | AS25: 3.5 | AT25: 0 | AU25: 0 | AV25: 511.8556454 | AW25: 3194.274794 | AX25: 7313.842223 | AY25: 7873.878482 | AZ25: 4864.965455 | BA25: 1922.330574 | BB25: 9.960159363e-07 | BC25: 0 | BD25: 0.0002370517928 | BE25: =SUM(AT25:BD25) -> 25681.14741
A26: 25452.35156 | B26: 4.5 | C26: 0 | D26: =A26*($D$16) -> 177883.657 | E26: 211532.18 | F26: =$A26*($F$16/2) -> 118216.3836 | G26: 253641.1674 | H26: 265632.7185 | I26: 274162.0143 | J26: 280387.9529 | K26: 0 | L26: 0 | M26: 0 | N26: 1581456.074 | R26: 4.5 | S26: =IF($B$4="SW",'Wave Areas'!P119,(IF($B$4="N",'Wave Areas'!B82,(IF($B$4="NE",'Wave Areas'!P83,(IF($B$4="E",'Wave Areas'!B100,(IF($B$4="SE",'Wave Areas'!P101,(IF($B$4="S",'Wave Areas'!B118,(IF($B$4="W",'Wave Areas'!B136,(IF($B$4="NW",'Wave Areas'!P137,0))))))))))))))) -> 0 | T26: =IF($B$4="SW",'Wave Areas'!Q119,(IF($B$4="N",'Wave Areas'!C82,(IF($B$4="NE",'Wave Areas'!Q83,(IF($B$4="E",'Wave Areas'!C100,(IF($B$4="SE",'Wave Areas'!Q101,(IF($B$4="S",'Wave Areas'!C118,(IF($B$4="W",'Wave Areas'!C136,(IF($B$4="NW",'Wave Areas'!Q137,0))))))))))))))) -> 0 | U26: =IF($B$4="SW",'Wave Areas'!R119,(IF($B$4="N",'Wave Areas'!D82,(IF($B$4="NE",'Wave Areas'!R83,(IF($B$4="E",'Wave Areas'!D100,(IF($B$4="SE",'Wave Areas'!R101,(IF($B$4="S",'Wave Areas'!D118,(IF($B$4="W",'Wave Areas'!D136,(IF($B$4="NW",'Wave Areas'!R137,0))))))))))))))) -> 4 | V26: =IF($B$4="SW",'Wave Areas'!S119,(IF($B$4="N",'Wave Areas'!E82,(IF($B$4="NE",'Wave Areas'!S83,(IF($B$4="E",'Wave Areas'!E100,(IF($B$4="SE",'Wave Areas'!S101,(IF($B$4="S",'Wave Areas'!E118,(IF($B$4="W",'Wave Areas'!E136,(IF($B$4="NW",'Wave Areas'!S137,0))))))))))))))) -> 29 | W26: =IF($B$4="SW",'Wave Areas'!T119,(IF($B$4="N",'Wave Areas'!F82,(IF($B$4="NE",'Wave Areas'!T83,(IF($B$4="E",'Wave Areas'!F100,(IF($B$4="SE",'Wave Areas'!T101,(IF($B$4="S",'Wave Areas'!F118,(IF($B$4="W",'Wave Areas'!F136,(IF($B$4="NW",'Wave Areas'!T137,0))))))))))))))) -> 74 | X26: =IF($B$4="SW",'Wave Areas'!U119,(IF($B$4="N",'Wave Areas'!G82,(IF($B$4="NE",'Wave Areas'!U83,(IF($B$4="E",'Wave Areas'!G100,(IF($B$4="SE",'Wave Areas'!U101,(IF($B$4="S",'Wave Areas'!G118,(IF($B$4="W",'Wave Areas'!G136,(IF($B$4="NW",'Wave Areas'!U137,0))))))))))))))) -> 93 | Y26: =IF($B$4="SW",'Wave Areas'!V119,(IF($B$4="N",'Wave Areas'!H82,(IF($B$4="NE",'Wave Areas'!V83,(IF($B$4="E",'Wave Areas'!H100,(IF($B$4="SE",'Wave Areas'!V101,(IF($B$4="S",'Wave Areas'!H118,(IF($B$4="W",'Wave Areas'!H136,(IF($B$4="NW",'Wave Areas'!V137,0))))))))))))))) -> 66 | Z26: =IF($B$4="SW",'Wave Areas'!W119,(IF($B$4="N",'Wave Areas'!I82,(IF($B$4="NE",'Wave Areas'!W83,(IF($B$4="E",'Wave Areas'!I100,(IF($B$4="SE",'Wave Areas'!W101,(IF($B$4="S",'Wave Areas'!I118,(IF($B$4="W",'Wave Areas'!I136,(IF($B$4="NW",'Wave Areas'!W137,0))))))))))))))) -> 31 | AA26: =IF($B$4="SW",'Wave Areas'!X119,(IF($B$4="N",'Wave Areas'!J82,(IF($B$4="NE",'Wave Areas'!X83,(IF($B$4="E",'Wave Areas'!J100,(IF($B$4="SE",'Wave Areas'!X101,(IF($B$4="S",'Wave Areas'!J118,(IF($B$4="W",'Wave Areas'!J136,(IF($B$4="NW",'Wave Areas'!X137,0))))))))))))))) -> 9 | AB26: =IF($B$4="SW",'Wave Areas'!Y119,(IF($B$4="N",'Wave Areas'!K82,(IF($B$4="NE",'Wave Areas'!Y83,(IF($B$4="E",'Wave Areas'!K100,(IF($B$4="SE",'Wave Areas'!Y101,(IF($B$4="S",'Wave Areas'!K118,(IF($B$4="W",'Wave Areas'!K136,(IF($B$4="NW",'Wave Areas'!Y137,0))))))))))))))) -> 3 | AC26: =IF($B$4="SW",'Wave Areas'!Z119,(IF($B$4="N",'Wave Areas'!L82,(IF($B$4="NE",'Wave Areas'!Z83,(IF($B$4="E",'Wave Areas'!L100,(IF($B$4="SE",'Wave Areas'!Z101,(IF($B$4="S",'Wave Areas'!L118,(IF($B$4="W",'Wave Areas'!L136,(IF($B$4="NW",'Wave Areas'!Z137,0))))))))))))))) -> 1 | AE26: 4.5 | AF26: 0 | AG26: 0 | AH26: 0.001333333333 | AI26: 0.009666666667 | AJ26: 0.02466666667 | AK26: 0.031 | AL26: 0.022 | AM26: 0.01033333333 | AN26: 0.003 | AO26: 0.001 | AP26: 0.0003333333333 | AQ26: 0.1033333333 | AS26: 4.5 | AT26: 0 | AU26: 0 | AV26: 282.0429066 | AW26: 1142.758375 | AX26: 6256.48213 | AY26: 8234.614273 | AZ26: 6031.564314 | BA26: 2897.34218 | BB26: 9.960159363e-07 | BC26: 3.320053121e-07 | BD26: 0.000166998672 | BE26: 24844.80435
A27: 38021.41406 | B27: 5.5 | C27: 0 | D27: 0 | E27: 315992.5158 | F27: =$A27*($F$16) -> 353189.6894 | G27: 378896.0649 | H27: 396809.3696 | I27: 409550.6633 | J27: 418851.1395 | K27: 0 | L27: 0 | M27: 0 | N27: 2273289.442 | R27: 5.5 | S27: =IF($B$4="SW",'Wave Areas'!P120,(IF($B$4="N",'Wave Areas'!B83,(IF($B$4="NE",'Wave Areas'!P84,(IF($B$4="E",'Wave Areas'!B101,(IF($B$4="SE",'Wave Areas'!P102,(IF($B$4="S",'Wave Areas'!B119,(IF($B$4="W",'Wave Areas'!B137,(IF($B$4="NW",'Wave Areas'!P138,0))))))))))))))) -> 0 | T27: =IF($B$4="SW",'Wave Areas'!Q120,(IF($B$4="N",'Wave Areas'!C83,(IF($B$4="NE",'Wave Areas'!Q84,(IF($B$4="E",'Wave Areas'!C101,(IF($B$4="SE",'Wave Areas'!Q102,(IF($B$4="S",'Wave Areas'!C119,(IF($B$4="W",'Wave Areas'!C137,(IF($B$4="NW",'Wave Areas'!Q138,0))))))))))))))) -> 0 | U27: =IF($B$4="SW",'Wave Areas'!R120,(IF($B$4="N",'Wave Areas'!D83,(IF($B$4="NE",'Wave Areas'!R84,(IF($B$4="E",'Wave Areas'!D101,(IF($B$4="SE",'Wave Areas'!R102,(IF($B$4="S",'Wave Areas'!D119,(IF($B$4="W",'Wave Areas'!D137,(IF($B$4="NW",'Wave Areas'!R138,0))))))))))))))) -> 1 | V27: =IF($B$4="SW",'Wave Areas'!S120,(IF($B$4="N",'Wave Areas'!E83,(IF($B$4="NE",'Wave Areas'!S84,(IF($B$4="E",'Wave Areas'!E101,(IF($B$4="SE",'Wave Areas'!S102,(IF($B$4="S",'Wave Areas'!E119,(IF($B$4="W",'Wave Areas'!E137,(IF($B$4="NW",'Wave Areas'!S138,0))))))))))))))) -> 11 | W27: =IF($B$4="SW",'Wave Areas'!T120,(IF($B$4="N",'Wave Areas'!F83,(IF($B$4="NE",'Wave Areas'!T84,(IF($B$4="E",'Wave Areas'!F101,(IF($B$4="SE",'Wave Areas'!T102,(IF($B$4="S",'Wave Areas'!F119,(IF($B$4="W",'Wave Areas'!F137,(IF($B$4="NW",'Wave Areas'!T138,0))))))))))))))) -> 36 | X27: =IF($B$4="SW",'Wave Areas'!U120,(IF($B$4="N",'Wave Areas'!G83,(IF($B$4="NE",'Wave Areas'!U84,(IF($B$4="E",'Wave Areas'!G101,(IF($B$4="SE",'Wave Areas'!U102,(IF($B$4="S",'Wave Areas'!G119,(IF($B$4="W",'Wave Areas'!G137,(IF($B$4="NW",'Wave Areas'!U138,0))))))))))))))) -> 51 | Y27: =IF($B$4="SW",'Wave Areas'!V120,(IF($B$4="N",'Wave Areas'!H83,(IF($B$4="NE",'Wave Areas'!V84,(IF($B$4="E",'Wave Areas'!H101,(IF($B$4="SE",'Wave Areas'!V102,(IF($B$4="S",'Wave Areas'!H119,(IF($B$4="W",'Wave Areas'!H137,(IF($B$4="NW",'Wave Areas'!V138,0))))))))))))))) -> 43 | Z27: =IF($B$4="SW",'Wave Areas'!W120,(IF($B$4="N",'Wave Areas'!I83,(IF($B$4="NE",'Wave Areas'!W84,(IF($B$4="E",'Wave Areas'!I101,(IF($B$4="SE",'Wave Areas'!W102,(IF($B$4="S",'Wave Areas'!I119,(IF($B$4="W",'Wave Areas'!I137,(IF($B$4="NW",'Wave Areas'!W138,0))))))))))))))) -> 23 | AA27: =IF($B$4="SW",'Wave Areas'!X120,(IF($B$4="N",'Wave Areas'!J83,(IF($B$4="NE",'Wave Areas'!X84,(IF($B$4="E",'Wave Areas'!J101,(IF($B$4="SE",'Wave Areas'!X102,(IF($B$4="S",'Wave Areas'!J119,(IF($B$4="W",'Wave Areas'!J137,(IF($B$4="NW",'Wave Areas'!X138,0))))))))))))))) -> 9 | AB27: =IF($B$4="SW",'Wave Areas'!Y120,(IF($B$4="N",'Wave Areas'!K83,(IF($B$4="NE",'Wave Areas'!Y84,(IF($B$4="E",'Wave Areas'!K101,(IF($B$4="SE",'Wave Areas'!Y102,(IF($B$4="S",'Wave Areas'!K119,(IF($B$4="W",'Wave Areas'!K137,(IF($B$4="NW",'Wave Areas'!Y138,0))))))))))))))) -> 2 | AC27: =IF($B$4="SW",'Wave Areas'!Z120,(IF($B$4="N",'Wave Areas'!L83,(IF($B$4="NE",'Wave Areas'!Z84,(IF($B$4="E",'Wave Areas'!L101,(IF($B$4="SE",'Wave Areas'!Z102,(IF($B$4="S",'Wave Areas'!L119,(IF($B$4="W",'Wave Areas'!L137,(IF($B$4="NW",'Wave Areas'!Z138,0))))))))))))))) -> 0 | AE27: 5.5 | AF27: 0 | AG27: 0 | AH27: 0.0003333333333 | AI27: 0.003666666667 | AJ27: 0.012 | AK27: 0.017 | AL27: 0.01433333333 | AM27: 0.007666666667 | AN27: 0.003 | AO27: 0.0006666666667 | AP27: 0 | AQ27: 0.05866666667 | AS27: 5.5 | AT27: 0 | AU27: =AH27/1004 -> 3.320053121e-07 | AV27: =E27*AH27 -> 105.3308386 | AW27: 1295.028861 | AX27: 4546.752779 | AY27: 6745.759283 | AZ27: 5870.226173 | BA27: 3211.192069 | BB27: 6.640106242e-07 | BC27: 0 | BD27: 0.0001029216467 | BE27: 21774.29011
A28: 53104.28906 | B28: 6.5 | C28: 0 | D28: 0 | E28: 441344.9187 | F28: =$A28*($F$16/2) -> 246648.998 | G28: 529201.9419 | H28: 554221.3509 | I28: 572017.0421 | J28: 585006.9634 | K28: 0 | L28: 0 | M28: 0 | N28: 2928441.215 | R28: 6.5 | S28: =IF($B$4="SW",'Wave Areas'!P121,(IF($B$4="N",'Wave Areas'!B84,(IF($B$4="NE",'Wave Areas'!P85,(IF($B$4="E",'Wave Areas'!B102,(IF($B$4="SE",'Wave Areas'!P103,(IF($B$4="S",'Wave Areas'!B120,(IF($B$4="W",'Wave Areas'!B138,(IF($B$4="NW",'Wave Areas'!P139,0))))))))))))))) -> 0 | T28: =IF($B$4="SW",'Wave Areas'!Q121,(IF($B$4="N",'Wave Areas'!C84,(IF($B$4="NE",'Wave Areas'!Q85,(IF($B$4="E",'Wave Areas'!C102,(IF($B$4="SE",'Wave Areas'!Q103,(IF($B$4="S",'Wave Areas'!C120,(IF($B$4="W",'Wave Areas'!C138,(IF($B$4="NW",'Wave Areas'!Q139,0))))))))))))))) -> 0 | U28: =IF($B$4="SW",'Wave Areas'!R121,(IF($B$4="N",'Wave Areas'!D84,(IF($B$4="NE",'Wave Areas'!R85,(IF($B$4="E",'Wave Areas'!D102,(IF($B$4="SE",'Wave Areas'!R103,(IF($B$4="S",'Wave Areas'!D120,(IF($B$4="W",'Wave Areas'!D138,(IF($B$4="NW",'Wave Areas'!R139,0))))))))))))))) -> 0 | V28: =IF($B$4="SW",'Wave Areas'!S121,(IF($B$4="N",'Wave Areas'!E84,(IF($B$4="NE",'Wave Areas'!S85,(IF($B$4="E",'Wave Areas'!E102,(IF($B$4="SE",'Wave Areas'!S103,(IF($B$4="S",'Wave Areas'!E120,(IF($B$4="W",'Wave Areas'!E138,(IF($B$4="NW",'Wave Areas'!S139,0))))))))))))))) -> 4 | W28: =IF($B$4="SW",'Wave Areas'!T121,(IF($B$4="N",'Wave Areas'!F84,(IF($B$4="NE",'Wave Areas'!T85,(IF($B$4="E",'Wave Areas'!F102,(IF($B$4="SE",'Wave Areas'!T103,(IF($B$4="S",'Wave Areas'!F120,(IF($B$4="W",'Wave Areas'!F138,(IF($B$4="NW",'Wave Areas'!T139,0))))))))))))))) -> 16 | X28: =IF($B$4="SW",'Wave Areas'!U121,(IF($B$4="N",'Wave Areas'!G84,(IF($B$4="NE",'Wave Areas'!U85,(IF($B$4="E",'Wave Areas'!G102,(IF($B$4="SE",'Wave Areas'!U103,(IF($B$4="S",'Wave Areas'!G120,(IF($B$4="W",'Wave Areas'!G138,(IF($B$4="NW",'Wave Areas'!U139,0))))))))))))))) -> 28 | Y28: =IF($B$4="SW",'Wave Areas'!V121,(IF($B$4="N",'Wave Areas'!H84,(IF($B$4="NE",'Wave Areas'!V85,(IF($B$4="E",'Wave Areas'!H102,(IF($B$4="SE",'Wave Areas'!V103,(IF($B$4="S",'Wave Areas'!H120,(IF($B$4="W",'Wave Areas'!H138,(IF($B$4="NW",'Wave Areas'!V139,0))))))))))))))) -> 26 | Z28: =IF($B$4="SW",'Wave Areas'!W121,(IF($B$4="N",'Wave Areas'!I84,(IF($B$4="NE",'Wave Areas'!W85,(IF($B$4="E",'Wave Areas'!I102,(IF($B$4="SE",'Wave Areas'!W103,(IF($B$4="S",'Wave Areas'!I120,(IF($B$4="W",'Wave Areas'!I138,(IF($B$4="NW",'Wave Areas'!W139,0))))))))))))))) -> 16 | AA28: =IF($B$4="SW",'Wave Areas'!X121,(IF($B$4="N",'Wave Areas'!J84,(IF($B$4="NE",'Wave Areas'!X85,(IF($B$4="E",'Wave Areas'!J102,(IF($B$4="SE",'Wave Areas'!X103,(IF($B$4="S",'Wave Areas'!J120,(IF($B$4="W",'Wave Areas'!J138,(IF($B$4="NW",'Wave Areas'!X139,0))))))))))))))) -> 7 | AB28: =IF($B$4="SW",'Wave Areas'!Y121,(IF($B$4="N",'Wave Areas'!K84,(IF($B$4="NE",'Wave Areas'!Y85,(IF($B$4="E",'Wave Areas'!K102,(IF($B$4="SE",'Wave Areas'!Y103,(IF($B$4="S",'Wave Areas'!K120,(IF($B$4="W",'Wave Areas'!K138,(IF($B$4="NW",'Wave Areas'!Y139,0))))))))))))))) -> 2 | AC28: =IF($B$4="SW",'Wave Areas'!Z121,(IF($B$4="N",'Wave Areas'!L84,(IF($B$4="NE",'Wave Areas'!Z85,(IF($B$4="E",'Wave Areas'!L102,(IF($B$4="SE",'Wave Areas'!Z103,(IF($B$4="S",'Wave Areas'!L120,(IF($B$4="W",'Wave Areas'!L138,(IF($B$4="NW",'Wave Areas'!Z139,0))))))))))))))) -> 0 | AE28: 6.5 | AF28: 0 | AG28: 0 | AH28: 0 | AI28: 0.001333333333 | AJ28: 0.005333333333 | AK28: 0.009333333333 | AL28: 0.008666666667 | AM28: 0.005333333333 | AN28: 0.002333333333 | AO28: 0.0006666666667 | AP28: 0 | AQ28: 0.033 | AS28: 6.5 | AT28: 0 | AU28: 0 | AV28: 0 | AW28: 328.8653306 | AX28: 2822.410357 | AY28: 5172.732608 | AZ28: 4957.481031 | BA28: 3120.037138 | BB28: 6.640106242e-07 | BC28: 0 | BD28: 5.843293493e-05 | BE28: 16401.52652
